{"text_format":"1","workbook":"xlsx","n_sheets":18,"sheets":["Instructions","Scorecard (Homes)","Scorecard (Midrise)","Batch - Single Family","Batch - Multifamily","Multifamily HSA","IP","LT","SS","WE","EA","MR","EQ","IN","RP","Water Reduction Calculator","Sampling Reporting Form","Scorecard Data"],"not_rendered":{"charts":0,"images":10,"macros":1,"external_links":3,"defined_names":644,"comments":10,"pivot_tables":0},"unopened":[],"bounds":{"document_bytes":16777216,"sheet_cells":100000,"rows_first":2000,"rows_last":500,"rows_between":2000,"halvings":0,"cell_chars":16384,"cell_head_chars":4096},"cells_cut":0,"cells_raw":0,"read":"whole","date_system":"1900"}

{"sheet":"Instructions","index":0,"n_rows":156,"n_cols":13,"rows_kept":156,"cut":false,"hidden":false,"merged":[[2,4,2,5],[49,4,49,5],[94,8,94,10],[95,8,95,10],[89,8,89,10],[90,8,90,10],[91,8,91,10],[92,8,92,10],[93,8,93,10],[53,2,53,5],[54,2,54,5],[55,2,55,5]]}
[]
[]
[null,null,null,null,"LEED BD+C: Homes and Multifamily v4 Workbook"]
[null,null,null,null,"Step 1."]
[null,null,null,null,"Ensure this project is registered in LEED Online."]
[]
[null,null,null,null,"Step 2."]
[null,null,null,null,"Enable macros"]
[null,null,null,null,"Note: This workbook is for use with Excel for Mac 2011 and Excel 2007 or later."]
[]
[null,null,null,null,"Step 3."]
[null,null,null,null,"Unit of measure","IP units"]
[]
[null,null,null,null,"Step 4."]
[null,null,null,null,"Project rating system","LEED BD+C: Homes and Multifamily Lowrise v4 - LEED v4"]
[]
[null,null,null,null,"Project type","Individual"]
[]
[null,null,null,null,"Number of homes in batch submittal"]
[]
[null,null,null,null,"Construction type","Gut-rehab"]
[]
[null,null,null,null,"Project team leader","Travis VanLuyn"]
[]
[null,null,null,null,"Green rater","Jamison Lenz"]
[]
[null,null,null,null,"Provider QAD","Michael Holcomb, GHI"]
[]
[null,null,null,null,"Step 5."]
[null,null,null,null,"The following information must be consistent with project details in LEED Online:"]
[]
[null,null,null,null,"Individual Project Information"]
[null,null,null,null,"Project ID #",1000100140]
[null,null,null,null,"Project name","Woodlawn Residence "]
[null,null,null,null,"Project address","537 Woodlawn"]
[null,null,null,null,"City","Grand Rapids "]
[null,null,null,null,"State","Michigan "]
[null,null,null,null,"Country","USA"]
[null,null,null,null,"Zip Code",49507]
[null,null,null,null,"Building type","Single family detached"]
[null,null,null,null,"Number of stories",1]
[null,null,null,null,"Number of bedrooms",4]
[null,null,null,null,{"$f":"CONCATENATE(\"Conditioned floor area \",IF(I62=2,\"(sq m)\",\"(sq ft)\"))","v":"Conditioned floor area (sq ft)"},1055]
[null,null,null,null,{"$f":"CONCATENATE(\"Gross floor area \",IF(I62=2,\"(sq m)\",\"(sq ft)\"))","v":"Gross floor area (sq ft)"}]
[null,null,null,null,"Batch Project Information"]
[null,null,null,null,"Registration Set ID #"]
[null,null,null,null,"Batch/development name"]
[null,null,null,null,"Country"]
[null,null,null,null,"Building type"]
[null,null,null,null,"Note: Go to the appropriate batch tab to document individual project IDs and address information."]
[]
[]
[null,null,"Additional Resources"]
[null,null,"- Resources & Tools section of the Homes Guide to Certification (http://www.usgbc.org/cert-guide/homes#tools)"]
[null,null,"- Credit Library (http://www.usgbc.org/credits)"]
[null,null,"- For changes made to this version of the Workbook, see the Form Updates section of the Addenda Database (http://www.usgbc.org/leed-interpretations?keys=5000065)"]
[]
[]
[null,null,null,null,null,null,"V04"]
[null,null,null,null,null,null,"Copyright © 2012"]
[null,null,null,null,null,null,"U.S. Green Building Council",null,"UOM","RS"]
[null,null,null,null,null,null,"All Rights Reserved",null,{"$f":"IF(F12=\"SI units\",2,1)","v":1},{"$f":"IF(F15=\"LEED BD+C: Multifamily Midrise v4 - LEED v4\",2,1)","v":1}]
[null,null,null,null,null,null,"Updated 1/9/2017",null,"IP = 1; SI = 2","H = 1; M = 2"]
[]
[null,null,null,null,null,null,null,null,"Nominal Pipe Size\n(in)","no Circ Loop\n(ft)","Circ Loop\n(ft)","EA H pts","EA M pts"]
[null,null,null,null,null,null,null,null,0.25,50,16,0,0]
[null,null,null,null,null,null,null,null,0.3125,50,16,1,1]
[null,null,null,null,null,null,null,null,0.375,50,16,2,2]
[null,null,null,null,null,null,null,null,0.5,43,16,3,3]
[null,null,null,null,null,null,null,null,0.625,32,12,4,4]
[null,null,null,null,null,null,null,null,0.75,21,8,5,5]
[null,null,null,null,null,null,null,null,0.875,16,6,6,6]
[null,null,null,null,null,null,null,null,1,13,5,7,7]
[null,null,null,null,null,null,null,null,1.25,8,3,8,8]
[null,null,null,null,null,null,null,null,1.5,6,2,9,9]
[null,null,null,null,null,null,null,null,"2 or larger",4,1,10,10]
[null,null,null,null,null,null,null,null,"Nominal Pipe Size\n(mm)","no Circ Loop\n(m)","Circ Loop\n(m)",11,11]
[null,null,null,null,null,null,null,null,6,15,5,12,12]
[null,null,null,null,null,null,null,null,8,15,5,13,13]
[null,null,null,null,null,null,null,null,9,15,5,14,14]
[null,null,null,null,null,null,null,null,13,13,5,15,15]
[null,null,null,null,null,null,null,null,16,10,4,16,16]
[null,null,null,null,null,null,null,null,19,6,2,17,17]
[null,null,null,null,null,null,null,null,22,5,2,18,18]
[null,null,null,null,null,null,null,null,25,4,2,19,19]
[null,null,null,null,null,null,null,null,32,2,1,20,20]
[null,null,null,null,null,null,null,null,38,2,1,21,21]
[null,null,null,null,null,null,null,null,"50 or larger",1,0.3,22,22]
[null,null,null,null,null,null,null,null,null,null,null,23,23]
[null,null,null,null,null,null,null,null,"MR drop-down",null,null,24,24]
[null,null,null,null,null,null,null,null,"At least 25% reclaimed",null,null,25,25]
[null,null,null,null,null,null,null,null,"At least 25% postconsumer or 50% preconsumer recycled content",null,null,26,26]
[null,null,null,null,null,null,null,null,"FSC Certified wood",null,null,27,27]
[null,null,null,null,null,null,null,null,"Sustainable Agriculture Standard",null,null,28,28]
[null,null,null,null,null,null,null,null,"Concrete with at least 30% fly ash/slag and 50% recycled content aggregate OR 90% recycled content aggregate",null,null,29,29]
[null,null,null,null,null,null,null,null,"Extended producer responsibility",null,null,null,30]
[null,null,null,null,null,null,null,null,null,null,null,"MRc2 H pts","MR M pts"]
[null,null,null,null,null,null,null,null,null,null,null,0,0]
[null,null,null,null,null,null,null,null,null,null,null,0.5,0.5]
[null,null,null,null,null,null,null,null,null,null,null,1,1]
[null,null,null,null,null,null,null,null,"% reduction","pts",null,1.5,1.5]
[null,null,null,null,null,null,null,null,0.01,1,null,2,2]
[null,null,null,null,null,null,null,null,0.02,2,null,2.5,2.5]
[null,null,null,null,null,null,null,null,0.03,3,null,3,3]
[null,null,null,null,null,null,null,null,0.04,4,null,3.5,3.5]
[null,null,null,null,null,null,null,null,0.05,5,null,4,4]
[null,null,null,null,null,null,null,null,0.06,6,null,null,4.5]
[null,null,null,null,null,null,null,null,7.0000000000000007E-2,7,null,null,5]
[null,null,null,null,null,null,null,null,0.08,8,null,"EQc4 H pts","EQ M pts"]
[null,null,null,null,null,null,null,null,0.09,9,null,0,0]
[null,null,null,null,null,null,null,null,0.1,10,null,1,1]
[null,null,null,null,null,null,null,null,0.12,11,null,null,2]
[null,null,null,null,null,null,null,null,0.14000000000000001,12,null,null,3]
[null,null,null,null,null,null,null,null,0.16,13]
[null,null,null,null,null,null,null,null,0.18,14]
[null,null,null,null,null,null,null,null,0.2,15]
[null,null,null,null,null,null,null,null,0.22,16]
[null,null,null,null,null,null,null,null,0.24,17]
[null,null,null,null,null,null,null,null,0.26,18]
[null,null,null,null,null,null,null,null,0.28000000000000003,19]
[null,null,null,null,null,null,null,null,0.3,20]
[null,null,null,null,null,null,null,null,0.32,21]
[null,null,null,null,null,null,null,null,0.34,22]
[null,null,null,null,null,null,null,null,0.37,23]
[null,null,null,null,null,null,null,null,0.4,24]
[null,null,null,null,null,null,null,null,0.5,25]
[null,null,null,null,null,null,null,null,0.6,26]
[null,null,null,null,null,null,null,null,0.7,27]
[null,null,null,null,null,null,null,null,0.8,28]
[null,null,null,null,null,null,null,null,0.9,29]
[null,null,null,null,null,null,null,null,"HERS","pts"]
[null,null,null,null,null,null,null,null,70,5]
[null,null,null,null,null,null,null,null,69,6]
[null,null,null,null,null,null,null,null,68,7]
[null,null,null,null,null,null,null,null,67,8]
[null,null,null,null,null,null,null,null,66,9]
[null,null,null,null,null,null,null,null,65,10]
[null,null,null,null,null,null,null,null,64,11]
[null,null,null,null,null,null,null,null,63,12]
[null,null,null,null,null,null,null,null,62,13]
[null,null,null,null,null,null,null,null,60,14]
[null,null,null,null,null,null,null,null,58,15]
[null,null,null,null,null,null,null,null,56,16]
[null,null,null,null,null,null,null,null,54,17]
[null,null,null,null,null,null,null,null,52,18]
[null,null,null,null,null,null,null,null,50,19]
[null,null,null,null,null,null,null,null,45,20]
[null,null,null,null,null,null,null,null,40,21]
[null,null,null,null,null,null,null,null,35,22]
[null,null,null,null,null,null,null,null,30,23]
[null,null,null,null,null,null,null,null,25,24]
[null,null,null,null,null,null,null,null,20,25]
[null,null,null,null,null,null,null,null,15,26]
[null,null,null,null,null,null,null,null,10,27]
[null,null,null,null,null,null,null,null,5,28]
[null,null,null,null,null,null,null,null,0,29]

{"sheet":"Scorecard (Homes)","index":1,"n_rows":108,"n_cols":12,"rows_kept":108,"cut":false,"hidden":false,"merged":[[107,1,107,9],[13,11,14,11],[32,11,33,11],[43,11,44,11]]}
[]
[null,"LEED BD+C: Homes and Multifamily Lowrise v4 - LEED v4"]
[null,{"$f":"CONCATENATE(IF(Type=\"Batch\",Instructions!F47,Instructions!F36),\" Scorecard\")","v":"Grand Rapids  Scorecard"}]
[null,"Note: The information on this tab is READ-ONLY.  To edit this information, see the Credit Category tabs."]
[]
[null,null,"Integrative Process",null,"Preliminary    Y",{"$f":"IP!F3","v":1},"M",{"$f":"IP!H3","v":0},"Verified",{"$f":"IP!J3","v":1}]
[]
[null,null,"IPc","Integrative Process",null,{"$f":"IP!$F$7","v":1},null,{"$f":"IP!$H$7","v":0},null,{"$f":"IF(IP!$J$7=0,\"\",IP!$J$7)","v":1}]
[]
[null,null,"Location and Transportation",null,"Preliminary    Y",{"$f":"LT!F3","v":9},"M",{"$f":"LT!H3","v":0},"Verified",{"$f":"LT!J3","v":9}]
[]
[null,null,"LTp","Floodplain Avoidance",null,"Required",null,null,null,{"$f":"IF(LT!$J$7=\"Y\",\"Verified\",\"Not Verified\")","v":"Verified"}]
[null,null,"Performance Path"]
[null,null,"LTc","LEED for Neighborhood Development",null,{"$f":"LT!$F$20","v":0},null,{"$f":"LT!$H$20","v":0},null,{"$f":"IF(LT!$J$20=0,\"\",LT!$J$20)","v":""},null,{"$f":"IF(AND(J14<>\"\",SUM(J16:J19)>0),\"Warning: The project cannot receive points under the Performance Path if also receiving points under the Prescriptive Path.\",\"\")","v":""}]
[null,null,"Prescriptive Path"]
[null,null,"LTc","Site Selection",null,{"$f":"LT!$F$34","v":8},null,{"$f":"LT!$H$34","v":0},null,{"$f":"IF(LT!$J$34=0,\"\",LT!$J$34)","v":8}]
[null,null,"LTc","Compact Development",null,{"$f":"LT!$F$117","v":1},null,{"$f":"LT!$H$117","v":0},null,{"$f":"IF(LT!$J$117=0,\"\",LT!$J$117)","v":1}]
[null,null,"LTc","Community Resources",null,{"$f":"LT!$F$127","v":0},null,{"$f":"LT!$H$127","v":0},null,{"$f":"IF(LT!$J$127=0,\"\",LT!$J$127)","v":""}]
[null,null,"LTc","Access to Transit",null,{"$f":"LT!$F$135","v":0},null,{"$f":"LT!$H$135","v":0},null,{"$f":"IF(LT!$J$135=0,\"\",LT!$J$135)","v":""}]
[]
[null,null,"Sustainable Sites",null,"Preliminary    Y",{"$f":"SS!F3","v":1.5},"M",{"$f":"SS!H3","v":0},"Verified",{"$f":"SS!J3","v":1.5}]
[]
[null,null,"SSp","Construction Activity Pollution Prevention",null,"Required",null,null,null,{"$f":"IF(SS!$J$7=\"Y\",\"Verified\",\"Not Verified\")","v":"Verified"}]
[null,null,"SSp","No Invasive Plants",null,"Required",null,null,null,{"$f":"IF(SS!$J$34=\"Y\",\"Verified\",\"Not Verified\")","v":"Verified"}]
[null,null,"SSc","Heat Island Reduction",null,{"$f":"SS!$F$41","v":0},null,{"$f":"SS!$H$41","v":0},null,{"$f":"IF(SS!$J$41=0,\"\",SS!$J$41)","v":""}]
[null,null,"SSc","Rainwater Management",null,{"$f":"SS!$F$69","v":0},null,{"$f":"SS!$H$69","v":0},null,{"$f":"IF(SS!$J$69=0,\"\",SS!$J$69)","v":""}]
[null,null,"SSc","Nontoxic Pest Control",null,{"$f":"SS!$F$95","v":1.5},null,{"$f":"SS!$H$95","v":0},null,{"$f":"IF(SS!$J$95=0,\"\",SS!$J$95)","v":1.5}]
[]
[null,null,"Water Efficiency ",null,"Preliminary    Y",{"$f":"WE!F3","v":5},"M",{"$f":"WE!H3","v":0},"Verified",{"$f":"WE!J3","v":5}]
[]
[null,null,"WEp","Water Metering",null,"Required",null,null,null,{"$f":"IF(WE!$J$7=\"Y\",\"Verified\",\"Not Verified\")","v":"Verified"}]
[null,null,"Performance Path"]
[null,null,"WEc","Total Water Use",null,{"$f":"WE!$F$27","v":0},null,{"$f":"WE!$H$27","v":0},null,{"$f":"IF(WE!$J$27=0,\"\",WE!$J$27)","v":""},null,{"$f":"IF(AND(J33<>\"\",SUM(J35:J36)>0),\"Warning: The project cannot receive points under the Performance Path if also receiving points under the Prescriptive Path.\",\"\")","v":""}]
[null,null,"Prescriptive Path"]
[null,null,"WEc","Indoor Water Use",null,{"$f":"WE!$F$40","v":5},null,{"$f":"WE!$H$40","v":0},null,{"$f":"IF(WE!$J$40=0,\"\",WE!$J$40)","v":5}]
[null,null,"WEc","Outdoor Water Use",null,{"$f":"WE!$F$86","v":0},null,{"$f":"WE!$H$86","v":0},null,{"$f":"IF(WE!$J$86=0,\"\",WE!$J$86)","v":""}]
[]
[null,null,"Energy and Atmosphere",null,"Preliminary    Y",{"$f":"EA!F3","v":30},"M",{"$f":"EA!H3","v":0},"Verified",{"$f":"EA!J3","v":30}]
[]
[null,null,"EAp","Minimum Energy Performance ",null,"Required",null,null,null,{"$f":"IF(EA!$J$7=\"Y\",\"Verified\",\"Not Verified\")","v":"Verified"}]
[null,null,"EAp","Energy Metering",null,"Required",null,null,null,{"$f":"IF(EA!$J$73=\"Y\",\"Verified\",\"Not Verified\")","v":"Verified"}]
[null,null,"EAp","Education of the Homeowner, Tenant or Building Manager",null,"Required",null,null,null,{"$f":"IF(EA!$J$91=\"Y\",\"Verified\",\"Not Verified\")","v":"Verified"}]
[null,null,"Performance Path"]
[null,null,"EAc","Annual Energy Use",null,{"$f":"EA!$F$101","v":28},null,{"$f":"EA!$H$101","v":0},null,{"$f":"IF(EA!$J$101=0,\"\",EA!$J$101)","v":28},null,{"$f":"IF(AND(J44<>\"\",SUM(J51:J61)>0),\"Warning: The project cannot receive points under the Performance Path if also receiving points under the Prescriptive Path.\",\"\")","v":""}]
[null,null,"Performance and Prescriptive Paths"]
[null,null,"EAc","Efficient Hot Water Distribution System",null,{"$f":"EA!$F$137","v":2},null,{"$f":"EA!$H$137","v":0},null,{"$f":"IF(EA!$J$137=0,\"\",EA!$J$137)","v":2}]
[null,null,"EAc","Advanced Utility Tracking",null,{"$f":"EA!$F$203","v":0},null,{"$f":"EA!$H$203","v":0},null,{"$f":"IF(EA!$J$203=0,\"\",EA!$J$203)","v":""}]
[null,null,"EAc","Active Solar-Ready Design",null,{"$f":"EA!$F$254","v":0},null,{"$f":"EA!$H$254","v":0},null,{"$f":"IF(EA!$J$254=0,\"\",EA!$J$254)","v":""}]
[null,null,"EAc","HVAC Start-Up Credentialing",null,{"$f":"EA!$F$273","v":0},null,{"$f":"EA!$H$273","v":0},null,{"$f":"IF(EA!$J$273=0,\"\",EA!$J$273)","v":""}]
[null,null,"Prescriptive Path"]
[null,null,"EAp","Home Size",null,{"$f":"IF(EA!F286=0,\"Required\",EA!F286)","v":"Required"},null,{"$f":"IF(F51=\"Required\",\"\",EA!H286)","v":""},null,{"$f":"IF(EAp4V=0,\"Not Verified\",EAp4V)","v":"Not Verified"}]
[null,null,"EAc","Building Orientation for Passive Solar",null,{"$f":"EA!$F$297","v":0},null,{"$f":"EA!$H$297","v":0},null,{"$f":"IF(EA!$J$297=0,\"\",EA!$J$297)","v":""}]
[null,null,"EAc","Air Infiltration",null,{"$f":"EA!$F$310","v":0},null,{"$f":"EA!$H$310","v":0},null,{"$f":"IF(EA!$J$310=0,\"\",EA!$J$310)","v":""}]
[null,null,"EAc","Envelope Insulation",null,{"$f":"EA!$F$334","v":0},null,{"$f":"EA!$H$334","v":0},null,{"$f":"IF(EA!$J$334=0,\"\",EA!$J$334)","v":""}]
[null,null,"EAc","Windows",null,{"$f":"EA!$F$343","v":0},null,{"$f":"EA!$H$343","v":0},null,{"$f":"IF(EA!$J$343=0,\"\",EA!$J$343)","v":""}]
[null,null,"EAc","Space Heating & Cooling Equipment",null,{"$f":"EA!$F$363","v":0},null,{"$f":"EA!$H$363","v":0},null,{"$f":"IF(EA!$J$363=0,\"\",EA!$J$363)","v":""}]
[null,null,"EAc","Heating & Cooling Distribution Systems",null,{"$f":"EA!$F$387","v":0},null,{"$f":"EA!$H$387","v":0},null,{"$f":"IF(EA!$J$387=0,\"\",EA!$J$387)","v":""}]
[null,null,"EAc","Efficient Domestic Hot Water Equipment",null,{"$f":"EA!$F$415","v":0},null,{"$f":"EA!$H$415","v":0},null,{"$f":"IF(EA!$J$415=0,\"\",EA!$J$415)","v":""}]
[null,null,"EAc","Lighting",null,{"$f":"EA!$F$428","v":0},null,{"$f":"EA!$H$428","v":0},null,{"$f":"IF(EA!$J$428=0,\"\",EA!$J$428)","v":""}]
[null,null,"EAc","High-Efficiency Appliances",null,{"$f":"EA!$F$466","v":1},null,{"$f":"EA!$H$466","v":0},null,{"$f":"IF(EA!$J$466=0,\"\",EA!$J$466)","v":""}]
[null,null,"EAc","Renewable Energy",null,{"$f":"EA!$F$478","v":0},null,{"$f":"EA!$H$478","v":0},null,{"$f":"IF(EA!$J$478=0,\"\",EA!$J$478)","v":""}]
[]
[null,null,"Materials and Resources",null,"Preliminary    Y",{"$f":"MR!F3","v":5},"M",{"$f":"MR!H3","v":0},"Verified",{"$f":"MR!J3","v":5}]
[]
[null,null,"MRp","Certified Tropical Wood",null,"Required",null,null,null,{"$f":"IF(MR!$J$7=\"Y\",\"Verified\",\"Not Verified\")","v":"Verified"}]
[null,null,"MRp","Durability Management",null,"Required",null,null,null,{"$f":"IF(MR!$J$14=\"Y\",\"Verified\",\"Not Verified\")","v":"Verified"}]
[null,null,"MRc","Durability Management Verification",null,{"$f":"MR!$F$37","v":1},null,{"$f":"MR!$H$37","v":0},null,{"$f":"IF(MR!$J$37=0,\"\",MR!$J$37)","v":1}]
[null,null,"MRc","Environmentally Preferable Products",null,{"$f":"MR!$F$45","v":4},null,{"$f":"MR!$H$45","v":0},null,{"$f":"IF(MR!$J$45=0,\"\",MR!$J$45)","v":4}]
[null,null,"MRc","Construction Waste Management",null,{"$f":"MR!$F$96","v":0},null,{"$f":"MR!$H$96","v":0},null,{"$f":"IF(MR!$J$96=0,\"\",MR!$J$96)","v":""}]
[null,null,"MRc","Material-Efficient Framing",null,{"$f":"MR!$F$109","v":0},null,{"$f":"MR!$H$109","v":0},null,{"$f":"IF(MR!$J$109=0,\"\",MR!$J$109)","v":""}]
[]
[null,null,"Indoor Environmental Quality",null,"Preliminary    Y",{"$f":"EQ!F3","v":10.5},"M",{"$f":"EQ!H3","v":0},"Verified",{"$f":"EQ!J3","v":10.5}]
[]
[null,null,"EQp","Ventilation",null,"Required",null,null,null,{"$f":"IF(EQ!$J$7=\"Y\",\"Verified\",\"Not Verified\")","v":"Verified"}]
[null,null,"EQp","Combustion Venting",null,"Required",null,null,null,{"$f":"IF(EQ!$J$59=\"Y\",\"Verified\",\"Not Verified\")","v":"Verified"}]
[null,null,"EQp","Garage Pollutant Protection",null,"Required",null,null,null,{"$f":"IF(EQ!$J$82=\"Y\",\"Verified\",\"Not Verified\")","v":"Verified"}]
[null,null,"EQp","Radon-Resistant Construction",null,"Required",null,null,null,{"$f":"IF(EQ!$J$102=\"Y\",\"Verified\",\"Not Verified\")","v":"Verified"}]
[null,null,"EQp","Air Filtering",null,"Required",null,null,null,{"$f":"IF(EQ!$J$138=\"Y\",\"Verified\",\"Not Verified\")","v":"Verified"}]
[null,null,"EQp","Environmental Tobacco Smoke",null,"Required",null,null,null,{"$f":"IF(EQ!$J$148=\"Y\",\"Verified\",\"Not Verified\")","v":"Not Verified"}]
[null,null,"EQp","Compartmentalization",null,"Required",null,null,null,{"$f":"IF(EQ!$J$161=\"Y\",\"Verified\",\"Not Verified\")","v":"Not Verified"}]
[null,null,"EQc","Enhanced Ventilation",null,{"$f":"EQ!$F$177","v":3},null,{"$f":"EQ!$H$177","v":0},null,{"$f":"IF(EQ!$J$177=0,\"\",EQ!$J$177)","v":3}]
[null,null,"EQc","Contaminant Control",null,{"$f":"EQ!$F$196","v":1},null,{"$f":"EQ!$H$196","v":0},null,{"$f":"IF(EQ!$J$196=0,\"\",EQ!$J$196)","v":1}]
[null,null,"EQc","Balancing of Heating and Cooling Distribution Systems",null,{"$f":"EQ!$F$237","v":2},null,{"$f":"EQ!$H$237","v":0},null,{"$f":"IF(EQ!$J$237=0,\"\",EQ!$J$237)","v":2}]
[null,null,"EQc","Enhanced Compartmentalization",null,{"$f":"EQ!$F$284","v":0},null,{"$f":"EQ!$H$284","v":0},null,{"$f":"IF(EQ!$J$284=0,\"\",EQ!$J$284)","v":""}]
[null,null,"EQc","Combustion Venting",null,{"$f":"EQ!$F$291","v":2},null,{"$f":"EQ!$H$291","v":0},null,{"$f":"IF(EQ!$J$291=0,\"\",EQ!$J$291)","v":2}]
[null,null,"EQc","Enhanced Garage Pollutant Protection",null,{"$f":"EQ!$F$312","v":2},null,{"$f":"EQ!$H$312","v":0},null,{"$f":"IF(EQ!$J$312=0,\"\",EQ!$J$312)","v":2}]
[null,null,"EQc","Low-Emitting Products",null,{"$f":"EQ!$F$407","v":0.5},null,{"$f":"EQ!$H$407","v":0},null,{"$f":"IF(EQ!$J$407=0,\"\",EQ!$J$407)","v":0.5}]
[]
[null,null,"Innovation",null,"Preliminary    Y",{"$f":"IN!F3","v":2},"M",{"$f":"IN!H3","v":0},"Verified",{"$f":"IN!J3","v":2}]
[]
[null,null,"INp","Preliminary Rating",null,"Required",null,null,null,{"$f":"IF(IN!$J$7=\"Y\",\"Verified\",\"Not Verified\")","v":"Verified"}]
[null,null,"INc","Innovation  ",null,{"$f":"IN!$F$14","v":1},null,{"$f":"IN!$H$14","v":0},null,{"$f":"IF(IN!$J$14=0,\"\",IN!$J$14)","v":1}]
[null,null,"INc","LEED Accredited Professional",null,{"$f":"IN!$F$53","v":1},null,{"$f":"IN!$H$53","v":0},null,{"$f":"IF(IN!$J$53=0,\"\",IN!$J$53)","v":1}]
[]
[null,null,"Regional Priority",null,"Preliminary    Y",{"$f":"RP!F3","v":3},"M",{"$f":"RP!H3","v":0},"Verified",{"$f":"RP!J3","v":3}]
[]
[null,null,"RPc","Regional Priority",null,{"$f":"RP!$F$7","v":3},null,{"$f":"RP!$H$7","v":0},null,{"$f":"IF(RP!$J$7=0,\"\",RP!$J$7)","v":3}]
[]
[null,"Point Floors"]
[]
[null,"The project earned at least 8 points total in Location and Transportation and Energy and Atmosphere",null,null,null,null,null,null,null,{"$f":"IF(J10+J38>=8,\"Yes\",\"No\")","v":"Yes"}]
[]
[null,"The project earned at least 3 points in Water Efficiency",null,null,null,null,null,null,null,{"$f":"IF(J29>=3,\"Yes\",\"No\")","v":"Yes"}]
[]
[null,"The project earned at least 3 points in Indoor Environmental Quality",null,null,null,null,null,null,null,{"$f":"IF(J72>=3,\"Yes\",\"No\")","v":"Yes"}]
[]
[null,"Total",null,null,"Preliminary    Y",{"$f":"SUM(F95,F89,F72,F63,F38,F29,F21,F10,F6)","v":67},"M",{"$f":"SUM(H95,H89,H72,H63,H38,H29,H21,H10,H6)","v":0},"Verified",{"$f":"SUM(J95,J89,J72,J63,J38,J29,J21,J10,J6)","v":67}]
[null,"Certification Thresholds      Certified: 40-49, Silver: 50-59, Gold: 60-79, Platinum: 80-110"]

{"sheet":"Scorecard (Midrise)","index":2,"n_rows":92,"n_cols":12,"rows_kept":92,"cut":false,"hidden":true,"merged":[[91,1,91,9],[13,11,14,11],[32,11,33,11]]}
[]
[null,"LEED BD+C: Multifamily Midrise v4 - LEED v4"]
[null,{"$f":"CONCATENATE(IF(Type=\"Batch\",Instructions!F47,Instructions!F36),\" Scorecard\")","v":"Grand Rapids  Scorecard"}]
[null,"Note: The information on this tab is READ-ONLY.  To edit this information, see the Credit Category tabs."]
[]
[null,null,"Integrative Process",null,"Preliminary    Y",{"$f":"IP!F3","v":1},"M",{"$f":"IP!H3","v":0},"Verified",{"$f":"IP!J3","v":1}]
[]
[null,null,"IPc","Integrative Process",null,{"$f":"IP!$F$7","v":1},null,{"$f":"IP!$H$7","v":0},null,{"$f":"IF(IP!$J$7=0,\"\",IP!$J$7)","v":1}]
[]
[null,null,"Location and Transportation",null,"Preliminary    Y",{"$f":"LT!F3","v":9},"M",{"$f":"LT!H3","v":0},"Verified",{"$f":"LT!J3","v":9}]
[]
[null,null,"LTp","Floodplain Avoidance",null,"Required",null,null,null,{"$f":"IF(LT!$J$7=\"Y\",\"Verified\",\"Not Verified\")","v":"Verified"}]
[null,null,"Performance Path"]
[null,null,"LTc","LEED for Neighborhood Development",null,{"$f":"LT!$F$20","v":0},null,{"$f":"LT!$H$20","v":0},null,{"$f":"IF(LT!$J$20=0,\"\",LT!$J$20)","v":""},null,{"$f":"IF(AND(J14<>\"\",SUM(J16:J19)>0),\"Warning: The project cannot receive points under the Performance Path if also receiving points under the Prescriptive Path.\",\"\")","v":""}]
[null,null,"Prescriptive Path"]
[null,null,"LTc","Site Selection",null,{"$f":"LT!$F$34","v":8},null,{"$f":"LT!$H$34","v":0},null,{"$f":"IF(LT!$J$34=0,\"\",LT!$J$34)","v":8}]
[null,null,"LTc","Compact Development",null,{"$f":"LT!$F$117","v":1},null,{"$f":"LT!$H$117","v":0},null,{"$f":"IF(LT!$J$117=0,\"\",LT!$J$117)","v":1}]
[null,null,"LTc","Community Resources",null,{"$f":"LT!$F$127","v":0},null,{"$f":"LT!$H$127","v":0},null,{"$f":"IF(LT!$J$127=0,\"\",LT!$J$127)","v":""}]
[null,null,"LTc","Access to Transit",null,{"$f":"LT!$F$135","v":0},null,{"$f":"LT!$H$135","v":0},null,{"$f":"IF(LT!$J$135=0,\"\",LT!$J$135)","v":""}]
[]
[null,null,"Sustainable Sites",null,"Preliminary    Y",{"$f":"SS!F3","v":1.5},"M",{"$f":"SS!H3","v":0},"Verified",{"$f":"SS!J3","v":1.5}]
[]
[null,null,"SSp","Construction Activity Pollution Prevention",null,"Required",null,null,null,{"$f":"IF(SS!$J$7=\"Y\",\"Verified\",\"Not Verified\")","v":"Verified"}]
[null,null,"SSp","No Invasive Plants",null,"Required",null,null,null,{"$f":"IF(SS!$J$34=\"Y\",\"Verified\",\"Not Verified\")","v":"Verified"}]
[null,null,"SSc","Heat Island Reduction",null,{"$f":"SS!$F$41","v":0},null,{"$f":"SS!$H$41","v":0},null,{"$f":"IF(SS!$J$41=0,\"\",SS!$J$41)","v":""}]
[null,null,"SSc","Rainwater Management",null,{"$f":"SS!$F$69","v":0},null,{"$f":"SS!$H$69","v":0},null,{"$f":"IF(SS!$J$69=0,\"\",SS!$J$69)","v":""}]
[null,null,"SSc","Nontoxic Pest Control",null,{"$f":"SS!$F$95","v":1.5},null,{"$f":"SS!$H$95","v":0},null,{"$f":"IF(SS!$J$95=0,\"\",SS!$J$95)","v":1.5}]
[]
[null,null,"Water Efficiency ",null,"Preliminary    Y",{"$f":"WE!F3","v":5},"M",{"$f":"WE!H3","v":0},"Verified",{"$f":"WE!J3","v":5}]
[]
[null,null,"WEp","Water Metering",null,"Required",null,null,null,{"$f":"IF(WE!$J$7=\"Y\",\"Verified\",\"Not Verified\")","v":"Verified"}]
[null,null,"Performance Path"]
[null,null,"WEc","Total Water Use",null,{"$f":"WE!$F$27","v":0},null,{"$f":"WE!$H$27","v":0},null,{"$f":"IF(WE!$J$27=0,\"\",WE!$J$27)","v":""},null,{"$f":"IF(AND(J33<>\"\",SUM(J35:J36)>0),\"Warning: The project cannot receive points under the Performance Path if also receiving points under the Prescriptive Path.\",\"\")","v":""}]
[null,null,"Prescriptive Path"]
[null,null,"WEc","Indoor Water Use",null,{"$f":"WE!$F$40","v":5},null,{"$f":"WE!$H$40","v":0},null,{"$f":"IF(WE!$J$40=0,\"\",WE!$J$40)","v":5}]
[null,null,"WEc","Outdoor Water Use",null,{"$f":"WE!$F$86","v":0},null,{"$f":"WE!$H$86","v":0},null,{"$f":"IF(WE!$J$86=0,\"\",WE!$J$86)","v":""}]
[]
[null,null,"Energy and Atmosphere",null,"Preliminary    Y",{"$f":"EA!F3","v":30},"M",{"$f":"EA!H3","v":0},"Verified",{"$f":"EA!J3","v":30}]
[]
[null,null,"EAp","Minimum Energy Performance ",null,"Required",null,null,null,{"$f":"IF(EA!$J$7=\"Y\",\"Verified\",\"Not Verified\")","v":"Verified"}]
[null,null,"EAp","Energy Metering",null,"Required",null,null,null,{"$f":"IF(EA!$J$73=\"Y\",\"Verified\",\"Not Verified\")","v":"Verified"}]
[null,null,"EAp","Education of the Homeowner, Tenant or Building Manager",null,"Required",null,null,null,{"$f":"IF(EA!$J$91=\"Y\",\"Verified\",\"Not Verified\")","v":"Verified"}]
[null,null,"EAc","Annual Energy Use",null,{"$f":"EAc1_M_Y","v":0},null,{"$f":"EAc1_M_M","v":0},null,{"$f":"IF(EAc1_M_V=0,\"\",EAc1_M_V)","v":""}]
[null,null,"EAc","Efficient Hot Water Distribution System",null,{"$f":"EA!$F$137","v":2},null,{"$f":"EA!$H$137","v":0},null,{"$f":"IF(EA!$J$137=0,\"\",EA!$J$137)","v":2}]
[null,null,"EAc","Advanced Utility Tracking",null,{"$f":"EA!$F$203","v":0},null,{"$f":"EA!$H$203","v":0},null,{"$f":"IF(EA!$J$203=0,\"\",EA!$J$203)","v":""}]
[]
[null,null,"Materials and Resources",null,"Preliminary    Y",{"$f":"MR!F3","v":5},"M",{"$f":"MR!H3","v":0},"Verified",{"$f":"MR!J3","v":5}]
[]
[null,null,"MRp","Certified Tropical Wood",null,"Required",null,null,null,{"$f":"IF(MR!$J$7=\"Y\",\"Verified\",\"Not Verified\")","v":"Verified"}]
[null,null,"MRp","Durability Management",null,"Required",null,null,null,{"$f":"IF(MR!$J$14=\"Y\",\"Verified\",\"Not Verified\")","v":"Verified"}]
[null,null,"MRc","Durability Management Verification",null,{"$f":"MR!$F$37","v":1},null,{"$f":"MR!$H$37","v":0},null,{"$f":"IF(MR!$J$37=0,\"\",MR!$J$37)","v":1}]
[null,null,"MRc","Environmentally Preferable Products",null,{"$f":"MR!$F$45","v":4},null,{"$f":"MR!$H$45","v":0},null,{"$f":"IF(MR!$J$45=0,\"\",MR!$J$45)","v":4}]
[null,null,"MRc","Construction Waste Management",null,{"$f":"MR!$F$96","v":0},null,{"$f":"MR!$H$96","v":0},null,{"$f":"IF(MR!$J$96=0,\"\",MR!$J$96)","v":""}]
[]
[null,null,"Indoor Environmental Quality",null,"Preliminary    Y",{"$f":"EQ!F3","v":10.5},"M",{"$f":"EQ!H3","v":0},"Verified",{"$f":"EQ!J3","v":10.5}]
[]
[null,null,"EQp","Ventilation",null,"Required",null,null,null,{"$f":"IF(EQ!$J$7=\"Y\",\"Verified\",\"Not Verified\")","v":"Verified"}]
[null,null,"EQp","Combustion Venting",null,"Required",null,null,null,{"$f":"IF(EQ!$J$59=\"Y\",\"Verified\",\"Not Verified\")","v":"Verified"}]
[null,null,"EQp","Garage Pollutant Protection",null,"Required",null,null,null,{"$f":"IF(EQ!$J$82=\"Y\",\"Verified\",\"Not Verified\")","v":"Verified"}]
[null,null,"EQp","Radon-Resistant Construction",null,"Required",null,null,null,{"$f":"IF(EQ!$J$102=\"Y\",\"Verified\",\"Not Verified\")","v":"Verified"}]
[null,null,"EQp","Air Filtering",null,"Required",null,null,null,{"$f":"IF(EQ!$J$138=\"Y\",\"Verified\",\"Not Verified\")","v":"Verified"}]
[null,null,"EQp","Environmental Tobacco Smoke",null,"Required",null,null,null,{"$f":"IF(EQ!$J$148=\"Y\",\"Verified\",\"Not Verified\")","v":"Not Verified"}]
[null,null,"EQp","Compartmentalization",null,"Required",null,null,null,{"$f":"IF(EQ!$J$161=\"Y\",\"Verified\",\"Not Verified\")","v":"Not Verified"}]
[null,null,"EQc","Enhanced Ventilation",null,{"$f":"EQ!$F$177","v":3},null,{"$f":"EQ!$H$177","v":0},null,{"$f":"IF(EQ!$J$177=0,\"\",EQ!$J$177)","v":3}]
[null,null,"EQc","Contaminant Control",null,{"$f":"EQ!$F$196","v":1},null,{"$f":"EQ!$H$196","v":0},null,{"$f":"IF(EQ!$J$196=0,\"\",EQ!$J$196)","v":1}]
[null,null,"EQc","Balancing of Heating and Cooling Distribution Systems",null,{"$f":"EQ!$F$237","v":2},null,{"$f":"EQ!$H$237","v":0},null,{"$f":"IF(EQ!$J$237=0,\"\",EQ!$J$237)","v":2}]
[null,null,"EQc","Enhanced Compartmentalization",null,{"$f":"EQ!$F$284","v":0},null,{"$f":"EQ!$H$284","v":0},null,{"$f":"IF(EQ!$J$284=0,\"\",EQ!$J$284)","v":""}]
[null,null,"EQc","Combustion Venting",null,{"$f":"EQ!$F$291","v":2},null,{"$f":"EQ!$H$291","v":0},null,{"$f":"IF(EQ!$J$291=0,\"\",EQ!$J$291)","v":2}]
[null,null,"EQc","Enhanced Garage Pollutant Protection",null,{"$f":"EQ!$F$312","v":2},null,{"$f":"EQ!$H$312","v":0},null,{"$f":"IF(EQ!$J$312=0,\"\",EQ!$J$312)","v":2}]
[null,null,"EQc","Low-Emitting Products",null,{"$f":"EQ!$F$407","v":0.5},null,{"$f":"EQ!$H$407","v":0},null,{"$f":"IF(EQ!$J$407=0,\"\",EQ!$J$407)","v":0.5}]
[null,null,"EQc","No Environmental Tobacco Smoke",null,{"$f":"EQ!$F$424","v":0},null,{"$f":"EQ!$H$424","v":0},null,{"$f":"IF(EQ!$J$424=0,\"\",EQ!$J$424)","v":""}]
[]
[null,null,"Innovation",null,"Preliminary    Y",{"$f":"IN!F3","v":2},"M",{"$f":"IN!H3","v":0},"Verified",{"$f":"IN!J3","v":2}]
[]
[null,null,"INp","Preliminary Rating",null,"Required",null,null,null,{"$f":"IF(IN!$J$7=\"Y\",\"Verified\",\"Not Verified\")","v":"Verified"}]
[null,null,"INc","Innovation  ",null,{"$f":"IN!$F$14","v":1},null,{"$f":"IN!$H$14","v":0},null,{"$f":"IF(IN!$J$14=0,\"\",IN!$J$14)","v":1}]
[null,null,"INc","LEED Accredited Professional",null,{"$f":"IN!$F$53","v":1},null,{"$f":"IN!$H$53","v":0},null,{"$f":"IF(IN!$J$53=0,\"\",IN!$J$53)","v":1}]
[]
[null,null,"Regional Priority",null,"Preliminary    Y",{"$f":"RP!F3","v":3},"M",{"$f":"RP!H3","v":0},"Verified",{"$f":"RP!J3","v":3}]
[]
[null,null,"RPc","Regional Priority",null,{"$f":"RP!$F$7","v":3},null,{"$f":"RP!$H$7","v":0},null,{"$f":"IF(RP!$J$7=0,\"\",RP!$J$7)","v":3}]
[]
[null,"Point Floors"]
[]
[null,"The project earned at least 8 points total in Location and Transportation and Energy and Atmosphere",null,null,null,null,null,null,null,{"$f":"IF(J10+J38>=8,\"Yes\",\"No\")","v":"Yes"}]
[]
[null,"The project earned at least 3 points in Water Efficiency",null,null,null,null,null,null,null,{"$f":"IF(J29>=3,\"Yes\",\"No\")","v":"Yes"}]
[]
[null,"The project earned at least 3 points in Indoor Environmental Quality",null,null,null,null,null,null,null,{"$f":"IF(J55>=3,\"Yes\",\"No\")","v":"Yes"}]
[]
[null,"Total",null,null,"Preliminary    Y",{"$f":"SUM(F79,F73,F55,F47,F38,F29,F21,F10,F6)","v":67},"M",{"$f":"SUM(H79,H73,H55,H47,H38,H29,H21,H10,H6)","v":0},"Verified",{"$f":"SUM(J79,J73,J55,J47,J38,J29,J21,J10,J6)","v":67}]
[null,"Certification Thresholds      Certified: 40-49, Silver: 50-59, Gold: 60-79, Platinum: 80-110"]

{"sheet":"Batch - Single Family","index":3,"n_rows":23,"n_cols":17,"rows_kept":23,"cut":false,"hidden":true,"merged":[[12,6,12,8],[12,9,12,16],[6,1,6,6],[7,1,7,5],[12,1,12,4],[8,1,8,5],[9,1,9,5],[12,5,13,5]]}
[]
[null,"Certification Submittal for Batches of Single Family Homes"]
[null,{"$f":"CONCATENATE(\"Batch Registration Set ID #\",Instructions!F46)","v":"Batch Registration Set ID #"}]
[null,{"$f":"CONCATENATE(\"Building type: \",Instructions!F49)","v":"Building type: "}]
[]
[]
[null,"The following is a list of homes to be submitted for certification as a batch. As per LEED for Homes guidelines, every home in this batch submittal will meet or exceed the performance requirements for every prerequisite and credit awarded on the project checklist. "]
[null,"Total number of homes",null,null,null,null,{"$f":"COUNTA(C15:C21)","v":0}]
[null,"Total EA points for Energy Performance path",null,null,null,null,{"$f":"IFERROR(SUMPRODUCT(F15:F20,I15:I20)/SUM(F15:F20),0)","v":0}]
[null,"Total EA points for HERS + Homes Size Calculation path",null,null,null,null,{"$f":"IFERROR(SUMPRODUCT(F15:F20,Q15:Q20)/SUM(F15:F20),0)","v":0}]
[]
[null,"Note: The General Information section must be consistent with project details in LEED Online."]
[null,"General Information",null,null,null,"Annual \nEnergy Benchmark: Referenced","Energy Performance",null,null,"HERS + Homes Size Calculation"]
[null,null,"Project ID","Street Address or \nLot Number","Project City",null,"Annual \nEnergy Benchmark: Designed","Annual \nEnergy Reduction\n(%)","EA \nPoints","HERS \nIndex","EA\nPoints",{"$f":"CONCATENATE(\"Total Conditioned Floor Area\",IF(Instructions!$I$62=1,\" \n(sq ft)\",\" \n(sq m)\"))","v":"Total Conditioned Floor Area \n(sq ft)"},"Number of \nBedrooms",{"$f":"CONCATENATE(\"ENERGY STAR Reference Home Floor Area\n\",IF(Instructions!$I$62=1,\" (sq ft)\",\" (sq m)\"))","v":"ENERGY STAR Reference Home Floor Area\n (sq ft)"},"Home Size \nAdjustment ","HSA\nPoints","HERS Points \nplus\nHSA Points"]
[{"$f":"IF(C15>0,0,0)","v":0},{"$f":"B14+1","v":1},null,null,null,null,null,{"$f":"IFERROR(IF(ISBLANK(G15),0,1-G15/F15),0)","v":0},{"$f":"IF(H15<0.01,0,VLOOKUP(H15,SF_pts,2,TRUE))","v":0},null,{"$f":"IF(OR(J15>70,ISBLANK(J15)),0,INDEX(Instructions!$J$132:$J$156,MATCH(J15,Instructions!$I$132:$I$156,-1)))","v":0},null,null,{"$f":"IF(M15=0,\"\",IF(Instructions!$I$62=1,IF(M15>1,1000+((M15-1)*600),1000),IF(M15>1,(1000+((M15-1)*600))*0.0927,93)))","v":""},{"$f":"IFERROR(IF(L15>N15,ROUNDDOWN(1-(L15/N15),0),1-(L15/N15)),0)","v":0},{"$f":"IFERROR(ROUNDDOWN(((N15-L15)/N15*100)/4,0),0)","v":0},{"$f":"IF(AND(ISBLANK(L15),ISBLANK(M15)),0,ROUNDDOWN(P15+K15,0))","v":0}]
[0,2,null,null,null,null,null,0,0,null,{"$f":"IF(OR(J16>70,ISBLANK(J16)),0,INDEX(Instructions!$J$132:$J$156,MATCH(J16,Instructions!$I$132:$I$156,-1)))","v":0},null,null,{"$f":"IF(M16=0,\"\",IF(Instructions!$I$62=1,IF(M16>1,1000+((M16-1)*600),1000),IF(M16>1,(1000+((M16-1)*600))*0.0927,93)))","v":""},0,0,0]
[0,3,null,null,null,null,null,0,0,null,{"$f":"IF(OR(J17>70,ISBLANK(J17)),0,INDEX(Instructions!$J$132:$J$156,MATCH(J17,Instructions!$I$132:$I$156,-1)))","v":0},null,null,{"$f":"IF(M17=0,\"\",IF(Instructions!$I$62=1,IF(M17>1,1000+((M17-1)*600),1000),IF(M17>1,(1000+((M17-1)*600))*0.0927,93)))","v":""},0,0,0]
[0,4,null,null,null,null,null,0,0,null,{"$f":"IF(OR(J18>70,ISBLANK(J18)),0,INDEX(Instructions!$J$132:$J$156,MATCH(J18,Instructions!$I$132:$I$156,-1)))","v":0},null,null,{"$f":"IF(M18=0,\"\",IF(Instructions!$I$62=1,IF(M18>1,1000+((M18-1)*600),1000),IF(M18>1,(1000+((M18-1)*600))*0.0927,93)))","v":""},0,0,0]
[0,5,null,null,null,null,null,0,0,null,{"$f":"IF(OR(J19>70,ISBLANK(J19)),0,INDEX(Instructions!$J$132:$J$156,MATCH(J19,Instructions!$I$132:$I$156,-1)))","v":0},null,null,{"$f":"IF(M19=0,\"\",IF(Instructions!$I$62=1,IF(M19>1,1000+((M19-1)*600),1000),IF(M19>1,(1000+((M19-1)*600))*0.0927,93)))","v":""},0,0,0]
[0,6,null,null,null,null,null,0,0,null,{"$f":"IF(OR(J20>70,ISBLANK(J20)),0,INDEX(Instructions!$J$132:$J$156,MATCH(J20,Instructions!$I$132:$I$156,-1)))","v":0},null,null,{"$f":"IF(M20=0,\"\",IF(Instructions!$I$62=1,IF(M20>1,1000+((M20-1)*600),1000),IF(M20>1,(1000+((M20-1)*600))*0.0927,93)))","v":""},0,0,0]
[null,null,null,null,{"$f":"IF(OR(COUNTIF(H15:H20,\"<0\"),COUNTIF(I15:I20,\"<0\"),COUNTIF(Q15:Q20,\"<0\")),\"Each home must have positive points to use this scoring pathway.  Please revise the highlighted values, or use the other scoring approach.\",\"\")","v":""}]
[]
["A"]

{"sheet":"Batch - Multifamily","index":4,"n_rows":23,"n_cols":12,"rows_kept":23,"cut":false,"hidden":true,"merged":[[6,1,6,11],[12,9,12,10],[7,1,7,5],[8,1,8,5],[9,1,9,5],[12,1,12,7]]}
[]
[null,"Certification Submittal for Batches of Multifamily Buildings"]
[null,{"$f":"CONCATENATE(\"Batch Registration Set ID #\",Instructions!F46)","v":"Batch Registration Set ID #"}]
[null,{"$f":"CONCATENATE(\"Building type: \",Instructions!F49)","v":"Building type: "}]
[]
[]
[null,"The following is a list of homes to be submitted for certification as a batch. As per LEED for Homes guidelines, every building in this batch submittal will meet or exceed the performance requirements for every prerequisite and credit awarded on the project checklist. "]
[null,"Total number of buildings ",null,null,null,null,{"$f":"COUNTA(C15:C22)","v":0}]
[null,"Total number of units ",null,null,null,null,{"$f":"SUM(F15:F22)","v":0}]
[null,{"$f":"CONCATENATE(\"Total conditioned floor area\",IF(Instructions!$I$62=1,\" (sq ft)\",\" (sq m)\"))","v":"Total conditioned floor area (sq ft)"},null,null,null,null,{"$f":"SUM(G15:G22)","v":0}]
[]
[null,"Note: The General Information section must be consistent with project details in LEED Online."]
[null,"General Information",null,null,null,null,null,null,"Home Size Adjustment","Energy Performance",null,"EA Credit Annual Energy Use"]
[null,null,"Project ID","Street Address or \nLot Number","Project City","Total Number\nof Units",{"$f":"CONCATENATE(\"Total Conditioned Floor Area\",IF(Instructions!$I$62=1,\" \n(sq ft)\",\" \n(sq m)\"))","v":"Total Conditioned Floor Area \n(sq ft)"},"Total Number\nof Bedrooms",{"$f":"IF(RatingSystem=1,\"Home Size Adjustment \n(if applicable)\",\"Home Size Adjustment\")","v":"Home Size Adjustment \n(if applicable)"},{"$f":"IF(RatingSystem=1,\"HERS or % Improvement over LEED Reference Home\",\"% Energy Cost Savings\")","v":"HERS or % Improvement over LEED Reference Home"},"EA \nPoints","Total Score\n(EA points + HSA points)"]
[{"$f":"IF(C15>0,0,0)","v":0},{"$f":"B14+1","v":1},null,null,null,null,null,null,null,null,null,{"$f":"SUM(I15+K15)","v":0}]
[0,2,null,null,null,null,null,null,null,null,null,0]
[0,3,null,null,null,null,null,null,null,null,null,0]
[0,4,null,null,null,null,null,null,null,null,null,0]
[0,5,null,null,null,null,null,null,null,null,null,0]
[0,6,null,null,null,null,null,null,null,null,null,0]
["A"]
[]
["A"]

{"sheet":"Multifamily HSA","index":5,"n_rows":14,"n_cols":16,"rows_kept":14,"cut":false,"hidden":false,"merged":[[13,1,13,14],[12,1,12,14],[9,14,9,15],[9,2,9,3],[9,4,9,5],[9,6,9,7],[9,8,9,9],[9,10,9,11],[9,12,9,13],[11,1,11,14],[10,4,10,5],[10,6,10,7],[10,2,10,3],[10,8,10,9],[10,10,10,11],[10,12,10,13],[10,14,10,15],[4,1,4,15],[6,1,7,1],[6,2,6,3],[6,4,6,5],[6,6,6,7],[6,8,6,9],[6,10,6,11],[6,12,6,13],[6,14,6,15]]}
[]
[null,"Multifamily Home Size Adjuster"]
[]
[]
[null,"This approach can be used to determine an overall home size adjuster for  multifamily buildings, but it cannot be used to determine an overall home size adjuster for a complex with multiple multifamily buildings. If a project includes multiple multifamily buildings, each building must have its own home size adjustment. This weighted approach cannot be used for multiple single family homes.\n\nComplete the table for each building in the project.  Input the number of units and the average square footage for units with the corresponding bedroom number. For example, if the building has three 2-bedroom units that are 1300 sq ft, 1400 sq ft, and 1500 sq ft, insert \"3\" in cell G9 and \"1400\" in cell H9. Please leave zeroes or blanks where appropriate."]
[]
[null,"Building ID","0 Bedrooms",null,"1 Bedroom",null,"2 Bedrooms",null,"3 Bedrooms",null,"4 Bedrooms",null,"5 Bedrooms",null,"6 Bedrooms"]
[null,null,"Number \nof Units",{"$f":"CONCATENATE(\"Average \nFloor Area\n\",IF(Instructions!$I$62=1,\" (sq ft)\",\" (sq m)\"))","v":"Average \nFloor Area\n (sq ft)"},"Number \nof Units",{"$f":"CONCATENATE(\"Average \nFloor Area\n\",IF(Instructions!$I$62=1,\" (sq ft)\",\" (sq m)\"))","v":"Average \nFloor Area\n (sq ft)"},"Number \nof Units",{"$f":"CONCATENATE(\"Average \nFloor Area\n\",IF(Instructions!$I$62=1,\" (sq ft)\",\" (sq m)\"))","v":"Average \nFloor Area\n (sq ft)"},"Number \nof Units",{"$f":"CONCATENATE(\"Average \nFloor Area\n\",IF(Instructions!$I$62=1,\" (sq ft)\",\" (sq m)\"))","v":"Average \nFloor Area\n (sq ft)"},"Number \nof Units",{"$f":"CONCATENATE(\"Average \nFloor Area\n\",IF(Instructions!$I$62=1,\" (sq ft)\",\" (sq m)\"))","v":"Average \nFloor Area\n (sq ft)"},"Number \nof Units",{"$f":"CONCATENATE(\"Average \nFloor Area\n\",IF(Instructions!$I$62=1,\" (sq ft)\",\" (sq m)\"))","v":"Average \nFloor Area\n (sq ft)"},"Number \nof Units",{"$f":"CONCATENATE(\"Average \nFloor Area\n\",IF(Instructions!$I$62=1,\" (sq ft)\",\" (sq m)\"))","v":"Average \nFloor Area\n (sq ft)"}]
[]
[null,"Home size adjustment",{"$f":"IF(D9>0,IF(Instructions!$I$62=1,1-(D9/1000),1-(D9/93)),0)","v":0},null,{"$f":"IF(F9>0,IF(Instructions!$I$62=1,1-(F9/1000),1-(F9/93)),0)","v":0},null,{"$f":"IF(H9>0,IF(Instructions!$I$62=1,1-(H9/1600),1-(H9/148)),0)","v":0},null,{"$f":"IF(J9>0,IF(Instructions!$I$62=1,1-(J9/2200),1-(J9/204)),0)","v":0},null,{"$f":"IF(L9>0,IF(Instructions!$I$62=1,1-(L9/2800),1-(L9/260)),0)","v":0},null,{"$f":"IF(N9>0,IF(Instructions!$I$62=1,1-(N9/3400),1-(N9/315)),0)","v":0},null,{"$f":"IF(P9>0,IF(Instructions!$I$62=1,1-(P9/4000),1-(P9/427)),0)","v":0}]
[null,"Point adjustment",{"$f":"C10/0.04","v":0},null,{"$f":"E10/0.04","v":0},null,{"$f":"G10/0.04","v":0},null,{"$f":"I10/0.04","v":0},null,{"$f":"K10/0.04","v":0},null,{"$f":"M10/0.04","v":0},null,{"$f":"O10/0.04","v":0}]
[null,"Total number of units",null,null,null,null,null,null,null,null,null,null,null,null,null,{"$f":"SUM(M9,K9,I9,G9,E9,C9, O9)","v":0}]
[null,"Average adjustment",null,null,null,null,null,null,null,null,null,null,null,null,null,{"$f":"IF(P12=0,0.0001,(C11*C9+E11*E9+G11*G9+I11*I9+K11*K9+M11*M9+O11*O9)/P12)","v":1E-4}]
[null,"Average home size point adjustment",null,null,null,null,null,null,null,null,null,null,null,null,null,{"$f":"ROUNDDOWN(P13,0)+IF(P13-ROUNDDOWN(P13,0)>=0.75,1,IF(P13-ROUNDDOWN(P13,0)>=0.25,0.5,IF(P13-ROUNDDOWN(P13,0)>=-0.25,0,IF(P13-ROUNDDOWN(P13,0)>=-0.75,-0.5,-1))))","v":0}]

{"sheet":"IP","index":6,"n_rows":49,"n_cols":17,"rows_kept":49,"cut":false,"hidden":false,"merged":[[44,3,45,9],[20,3,26,9],[20,15,21,15],[4,1,4,3],[35,15,36,15],[13,3,18,9],[28,3,29,9],[35,3,36,9]]}
[null,"Integrative Process",null,null,null,null,null,null,null,null,null,"Notes","Verified \n(initials)","Date \nVerified","Verification Details","Verification Measure","QAD \nVerification Notes"]
[]
[null,null,null,null,"Preliminary    Y",{"$f":"F7","v":1},"Maybe",{"$f":"H7","v":0},"Verified",{"$f":"J7","v":1}]
[]
["IPc1",{"$f":"IF(RatingSystem=1,HYPERLINK(\"http://www.usgbc.org/node/2612166\",L5),HYPERLINK(\"http://www.usgbc.org/node/2612166\",L5))","v":"IP Credit Integrative Process"},null,null,null,null,null,null,null,null,"HM","IP Credit Integrative Process"]
[null,null,null,null,null,null,null,null,null,null,"HM"]
[null,"Up to 2 points",null,null,"Preliminary    Y",{"$f":"IF(SUM(F11,F33,F42)>2,2,SUM(F11,F33,F42))","v":1},"M",{"$f":"IF(SUM(H11,H33,H42)>2,2,SUM(H11,H33,H42))","v":0},"Verified",{"$f":"IF(SUM(J11,J33,J42)>2,2,SUM(J11,J33,J42))","v":1},"HM",null,"Responsible Party"]
[null,"Exemplary Performance: Achieve all three options",null,null,null,null,null,null,null,null,"HM"]
[null,null,null,null,null,null,null,null,null,null,"HM"]
[null,null,null,null,null,null,null,null,null,null,"HM"]
[null,null,"Option 1. Integrative Project Team (1 point)",null,"Y",1,"M",0,"V",1,"HM",{"$f":"C11","v":"Option 1. Integrative Project Team (1 point)"}]
[null,null,null,null,null,null,null,null,null,null,"HM"]
[null,null,null,null,null,null,null,null,null,null,"HM"]
[null,null,"True","Team members, in addition to the builder and verification team, include capabilities in at least three of the following skill sets:\narchitecture or residential building design;\nmechanical or energy engineering;\nbuilding science or performance testing;\ngreen building or sustainable design; and\ncivil engineering, landscape architecture, habitat restoration, or land-use planning.",null,null,null,null,null,null,"HM","Held at Wellhouse and Catalyst Partners","JML","2017-04-05",null,"Verify listed people are members of project team."]
[null,null,null,null,null,null,null,null,null,null,"HM"]
[null,null,null,null,null,null,null,null,null,null,"HM"]
[null,null,null,null,null,null,null,null,null,null,"HM"]
[null,null,null,null,null,null,null,null,null,null,"HM"]
[null,null,null,null,null,null,null,null,null,null,"HM"]
[null,null,null,null,null,null,null,null,null,null,"HM"]
[null,null,"True","All team members referenced above were involved in at least three of the following phases of the design and construction process:\nconceptual or schematic design;\nLEED planning;\npreliminary design;\nenergy and envelope systems analysis or design;\ndesign development;\nfinal design, working drawings or specifications; \nand construction.",null,null,null,null,null,null,"HM",null,"JML","2017-04-05",null,"Verify meeting dates are for at least three phases of design and construction process."]
[null,null,null,null,null,null,null,null,null,null,"HM"]
[null,null,null,null,null,null,null,null,null,null,"HM"]
[null,null,null,null,null,null,null,null,null,null,"HM"]
[null,null,null,null,null,null,null,null,null,null,"HM"]
[null,null,null,null,null,null,null,null,null,null,"HM"]
[null,null,null,null,null,null,null,null,null,null,"HM"]
[null,null,null,null,null,null,null,null,null,null,"HM"]
[null,null,"True","Meetings were conducted with the project team at least monthly to review project status, introduce new team members to project goals, discuss problems, formulate solutions, review responsibilities, and identify next steps.",null,null,null,null,null,null,"HM"]
[null,null,null,null,null,null,null,null,null,null,"HM"]
[null,null,null,null,null,null,null,null,null,null,"HM"]
[null,null,"AND/OR",null,null,null,null,null,null,null,"HM"]
[null,null,"Option 2. Design Charrette (1 point)",null," Y",0,"M",null,"V",0,"HM",{"$f":"C33","v":"Option 2. Design Charrette (1 point)"}]
[null,null,null,null,null,null,null,null,null,null,"HM"]
[null,null,null,null,null,null,null,null,null,null,"HM"]
[null,null,"(Select one)","A full-day workshop (or two half-day workshops) was conducted with the project team, as defined in Option 1, no later than the design development phase.",null,null,null,null,null,null,"HM",null,null,null,null,"Participate in design charrette or verify charrette date, location, participants, and duration."]
[null,null,null,null,null,null,null,null,null,null,"HM"]
[null,null,null,"Date(s)",null,null,null,null,null,null,"HM"]
[null,null,null,"Duration",null,null,null,null,null,null,"HM"]
[null,null,null,null,null,null,null,null,null,null,"HM"]
[null,null,"AND/OR",null,null,null,null,null,null,null,"HM"]
[null,null,"Option 3. Trades Training (1 point)",null,"Y",0,"M",0,"V",null,"HM",{"$f":"C42","v":"Option 3. Trades Training (1 point)"}]
[null,null,null,null,null,null,null,null,null,null,"HM"]
[null,null,null,null,null,null,null,null,null,null,"HM"]
[null,null,"(Select one)","At least eight hours of training on the green aspects of the project and how the trades can contribute to achieving each LEED for Homes prerequisite and attempted credit was conducted before construction but after trades have been hired for the project. ",null,null,null,null,null,null,"HM",null,null,null,null,"Conduct trades training or verify training date, location, participants, and duration."]
[null,null,null,null,null,null,null,null,null,null,"HM"]
[null,null,null,"Date(s)",null,null,null,null,null,null,"HM"]
[null,null,null,"Duration",null,null,null,null,null,null,"HM"]
[null,null,null,"Trainer",null,null,null,null,null,null,"HM"]

{"sheet":"LT","index":7,"n_rows":144,"n_cols":17,"rows_kept":144,"cut":false,"hidden":false,"merged":[[96,3,96,5],[97,3,97,5],[98,3,98,5],[101,3,101,5],[103,3,103,5],[62,3,63,9],[56,3,56,9],[143,3,143,5],[109,3,109,5],[112,3,112,5],[139,3,139,5],[140,3,140,5],[130,3,130,5],[120,3,120,5],[121,3,121,5],[122,3,122,5],[132,1,132,3],[105,3,105,5],[106,3,106,5],[108,3,108,5],[74,3,74,5],[4,1,4,3],[17,1,17,3],[31,1,31,3],[114,1,114,3],[124,1,124,3],[22,2,22,3],[24,2,24,3],[26,2,26,3],[28,2,28,3],[43,3,43,5],[44,3,44,5],[45,3,45,5],[71,3,71,8],[88,3,88,5],[95,2,95,8],[58,3,60,9]]}
[null,"Location and Transportation",null,null,null,null,null,null,null,null,null,"Notes","Verified \n(initials)","Date \nVerified","Verification Details","Verification Measure","QAD \nVerification Notes"]
[]
[null,null,null,null,"Preliminary    Y",{"$f":"IF(LT!$F$20=15,15,SUM(F34,F117,F127,F135))","v":9},"Maybe",{"$f":"IF(H20=15,15,SUM(H20,H34,H117,H127,H135))","v":0},"Verified",{"$f":"IF(J20=15,15,SUM(J20,J34,J117,J127,J135))","v":9}]
[]
["LTp1",{"$f":"IF(RatingSystem=1,HYPERLINK(\"http://www.usgbc.org/node/2612234\",L5),HYPERLINK(\"http://www.usgbc.org/node/2612234\",L5))","v":"LT Prerequisite Floodplain Avoidance"},null,null,null,null,null,null,null,null,"HM","LT Prerequisite Floodplain Avoidance"]
[null,null,null,null,null,null,null,null,null,null,"HM"]
[null,"Required",null,null,null,"Required",null,null,"Verified","Y","HM",null,"Responsible Party"]
[null,null,null,null,null,null,null,null,null,null,"HM"]
[null,null,null,null,null,null,null,null,null,null,"HM"]
[null,null,"Select one of the following:",null,null,null,null,null,null,null,"HM"]
[null,null,"True","The project is not built on land within a flood hazard area.",null,null,null,null,null,null,"HM","Urban Infill site,  flood zone x","JML","2017-07-26",null,"Verify that floodplain map is for actual location of building and the building is above floodplain."]
[null,null,null,null,null,null,null,null,null,null,"HM"]
[null,null,"False","The project is built on land within a flood hazard area and in accordance with flood provisions.",null,null,null,null,null,null,"HM",null,null,null,null,"Verify that building meets local flood provisions."]
[null,null,null,null,null,null,null,null,null,null,"HM"]
[null,null,"False","The project is built on land within a flood hazard area and is a previously developed building and hardscape.",null,null,null,null,null,null,"HM",null,null,null,null,"Verify that building was previously developed."]
[null,null,null,null,null,null,null,null,null,null,"HM"]
[null,"Performance Path",null,null,null,null,null,null,null,null,"HM","Performance Path"]
["LTc1",{"$f":"IF(RatingSystem=1,HYPERLINK(\"http://www.usgbc.org/node/2612240\",L18),HYPERLINK(\"http://www.usgbc.org/node/2612240\",L18))","v":"LT Credit LEED for Neighborhood Development"},null,null,null,null,null,null,null,null,"HM","LT Credit LEED for Neighborhood Development"]
[null,null,null,null,null,null,null,null,null,null,"HM"]
[null,"15 points",null,null,"Preliminary    Y",0,"M",0,"Verified",0,"HM",null,"Responsible Party"]
[null,null,null,null,null,null,null,null,null,null,"HM"]
[null,null,null,null,null,null,null,null,null,null,"HM"]
[null,null,null,null,"Name of LEED for Neighborhood Development project",null,null,null,null,null,"HM",null,null,null,null,"Verify that the project is located within the certified LEED ND project boundary."]
[null,null,null,null,null,null,null,null,null,null,"HM"]
[null,null,null,null,"LEED ND project ID number",null,null,null,null,null,"HM"]
[null,null,null,null,null,null,null,null,null,null,"HM"]
[null,null,null,null,"Rating system and version",null,null,null,null,null,"HM"]
[null,null,null,null,null,null,null,null,null,null,"HM"]
[null,null,null,null,"LEED ND certification date",null,null,null,null,null,"HM"]
[null,null,null,null,null,null,null,null,null,null,"HM"]
[null,"Prescriptive Path",null,null,null,null,null,null,null,null,"HM","Prescriptive Path"]
["LTc2",{"$f":"IF(RatingSystem=1,HYPERLINK(\"http://www.usgbc.org/node/2612002\",L32),HYPERLINK(\"http://www.usgbc.org/node/2612002\",L32))","v":"LT Credit Site Selection"},null,null,null,null,null,null,null,null,"HM","LT Credit Site Selection"]
[null,null,null,null,null,null,null,null,null,null,"HM"]
[null,"Up to 8 points",null,null,"Preliminary    Y",{"$f":"IF(SUM(F38,F69,F78,F86,F92)>8,8,SUM(F38,F69,F78,F86,F92))","v":8},"M",{"$f":"IF(SUM(H38,H69,H78,H86,H92)>8,8,SUM(H38,H69,H78,H86,H92))","v":0},"Verified",{"$f":"IF(SUM(J38,J69,J78,J86,J92)>8,8,SUM(J38,J69,J78,J86,J92))","v":8},"HM",null,"Responsible Party"]
[null,"Exemplary Performance: Earn the maximum 8 points",null,null,null,null,null,null,null,null,"HM"]
[null,null,null,null,null,null,null,null,null,null,"HM"]
[null,null,null,null,null,null,null,null,null,null,"HM"]
[null,null,"Option 1. Sensitive Land Protection (3-4 points)",null,"Y",{"$f":"IF(F41>0,F41,F49)","v":4},"M",{"$f":"IF(H41>0,H41,H49)","v":0},"V",{"$f":"IF(J41>0,J41,J49)","v":4},"HM",{"$f":"C38","v":"Option 1. Sensitive Land Protection (3-4 points)"}]
[null,null,null,null,null,null,null,null,null,null,"HM"]
[null,null,null,null,null,null,null,null,null,null,"HM"]
[null,null,"Path 1. Previously Developed (4 points)",null,"Y",4,"M",null,"V",4,"HM",{"$f":"C41","v":"Path 1. Previously Developed (4 points)"}]
[null,null,null,null,null,null,null,null,null,null,"HM"]
[null,null,null,null,null,null,null,null,null,null,"HM"]
[null,null,0.11,{"$f":"CONCATENATE(\"Total buildable land area\",IF(Instructions!$I$62=1,\" (acre or sq ft)\",\" (hectare or sq m)\"))","v":"Total buildable land area (acre or sq ft)"},null,null,null,null,null,null,"HM","Gut Rehab of existing Home","JML","2017-07-26",null,"Verify historical documents, maps, or comparable evidence of previous development; OR conduct on-site verification of existing infrastructure (e.g. foundation footings)."]
[null,null,0.11,{"$f":"CONCATENATE(\"Previously developed buildable land area\",IF(Instructions!$I$62=1,\" (acre or sq ft)\",\" (hectare or sq m)\"))","v":"Previously developed buildable land area (acre or sq ft)"},null,null,null,null,null,null,"HM"]
[null,null,{"$f":"IFERROR(C44/C45,0)","v":1},"Percentage of lot previously developed (%)",null,null,null,null,null,null,"HM"]
[null,null,null,null,null,null,null,null,null,null,"HM"]
[null,null,"OR",null,null,null,null,null,null,null,"HM"]
[null,null,"Path 2. Avoidance of Sensitive Land (3 points)",null,"Y",null,"M",null,"V",null,"HM",{"$f":"C49","v":"Path 2. Avoidance of Sensitive Land (3 points)"}]
[null,null,null,null,null,null,null,null,null,null,"HM"]
[null,null,null,null,null,null,null,null,null,null,"HM"]
[null,null,"All new buildings, hardscapes, roads, or parking areas of the project are located on land that meets the following criteria:",null,null,null,null,null,null,null,"HM"]
[null,null,"(Select one)","Does not consist of prime farmland, unique farmland, or farmland of statewide of local importance.",null,null,null,null,null,null,"HM",null,null,null,null,"Verify that soil data map or supporting documentation that demonstrates development is not on qualifying farmland is for actual location of development."]
[null,null,null,null,null,null,null,null,null,null,"HM"]
[null,null,"(Select one)","Was not public parkland prior to acquisition.",null,null,null,null,null,null,"HM",null,null,null,null,"Visually verify that development is not next to parkland or verify documentation the developed land was not parkland or, if parkland, was traded for land to public landowner."]
[null,null,null,null,null,null,null,null,null,null,"HM"]
[null,null,"(Select one)","Is not in a flood hazard area shown on a legally adopted flood hazard map or otherwise legally designated by the local jurisdiction or state.",null,null,null,null,null,null,"HM",null,null,null,null,"Verify that floodplain map is for actual location of building and that building is above floodplain."]
[null,null,null,null,null,null,null,null,null,null,"HM"]
[null,null,"(Select one)","Is not on land specifically identified as habitat for species listed in the U.S. Endangered Species Act; the state's endangered species act; NatureServe GH, G1, or G2 lists; or those listed under local equivalent standards (for projects outside the U.S.) that are not covered by NatureServe data.",null,null,null,null,null,null,"HM",null,null,null,null,"Verify that documentation demonstrating project is not on land identified as habitat is for actual location of building."]
[null,null,null,null,null,null,null,null,null,null,"HM"]
[null,null,null,null,null,null,null,null,null,null,"HM"]
[null,null,null,null,null,null,null,null,null,null,"HM"]
[null,null,"(Select one)","Is not on land within 50 ft (15 m) of wetlands or within the setback distance from wetlands prescribed by local, state or national regulations, whichever is more stringent.",null,null,null,null,null,null,"HM",null,null,null,null,"Visually verify that development is not within 100 ft (30 m) of water bodies."]
[null,null,null,null,null,null,null,null,null,null,"HM"]
[null,null,null,null,null,null,null,null,null,null,"HM"]
[null,null,"(Select one)","Is not on land within 100 ft (30 m) of water bodies, including seas, lakes, rivers, streams and tributaries.",null,null,null,null,null,null,"HM",null,null,null,null,"Visually verify that development is not within 50 ft (15 m) of wetlands (or complies with local regulations, if more stringent)."]
[null,null,null,null,null,null,null,null,null,null,"HM"]
[null,null,"AND/OR",null,null,null,null,null,null,null,"HM"]
[null,null,"Option 2. Infill Development (2 points)",null,"Y",2,"M",null,"V",2,"HM",{"$f":"C69","v":"Option 2. Infill Development (2 points)"}]
[null,null,null,null,null,null,null,null,null,null,"HM"]
[null,null,null,null,null,null,null,null,null,null,"HM"]
[null,null,1,"Percent of land within a 1/2 mile (800 meters) from the project boundary that is previously developed",null,null,null,null,null,null,"HM","Urban infill lot, site verified","JML","2017-07-26",null,"Verify map and calculations that development within 1/2 mile (800 meters) of project boundary is previously developed."]
[null,null,null,null,null,null,null,null,null,null,"HM"]
[null,null,"For projects within city limits or towns with populations less than 20,000",null,null,null,null,null,null,null,"HM",{"$f":"C74","v":"For projects within city limits or towns with populations less than 20,000"}]
[null,null,null,"Percent of land adjacent to the project boundary that is previously developed",null,null,null,null,null,null,"HM",null,null,null,null,"Verify on-site that at least 75% of lot borders previously developed land."]
[null,null,null,null,null,null,null,null,null,null,"HM"]
[null,null,"AND/OR",null,null,null,null,null,null,null,"HM"]
[null,null,"Option 3. Open Space (1 point)",null,"Y",1,"M",null,"V",1,"HM",{"$f":"C78","v":"Option 3. Open Space (1 point)"}]
[null,null,null,null,null,null,null,null,null,null,"HM"]
[null,null,null,null,null,null,null,null,null,null,"HM"]
[null,null,"Select one of the following:",null,null,null,null,null,null,null,"HM"]
[null,null,"Yes","Built within 1/2 mile (800 meters) of open space that is at least 3/4 acres (0.3 hectares)",null,null,null,null,null,null,"HM","Alexander Park","JML","2017-07-26",null,"Conduct on-site certification or verify maps and calculations of publicly accessible open space of at least 3/4 acre (0.3 hectares) within 1/2 mile (800 meters) of home."]
[null,null,"No","Create publically available open space on the project site",null,null,null,null,null,null,"HM"]
[null,null,null,null,null,null,null,null,null,null,"HM"]
[null,null,"AND/OR",null,null,null,null,null,null,null,"HM"]
[null,null,"Option 4. Street Network (1 point)",null,"Y",1,"M",null,"V",1,"HM",{"$f":"C86","v":"Option 4. Street Network (1 point)"}]
[null,null,null,null,null,null,null,null,null,null,"HM"]
[null,null,null,null,null,null,null,null,null,null,"HM"]
[null,null,20,{"$f":"CONCATENATE(\"Qualifying intersection density (intersections per\",IF(Instructions!$I$62=1,\" square mile)\",\" square kilometer)\"))","v":"Qualifying intersection density (intersections per square mile)"},null,null,null,null,null,null,"HM","site is < 2 acres","JML","2017-07-26",null,"Verify that documentation (Walkscore report or map with intersections) is for actual location of development and that required intersection density has been met."]
[null,null,null,null,null,null,null,null,null,null,"HM"]
[null,null,"AND/OR",null,null,null,null,null,null,null,"HM"]
[null,null,"Option 5. Bicycle Network and Storage (1 point)",null,"Y",null,"M",null,"V",null,"HM",{"$f":"C92","v":"Option 5. Bicycle Network and Storage (1 point)"}]
[null,null,null,null,null,null,null,null,null,null,"HM"]
[null,null,null,null,null,null,null,null,null,null,"HM"]
[null,null,"Bicycle Network",null,null,null,null,null,null,null,"HM",{"$f":"C95","v":"Bicycle Network"}]
[null,null,"Select one of the following.  The project has a functional entry and/or bicycle storage within 200 yd (180 m) of a bicycle network that connects to:",null,null,null,null,null,null,null,"HM"]
[null,null,"(Select one)","At least 10 uses",null,null,null,null,null,null,"HM",null,null,null,null,"Verify documentation that qualifying resources are on bicycle network."]
[null,null,"(Select one)","A school or employment center",null,null,null,null,null,null,"HM"]
[null,null,"(Select one)","A bus rapid transit stops, rail stations, and/or ferry terminals",null,null,null,null,null,null,"HM"]
[null,null,null,null,null,null,null,null,null,null,"HM"]
[null,null,"Bicycle Storage for Multifamily Buildings",null,null,null,null,null,null,null,"HM",{"$f":"C101","v":"Bicycle Storage for Multifamily Buildings"}]
[null,null,null,"Number of building occupants",null,null,null,null,null,null,"HM",null,null,null,null,"Verify that adequate bicycle storage is installed on site."]
[null,null,null,null,null,null,null,null,null,null,"HM"]
[null,null,null,"Number of residential units",null,null,null,null,null,null,"HM"]
[null,null,null,null,null,null,null,null,null,null,"HM"]
[null,null,null,"Number of short-term spaces provided",null,null,null,null,null,null,"HM"]
[null,null,{"$f":"ROUNDUP(IF(C102*0.025<4,4,C102*0.025),0)","v":4},"Number of short-term spaces required",null,null,null,null,null,null,"HM"]
[null,null,null,null,null,null,null,null,null,null,"HM"]
[null,null,null,"Number of long-term spaces provided",null,null,null,null,null,null,"HM"]
[null,null,{"$f":"ROUNDUP(IF(C102*0.3<C104,C104,C102*0.3),0)","v":0},"Number of long-term spaces required",null,null,null,null,null,null,"HM"]
[null,null,null,null,null,null,null,null,null,null,"HM"]
[null,null,"Bicycle Storage for Single Family Homes",null,null,null,null,null,null,null,"HM",{"$f":"C112","v":"Bicycle Storage for Single Family Homes"}]
[null,null,"(Select one)","The project is a single family home with garage.",null,null,null,null,null,null,"HM",null,null,null,null,"Verify that adequate bicycle storage is installed on site."]
[null,null,null,null,null,null,null,null,null,null,"HM"]
["LTc3",{"$f":"IF(RatingSystem=1,HYPERLINK(\"http://www.usgbc.org/node/2612246\",L115),HYPERLINK(\"http://www.usgbc.org/node/2612246\",L115))","v":"LT Credit Compact Development"},null,null,null,null,null,null,null,null,"HM","LT Credit Compact Development"]
[null,null,null,null,null,null,null,null,null,null,"HM"]
[null,"Up to 3 points",null,null,"Preliminary    Y",1,"M",0,"Verified",1,"HM",null,"Responsible Party"]
[null,"Exemplary Performance: 35 DU/acre (86.5 DU/hectare)",null,null,null,null,null,null,null,null,"HM"]
[null,null,null,null,null,null,null,null,null,null,"HM"]
[null,null,null,null,null,null,null,null,null,null,"HM"]
[null,null,0.11,{"$f":"CONCATENATE(\"Buildable land area\",IF(Instructions!$I$62=1,\" (acre)\",\" (hectare)\"))","v":"Buildable land area (acre)"},null,null,null,null,null,null,"HM","See site plan","JML","2017-07-26",null,"Verify calculations of average housing density."]
[null,null,1,"Number of dwelling units",null,null,null,null,null,null,"HM"]
[null,null,{"$f":"IFERROR(C122/C121,0)","v":9.0909090909090917},{"$f":"CONCATENATE(IF(Instructions!$I$62=1,\"DU/acre\",\"DU/hectare\"),\" of buildable land\")","v":"DU/acre of buildable land"},null,null,null,null,null,null,"HM"]
[null,null,null,null,null,null,null,null,null,null,"HM"]
["LTc4",{"$f":"IF(RatingSystem=1,HYPERLINK(\"http://www.usgbc.org/node/2612251\",L125),HYPERLINK(\"http://www.usgbc.org/node/2612251\",L125))","v":"LT Credit Community Resources"},null,null,null,null,null,null,null,null,"HM","LT Credit Community Resources"]
[null,null,null,null,null,null,null,null,null,null,"HM"]
[null,"Up to 2 points",null,null,"Preliminary    Y",0,"M",0,"Verified",0,"HM",null,"Responsible Party"]
[null,"Exemplary Performance: 16 uses for 1/2 point, 20 uses for 1 point.",null,null,null,null,null,null,null,null,"HM"]
[null,null,null,null,null,null,null,null,null,null,"HM"]
[null,null,null,null,null,null,null,null,null,null,"HM"]
[null,null,null,"Number of community resources within a 1/2 mile (800 meters) walking distance",null,null,null,null,null,null,"HM",null,null,null,null,"Verify that community resources qualify and are within walking distance."]
[null,null,null,null,null,null,null,null,null,null,"HM"]
["LTc5",{"$f":"IF(RatingSystem=1,HYPERLINK(\"http://www.usgbc.org/node/2612256\",L133),HYPERLINK(\"http://www.usgbc.org/node/2612256\",L133))","v":"LT Credit Access to Transit"},null,null,null,null,null,null,null,null,"HM","LT Credit Access to Transit"]
[null,null,null,null,null,null,null,null,null,null,"HM"]
[null,"Up to 2 points",null,null,"Preliminary    Y",0,"M",0,"Verified",0,"HM",null,"Responsible Party"]
[null,"Exemplary Performance: For multiple transit types, 420 weekday trips and 432 weekend trips; For commuter rail or ferry, 120 weekday trips.",null,null,null,null,null,null,null,null,"HM"]
[null,null,null,null,null,null,null,null,null,null,"HM"]
[null,null,null,null,null,null,null,null,null,null,"HM"]
[null,null,"For projects with multiple transit types",null,null,null,null,null,null,null,"HM",{"$f":"C139","v":"For projects with multiple transit types"}]
[null,null,null,"Number of weekday trips",null,null,null,null,null,null,"HM",null,null,null,null,"Verify transit schedules, transit stop locations, and calculations of transit rides within 1/4 mile (400 meter) or 1/2 mile (800 meter) of building."]
[null,null,null,"Number weekend day trips",null,null,null,null,null,null,"HM"]
[null,null,null,null,null,null,null,null,null,null,"HM"]
[null,null,"For projects with commuter rail or ferry service only",null,null,null,null,null,null,null,"HM",{"$f":"C143","v":"For projects with commuter rail or ferry service only"}]
[null,null,null,"Number of weekday trips",null,null,null,null,null,null,"HM",null,null,null,null,"Verify transit schedules, transit stop locations, and calculations of transit rides within 1/4 mile (400 meter) or 1/2 mile (800 meter) of building."]

{"sheet":"SS","index":8,"n_rows":133,"n_cols":17,"rows_kept":133,"cut":false,"hidden":false,"merged":[[55,3,55,8],[59,3,59,8],[61,3,61,8],[128,3,128,9],[106,3,106,8],[111,3,111,8],[116,3,116,8],[113,3,114,9],[118,3,119,9],[83,3,83,7],[79,3,79,7],[82,3,82,7],[121,3,123,9],[125,3,126,9],[131,3,132,9],[18,3,19,9],[25,3,26,9],[28,3,29,9],[103,3,104,9],[108,3,109,9],[90,3,90,7],[99,3,99,8],[101,3,101,8],[78,3,78,7],[84,3,84,7],[53,3,53,8],[21,3,21,8],[36,3,36,8],[60,3,60,8],[77,3,77,7],[4,1,4,3],[31,1,31,3],[38,1,38,3],[66,1,66,3],[92,1,92,3],[10,3,10,8],[12,3,12,8],[16,3,16,8],[14,3,14,9],[46,3,46,8],[52,3,52,8],[76,3,76,7],[62,3,62,8],[63,3,63,8],[64,3,64,8],[54,3,54,8]]}
[null,"Sustainable Sites",null,null,null,null,null,null,null,null,null,"Notes","Verified \n(initials)","Date \nVerified","Verification Details","Verification Measure","QAD \nVerification Notes"]
[]
[null,null,null,null,"Preliminary    Y",{"$f":"SUM(F41,F69,F95)","v":1.5},"Maybe",{"$f":"SUM(H41,H69,H95)","v":0},"Verified",{"$f":"SUM(J41,J69,J95)","v":1.5}]
[]
["SSp1",{"$f":"IF(RatingSystem=1,HYPERLINK(\"http://www.usgbc.org/node/2612260\",L5),HYPERLINK(\"http://www.usgbc.org/node/2612260\",L5))","v":"SS Prerequisite Construction Activity Pollution Prevention "},null,null,null,null,null,null,null,null,"HM","SS Prerequisite Construction Activity Pollution Prevention "]
[null,null,null,null,null,null,null,null,null,null,"HM"]
[null,"Required",null,null,null,"Required",null,null,"Verified","Y","HM",null,"Responsible Party"]
[null,null,null,null,null,null,null,null,null,null,"HM"]
[null,null,null,null,null,null,null,null,null,null,"HM"]
[null,null,"Confirm all of the following measures were implemented on the project, as applicable:",null,null,null,null,null,null,null,"HM"]
[null,null,"True","Stockpiled and protected disturbed topsoil from erosion.",null,null,null,null,null,null,"HM","Minimal Site disruption, rehab.","JML","2017-06-01",null,"Conduct on-site verification that applicable erosion and pollution control measure is installed."]
[null,null,null,null,null,null,null,null,null,null,"HM"]
[null,null,"N/A","Controlled the path and velocity of runoff with silt fencing or comparable measures.",null,null,null,null,null,null,"HM"]
[null,null,null,null,null,null,null,null,null,null,"HM"]
[null,null,"True","Protected on-site storm sewer inlets, streams, and lakes with straw bales, silt fencing, silt sacks, rock filters, or comparable measures.",null,null,null,null,null,null,"HM",null,"JML","2017-06-01"]
[null,null,null,null,null,null,null,null,null,null,"HM"]
[null,null,"N/A","Provided swales to divert surface water from hillsides.",null,null,null,null,null,null,"HM"]
[null,null,null,null,null,null,null,null,null,null,"HM"]
[null,null,"N/A","Used tiers, erosion blankets, compost blankets, filter socks, berms, or comparable measures to stabilize soils in any area with a slope of 15% (6.6:1) or more that was disturbed during construction.",null,null,null,null,null,null,"HM"]
[null,null,null,null,null,null,null,null,null,null,"HM"]
[null,null,null,null,null,null,null,null,null,null,"HM"]
[null,null,"N/A","Prevented air pollution from dust and particulate matter.",null,null,null,null,null,null,"HM"]
[null,null,null,null,null,null,null,null,null,null,"HM"]
[null,null,"For construction sites larger than 1 acre",null,null,null,null,null,null,null,"HM",{"$f":"C24","v":"For construction sites larger than 1 acre"}]
[null,null,"Select one of the following:",null,null,null,null,null,null,null,"HM"]
[null,null,"(Select one)","The project team created an implemented an Erosion and Sedimentation Control (ESC) plan that conforms to the requirements of the 2012 U.S. Environmental Protection Agency Construction General Permit (CGP). ",null,null,null,null,null,null,"HM",null,null,null,null,"Conduct on-site verification that applicable erosion and pollution control measure is installed."]
[null,null,null,null,null,null,null,null,null,null,"HM"]
[null,null,null,null,null,null,null,null,null,null,"HM"]
[null,null,"(Select one)","The project team created an implemented an Erosion and Sedimentation Control (ESC) plan that conforms to local standards and codes, which are as or more stringent than the 2012 EPA Construction General Permit (CGP).",null,null,null,null,null,null,"HM",null,null,null,null,"Conduct on-site verification that applicable erosion and pollution control measure is installed."]
[null,null,null,null,null,null,null,null,null,null,"HM"]
[null,null,null,null,null,null,null,null,null,null,"HM"]
["SSp2",{"$f":"IF(RatingSystem=1,HYPERLINK(\"http://www.usgbc.org/node/2612265\",L32),HYPERLINK(\"http://www.usgbc.org/node/2612265\",L32))","v":"SS Prerequisite No Invasive Plants"},null,null,null,null,null,null,null,null,"HM","SS Prerequisite No Invasive Plants"]
[null,null,null,null,null,null,null,null,null,null,"HM"]
[null,"Required",null,null,null,"Required",null,null,"Verified","Y","HM",null,"Responsible Party"]
[null,null,null,null,null,null,null,null,null,null,"HM"]
[null,null,null,null,null,null,null,null,null,null,"HM"]
[null,null,"True","No invasive plant species have been introduced into the landscape.",null,null,null,null,null,null,"HM","Site Verified","JML","2017-11-04",null,"Compare list of installed plants with list of local invasive plants from third-party entity and conduct on-site verification that listed plants are installed on site."]
[null,null,null,null,null,null,null,null,null,null,"HM"]
["SSc1",{"$f":"IF(RatingSystem=1,HYPERLINK(\"http://www.usgbc.org/node/2612275\",L39),HYPERLINK(\"http://www.usgbc.org/node/2612275\",L39))","v":"SS Credit Heat Island Reduction"},null,null,null,null,null,null,null,null,"HM","SS Credit Heat Island Reduction"]
[null,null,null,null,null,null,null,null,null,null,"HM"]
[null,"Up to 2 points",null,null,"Preliminary    Y",{"$f":"IF(SUM(F44,F50)>2,2,SUM(F44,F50))","v":0},"M",{"$f":"IF(SUM(H44,H50)>2,2,SUM(H44,H50))","v":0},"Verified",{"$f":"IF(SUM(J44,J50)>2,2,SUM(J44,J50))","v":0},"HM",null,"Responsible Party"]
[null,null,null,null,null,null,null,null,null,null,"HM"]
[null,null,null,null,null,null,null,null,null,null,"HM"]
[null,null,"Option 1. Shading (1-2 points)",null,"Y",null,"M",null,"V",null,"HM",{"$f":"C44","v":"Option 1. Shading (1-2 points)"}]
[null,null,null,null,null,null,null,null,null,null,"HM"]
[null,null,null,null,null,null,null,null,null,null,"HM"]
[null,null,null,{"$f":"CONCATENATE(\"Area of hardscape shaded by plant canopy within 10 years of planting\",IF(Instructions!$I$62=1,\" (sq ft)\",\" (sq m)\"))","v":"Area of hardscape shaded by plant canopy within 10 years of planting (sq ft)"},null,null,null,null,null,null,"HM",null,null,null,null,"Verify calculations or estimates related to shaded and/or nonabsorptive areas and conduct on-site verification of shade trees or other plantings and nonabsorptive products. "]
[null,null,null,null,null,null,null,null,null,null,"HM"]
[null,null,"AND/OR",null,null,null,null,null,null,null,"HM"]
[null,null,"Option 2. Nonabsorptive Materials (1-2 points)",null,"Y",null,"M",null,"V",null,"HM",{"$f":"C50","v":"Option 2. Nonabsorptive Materials (1-2 points)"}]
[null,null,null,null,null,null,null,null,null,null,"HM"]
[null,null,null,null,null,null,null,null,null,null,"HM"]
[null,null,null,{"$f":"CONCATENATE(\"Area of ENERGY STAR qualified roof products\",IF(Instructions!$I$62=1,\" (sq ft)\",\" (sq m)\"))","v":"Area of ENERGY STAR qualified roof products (sq ft)"},null,null,null,null,null,null,"HM",null,null,null,null,"Verify calculations or estimates related to shaded and/or nonabsorptive areas and conduct on-site verification of shade trees or other plantings and nonabsorptive products. "]
[null,null,null,{"$f":"CONCATENATE(\"Area of vegetated roof\",IF(Instructions!$I$62=1,\" (sq ft)\",\" (sq m)\"))","v":"Area of vegetated roof (sq ft)"},null,null,null,null,null,null,"HM"]
[null,null,null,{"$f":"CONCATENATE(\"Area of vegetation in open pavers\",IF(Instructions!$I$62=1,\" (sq ft)\",\" (sq m)\"))","v":"Area of vegetation in open pavers (sq ft)"},null,null,null,null,null,null,"HM"]
[null,null,null,{"$f":"CONCATENATE(\"Area of paving materials with a 3-year aged SR value of at least 0.28 or initial SR value of at least 0.33\",IF(Instructions!$I$62=1,\" (sq ft)\",\" (sq m)\"))","v":"Area of paving materials with a 3-year aged SR value of at least 0.28 or initial SR value of at least 0.33 (sq ft)"},null,null,null,null,null,null,"HM"]
[null,null,null,null,null,null,null,null,null,null,"HM"]
[null,null,null,null,null,null,null,null,null,null,"HM"]
[null,null,"Summary",null,null,null,null,null,null,null,"HM",{"$f":"C59","v":"Summary"}]
[null,null,{"$f":"C47","v":0},{"$f":"CONCATENATE(\"Total shaded area\",IF(Instructions!$I$62=1,\" (sq ft)\",\" (sq m)\"))","v":"Total shaded area (sq ft)"},null,null,null,null,null,null,"HM",null,null,null,null,"Verify calculations or estimates related to shaded and/or nonabsorptive areas."]
[null,null,{"$f":"SUM(C53:C56)","v":0},{"$f":"CONCATENATE(\"Total area of nonabsorptive materials\",IF(Instructions!$I$62=1,\" (sq ft)\",\" (sq m)\"))","v":"Total area of nonabsorptive materials (sq ft)"},null,null,null,null,null,null,"HM"]
[null,null,{"$f":"SUM(C60:C61)","v":0},{"$f":"CONCATENATE(\"Total area with shading or nonabsorptive material\",IF(Instructions!$I$62=1,\" (sq ft)\",\" (sq m)\"))","v":"Total area with shading or nonabsorptive material (sq ft)"},null,null,null,null,null,null,"HM"]
[null,null,null,{"$f":"CONCATENATE(\"Total hardscape area\",IF(Instructions!$I$62=1,\" (sq ft)\",\" (sq m)\"))","v":"Total hardscape area (sq ft)"},null,null,null,null,null,null,"HM"]
[null,null,null,{"$f":"CONCATENATE(\"Total roof area\",IF(Instructions!$I$62=1,\" (sq ft)\",\" (sq m)\"))","v":"Total roof area (sq ft)"},null,null,null,null,null,null,"HM"]
[null,null,{"$f":"IFERROR(C62/(C64+C63),0)","v":0},"Percentage of area with shading or nonabsorptive material (%)",null,null,null,null,null,null,"HM"]
[null,null,null,null,null,null,null,null,null,null,"HM"]
["SSc2",{"$f":"IF(RatingSystem=1,HYPERLINK(\"http://www.usgbc.org/node/2612282\",L67),HYPERLINK(\"http://www.usgbc.org/node/2612282\",L67))","v":"SS Credit Rainwater Management"},null,null,null,null,null,null,null,null,"HM","SS Credit Rainwater Management"]
[null,null,null,null,null,null,null,null,null,null,"HM"]
[null,"Up to 3 points",null,null,"Preliminary    Y",{"$f":"IF(F73>0,F73,F88)","v":0},"M",{"$f":"IF(H73>0,H73,H88)","v":0},"Verified",{"$f":"IF(J73>0,J73,J88)","v":0},"HM",null,"Responsible Party"]
[null,"Exemplary Performance: For Case 1, manage 100% of all stormwater on-site.",null,null,null,null,null,null,null,null,"HM"]
[null,null,null,null,null,null,null,null,null,null,"HM"]
[null,null,null,null,null,null,null,null,null,null,"HM"]
[null,null,"Case 1. Low Impact Development (1-3 points)",null,"Y",0,"M",null,"V",null,"HM",{"$f":"C73","v":"Case 1. Low Impact Development (1-3 points)"}]
[null,null,null,null,null,null,null,null,null,null,"HM"]
[null,null,null,null,null,null,null,null,null,null,"HM"]
[null,null,"Permeable area as a percentage of total lot area",null,null,null,null,null,null,null,"HM"]
[null,null,null,{"$f":"CONCATENATE(\"Total permeable area\",IF(Instructions!$I$62=1,\" (sq ft)\",\" (sq m)\"))","v":"Total permeable area (sq ft)"},null,null,null,null,null,null,"HM",null,null,null,null,"Conduct on-site verification of that GI/LID elements (e.g., permeable paving, designed infiltration features) match what was included in plans. "]
[null,null,null,{"$f":"CONCATENATE(\"Total impermeable area directed to on-site catchment or infiltration feature\",IF(Instructions!$I$62=1,\" (sq ft)\",\" (sq m)\"))","v":"Total impermeable area directed to on-site catchment or infiltration feature (sq ft)"},null,null,null,null,null,null,"HM",null,null,null,null,"Verify calculations of percentage permeable elements."]
[null,null,null,{"$f":"CONCATENATE(\"Total lot area\",IF(Instructions!$I$62=1,\" (sq ft)\",\" (sq m)\"))","v":"Total lot area (sq ft)"},null,null,null,null,null,null,"HM"]
[null,null,{"$f":"IFERROR(SUM(C77:C78)/C79,0)","v":0},"Qualifying area, as percentage of total lot area (%)",null,null,null,null,null,null,"HM",null,null,null,null,"Verify calculations of percentage permeable elements and verify calculations identifying percentile storm or 2 year, 24 hour storm."]
[null,null,null,null,null,null,null,null,null,null,"HM"]
[null,null,"Reduction of total impermeable area",null,null,null,null,null,null,null,"HM"]
[null,null,1400,{"$f":"CONCATENATE(\"Total impermeable area of the project\",IF(Instructions!$I$62=1,\" (sq ft)\",\" (sq m)\"))","v":"Total impermeable area of the project (sq ft)"},null,null,null,null,null,null,"HM"]
[null,null,2800,{"$f":"CONCATENATE(\"Reference home size\",IF(Instructions!$I$62=1,\" (sq ft)\",\" (sq m)\"))","v":"Reference home size (sq ft)"},null,null,null,null,null,null,"HM"]
[null,null,{"$f":"IFERROR(C83/C84,0)","v":0.5},"Impermeable area as a percentage of reference home size",null,null,null,null,null,null,"HM"]
[null,null,null,null,null,null,null,null,null,null,"HM"]
[null,null,"OR",null,null,null,null,null,null,null,"HM"]
[null,null,"Case 2. NPDES Projects (2-3 points)",null,"Y",null,"M",null,"V",null,"HM",{"$f":"C88","v":"Case 2. NPDES Projects (2-3 points)"}]
[null,null,null,null,null,null,null,null,null,null,"HM"]
[null,null,null,null,null,null,null,null,null,null,"HM"]
[null,null,null,"Percentile rainfall event",null,null,null,null,null,null,"HM",null,null,null,null,"Verify calculations identifying percentile."]
[null,null,null,null,null,null,null,null,null,null,"HM"]
["SSc3",{"$f":"IF(RatingSystem=1,HYPERLINK(\"http://www.usgbc.org/node/2612289\",L93),HYPERLINK(\"http://www.usgbc.org/node/2612289\",L93))","v":"SS Credit Nontoxic Pest Control "},null,null,null,null,null,null,null,null,"HM","SS Credit Nontoxic Pest Control "]
[null,null,null,null,null,null,null,null,null,null,"HM"]
[null,"Up to 2 points",null,null,"Preliminary    Y",1.5,"M",0,"Verified",1.5,"HM",null,"Responsible Party"]
[null,"Exemplary Performance:  Achieve a minimum of 2 points to earn another 1/2 point for each additional strategy, up to a total of 1 point.",null,null,null,null,null,null,null,null,"HM"]
[null,null,null,null,null,null,null,null,null,null,"HM"]
[null,null,null,null,null,null,null,null,null,null,"HM"]
[null,null,"Select all of the following that have been included in the project.",null,null,null,null,null,null,null,"HM"]
[null,null,"No","Install a steel mesh barrier termite control system. (1 point)",null,null,null,null,null,null,"HM"]
[null,null,null,null,null,null,null,null,null,null,"HM"]
[null,null,"No","Install a physical termite barrier system (e.g., basaltic rock) approved by code. (1 point)",null,null,null,null,null,null,"HM"]
[null,null,null,null,null,null,null,null,null,null,"HM"]
[null,null,"Yes","For below-grade walls, use solid concrete foundation walls, masonry walls with a course of solid block bond beam, or concrete-filled block. (0.5 point)",null,null,null,null,null,null,"HM","Site Verified","2017-07-26"]
[null,null,null,null,null,null,null,null,null,null,"HM"]
[null,null,null,null,null,null,null,null,null,null,"HM"]
[null,null,"No","Install post-tension slabs. (0.5 point)",null,null,null,null,null,null,"HM"]
[null,null,null,null,null,null,null,null,null,null,"HM"]
[null,null,"No","Treat all cellulosic structural material (e.g., wood framing) with a registered pesticide containing borates, following the manufacturer’s directions for preconstruction treatment. (0.5 point)",null,null,null,null,null,null,"HM"]
[null,null,null,null,null,null,null,null,null,null,"HM"]
[null,null,null,null,null,null,null,null,null,null,"HM"]
[null,null,"No","Use noncellulosic material for all structural elements. (0.5 point)",null,null,null,null,null,null,"HM"]
[null,null,null,null,null,null,null,null,null,null,"HM"]
[null,null,"No","Install ports or openings for all plumbing elements that penetrate the slab, to allow access for inspection and treatment of pest infestations. (0.5 point)",null,null,null,null,null,null,"HM"]
[null,null,null,null,null,null,null,null,null,null,"HM"]
[null,null,null,null,null,null,null,null,null,null,"HM"]
[null,null,"No","Install a registered termite bait system and provide for ongoing maintenance as required by the manufacturer. (0.5 point)",null,null,null,null,null,null,"HM"]
[null,null,null,null,null,null,null,null,null,null,"HM"]
[null,null,"No","Design a minimum 6-inch (150 millimeters) inspection space between the surface of the planned landscape grade and nonmasonry siding. (0.5 point)",null,null,null,null,null,null,"HM"]
[null,null,null,null,null,null,null,null,null,null,"HM"]
[null,null,null,null,null,null,null,null,null,null,"HM"]
[null,null,"Yes","Seal all external cracks, joints, penetrations, edges, and entry points with appropriate caulking. Install rodent- and corrosion-proof screens (e.g., copper or stainless steel mesh) on all openings greater than ¼ inch (6 millimeters), except where code prohibits their installation. (0.5 point)",null,null,null,null,null,null,"HM","Site Verified","2017-11-14"]
[null,null,null,null,null,null,null,null,null,null,"HM"]
[null,null,null,null,null,null,null,null,null,null,"HM"]
[null,null,null,null,null,null,null,null,null,null,"HM"]
[null,null,"No","Design discharge points for rain gutters, air-conditioning condensation lines, steam vent lines, or any other moisture source such that discharge is at least 24 inches (600 millimeters) from the foundation. (0.5 point)",null,null,null,null,null,null,"HM"]
[null,null,null,null,null,null,null,null,null,null,"HM"]
[null,null,null,null,null,null,null,null,null,null,"HM"]
[null,null,"Yes","Design landscape features to provide a minimum 18-inch (450 millimeters) space between the exterior wall and any plantings. (0.5 point)",null,null,null,null,null,null,"HM","Site Verified","2017-11-14"]
[null,null,null,null,null,null,null,null,null,null,"HM"]
[null,null,"For multifamily projects",null,null,null,null,null,null,null,"HM",{"$f":"C131","v":"For multifamily projects"}]
[null,null,"(Select one)","Develop an integrated pest management policy.  The policy must include guidance for residents on pesticide use, housekeeping and prompt reporting of pest problems and incorporate policy in the Homeowner Education Manual. (Required)",null,null,null,null,null,null,"HM",null,null,null,null,"Conduct on-site verification that credit requirements are met."]
[null,null,null,null,null,null,null,null,null,null,"HM"]

{"sheet":"WE","index":9,"n_rows":90,"n_cols":17,"rows_kept":90,"cut":false,"hidden":false,"merged":[[88,3,88,7],[48,3,48,7],[49,3,49,7],[52,3,52,7],[53,3,53,7],[56,3,56,7],[57,3,57,7],[60,3,60,7],[81,3,81,7],[70,3,70,7],[73,3,73,7],[67,2,67,8],[66,2,66,8],[74,3,74,7],[77,3,77,7],[78,3,78,7],[4,1,4,3],[24,1,24,3],[37,1,37,3],[83,1,83,3],[30,3,30,8],[45,3,45,8],[69,3,69,7],[33,3,34,9]]}
[null,"Water Efficiency",null,null,null,null,null,null,null,null,null,"Notes","Verified \n(initials)","Date \nVerified","Verification Details","Verification Measure","QAD \nVerification Notes"]
[]
[null,null,null,null,"Preliminary    Y",{"$f":"IF(WE!$F$27>0,WE!$F$27,SUM(F40,F86))","v":5},"Maybe",{"$f":"IF(WE!$H$27>0,WE!$H$27,SUM(H40,H86))","v":0},"Verified",{"$f":"IF(WE!$J$27>0,WE!$J$27,SUM(J40,J86))","v":5}]
[]
["WEp1",{"$f":"IF(RatingSystem=1,HYPERLINK(\"http://www.usgbc.org/node/2612787\",L5),HYPERLINK(\"http://www.usgbc.org/node/2612787\",L5))","v":"WE Prerequisite Water Metering"},null,null,null,null,null,null,null,null,"HM","WE Prerequisite Water Metering"]
[null,null,null,null,null,null,null,null,null,null,"HM"]
[null,"Required",null,null,null,"Required",null,null,"Verified",{"$f":"IF(OR(J10=\"Y\",J18=\"Y\"),\"Y\",\"N\")","v":"Y"},"HM",null,"Responsible Party"]
[null,null,null,null,null,null,null,null,null,null,"HM"]
[null,null,null,null,null,null,null,null,null,null,"HM"]
[null,null,"Case 1. Single Family ",null,null,null,null,null,"V","Y","HM",{"$f":"C10","v":"Case 1. Single Family "}]
[null,null,null,null,null,null,null,null,null,null,"HM"]
[null,null,null,null,null,null,null,null,null,null,"HM"]
[null,null,"Select one of the following:",null,null,null,null,null,null,null,"HM"]
[null,null,"True","A whole-house water meter is installed.",null,null,null,null,null,null,"HM","Site Verified","JML","2017-07-26",null,"Conduct on-site verification that water meter is installed."]
[null,null,"False","The house uses only well water and is not connected to a municipal water system.",null,null,null,null,null,null,"HM",null,null,null,null,"Conduct on-site verification that only well water is used."]
[null,null,null,null,null,null,null,null,null,null,"HM"]
[null,null,"OR",null,null,null,null,null,null,null,"HM"]
[null,null,"Case 2. Multifamily ",null,null,null,null,null,"V",null,"HM",{"$f":"C18","v":"Case 2. Multifamily "}]
[null,null,null,null,null,null,null,null,null,null,"HM"]
[null,null,null,null,null,null,null,null,null,null,"HM"]
[null,null,"(Select one)","A water meter or submeter is installed for each unit.",null,null,null,null,null,null,"HM",null,null,null,null,"Conduct on-site verification that water meters are installed."]
[null,null,"(Select one)","A water meter or submeter is installed for the whole building."]
[null,null,null,null,null,null,null,null,null,null,"HM"]
[null,"Performance Path",null,null,null,null,null,null,null,null,"HM","Performance Path"]
["WEc1",{"$f":"IF(RatingSystem=1,HYPERLINK(\"http://www.usgbc.org/node/2612793\",L25),HYPERLINK(\"http://www.usgbc.org/node/2612793\",L25))","v":"WE Credit Total Water Use"},null,null,null,null,null,null,null,null,"HM","WE Credit Total Water Use"]
[null,null,null,null,null,null,null,null,null,null,"HM"]
[null,"Up to 12 points",null,null,"Preliminary    Y",0,"M",0,"Verified",0,"HM",null,"Responsible Party"]
[null,"Exemplary Performance: 70% reduction of indoor and outdoor water consumption",null,null,null,null,null,null,null,null,"HM"]
[null,null,null,null,null,null,null,null,null,null,"HM"]
[null,null,null,null,null,null,null,null,null,null,"HM"]
[null,null,{"$f":"'Water Reduction Calculator'!I141","v":0},"Total reduction of indoor and outdoor water consumption as calculated in the Water Reduction Calculator (%)",null,null,null,null,null,null,"HM",null,null,null,null,"Visually verify that listed indoor fixtures were installed and that water calculator’s inputs match installed fixtures’ performance criteria. Conduct on-site verification that outdoor water use calculator’s inputs match installed fixtures’ performance criteria; conduct on-site verification of any water-saving items identified in calculation, including high-efficiency irrigation measures and high-low shading conditions; and for any drought-tolerant plants, compare list of installed plants with list of regional drought-tolerant plants created by a third-party entity."]
[null,null,null,null,null,null,null,null,null,null,"HM"]
[null,null,"For single family projects",null,null,null,null,null,null,null,"HM",{"$f":"C33","v":"For single family projects"}]
[null,null,"(Select one)","The water pressure does not exceed 60 psi (415 kPa).  There are no detectable water leaks.  Any installed water softeners are demand initiated. ",null,null,null,null,null,null,"HM",null,null,null,null,"Test and record water pressure.  Test for water leaks. Verify installed water softeners are demand initiated."]
[null,null,null,null,null,null,null,null,null,null,"HM"]
[null,null,null,null,null,null,null,null,null,null,"HM"]
[null,"Prescriptive Path",null,null,null,null,null,null,null,null,"HM","Prescriptive Path"]
["WEc2",{"$f":"IF(RatingSystem=1,HYPERLINK(\"http://www.usgbc.org/node/2612799\",L38),HYPERLINK(\"http://www.usgbc.org/node/2612799\",L38))","v":"WE Credit Indoor Water Use"},null,null,null,null,null,null,null,null,"HM","WE Credit Indoor Water Use"]
[null,null,null,null,null,null,null,null,null,null,"HM"]
[null,"Up to 6 points",null,null,"Preliminary    Y",{"$f":"IF(F43>0,F43,F64)","v":5},"M",{"$f":"IF(H43>0,H43,H64)","v":0},"Verified",{"$f":"IF(J43>0,J43,J64)","v":5},"HM",null,"Responsible Party"]
[null,null,null,null,null,null,null,null,null,null,"HM"]
[null,null,null,null,null,null,null,null,null,null,"HM"]
[null,null,"Case 1. Single Family ",null,"Y",5,"M",null,"V",5,"HM",{"$f":"C43","v":"Case 1. Single Family "}]
[null,null,null,null,null,null,null,null,null,null,"HM"]
[null,null,null,null,null,null,null,null,null,null,"HM"]
[null,null,"True","The water pressure does not exceed 60 psi (415 kPa).  There are no detectable water leaks. ",null,null,null,null,null,null,"HM","Site Verified","JML","2017-07-26",null,"Test and record water pressure.  Test for water leaks. "]
[null,null,"Meet any of the following:",null,null,null,null,null,null,null,"HM"]
[null,null,"Lavatory Faucet (1-2 points)",null,null,null,null,null,null,null,"HM",{"$f":"C48","v":"Lavatory Faucet (1-2 points)"}]
[null,null,"True","All installed lavatory faucets and/or faucet aerators are WaterSense labeled.",null,null,null,null,null,null,"HM","Site Verified, Niagra Units","JML","2017-11-14",null,"Conduct on-site verification that faucets are installed, comparing installed items with manufacturers’ specification sheets where necessary; ensure all items are WaterSense labeled."]
[null,null,1,{"$f":"CONCATENATE(\"Average rated flow volume across all lavatory faucets\",IF(Instructions!$I$62=1,\" (gpm)\",\" (lpm)\"))","v":"Average rated flow volume across all lavatory faucets (gpm)"},null,null,null,null,null,null,"HM",null,null,null,null,"Verify average rated flow."]
[null,null,null,null,null,null,null,null,null,null,"HM"]
[null,null,"Showerheads (1-2 points)",null,null,null,null,null,null,null,"HM",{"$f":"C52","v":"Showerheads (1-2 points)"}]
[null,null,"True","All installed showerhead fixtures and fittings are WaterSense labeled.",null,null,null,null,null,null,"HM","Site Verified","JML","2017-11-14",null,"Conduct on-site verification that showerheads are installed, comparing installed items with manufacturers’ specification sheets where necessary; ensure all items are WaterSense labeled."]
[null,null,1.5,{"$f":"CONCATENATE(\"Average rated flow volume per shower compartment\",IF(Instructions!$I$62=1,\" (gpm)\",\" (lpm)\"))","v":"Average rated flow volume per shower compartment (gpm)"},null,null,null,null,null,null,"HM",null,null,null,null,"Verify average rated flow."]
[null,null,null,null,null,null,null,null,null,null,"HM"]
[null,null,"Toilets (1 point)",null,null,null,null,null,null,null,"HM",{"$f":"C56","v":"Toilets (1 point)"}]
[null,null,"True","All installed toilet fixtures and fittings are WaterSense labeled.",null,null,null,null,null,null,"HM","Niagra Dual Flush","JML","2017-11-14",null,"Conduct on-site verification that high-efficiency toilets are installed, comparing installed items with manufacturers’ specification sheets where necessary; ensure all items are WaterSense labeled."]
[null,null,0.8,{"$f":"CONCATENATE(\"Average rated flush volume across all toilets\",IF(Instructions!$I$62=1,\" (gpf)\",\" (lpf)\"))","v":"Average rated flush volume across all toilets (gpf)"},null,null,null,null,null,null,"HM",null,null,null,null,"Verify average rated flow."]
[null,null,null,null,null,null,null,null,null,null,"HM"]
[null,null,"Clothes Washers (1 point)",null,null,null,null,null,null,null,"HM",{"$f":"C60","v":"Clothes Washers (1 point)"}]
[null,null,"(Select one)","All clothes washers are ENERGY STAR qualified or performance equivalent",null,null,null,null,null,null,"HM",null,null,null,null,"Conduct on-site verification that clothes washers are installed, comparing installed items with manufacturers’ specification sheets where necessary; ensure all items are ENERGY STAR  labeled."]
[null,null,null,null,null,null,null,null,null,null,"HM"]
[null,null,"OR",null,null,null,null,null,null,null,"HM"]
[null,null,"Case 2. Multifamily and Midrise",null,"Y",null,"M",null,"V",null,"HM",{"$f":"C64","v":"Case 2. Multifamily and Midrise"}]
[null,null,null,null,null,null,null,null,null,null,"HM"]
[null,null,null,null,null,null,null,null,null,null,"HM"]
[null,null,"Note:  No additional credit is awarded if the fixtures and fittings in non-unit spaces are more efficient than those of in-unit spaces.",null,null,null,null,null,null,null,"HM"]
[null,null,"Meet any of the following for in-unit spaces and non-unit spaces:",null,null,null,null,null,null,null,"HM"]
[null,null,"Lavatory Faucet (1-2 points)",null,null,null,null,null,null,null,"HM",{"$f":"C69","v":"Lavatory Faucet (1-2 points)"}]
[null,null,"True","All installed lavatory faucets and/or faucet aerators are WaterSense labeled.",null,null,null,null,null,null,"HM",null,null,null,null,"Conduct on-site verification that faucets are installed, comparing installed items with manufacturers’ specification sheets where necessary; ensure all items are WaterSense labeled."]
[null,null,1.5,{"$f":"CONCATENATE(\"Average rated flow volume across all lavatory faucets\",IF(Instructions!$I$62=1,\" (gpm)\",\" (lpm)\"))","v":"Average rated flow volume across all lavatory faucets (gpm)"},null,null,null,null,null,null,"HM",null,null,null,null,"Verify average rated flow."]
[null,null,null,null,null,null,null,null,null,null,"HM"]
[null,null,"Showerheads (1-2 points)",null,null,null,null,null,null,null,"HM",{"$f":"C73","v":"Showerheads (1-2 points)"}]
[null,null,"True","All installed showerhead fixtures and fittings are WaterSense labeled.",null,null,null,null,null,null,"HM",null,null,null,null,"Conduct on-site verification that showerheads are installed, comparing installed items with manufacturers’ specification sheets where necessary; ensure all items are WaterSense labeled."]
[null,null,1.5,{"$f":"CONCATENATE(\"Average rated flow volume per shower compartment\",IF(Instructions!$I$62=1,\" (gpm)\",\" (lpm)\"))","v":"Average rated flow volume per shower compartment (gpm)"},null,null,null,null,null,null,"HM",null,null,null,null,"Verify average rated flow."]
[null,null,null,null,null,null,null,null,null,null,"HM"]
[null,null,"Toilets (1 point)",null,null,null,null,null,null,null,"HM",{"$f":"C77","v":"Toilets (1 point)"}]
[null,null,"True","All installed toilet fixtures and fittings are WaterSense labeled.",null,null,null,null,null,null,"HM",null,null,null,null,"Conduct on-site verification that high-efficiency toilets are installed, comparing installed items with manufacturers’ specification sheets where necessary; ensure all items are WaterSense labeled."]
[null,null,1.28,{"$f":"CONCATENATE(\"Average rated flush volume across all toilets\",IF(Instructions!$I$62=1,\" (gpf)\",\" (lpf)\"))","v":"Average rated flush volume across all toilets (gpf)"},null,null,null,null,null,null,"HM",null,null,null,null,"Verify average rated flow."]
[null,null,null,null,null,null,null,null,null,null,"HM"]
[null,null,"Clothes Washers (1 point)",null,null,null,null,null,null,null,"HM",{"$f":"C81","v":"Clothes Washers (1 point)"}]
[null,null,"(Select one)","All clothes washers are ENERGY STAR qualified or performance equivalent",null,null,null,null,null,null,"HM",null,null,null,null,"Conduct on-site verification that clothes washers are installed, comparing installed items with manufacturers’ specification sheets where necessary; ensure all items are ENERGY STAR  labeled."]
[null,null,null,null,null,null,null,null,null,null,"HM"]
["WEc3",{"$f":"IF(RatingSystem=1,HYPERLINK(\"http://www.usgbc.org/node/2612805\",L84),HYPERLINK(\"http://www.usgbc.org/node/2612805\",L84))","v":"WE Credit Outdoor Water Use"},null,null,null,null,null,null,null,null,"HM","WE Credit Outdoor Water Use"]
[null,null,null,null,null,null,null,null,null,null,"HM"]
[null,"Up to 4 points",null,null,"Preliminary    Y",0,"M",0,"Verified",0,"HM",null,"Responsible Party"]
[null,null,null,null,null,null,null,null,null,null,"HM"]
[null,null,null,null,null,null,null,null,null,null,"HM"]
[null,null,60,"Turf grass area as a percentage of landscape area (%)",null,null,null,null,null,null,"HM",null,null,null,null,"Conduct on-site verification that area calculations match what was installed."]
[null,null,25,"Native or adapted plant area as a percentage of landscape area (%)",null,null,null,null,null,null,"HM",null,null,null,null,"For all native or adapted plants, compare list of installed plants with list of regional native and adapted plants created by third-party entity "]

{"sheet":"EA","index":10,"n_rows":486,"n_cols":17,"rows_kept":486,"cut":false,"hidden":false,"merged":[[294,1,294,3],[307,1,307,3],[485,3,485,7],[408,3,408,7],[418,3,418,7],[469,3,469,7],[471,3,471,7],[473,3,473,7],[483,3,483,7],[422,3,422,8],[409,3,410,9],[442,3,443,9],[463,1,463,3],[475,1,475,3],[395,3,395,7],[396,3,396,7],[11,3,11,7],[13,3,13,7],[14,3,14,7],[95,3,95,8],[21,3,21,7],[22,3,22,7],[23,3,23,7],[27,3,27,7],[16,3,16,7],[31,3,31,7],[35,3,35,7],[33,3,33,8],[66,3,66,7],[128,3,128,7],[129,3,129,7],[131,3,131,7],[93,3,94,9],[268,3,268,7],[267,2,267,9],[213,3,213,9],[243,3,243,7],[261,3,261,7],[231,3,231,8],[222,3,222,7],[178,2,179,3],[146,3,146,9],[186,2,187,3],[215,3,216,9],[233,3,234,9],[4,1,4,3],[70,1,70,3],[88,1,88,3],[98,1,98,3],[122,1,122,3],[56,3,56,7],[49,3,49,8],[51,3,52,9],[54,3,54,9],[59,3,60,9],[63,3,63,9],[107,3,107,7],[108,3,108,7],[115,3,115,7],[42,3,42,8],[68,3,68,7],[134,1,134,3],[200,1,200,3],[251,1,251,3],[270,1,270,3],[283,1,283,3],[165,3,165,8],[144,3,144,8],[148,3,150,9],[275,2,275,3],[277,2,277,3],[279,2,279,7],[280,2,280,8],[249,3,249,9],[152,3,153,9],[163,3,164,9],[300,3,300,8],[302,3,302,7],[384,1,384,3],[412,1,412,3],[425,1,425,3],[331,1,331,3],[340,1,340,3],[360,1,360,3],[338,3,338,7],[304,3,305,9],[366,3,366,7],[365,3,365,7]]}
[null,"Energy and Atmosphere",null,null,null,null,null,null,null,null,null,"Notes","Verified \n(initials)","Date \nVerified","Verification Details","Verification Measure","QAD \nVerification Notes"]
[]
[null,null,null,null,"Preliminary    Y",{"$f":"IF(Instructions!$J$62=2,IF((F125+F137+F203)>37,37,F125+F137+F203),IF(F101<>0,IF((F101+F137+F203+F254+F273)>38,38,F101+F137+F203+F254+F273),IF((F137+F203+F254+F273+F286+F297+F310+F334+F343+F363+F387+F415+F428+F466+F478)>38,38,F137+F203+F254+F273+F286+F297+F310+F334+F343+F363+F387+F415+F428+F466+F478)))","v":30},"Maybe",{"$f":"IF(Instructions!$J$62=2,IF((H125+H137+H203)>37,37,H125+H137+H203),IF(H101<>0,IF((H101+H137+H203+H254+H273)>38,38,H101+H137+H203+H254+H273),IF((H137+H203+H254+H273+H286+H297+H310+H334+H343+H363+H387+H415+H428+H466+H478)>38,38,H137+H203+H254+H273+H286+H297+H310+H334+H343+H363+H387+H415+H428+H466+H478)))","v":0},"Verified",{"$f":"IF(Instructions!$J$62=2,IF((J125+J137+J203)>37,37,J125+J137+J203),IF(J101<>0,IF((J101+J137+J203+J254+J273)>38,38,J101+J137+J203+J254+J273),IF((J137+J203+J254+J273+J286+J297+J310+J334+J343+J363+J387+J415+J428+J466+J478)>38,38,J137+J203+J254+J273+J286+J297+J310+J334+J343+J363+J387+J415+J428+J466+J478)))","v":30}]
[]
["EAp1",{"$f":"IF(RatingSystem=1,HYPERLINK(\"http://www.usgbc.org/node/2611842\",L5),HYPERLINK(\"http://www.usgbc.org/node/2611843\",L5))","v":"EA Prerequisite Minimum Energy Performance"},null,null,null,null,null,null,null,null,"HM","EA Prerequisite Minimum Energy Performance"]
[null,null,null,null,null,null,null,null,null,null,"HM"]
[null,"Required",null,null,null,"Required",null,null,"Verified","Y","HM",null,"Responsible Party"]
[null,null,null,null,null,null,null,null,null,null,"HM"]
[null,null,null,null,null,null,null,null,null,null,"HM"]
[null,null,"1. ENERGY STAR for Homes version 3",null,null,null,null,null,null,null,"H",{"$f":"C10","v":"1. ENERGY STAR for Homes version 3"}]
[null,null,null,null,null,null,null,null,null,null,"H"]
[null,null,"True","ENERGY STAR version 3 checklists are complete",null,null,null,null,null,null,"H","HERS Documentation attched","JML","2017-11-15",null,"Upload energy model file AND upload ENERGY STAR for Homes pdf report demonstrating that project meets ENERGY STAR for Homes requirements; OR upload builders’ option package to demonstrate compliance with prescriptive ENERGY STAR for Homes requirements. Conduct on-site verification of required ENERGY STAR for Homes inspection and upload ENERGY STAR for Homes inspection checklist."]
[null,null,null,null,null,null,null,null,null,null,"H"]
[null,null,62,"HERS index rating",null,null,null,null,null,null,"H",null,"JML","2017-11-15",null,"Verify HERS index"]
[null,null,70,"ENERGY STAR HERS index target",null,null,null,null,null,null,"H"]
[null,null,null,"OR",null,null,null,null,null,null,"H"]
[null,null,"(Select one)","ENERGY STAR Builder Option Package has been followed and all requirements met.",null,null,null,null,null,null,"H"]
[null,null,null,null,null,null,null,null,null,null,"H"]
[null,null,"2. ENERGY STAR Qualified Appliances",null,null,null,null,null,null,null,"H",{"$f":"C19","v":"2. ENERGY STAR Qualified Appliances"}]
[null,null,null,null,null,null,null,null,null,null,"H"]
[null,null,"Select at least one of the following:",null,null,null,null,null,null,null,"H","Site Verified","JML","2017-11-14",null,"Verify appliance(s) is installed."]
[null,null,"True","ENERGY STAR refrigerator is installed.",null,null,null,null,null,null,"H"]
[null,null,"(Select one)","ENERGY STAR dishwasher is installed.",null,null,null,null,null,null,"H"]
[null,null,"(Select one)","ENERGY STAR clothes washer is installed.",null,null,null,null,null,null,"H"]
[null,null,null,null,null,null,null,null,null,null,"H"]
[null,null,"3. Duct Runs",null,null,null,null,null,null,null,"H",{"$f":"C26","v":"3. Duct Runs"}]
[null,null,null,null,null,null,null,null,null,null,"H"]
[null,null,"True","All duct runs are fully ducted.",null,null,null,null,null,null,"H","Site Verified","JML","2017-11-14",null,"Verify duct runs are fully ducted"]
[null,null,null,null,null,null,null,null,null,null,"H"]
[null,null,"Whole-Building Energy Simulation",null,null,null,null,null,null,null,"M",{"$f":"C30","v":"Whole-Building Energy Simulation"}]
[null,null,null,null,null,null,null,null,null,null,"M"]
[null,null,null,{"$f":"CONCATENATE(\"Target Finder. Enter energy performance rating target\",IF(Instructions!$I$62=1,\" (kBtu/sq ft per year)\",\" (GJ/sq m per year)\"))","v":"Target Finder. Enter energy performance rating target (kBtu/sq ft per year)"},null,null,null,null,null,null,"M"]
[null,null,null,null,null,null,null,null,null,null,"M"]
[null,null,"(Select one)","The project meets the mandatory requirements of ASHRAE 90.1-2010, Sections 5.4, 6.4, 7.4, 8.4, 9.4 and 10.4",null,null,null,null,null,null,"M"]
[null,null,null,null,null,null,null,null,null,null,"M"]
[null,null,null,"Total energy cost savings (%)",null,null,null,null,null,null,"M"]
[null,null,null,null,null,null,null,null,null,null,"M"]
[null,null,"Commissioning",null,null,null,null,null,null,null,"M",{"$f":"C38","v":"Commissioning"}]
[null,null,null,null,null,null,null,null,null,null,"M"]
[null,null,"Option 1. Commissioning using ENERGY STAR Protocols. ",null,null,null,null,null,"V",null,"M",{"$f":"C40","v":"Option 1. Commissioning using ENERGY STAR Protocols. "}]
[null,null,null,null,null,null,null,null,null,null,"M"]
[null,null,null,null,null,null,null,null,null,null,"M"]
[null,null,"(Select one)","The project meets the ENERGY STAR Qualified Multifamily High Rise Buildings Testing and Verification Protocols.",null,null,null,null,null,null,"M"]
[null,null,null,null,null,null,null,null,null,null,"M"]
[null,null,"OR",null,null,null,null,null,null,null,"M"]
[null,null,"Option 2. Commissioning using Prescriptive Path ",null,null,null,null,null,"V",null,"M",{"$f":"C46","v":"Option 2. Commissioning using Prescriptive Path "}]
[null,null,null,null,null,null,null,null,null,null,"M"]
[null,null,null,null,null,null,null,null,null,null,"M"]
[null,null,"1. Reduced Heating and Cooling Distribution System Losses for In-Unit HVAC",null,null,null,null,null,null,null,"M"]
[null,null,"(Select one)","Duct leakage rate does not exceed 4.0 cfm25 per 100 sq ft (1.2 cmm at 25 Pa per 100 sq m) of conditioned floor area.  ",null,null,null,null,null,null,"M",null,null,null,null,"Verify duct leakage test results conducted by a qualified energy rater or USGBC-approved alternative, according to HERS procedures. "]
[null,null,null,null,null,null,null,null,null,null,"M"]
[null,null,"(Select one)","Duct leakage rate in units smaller than 1,200 sq ft (110 sq m) does not exceed 6.0 cfm25 per 100 sq ft (1.7 cmm at 25 Pa per 100 sq m) of conditioned floor area.  ",null,null,null,null,null,null,"M"]
[null,null,null,null,null,null,null,null,null,null,"M"]
[null,null,null,null,null,null,null,null,null,null,"M"]
[null,null,"(Select one)","Total duct leakage rate in-units systems does not exceed 8.0 cfm25 per 100 sq ft (2.4 cmm at 25 Pa per 100 sq m) of conditioned floor area.  ",null,null,null,null,null,null,"M"]
[null,null,null,null,null,null,null,null,null,null,"M"]
[null,null,"(Select one)","The air-handler unit and ductwork are visbly within the unit's envelope.",null,null,null,null,null,null,"M"]
[null,null,null,null,null,null,null,null,null,null,"M"]
[null,null,"2. Fundamental Commissioning of Central HVAC Systems",null,null,null,null,null,null,null,"M"]
[null,null,"(Select one)","The project meets the performance testing and ongoing maintenance requirements of LEED v4 New Construction EA Prerequisite Fundamental Commissioning and Verification for central commercial heating, cooling, water heating and ventilation systems.",null,null,null,null,null,null,"M"]
[null,null,null,null,null,null,null,null,null,null,"M"]
[null,null,null,null,null,null,null,null,null,null,"M"]
[null,null,"3. Construction Document Specifications",null,null,null,null,null,null,null,"M"]
[null,null,"(Select one)","The following details were included in the bid documents: Elements to be sealed, air barrier sheet and compartmentalization sheet.",null,null,null,null,null,null,"M"]
[null,null,null,null,null,null,null,null,null,null,"M"]
[null,null,"4. LEED for Homes Multifamily Midrise Thermal Enclosure Inspection Checklist",null,null,null,null,null,null,null,"M"]
[null,null,"(Select one)","The LEED for Homes Multifamily Midrise Thermal Enclosure Inspection Checklist has been completed.",null,null,null,null,null,null,"M"]
[null,null,null,null,null,null,null,null,null,null,"M"]
[null,null,"(Select one)","The project is a certified Passive House project.",null,null,null,null,null,null,"M"]
[null,null,null,null,null,null,null,null,null,null,"M"]
["EAp2",{"$f":"IF(RatingSystem=1,HYPERLINK(\"http://www.usgbc.org/node/2611852\",L71),HYPERLINK(\"http://www.usgbc.org/node/2611852\",L71))","v":"EA Prerequisite Energy Metering"},null,null,null,null,null,null,null,null,"HM","EA Prerequisite Energy Metering"]
[null,null,null,null,null,null,null,null,null,null,"HM"]
[null,"Required",null,null,null,"Required",null,null,"Verified",{"$f":"IF(OR(J76=\"Y\",J83=\"Y\"),\"Y\",\"N\")","v":"Y"},"HM",null,"Responsible Party"]
[null,null,null,null,null,null,null,null,null,null,"HM"]
[null,null,null,null,null,null,null,null,null,null,"HM"]
[null,null,"Case 1. Single Family ",null,null,null,null,null,"V","Y","HM",{"$f":"C76","v":"Case 1. Single Family "}]
[null,null,null,null,null,null,null,null,null,null,"HM"]
[null,null,null,null,null,null,null,null,null,null,"HM"]
[null,null,"True","A whole-house electric meter is installed.",null,null,null,null,null,null,"HM","Site Verified","JML","2017-07-26",null,"Conduct on-site verification that applicable utility meter is installed."]
[null,null,"True","A whole-house gas meter is installed.",null,null,null,null,null,null,"HM","Site Verified","JML","2017-07-26",null,"Conduct on-site verification that applicable utility meter is installed."]
[null,null,null,null,null,null,null,null,null,null,"HM"]
[null,null,"OR",null,null,null,null,null,null,null,"HM"]
[null,null,"Case 2. Multifamily ",null,null,null,null,null,"V",null,"HM",{"$f":"C83","v":"Case 2. Multifamily "}]
[null,null,null,null,null,null,null,null,null,null,"HM"]
[null,null,null,null,null,null,null,null,null,null,"HM"]
[null,null,"(Select one)","Electric submeters are installed in each residential unit.",null,null,null,null,null,null,"HM",null,null,null,null,"Conduct on-site verification that applicable utility meter is installed."]
[null,null,"(Select one)","A whole-building gas meter or submeter for each residential unit is installed.",null,null,null,null,null,null,"HM",null,null,null,null,"Conduct on-site verification that applicable utility meter is installed."]
[null,null,null,null,null,null,null,null,null,null,"HM"]
["EAp3",{"$f":"IF(RatingSystem=1,HYPERLINK(\"http://www.usgbc.org/node/2611858\",L89),HYPERLINK(\"http://www.usgbc.org/node/2611858\",L89))","v":"EA Prerequisite Education of Homeowner, Tenant, or Building Manager"},null,null,null,null,null,null,null,null,"HM","EA Prerequisite Education of Homeowner, Tenant, or Building Manager"]
[null,null,null,null,null,null,null,null,null,null,"HM"]
[null,"Required",null,null,null,"Required",null,null,"Verified","Y","HM",null,"Responsible Party"]
[null,null,null,null,null,null,null,null,null,null,"HM"]
[null,null,null,null,null,null,null,null,null,null,"HM"]
[null,null,"True","An operations and maintenance manual, binder, or CD has been/will be provided to all individuals or organizations responsible for the maintenance of the home.",null,null,null,null,null,null,"HM",null,"JML","2017-11-14",null,"Verify that operations and maintenance manual includes required elements."]
[null,null,null,null,null,null,null,null,null,null,"HM"]
[null,null,"True","A minimum one-hour walkthrough of the home with the occupants has been conducted.",null,null,null,null,null,null,"HM","Well House Has a full time maintance personal","JML","2017-11-14",null,"Verify that building walkthrough was performed."]
[null,null,null,null,null,null,null,null,null,null,"HM"]
[null,"Performance Path",null,null,null,null,null,null,null,null,"H","Performance Path"]
["EAc1",{"$f":"IF(RatingSystem=1,HYPERLINK(\"http://www.usgbc.org/node/2612022\",L99),HYPERLINK(\"\",L99))","v":"EA Credit Annual Energy Use"},null,null,null,null,null,null,null,null,"H","EA Credit Annual Energy Use"]
[null,null,null,null,null,null,null,null,null,null,"H"]
[null,{"$f":"CONCATENATE(\"Up to\",IF(Instructions!$J$62=1,\" 29\",\" 30\"),\" points\")","v":"Up to 29 points"},null,null,"Preliminary    Y",{"$f":"IF(F105>0,F105,F113)","v":28},"M",{"$f":"IF(H105>0,H105,H113)","v":0},"Verified",{"$f":"IF(J105>0,J105,J113)","v":28},"H",null,"Responsible Party"]
[null,"Exemplary Performance: For Option 1, 100% reduction; For Option 2, -10 HERS index rating.",null,null,null,null,null,null,null,null,"H"]
[null,null,null,null,null,null,null,null,null,null,"H"]
[null,null,null,null,null,null,null,null,null,null,"H"]
[null,null,"Option 1. LEED Energy Budget (1-29 points)",null,"Y",null,"M",null,"V",null,"H",{"$f":"C105","v":"Option 1. LEED Energy Budget (1-29 points)"}]
[null,null,null,null,null,null,null,null,null,null,"H"]
[null,null,null,null,null,null,null,null,null,null,"H"]
[null,null,null,"LEED Energy Budget (MBtu/year)",null,null,null,null,null,null,"H",null,null,null,null,"Verify energy model output demonstrating energy savings from energy model."]
[null,null,null,"Annual energy consumption (MBtu/year)",null,null,null,null,null,null,"H"]
[null,null,{"$f":"IFERROR(1-C109/C108,0)","v":0},"Percent reduction below LEED Energy Budget (%)",null,null,null,null,null,null,"H"]
[null,null,null,null,null,null,null,null,null,null,"H"]
[null,null,"OR",null,null,null,null,null,null,null,"H"]
[null,null,"Option 2. HERS Index with Home Size Adjuster (0.5-29 points)",null,"Y",28,"M",null,"V",28,"H",{"$f":"C113","v":"Option 2. HERS Index with Home Size Adjuster (0.5-29 points)"}]
[null,null,null,null,null,null,null,null,null,null,"H"]
[null,null,null,null,null,null,null,null,null,null,"H"]
[null,null,{"$f":"C14","v":62},"HERS index rating",null,null,null,null,null,null,"H","See Attached HERS Certificate","JML","2017-11-15",null,"Verify building area for each building"]
[null,null,4,"Number of bedrooms",null,null,null,null,null,null,"H","See Attached building file report","JML","2017-11-15",null,"Verify number of bedrooms."]
[null,null,1055,{"$f":"CONCATENATE(\"Conditioned floor area of the house\",IF(Instructions!$I$62=1,\" (sq ft)\",\" (sq m)\"))","v":"Conditioned floor area of the house (sq ft)"},null,null,null,null,null,null,"H",null,"JML","2017-11-15",null,"Verify home size adjustment calculation (including ensuring that only appropriate rooms are counted as bedrooms), or perform home size adjustment calculation for each building"]
[null,null,{"$f":"IF(C117=0,\"\",IF(Instructions!$I$62=1,IF(C117>1,1000+((C117-1)*600),1000),IF(C117>1,(1000+((C117-1)*600))*0.0927,93)))","v":2800},{"$f":"CONCATENATE(\"ENERGY STAR for Homes, version 3, reference home floor area\",IF(Instructions!$I$62=1,\" (sq ft)\",\" (sq m)\"))","v":"ENERGY STAR for Homes, version 3, reference home floor area (sq ft)"},null,null,null,null,null,null,"H"]
[null,null,{"$f":"IFERROR(1-(C118/C119),0)","v":0.62321428571428572},"Home size adjustment",null,null,null,null,null,null,"H"]
[null,null,{"$f":"IFERROR(ROUNDDOWN(((C119-C118)/C119*100)/4,0),0)","v":15},"Point adjustment",null,null,null,null,null,null,"H"]
[null,null,null,null,null,null,null,null,null,null,"H"]
["EAc1_M",{"$f":"IF(RatingSystem=1,HYPERLINK(\"\",L123),HYPERLINK(\"http://www.usgbc.org/node/2612392\",L123))","v":"EA Credit Annual Energy Use"},null,null,null,null,null,null,null,null,"M","EA Credit Annual Energy Use"]
[null,null,null,null,null,null,null,null,null,null,"M"]
[null,"Up to 30 points",null,null,"Preliminary    Y",0,"M",0,"V",0,"M",null,"Responsible Party"]
[null,"Exemplary Performance: 65% or better reduction from ASHRAE 90.1-2010.",null,null,null,null,null,null,null,null,"M"]
[null,null,null,null,null,null,null,null,null,null,"M"]
[null,null,null,null,null,null,null,null,null,null,"M"]
[null,null,null,"Percent reduction from ASHRAE 90.1-2010",null,null,null,null,null,null,"M",null,null,null,null,"Verify home size adjustment calculation (including ensuring that only appropriate rooms are counted as bedrooms), or perform home size adjustment calculation for each building"]
[null,null,null,"Points earned",null,null,null,null,null,null,"M","M","M","M","M","M","M"]
[null,null,null,"Average home size point adjustment (from the Multifamily HSA tab or from the Batch - Multifamily tab)",null,null,null,null,null,null,"M"]
[null,null,{"$f":"C130+C131","v":0},"Final points earned",null,null,null,null,null,null,"M"]
[null,null,null,null,null,null,null,null,null,null,"M"]
[null,"Performance and Prescriptive Paths",null,null,null,null,null,null,null,null,"H","Performance and Prescriptive Paths"]
["EAc2",{"$f":"IF(RatingSystem=1,HYPERLINK(\"http://www.usgbc.org/node/2611817\",L135),HYPERLINK(\"http://www.usgbc.org/node/2611817\",L135))","v":"EA Credit Efficient Hot Water Distribution System"},null,null,null,null,null,null,null,null,"HM","EA Credit Efficient Hot Water Distribution System"]
[null,null,null,null,null,null,null,null,null,null,"HM"]
[null,"Up to 5 points",null,null,"Preliminary    Y",{"$f":"IF(F140>0,F140+F196,F175+F196)","v":2},"M",{"$f":"IF(H140>0,H140+H196,H175+H196)","v":0},"Verified",{"$f":"IF(J140>0,J140+J196,J175+J196)","v":2},"HM",null,"Responsible Party"]
[null,null,null,null,null,null,null,null,null,null,"HM"]
[null,null,null,null,null,null,null,null,null,null,"HM"]
[null,null,"Option 1. Efficient Hot Water Distribution (2 points)",null,"Y",{"$f":"IF(F159>0,F159,F169)","v":0},"M",{"$f":"IF(H159>0,H159,H169)","v":0},"V",{"$f":"IF(J159>0,J159,J169)","v":0},"HM",{"$f":"C140","v":"Option 1. Efficient Hot Water Distribution (2 points)"}]
[null,null,null,null,null,null,null,null,null,null,"HM"]
[null,null,null,null,null,null,null,null,null,null,"HM"]
[null,null,"Note: Projects using heat traces that serve a single unit or house are awarded only half credit.",null,null,null,null,null,null,null,"HM"]
[null,null,"For projects using circulating systems",null,null,null,null,null,null,null,"HM",{"$f":"C144","v":"For projects using circulating systems"}]
[null,null,"(Select one)","Circulating pump does not operate continuously, is on a timer, or is on a water temperature sensor.",null,null,null,null,null,null,"HM",null,null,null,null,"Verify circulating pump does not operate continuously, on a timer, or on a water temperature sensor."]
[null,null,null,null,null,null,null,null,null,null,"HM"]
[null,null,"(Select one)","Circulating pump is demand activated by a momentary contact switch, motion sensor, flow switch, door switch or voice command.",null,null,null,null,null,null,"HM",null,null,null,null,"Verify circulating pump is demand activated by a momentary contact switch, motion sensor, flow switch, door switch or voice command."]
[null,null,null,null,null,null,null,null,null,null,"HM"]
[null,null,"(Select one)","After the pump starts, the controls allow the pump to operate until the water temperature in the return pipe rises not more than 10ºF (6 ºC) above the initial temperature of the water in the pipe.  Controls limit the water temperature to a maximum of 105ºF (40 ºC). Controls limit pump operation to not more than 5 minutes per activation in the event that both means of shutting off the pump have failed.",null,null,null,null,null,null,"HM"]
[null,null,null,null,null,null,null,null,null,null,"HM"]
[null,null,null,null,null,null,null,null,null,null,"HM"]
[null,null,null,null,null,null,null,null,null,null,"HM"]
[null,null,"(Select one)","Circulating hot water systems have with an automatic or readily accessible manual switch to turn off the hot water circulating pump when not in use. ",null,null,null,null,null,null,"HM"]
[null,null,null,null,null,null,null,null,null,null,"HM"]
[null,null,null,null,null,null,null,null,null,null,"HM"]
[null,null,"For projects using heat-traced piping systems",null,null,null,null,null,null,null,"HM",{"$f":"C156","v":"For projects using heat-traced piping systems"}]
[null,null,"(Select one)","Piping is insulated.",null,null,null,null,null,null,"HM",null,null,null,null,"If system uses heat traced piping, verify piping is insulated."]
[null,null,null,null,null,null,null,null,null,null,"HM"]
[null,null,"Path 1. Maximum Allowable Pipe Length (2 points)",null,"Y",null,"M",null,"V",null,"HM",{"$f":"C159","v":"Path 1. Maximum Allowable Pipe Length (2 points)"}]
[null,null,null,null,null,null,null,null,null,null,"HM"]
[null,null,null,null,null,null,null,null,null,null,"HM"]
[null,null,null,{"$f":"CONCATENATE(\"Pipe or tube length installed\",IF(Instructions!$I$62=1,\" (ft)\",\" (m)\"))","v":"Pipe or tube length installed (ft)"},null,null,null,null,null,null,"HM",null,null,null,null,"Conduct on-site verification that installed hot water distribution system meets requirements for plumbing run lengths and diameter."]
[null,null,null,{"$f":"CONCATENATE(\"Nominal pipe size\",IF(Instructions!$I$62=1,\" (in)\",\" (mm)\"))","v":"Nominal pipe size (in)"},null,null,null,null,null,null,"HM"]
[null,null,{"$f":"IFERROR(IF(Instructions!$I$62=1,LOOKUP(C163,Instructions!$I$66:$I$76,Instructions!$J$66:$J$76),LOOKUP(C163,Instructions!$I$78:$I$88,Instructions!$J$78:$J$88)),\"\")","v":""},{"$f":"CONCATENATE(\"Maximum pipe or tube length allowed for water heaters, boilers with no circulation loop or heat traced pipe or in multifamily buildings a central circulation loop or heat traced pipe\",IF(Instructions!$I$62=1,\" (ft)\",\" (m)\"))","v":"Maximum pipe or tube length allowed for water heaters, boilers with no circulation loop or heat traced pipe or in multifamily buildings a central circulation loop or heat traced pipe (ft)"},null,null,null,null,null,null,"HM"]
[null,null,null,null,null,null,null,null,null,null,"HM"]
[null,null,{"$f":"IFERROR(IF(Instructions!$I$62=1,LOOKUP(C163,Instructions!$I$66:$I$76,Instructions!$K$66:K$76),LOOKUP(C163,Instructions!$I$78:$I$88,Instructions!$K$78:$K$88)),\"\")","v":""},{"$f":"CONCATENATE(\"Maximum pipe or tube length allowed for circulation loop or heat traced pipe serving a single unit or house\",IF(Instructions!$I$62=1,\" (ft)\",\" (m)\"))","v":"Maximum pipe or tube length allowed for circulation loop or heat traced pipe serving a single unit or house (ft)"},null,null,null,null,null,null,"HM"]
[null,null,null,null,null,null,null,null,null,null,"HM"]
[null,null,"OR",null,null,null,null,null,null,null,"HM"]
[null,null,"Path 2. Maximum Allowable Pipe Volume (2 points)",null,"Y",null,"M",null,"V",null,"HM",{"$f":"C169","v":"Path 2. Maximum Allowable Pipe Volume (2 points)"}]
[null,null,null,null,null,null,null,null,null,null,"HM"]
[null,null,null,null,null,null,null,null,null,null,"HM"]
[null,null,null,{"$f":"CONCATENATE(\"Volume of hot or tempered water from source to termination\",IF(Instructions!$I$62=1,\" (oz)\",\" (L)\"))","v":"Volume of hot or tempered water from source to termination (oz)"},null,null,null,null,null,null,"HM",null,null,null,null,"Conduct on-site verification that installed hot water distribution system meets requirements for plumbing run lengths and diameter."]
[null,null,null,null,null,null,null,null,null,null,"HM"]
[null,null,"OR",null,null,null,null,null,null,null,"HM"]
[null,null,"Option 2. Performance Test (3 points)",null,"Y",{"$f":"IF(F179>0,F179,F187)","v":0},"M",{"$f":"IF(H179>0,H179,H187)","v":0},"V",{"$f":"IF(J179>0,J179,J187)","v":0},"HM",{"$f":"C175","v":"Option 2. Performance Test (3 points)"}]
[null,null,null,null,null,null,null,null,null,null,"HM"]
[null,null,null,null,null,null,null,null,null,null,"HM"]
[null,null,"Note: Projects using heat traces that serve a single unit or house are awarded only half credit.",null,null,null,null,null,null,null,"HM"]
[null,null,"Case 1. Hot water source is a water heater or boiler with no circulation loop or heat traced pipe; or in multifamily buildings a central circulation loop or heat traced pipe.",null,"Y",null,"M",null,"V",null,"HM",{"$f":"C179","v":"Case 1. Hot water source is a water heater or boiler with no circulation loop or heat traced pipe; or in multifamily buildings a central circulation loop or heat traced pipe."}]
[]
[null,null,null,null,null,null,null,null,null,null,"HM"]
[null,null,"(Select one)","Meets WaterSense Labeled New Homes requirements",null,null,null,null,null,null,"HM",null,null,null,null,"Verify project meets WaterSense Labeled New Homes requirements"]
[null,null,null,null,null,null,null,null,null,null,"HM"]
[null,null,null,{"$f":"CONCATENATE(\"Tested volume of water stored in piping\",IF(Instructions!$I$62=1,\" (gal)\",\" (L)\"))","v":"Tested volume of water stored in piping (gal)"},null,null,null,null,null,null,"HM",null,null,null,null,"Conduct test to determine volume of water in hot water plumbing runs."]
[null,null,null,null,null,null,null,null,null,null,"HM"]
[null,null,"OR",null,null,null,null,null,null,null,"HM"]
[null,null,"Case 2. Hot water source is a circulation loop or heat traced pipe serving a single unit or house",null,"Y",null,"M",null,"V",null,"HM",{"$f":"C187","v":"Case 2. Hot water source is a circulation loop or heat traced pipe serving a single unit or house"}]
[]
[null,null,null,null,null,null,null,null,null,null,"HM"]
[null,null,null,{"$f":"CONCATENATE(\"Tested volume of water stored in piping\",IF(Instructions!$I$62=1,\" (gal)\",\" (L)\"))","v":"Tested volume of water stored in piping (gal)"},null,null,null,null,null,null,"HM",null,null,null,null,"Conduct test to determine volume of water in hot water plumbing runs."]
[null,null,null,null,null,null,null,null,null,null,"HM"]
[null,null,"For projects using heat-traced piping systems",null,null,null,null,null,null,null,"HM",{"$f":"C192","v":"For projects using heat-traced piping systems"}]
[null,null,"(Select one)","Piping is insulated.",null,null,null,null,null,null,"HM",null,null,null,null,"If system uses heat traced piping, verify piping is insulated."]
[null,null,null,null,null,null,null,null,null,null,"HM"]
[null,null,"OR",null,null,null,null,null,null,null,"HM"]
[null,null,"Option 3. Pipe Insulation (2 points)",null,"Y",2,"M",null,"V",2,"HM",{"$f":"C196","v":"Option 3. Pipe Insulation (2 points)"}]
[null,null,null,null,null,null,null,null,null,null,"HM"]
[null,null,null,null,null,null,null,null,null,null,"HM"]
[null,null,"R4","Insulation R-value",null,null,null,null,null,null,"HM","Site Verified","JML","2017-07-26",null,"Conduct on-site verification that installed hot water distribution system meets requirements for pipe insulation."]
[null,null,null,null,null,null,null,null,null,null,"HM"]
["EAc3",{"$f":"IF(RatingSystem=1,HYPERLINK(\"http://www.usgbc.org/node/2612056\",L201),HYPERLINK(\"http://www.usgbc.org/node/2612056\",L201))","v":"EA Credit Advanced Utility Tracking"},null,null,null,null,null,null,null,null,"HM","EA Credit Advanced Utility Tracking"]
[null,null,null,null,null,null,null,null,null,null,"HM"]
[null,"Up to 2 points",null,null,"Preliminary    Y",{"$f":"IF(F207>0,F207,F225)","v":0},"M",{"$f":"IF(H207>0,H207,H225)","v":0},"Verified",{"$f":"IF(J207>0,J207,J225)","v":0},"HM",null,"Responsible Party"]
[null,"Exemplary Performance: Meter separate energy usage information for at least four end uses.",null,null,null,null,null,null,null,null,"HM"]
[null,null,null,null,null,null,null,null,null,null,"HM"]
[null,null,null,null,null,null,null,null,null,null,"HM"]
[null,null,"Case 1. Single Family ",null,"Y",{"$f":"SUM(F210,F220)","v":0},"M",{"$f":"SUM(H210,H220)","v":0},"V",{"$f":"SUM(J210,J220)","v":0},"HM",{"$f":"C207","v":"Case 1. Single Family "}]
[null,null,null,null,null,null,null,null,null,null,"HM"]
[null,null,null,null,null,null,null,null,null,null,"HM"]
[null,null,"Option 1. Electric and Water (1 point)",null,"Y",null,"M",null,"V",null,"HM",{"$f":"C210","v":"Option 1. Electric and Water (1 point)"}]
[null,null,null,null,null,null,null,null,null,null,"HM"]
[null,null,null,null,null,null,null,null,null,null,"HM"]
[null,null,"Select one of the following:",null,null,null,null,null,null,null,"HM"]
[null,null,"(Select one)","A permanent energy-monitoring system that records at intervals of one hour or less has been installed.  ",null,null,null,null,null,null,"HM",null,null,null,null,"Conduct on-site verification that irrigation meter or energy monitoring system that meets credit requirements is installed."]
[null,null,null,null,null,null,null,null,null,null,"HM"]
[null,null,"(Select one)","The house has an automatic in-ground irrigation system and landscaped irrigated area larger than 1,000 sq ft (93 sq m) and has installed a submeter to monitor all irrigation system components.",null,null,null,null,null,null,"HM"]
[null,null,null,null,null,null,null,null,null,null,"HM"]
[null,null,null,null,null,null,null,null,null,null,"HM"]
[null,null,"AND/OR",null,null,null,null,null,null,null,"HM"]
[null,null,"Option 2. Third-Party Utility Reporting (1 point)",null,"Y",0,"M",null,"V",null,"HM",{"$f":"C220","v":"Option 2. Third-Party Utility Reporting (1 point)"}]
[null,null,null,null,null,null,null,null,null,null,"HM"]
[null,null,null,null,null,null,null,null,null,null,"HM"]
[null,null,"(Select one)","The homeowner has shared all applicable utility data with USGBC via a USGBC-approved third-party.",null,null,null,null,null,null,"HM"]
[null,null,null,null,null,null,null,null,null,null,"HM"]
[null,null,"Case 2. Multifamily ",null,"Y",{"$f":"SUM(F228,F238)","v":0},"M",{"$f":"SUM(H228,H238)","v":0},"V",{"$f":"SUM(J228,J238)","v":0},"HM",{"$f":"C225","v":"Case 2. Multifamily "}]
[null,null,null,null,null,null,null,null,null,null,"HM"]
[null,null,null,null,null,null,null,null,null,null,"HM"]
[null,null,"Option 1. Electric and Water (1 point)",null,"Y",null,"M",null,"V",null,"HM",{"$f":"C228","v":"Option 1. Electric and Water (1 point)"}]
[null,null,null,null,null,null,null,null,null,null,"HM"]
[null,null,null,null,null,null,null,null,null,null,"HM"]
[null,null,"Select one of the following:",null,null,null,null,null,null,null,"HM"]
[null,null,"(Select one)","A permanent energy-monitoring system that records at intervals of one hour or less has been installed in each unit.",null,null,null,null,null,null,"HM"]
[null,null,null,null,null,null,null,null,null,null,"HM"]
[null,null,"(Select one)","The project has an automatic in-ground irrigation system and landscaped irrigated area larger than 1,000 sq ft (93 sq m) and has installed a submeter to monitor all irrigation system components.",null,null,null,null,null,null,"HM"]
[null,null,null,null,null,null,null,null,null,null,"HM"]
[null,null,null,null,null,null,null,null,null,null,"HM"]
[null,null,"AND/OR",null,null,null,null,null,null,null,"HM"]
[null,null,"Option 2. Third-Party Utility Reporting (1 point)",null,"Y",{"$f":"IF(F241>0,F241,F247)","v":0},"M",{"$f":"IF(H241>0,H241,H247)","v":0},"V",{"$f":"IF(J241>0,J241,J247)","v":0},"HM",{"$f":"C238","v":"Option 2. Third-Party Utility Reporting (1 point)"}]
[null,null,null,null,null,null,null,null,null,null,"HM"]
[null,null,null,null,null,null,null,null,null,null,"HM"]
[null,null,"Path 1. Whole-Building Master Meter",null,"Y",null,"M",null,"V",null,"HM",{"$f":"C241","v":"Path 1. Whole-Building Master Meter"}]
[null,null,null,null,null,null,null,null,null,null,"HM"]
[null,null,null,null,null,null,null,null,null,null,"HM"]
[null,null,"(Select one)","The building owner has shared all applicable utility data with USGBC via a USGBC-approved third-party.",null,null,null,null,null,null,"HM"]
[null,null,null,null,null,null,null,null,null,null,"HM"]
[null,null,"OR",null,null,null,null,null,null,null,"HM"]
[null,null,"Path 2. Individual Unit Meters",null,"Y",null,"M",null,"V",null,"HM",{"$f":"C247","v":"Path 2. Individual Unit Meters"}]
[null,null,null,null,null,null,null,null,null,null,"HM"]
[null,null,null,null,null,null,null,null,null,null,"HM"]
[null,null,"(Select one)","At least 50% of unit owners or occupants have shared all applicable utility data with USGBC via a USGBC-approved third-party.",null,null,null,null,null,null,"HM"]
[null,null,null,null,null,null,null,null,null,null,"HM"]
["EAc4",{"$f":"IF(RatingSystem=1,HYPERLINK(\"http://www.usgbc.org/node/2612023\",L252),HYPERLINK(\"\",L252))","v":"EA Credit Active Solar-Ready Design"},null,null,null,null,null,null,null,null,"H","EA Credit Active Solar-Ready Design"]
[null,null,null,null,null,null,null,null,null,null,"H"]
[null,"1 point",null,null,"Preliminary    Y",{"$f":"SUM(F258,F265)","v":0},"M",{"$f":"SUM(H258,H265)","v":0},"Verified",{"$f":"SUM(J258,J265)","v":0},"H",null,"Responsible Party"]
[null,"Exemplary Performance: Achieve Option 1 and Option 2.",null,null,null,null,null,null,null,null,"H"]
[null,null,null,null,null,null,null,null,null,null,"H"]
[null,null,null,null,null,null,null,null,null,null,"H"]
[null,null,"Option 1. Photovoltaic-Ready Design (1 point)",null,"Y",null,"M",null,"V",null,"H",{"$f":"C258","v":"Option 1. Photovoltaic-Ready Design (1 point)"}]
[null,null,null,null,null,null,null,null,null,null,"H"]
[null,null,null,null,null,null,null,null,null,null,"H"]
[null,null,"Note: Projects that install a photovoltaic (PV) system that meets the requirements of EA Credit Renewable Energy are not eligible for this credit.",null,null,null,null,null,null,null,"H"]
[null,null,"(Select one)","The house meets EPA's solar photovoltaic specifications for a renewable energy-ready home.",null,null,null,null,null,null,"H",null,null,null,null,"Conduct on-site verification that all EPA solar-ready specifications are met."]
[null,null,null,null,null,null,null,null,null,null,"H"]
[null,null,"AND/OR",null,null,null,null,null,null,null,"H"]
[null,null,"Option 2. Solar Direct Hot Water-Ready Design (1 point)",null,"Y",null,"M",null,"V",null,"H",{"$f":"C265","v":"Option 2. Solar Direct Hot Water-Ready Design (1 point)"}]
[null,null,null,null,null,null,null,null,null,null,"H"]
[null,null,null,null,null,null,null,null,null,null,"H"]
[null,null,"Note: Projects that install a solar direct hot water (DHW) system that meets the requirements of EA Credit Efficient Domestic Hot Water Equipment are not eligible for this credit. ",null,null,null,null,null,null,null,"H"]
[null,null,"(Select one)","Meets EPA's solar water heating specifications for a renewable energy-ready home.",null,null,null,null,null,null,"H",null,null,null,null,"Conduct on-site verification that all EPA solar-ready specifications are met."]
[null,null,null,null,null,null,null,null,null,null,"H"]
["EAc5",{"$f":"IF(RatingSystem=1,HYPERLINK(\"http://www.usgbc.org/node/2612032\",L271),HYPERLINK(\"\",L271))","v":"EA Credit HVAC Start-Up Credentialing"},null,null,null,null,null,null,null,null,"H","EA Credit HVAC Start-Up Credentialing"]
[null,null,null,null,null,null,null,null,null,null,"H"]
[null,"1 point",null,null,"Preliminary    Y",0,"M",0,"Verified",0,"H",null,"Responsible Party"]
[null,null,null,null,null,null,null,null,null,null,"H"]
[null,null,null,null,null,null,null,null,null,null,"H"]
[null,null,null,null,"Name of technician",null,null,null,null,null,"H","R & R ",null,null,null,"Verify that contractor who performed start-up work and completed installation checklists meets credit requirements. "]
[null,null,null,null,null,null,null,null,null,null,"H"]
[null,null,null,null,"Company of technician",null,null,null,null,null,"H"]
[null,null,null,null,null,null,null,null,null,null,"H"]
[null,null,"Technician commissioning all heating, cooling, and ventilation systems has the following credential",null,null,null,null,null,null,null,"H"]
[null,null,null,null,null,null,null,null,null,null,"H"]
[null,null,null,null,null,null,null,null,null,null,"H"]
[null,"Prescriptive Path",null,null,null,null,null,null,null,null,"H","Performance and Prescriptive Paths"]
["EAp4",{"$f":"IF(RatingSystem=1,HYPERLINK(\"http://www.usgbc.org/node/2611862\",L284),HYPERLINK(\"\",L284))","v":"EA Prerequisite Home Size"},null,null,null,null,null,null,null,null,"H","EA Prerequisite Home Size"]
[null,null,null,null,null,null,null,null,null,null,"H"]
[null,"Required",null,null,"Bonus Points     Y",null,"M",0,"V",0,"H",null,"Responsible Party"]
[null,null,null,null,null,null,null,null,null,null,"H"]
[null,null,null,null,null,null,null,null,null,null,"H"]
[null,null,null,"Number of bedrooms",null,null,null,null,null,null,"H",null,null,null,null,"Verify home size adjustment calculation (including ensuring that only appropriate rooms are counted as bedrooms), or perform home size adjustment calculation for each building."]
[null,null,null,{"$f":"CONCATENATE(\"Conditioned floor area of the house\",IF(Instructions!$I$62=1,\" (sq ft)\",\" (sq m)\"))","v":"Conditioned floor area of the house (sq ft)"},null,null,null,null,null,null,"H",null,null,null,null,"Verify building area for each building."]
[null,null,{"$f":"IF(C289=0,\"\",IF(Instructions!$I$62=1,IF(C289>1,1000+((C289-1)*600),1000),IF(C289>1,(1000+((C289-1)*600))*0.0927,93)))","v":""},{"$f":"CONCATENATE(\"ENERGY STAR for Homes, version 3, reference home floor area\",IF(Instructions!$I$62=1,\" (sq ft)\",\" (sq m)\"))","v":"ENERGY STAR for Homes, version 3, reference home floor area (sq ft)"},null,null,null,null,null,null,"H"]
[null,null,{"$f":"IFERROR(1-(C290/C291),0)","v":0},"Home size adjustment",null,null,null,null,null,null,"H"]
[null,null,{"$f":"IFERROR(ROUNDDOWN(((C291-C290)/C291*100)/4,0),0)","v":0},"Point adjustment",null,null,null,null,null,null,"H"]
[null,null,null,null,null,null,null,null,null,null,"H"]
["EAc6",{"$f":"IF(RatingSystem=1,HYPERLINK(\"http://www.usgbc.org/node/2612068\",L295),HYPERLINK(\"\",L295))","v":"EA Credit Building Orientation for Passive Solar"},null,null,null,null,null,null,null,null,"H","EA Credit Building Orientation for Passive Solar"]
[null,null,null,null,null,null,null,null,null,null,"H"]
[null,"3 points",null,null,"Preliminary    Y",0,"M",0,"Verified",0,"H",null,"Responsible Party"]
[null,null,null,null,null,null,null,null,null,null,"H"]
[null,null,null,null,null,null,null,null,null,null,"H"]
[null,null,"Confirm all of the following have been implemented on the project:",null,null,null,null,null,null,null,"H"]
[null,null,"(Select one)","The south-facing glazing area is at least 50% greater than the sum of the glazing area on the east- and west-facing walls.",null,null,null,null,null,null,"H",null,null,null,null,"Verify calculations or simulations for glazing area, south-facing roof area, building orientation, and seasonal shading and verify installed elements used to satisfy credit requirements (e.g., window area, overhangs, awnings).\n"]
[null,null,null,null,null,null,null,null,null,null,"H"]
[null,null,"(Select one)","The east-west axis of the building is within 15 degrees of due east-west. ",null,null,null,null,null,null,"H"]
[null,null,null,null,null,null,null,null,null,null,"H"]
[null,null,"(Select one)","At least 90% of the south-facing glazing is completely shaded at solar noon on the summer solstice and unshaded at noon on the winter solstice.",null,null,null,null,null,null,"H"]
[null,null,null,null,null,null,null,null,null,null,"H"]
[null,null,null,null,null,null,null,null,null,null,"H"]
["EAc7",{"$f":"IF(RatingSystem=1,HYPERLINK(\"http://www.usgbc.org/node/2612077\",L308),HYPERLINK(\"\",L308))","v":"EA Credit Air Infiltration"},null,null,null,null,null,null,null,null,"H","EA Credit Air Infiltration"]
[null,null,null,null,null,null,null,null,null,null,"H"]
[null,"Up to 2 points",null,null,"Preliminary    Y",{"$f":"IF(F313>0,F313,F323)","v":0},"M",{"$f":"IF(H313>0,H313,H323)","v":0},"Verified",{"$f":"IF(J313>0,J313,J323)","v":0},"H",null,"Responsible Party"]
[null,null,null,null,null,null,null,null,null,null,"H"]
[null,null,null,null,null,null,null,null,null,null,"H"]
[null,null,"Case 1. Single Family ",null,"Y",null,"M",0,"V",null,"H",{"$f":"C313","v":"Case 1. Single Family "}]
[null,null,null,null,null,null,null,null,null,null,"H"]
[null,null,null,null,null,null,null,null,null,null,"H"]
[null,null,2.75,"Air leakage of the project (ACH50)",null,null,null,null,null,null,"H",null,null,null,null,"Conduct on-site testing of air infiltration using a blower door, OR Verify envelope leakage test results conducted by a qualified energy rater or USGBC-approved alternative, according to HERS procedures."]
[null,null,null,"OR",null,null,null,null,null,null,"H"]
[null,null,null,{"$f":"CONCATENATE(\"Envelope area\",IF(Instructions!$I$62=1,\" (sq ft)\",\" (sq m)\"))","v":"Envelope area (sq ft)"},null,null,null,null,null,null,"H"]
[null,null,null,{"$f":"CONCATENATE(\"Air leakage\",IF(Instructions!$I$62=1,\" (cfm50)\",\" (cmm50)\"))","v":"Air leakage (cfm50)"},null,null,null,null,null,null,"H"]
[null,null,{"$f":"IFERROR(C319/C318,0)","v":0},{"$f":"CONCATENATE(\"Air leakage per area\",IF(Instructions!$I$62=1,\" (cfm50/sq ft)\",\" (cmm50/sq m)\"))","v":"Air leakage per area (cfm50/sq ft)"},null,null,null,null,null,null,"H"]
[null,null,null,null,null,null,null,null,null,null,"H"]
[null,null,"OR",null,null,null,null,null,null,null,"H"]
[null,null,"Case 2.  Multifamily",null,"Y",null,"M",null,"V",null,"H",{"$f":"C323","v":"Case 2.  Multifamily"}]
[null,null,null,null,null,null,null,null,null,null,"H"]
[null,null,null,null,null,null,null,null,null,null,"H"]
[null,null,null,"Air leakage per dwelling unit or whole building (ACH50)",null,null,null,null,null,null,"H",null,null,null,null,"Conduct on-site testing of air infiltration using a blower door, OR Verify envelope leakage test results conducted by a qualified energy rater or USGBC-approved alternative, according to HERS procedures."]
[null,null,null,"OR",null,null,null,null,null,null,"H"]
[null,null,null,{"$f":"CONCATENATE(\"Envelope area\",IF(Instructions!$I$62=1,\" (sq ft)\",\" (sq m)\"))","v":"Envelope area (sq ft)"},null,null,null,null,null,null,"H"]
[null,null,null,{"$f":"CONCATENATE(\"Air leakage per dwelling unit or whole building\",IF(Instructions!$I$62=1,\" (cfm50)\",\" (cmm50)\"))","v":"Air leakage per dwelling unit or whole building (cfm50)"},null,null,null,null,null,null,"H"]
[null,null,{"$f":"IFERROR(C329/C328,0)","v":0},{"$f":"CONCATENATE(\"Air leakage per area\",IF(Instructions!$I$62=1,\" (cfm50/sq ft)\",\" (cmm50/sq m)\"))","v":"Air leakage per area (cfm50/sq ft)"},null,null,null,null,null,null,"H"]
[null,null,null,null,null,null,null,null,null,null,"H"]
["EAc8",{"$f":"IF(RatingSystem=1,HYPERLINK(\"http://www.usgbc.org/node/2612090\",L332),HYPERLINK(\"\",L332))","v":"EA Credit Envelope Insulation"},null,null,null,null,null,null,null,null,"H","EA Credit Envelope Insulation"]
[null,null,null,null,null,null,null,null,null,null,"H"]
[null,"Up to 2 points",null,null,"Preliminary    Y",0,"M",0,"Verified",0,"H",null,"Responsible Party"]
[null,null,null,null,null,null,null,null,null,null,"H"]
[null,null,null,null,null,null,null,null,null,null,"H"]
[null,null,10,"Percentage improvement over IECC 2012 (%)",null,null,null,null,null,null,"H",null,null,null,null,"Verify that listed insulation levels exceed R-value requirements of IECC 2012, using either prescriptive list or calculation (REScheck)."]
[null,null,null,null,null,null,null,null,null,null,"H"]
[null,null,"True","Insulation is installed to meet the Grade I specifications set by the RESNET Home Energy Rating Standard.",null,null,null,null,null,null,"H",null,null,null,null,"Conduct on-site verification that insulation is installed to HERS Grade I specifications and conduct on-site verification that installed insulation meets or exceeds R-value requirements in IECC 2012."]
[null,null,null,null,null,null,null,null,null,null,"H"]
["EAc9",{"$f":"IF(RatingSystem=1,HYPERLINK(\"http://www.usgbc.org/node/2612104\",L341),HYPERLINK(\"\",L341))","v":"EA Credit Windows"},null,null,null,null,null,null,null,null,"H","EA Credit Windows"]
[null,null,null,null,null,null,null,null,null,null,"H"]
[null,"Up to 3 points",null,null,"Preliminary    Y",0,"M",0,"Verified",0,"H",null,"Responsible Party"]
[null,null,null,null,null,null,null,null,null,null,"H"]
[null,null,null,null,null,null,null,null,null,null,"H"]
[null,null,null,{"$f":"CONCATENATE(\"Glazing area\",IF(Instructions!$I$62=1,\" (sq ft)\",\" (sq m)\"))","v":"Glazing area (sq ft)"},null,null,null,null,null,null,"H",null,null,null,null,"Verify calculation of window-to-floor area ratio."]
[null,null,null,"Window-to-floor area (WFA) ratio",null,null,null,null,null,null,"H"]
[null,null,null,null,null,null,null,null,null,null,"H"]
[null,null,"Windows",null,null,null,null,null,null,null,"H",{"$f":"C349","v":"Windows"}]
[null,null,0.22,"U-factor",null,null,null,null,null,null,"H",null,null,null,null,"Conduct on-site verification to confirm that installed windows meet required U-value and SHGC specifications."]
[null,null,null,"SHGC",null,null,null,null,null,null,"H"]
[null,null,null,null,null,null,null,null,null,null,"H"]
[null,null,"Skylights",null,null,null,null,null,null,null,"H",{"$f":"C353","v":"Skylights"}]
[null,null,null,"U-factor",null,null,null,null,null,null,"H",null,null,null,null,"Conduct on-site verification to confirm that installed skylights meet required U-value and SHGC specifications."]
[null,null,null,"SHGC",null,null,null,null,null,null,"H"]
[null,null,null,null,null,null,null,null,null,null,"H"]
[null,null,"Doors",null,null,null,null,null,null,null,"H",{"$f":"C357","v":"Doors"}]
[null,null,0.21,"U-factor",null,null,null,null,null,null,"H",null,null,null,null,"Conduct on-site verification to confirm that installed doors meet required U-value and SHGC specifications."]
[null,null,null,"SHGC",null,null,null,null,null,null,"H"]
[null,null,null,null,null,null,null,null,null,null,"H"]
["EAc10",{"$f":"IF(RatingSystem=1,HYPERLINK(\"http://www.usgbc.org/node/2612109\",L361),HYPERLINK(\"\",L361))","v":"EA Credit Space Heating and Cooling Equipment"},null,null,null,null,null,null,null,null,"H","EA Credit Space Heating and Cooling Equipment"]
[null,null,null,null,null,null,null,null,null,null,"H"]
[null,"Up to 4 points",null,null,"Preliminary    Y",0,"M",0,"Verified",0,"H",null,"Responsible Party"]
[null,null,null,null,null,null,null,null,null,null,"H"]
[null,null,null,null,null,null,null,null,null,null,"H"]
[null,null,"(Select one)","All heat pump piping is insulated to at least R-4.",null,null,null,null,null,null,"H",null,null,null,null,"Conduct on-site verification that insulation for all piping carrying water meets or exceeds credit requirements."]
[null,null,"(Select one)","All refrigerant piping is insulated to at least R-6.",null,null,null,null,null,null,"H",null,null,null,null,"Conduct on-site verification that insulation for all piping carrying refrigerant meets or exceeds credit requirements."]
[null,null,null,null,null,null,null,null,null,null,"H"]
[null,null,"Cooling",null,null,null,null,null,null,null,"H",{"$f":"C369","v":"Cooling"}]
[null,null,"Type of \nCooling System","Manufacturer Name and Product Number","Efficiency ","Percent Load",null,null,null,null,"H",null,null,null,null,"Verify that installed HVAC equipment meets efficiency requirements, using product literature or labels."]
[null,null,null,null,null,null,null,null,null,null,"H"]
[null,null,null,null,null,null,null,null,null,null,"H"]
[null,null,null,null,null,null,null,null,null,null,"H"]
[null,null,null,null,null,null,null,null,null,null,"H"]
[null,null,null,null,null,null,null,null,null,null,"H"]
[null,null,null,null,null,null,null,null,null,null,"H"]
[null,null,"Heating",null,null,null,null,null,null,null,"H",{"$f":"C377","v":"Heating"}]
[null,null,"Type of \nHeating System","Manufacturer Name and Product Number","Efficiency ","Percent Load",null,null,null,null,"H",null,null,null,null,"Verify that installed HVAC equipment meets efficiency requirements, using product literature or labels."]
[null,null,null,"Furnace",0.95,null,null,null,null,null,"H"]
[null,null,null,null,null,null,null,null,null,null,"H"]
[null,null,null,null,null,null,null,null,null,null,"H"]
[null,null,null,null,null,null,null,null,null,null,"H"]
[null,null,null,null,null,null,null,null,null,null,"H"]
[null,null,null,null,null,null,null,null,null,null,"H"]
["EAc11",{"$f":"IF(RatingSystem=1,HYPERLINK(\"http://www.usgbc.org/node/2612128\",L385),HYPERLINK(\"\",L385))","v":"EA Credit Heating and Cooling Distribution Systems"},null,null,null,null,null,null,null,null,"H","EA Credit Heating and Cooling Distribution Systems"]
[null,null,null,null,null,null,null,null,null,null,"H"]
[null,"Up to 3 points",null,null,"Preliminary    Y",{"$f":"IF(F390>0,F390,F406)","v":0},"M",{"$f":"IF(H390>0,H390,H406)","v":0},"Verified",{"$f":"IF(J390>0,J390,J406)","v":0},"H",null,"Responsible Party"]
[null,null,null,null,null,null,null,null,null,null,"H"]
[null,null,null,null,null,null,null,null,null,null,"H"]
[null,null,"Case 1. Forced-Air System (2-3 points)",null,"Y",{"$f":"IF(F393>0,F393,F400)","v":0},"M",{"$f":"IF(H393>0,H393,H400)","v":0},"V",{"$f":"IF(J393>0,J393,J400)","v":0},"H",{"$f":"C390","v":"Case 1. Forced-Air System (2-3 points)"}]
[null,null,null,null,null,null,null,null,null,null,"H"]
[null,null,null,null,null,null,null,null,null,null,"H"]
[null,null,"Option 1. Ductwork in Conditioned Space (3 points)",null,"Y",null,"M",null,"V",null,"H",{"$f":"C393","v":"Option 1. Ductwork in Conditioned Space (3 points)"}]
[null,null,null,null,null,null,null,null,null,null,"H"]
[null,null,null,null,null,null,null,null,null,null,"H"]
[null,null,"(Select one)","The air-handler unit and all ductwork are located entirely within conditioned spaces.",null,null,null,null,null,null,"H",null,null,null,null,"Conduct on-site verification that installed forced-air system is ductless or all ducts are within conditioned space."]
[null,null,"(Select one)","The envelope is airtight and 2 points are earned in EA Credit Air Infiltration. ",null,null,null,null,null,null,"H",null,null,null,null,"Verify envelope leakage test results conducted by a qualified energy rater or USGBC-approved alternative. "]
[null,null,null,null,null,null,null,null,null,null,"H"]
[null,null,"OR",null,null,null,null,null,null,null,"H"]
[null,null,"Option 2. Ductwork in Unconditioned Space (2 points)",null,"Y",null,"M",null,"V",null,"H",{"$f":"C400","v":"Option 2. Ductwork in Unconditioned Space (2 points)"}]
[null,null,null,null,null,null,null,null,null,null,"H"]
[null,null,null,null,null,null,null,null,null,null,"H"]
[null,null,null,"Duct leakage rate (cfm25 per sq ft or cmm25 per sq m)",null,null,null,null,null,null,"H",null,null,null,null,"Verify duct leakage test results conducted by a qualified energy rater or USGBC-approved alternative, according to HERS procedures. "]
[null,null,null,null,null,null,null,null,null,null,"H"]
[null,null,"OR",null,null,null,null,null,null,null,"H"]
[null,null,"Case 2. Hydronic System (2-3 points)",null,"Y",null,"M",null,"V",null,"H",{"$f":"C406","v":"Case 2. Hydronic System (2-3 points)"}]
[null,null,null,null,null,null,null,null,null,null,"H"]
[null,null,null,null,null,null,null,null,null,null,"H"]
[null,null,"(Select one)","The system (including boiler and distribution pipes) is entirely within the conditioned envelope. (2 points)",null,null,null,null,null,null,"H",null,null,null,null,"Conduct on-site verification that entire system, including all distribution pipes, is within conditioned space."]
[null,null,"(Select one)","An outdoor reset control has been installed that modulates distribution water temperature based on the outdoor air temperature. (1 additional point)",null,null,null,null,null,null,"H",null,null,null,null,"Conduct on-site verification that outdoor reset control is installed."]
[null,null,null,null,null,null,null,null,null,null,"H"]
[null,null,null,null,null,null,null,null,null,null,"H"]
["EAc12",{"$f":"IF(RatingSystem=1,HYPERLINK(\"http://www.usgbc.org/node/2612133\",L413),HYPERLINK(\"\",L413))","v":"EA Credit Efficient Domestic Hot Water Equipment"},null,null,null,null,null,null,null,null,"H","EA Credit Efficient Domestic Hot Water Equipment"]
[null,null,null,null,null,null,null,null,null,null,"H"]
[null,"Up to 3 points",null,null,"Preliminary    Y",0,"M",0,"Verified",0,"H",null,"Responsible Party"]
[null,null,null,null,null,null,null,null,null,null,"H"]
[null,null,null,null,null,null,null,null,null,null,"H"]
[null,null,"Meet at least one of the following:",null,null,null,null,null,null,null,"H"]
[null,null,"True","An ENERGY STAR-qualified water heater has been installed. (1 point)",null,null,null,null,null,null,"H",null,null,null,null,"Conduct on-site verification that installed water-heating system meets efficiency requirements, using product literature or labels. "]
[null,null,null,null,null,null,null,null,null,null,"H"]
[null,null,null,"EF or thermal efficiency (1.5-2 points)",null,null,null,null,null,null,"H"]
[null,null,null,null,null,null,null,null,null,null,"H"]
[null,null,"(Select one)","An ENERGY STAR-qualified water heater has been installed in combination with a solar water heater. (2-3 points)",null,null,null,null,null,null,"H",null,null,null,null,"Conduct on-site verification that installed water-heating system meets efficiency requirements, using product literature or labels. "]
[null,null,null,"Annual domestic hot water load supplied by solar water heater (%)",null,null,null,null,null,null,"H",null,null,null,null,"For solar water heater, calculate percentage of hot water load met by solar system."]
[null,null,null,null,null,null,null,null,null,null,"H"]
["EAc13",{"$f":"IF(RatingSystem=1,HYPERLINK(\"http://www.usgbc.org/node/2612151\",L426),HYPERLINK(\"\",L426))","v":"EA Credit Lighting"},null,null,null,null,null,null,null,null,"H","EA Credit Lighting"]
[null,null,null,null,null,null,null,null,null,null,"H"]
[null,"Up to 2 points",null,null,"Preliminary    Y",{"$f":"IF(F431>0,F431,F447)","v":0},"M",{"$f":"IF(H431>0,H431,H447)","v":0},"Verified",{"$f":"IF(J431>0,J431,J447)","v":0},"H",null,"Responsible Party"]
[null,null,null,null,null,null,null,null,null,null,"H"]
[null,null,null,null,null,null,null,null,null,null,"H"]
[null,null,"Case 1. Single Family ",null,"Y",{"$f":"SUM(F434,F440)","v":0},"M",{"$f":"SUM(H434,H440)","v":0},"V",{"$f":"SUM(J434,J440)","v":0},"H",{"$f":"C431","v":"Case 1. Single Family "}]
[null,null,null,null,null,null,null,null,null,null,"H"]
[null,null,null,null,null,null,null,null,null,null,"H"]
[null,null,"Option 1. Indoor Lighting (0.5-1.5 points)",null,"Y",null,"M",0,"V",null,"H",{"$f":"C434","v":"Option 1. Indoor Lighting (0.5-1.5 points)"}]
[null,null,null,null,null,null,null,null,null,null,"H"]
[null,null,null,null,null,null,null,null,null,null,"H"]
[null,null,null,{"$f":"CONCATENATE(\"Lighting power density\",IF(Instructions!$I$62=1,\" (W/sq ft)\",\" (W/sq m)\"))","v":"Lighting power density (W/sq ft)"},null,null,null,null,null,null,"H",null,null,null,null,"Conduct on-site verification that lighting calculation matches what was installed. "]
[null,null,null,null,null,null,null,null,null,null,"H"]
[null,null,"AND/OR",null,null,null,null,null,null,null,"H"]
[null,null,"Option 2. Exterior Lighting (0.5 point)",null,"Y",null,"M",null,"V",null,"H",{"$f":"C440","v":"Option 2. Exterior Lighting (0.5 point)"}]
[null,null,null,null,null,null,null,null,null,null,"H"]
[null,null,null,null,null,null,null,null,null,null,"H"]
[null,null,"(Select one)","All exterior lighting is Dark Sky qualified and has motion sensor controls, integrative photovoltaic cells, photo sensors, or astronomic time-clock operation. ",null,null,null,null,null,null,"H",null,null,null,null,"Conduct on-site verification that exterior lighting is Dark Sky qualified."]
[null,null,null,null,null,null,null,null,null,null,"H"]
[null,null,null,null,null,null,null,null,null,null,"H"]
[null,null,"OR",null,null,null,null,null,null,null,"H"]
[null,null,"Case 2.  Multifamily",null,"Y",{"$f":"IF(F450>0,F450,F458)","v":0},"M",{"$f":"IF(H450>0,H450,H458)","v":0},"V",{"$f":"IF(J450>0,J450,J458)","v":0},"H",{"$f":"C447","v":"Case 2.  Multifamily"}]
[null,null,null,null,null,null,null,null,null,null,"H"]
[null,null,null,null,null,null,null,null,null,null,"H"]
[null,null,"Option 1. Indoor Lighting (0.5-1.5 points)",null,"Y",null,"M",null,"V",null,"H",{"$f":"C450","v":"Option 1. Indoor Lighting (0.5-1.5 points)"}]
[null,null,null,null,null,null,null,null,null,null,"H"]
[null,null,null,null,null,null,null,null,null,null,"H"]
[null,null,null,{"$f":"CONCATENATE(\"Lighting power density\",IF(Instructions!$I$62=1,\" (W/sq ft)\",\" (W/sq m)\"))","v":"Lighting power density (W/sq ft)"},null,null,null,null,null,null,"H",null,null,null,null,"Conduct on-site verification that lighting calculation matches what was installed. "]
[null,null,null,{"$f":"CONCATENATE(\"ENERGY STAR baseline\",IF(Instructions!$I$62=1,\" (W/sq ft)\",\" (W/sq m)\"))","v":"ENERGY STAR baseline (W/sq ft)"},null,null,null,null,null,null,"H"]
[null,null,{"$f":"IFERROR(1-C453/C454,0)","v":0},"Percent reduction from ENERGY STAR baseline (%)",null,null,null,null,null,null,"H"]
[null,null,null,null,null,null,null,null,null,null,"H"]
[null,null,"OR",null,null,null,null,null,null,null,"H"]
[null,null,"Option 2. Exterior Lighting (0.5 point)",null,"Y",null,"M",null,"V",null,"H",{"$f":"C458","v":"Option 2. Exterior Lighting (0.5 point)"}]
[null,null,null,null,null,null,null,null,null,null,"H"]
[null,null,null,null,null,null,null,null,null,null,"H"]
[null,null,null,"Percentage reduction in exterior lighting wattage (%)",null,null,null,null,null,null,"H",null,null,null,null,"Verify lighting calculation matches what was installed."]
[null,null,"(Select one)","All exterior lighting is Dark Sky qualified.",null,null,null,null,null,null,"H",null,null,null,null,"Conduct on-site verification that exterior lighting is Dark Sky qualified."]
[null,null,null,null,null,null,null,null,null,null,"H"]
["EAc14",{"$f":"IF(RatingSystem=1,HYPERLINK(\"http://www.usgbc.org/node/2612160\",L464),HYPERLINK(\"\",L464))","v":"EA Credit High-Efficiency Appliances"},null,null,null,null,null,null,null,null,"H","EA Credit High-Efficiency Appliances"]
[null,null,null,null,null,null,null,null,null,null,"H"]
[null,"Up to 2 points",null,null,"Preliminary    Y",1,"M",0,"Verified",0,"H",null,"Responsible Party"]
[null,null,null,null,null,null,null,null,null,null,"H"]
[null,null,null,null,null,null,null,null,null,null,"H"]
[null,null,"Meet at least one of the following:",null,null,null,null,null,null,null,"H"]
[null,null,"True","ENERGY STAR–qualified refrigerator(s) are installed. (1 point)",null,null,null,null,null,null,"H",null,null,null,null,"Conduct on-site verification that all installed appliances are ENERGY STAR qualified."]
[null,null,null,null,null,null,null,null,null,null,"H"]
[null,null,"(Select one)","ENERGY STAR–qualified ceiling fans are installed. (0.5 point)",null,null,null,null,null,null,"H",null,null,null,null,"Conduct on-site verification that all installed appliances are ENERGY STAR qualified."]
[null,null,null,null,null,null,null,null,null,null,"H"]
[null,null,"(Select one)","ENERGY STAR–qualified dishwasher(s) are installed. (0.5 point)",null,null,null,null,null,null,"H",null,null,null,null,"Conduct on-site verification that all installed appliances are ENERGY STAR qualified."]
[null,null,null,null,null,null,null,null,null,null,"H"]
["EAc15",{"$f":"IF(RatingSystem=1,HYPERLINK(\"http://www.usgbc.org/node/2612164\",L476),HYPERLINK(\"\",L476))","v":"EA Credit Renewable Energy"},null,null,null,null,null,null,null,null,"H","EA Credit Renewable Energy"]
[null,null,null,null,null,null,null,null,null,null,"H"]
[null,"Up to 4 points",null,null,"Preliminary    Y",0,"M",0,"Verified",0,"H",null,"Responsible Party"]
[null,"Exemplary Performance: Produce at least 2,500 kWh annually.",null,null,null,null,null,null,null,null,"H"]
[null,null,null,null,null,null,null,null,null,null,"H"]
[null,null,null,null,null,null,null,null,null,null,"H"]
[null,null,null,"Annual electricity produced by the renewable electricity generation system (kWh)",null,null,null,null,null,null,"H",null,null,null,null,"Conduct on-site verification that renewable energy system has been installed."]
[null,null,null,null,null,null,null,null,null,null,"H"]
[null,null,"(Select one)","RECs are retained by owner.",null,null,null,null,null,null,"H",null,null,null,null,"Verify that RECs have been retained by building owner."]
[null,null,null,null,null,null,null,null,null,null,"H"]
[null,null,null,"Total points from all other EA credits",null,null,null,null,null,null,"H",null,null,null,null,"Verify calculations related to annual electric load supplied by renewable system."]

{"sheet":"MR","index":11,"n_rows":128,"n_cols":17,"rows_kept":128,"cut":false,"hidden":false,"merged":[[117,3,117,8],[82,2,83,2],[127,3,127,6],[120,3,120,6],[121,3,121,6],[122,3,122,6],[125,3,125,6],[126,3,126,6],[82,3,82,6],[83,3,83,6],[84,2,85,2],[84,3,84,6],[85,3,85,6],[86,2,87,2],[86,3,86,6],[88,2,89,2],[68,2,69,2],[68,3,68,6],[69,3,69,6],[70,2,71,2],[70,3,70,6],[71,3,71,6],[62,3,62,6],[63,3,63,6],[64,3,64,6],[65,3,65,6],[52,3,52,6],[26,3,27,9],[81,3,81,6],[79,2,79,6],[72,2,73,2],[72,3,72,6],[73,3,73,6],[74,2,75,2],[74,3,74,6],[75,3,75,6],[29,3,30,9],[39,3,40,9],[62,2,63,2],[64,2,65,2],[66,2,67,2],[66,3,66,6],[67,3,67,6],[80,3,80,6],[115,3,116,9],[9,3,9,9],[113,3,113,8],[114,3,114,8],[99,3,99,6],[101,3,101,6],[102,3,102,6],[103,3,103,6],[104,3,104,6],[87,3,87,6],[61,3,61,6],[24,3,24,8],[32,3,32,8],[19,3,20,9],[22,3,22,9],[16,3,16,8],[106,1,106,3],[4,1,4,3],[11,1,11,3],[34,1,34,3],[42,1,42,3],[93,1,93,3],[88,3,88,6],[89,3,89,6],[90,2,91,2],[90,3,90,6],[91,3,91,6],[76,2,77,2],[76,3,76,6],[77,3,77,6],[80,2,81,2]]}
[null,"Materials and Resources",null,null,null,null,null,null,null,null,null,"Notes","Verified \n(initials)","Date \nVerified","Verification Details","Verification Measure","QAD \nVerification Notes"]
[]
[null,null,null,null,"Preliminary    Y",{"$f":"SUM(F37,F45,F109,F96)","v":5},"Maybe",{"$f":"SUM(H37,H45,H109,H96)","v":0},"Verified",{"$f":"SUM(J37,J45,J109,J96)","v":5}]
[]
["MRp1",{"$f":"IF(RatingSystem=1,HYPERLINK(\"http://www.usgbc.org/node/2612898\",L5),HYPERLINK(\"http://www.usgbc.org/node/2612898\",L5))","v":"MR Prerequisite Certified Tropical Wood"},null,null,null,null,null,null,null,null,"HM","MR Prerequisite Certified Tropical Wood"]
[null,null,null,null,null,null,null,null,null,null,"HM"]
[null,"Required",null,null,null,"Required",null,null,"Verified","Y","HM",null,"Responsible Party"]
[null,null,null,null,null,null,null,null,null,null,"HM"]
[null,null,null,null,null,null,null,null,null,null,"HM"]
[null,null,"True","All wood in the building is nontropical, reused or reclaimed, or certified by the Forest Stewardship Council, or USGBC-approved equivalent.",null,null,null,null,null,null,"HM","No topical wood","JML","2017-11-14",null,"Verify that no wood used in project comes from tropical country unless reclaimed or FSC certified, using information provided by suppliers and vendors."]
[null,null,null,null,null,null,null,null,null,null,"HM"]
["MRp2",{"$f":"IF(RatingSystem=1,HYPERLINK(\"http://www.usgbc.org/node/2612917\",L12),HYPERLINK(\"http://www.usgbc.org/node/2612917\",L12))","v":"MR Prerequisite Durability Management"},null,null,null,null,null,null,null,null,"HM","MR Prerequisite Durability Management"]
[null,null,null,null,null,null,null,null,null,null,"HM"]
[null,"Required",null,null,null,"Required",null,null,"Verified","Y","HM",null,"Responsible Party"]
[null,null,null,null,null,null,null,null,null,null,"HM"]
[null,null,null,null,null,null,null,null,null,null,"HM"]
[null,null,"True","ENERGY STAR for Homes, version 3, water management system checklist is collected from builder.",null,null,null,null,null,null,"HM","Used V 3.1, no checklist but followed guidelines","JML","2017-11-14"]
[null,null,null,null,null,null,null,null,null,null,"HM"]
[null,null,"Confirm all of the following have been implemented on the project:",null,null,null,null,null,null,null,"HM"]
[null,null,"True","Nonpaper-faced backer board, or a product or coating over wallboard that meets standard ASTM D 3273 standard, was installed on the area above bathtub, spa or shower, and in areas behind fiberglass enclosures where wallboard is installed.",null,null,null,null,null,null,"HM",null,"JML","2017-07-31",null,"Conduct on-site verification that indoor moisture control measure is installed."]
[null,null,null,null,null,null,null,null,null,null,"HM"]
[null,null,null,null,null,null,null,null,null,null,"HM"]
[null,null,"True","Water-resistant flooring was installed  in the kitchen, bathroom(s), laundry room, spa area(s).  No carpet was installed in these areas.",null,null,null,null,null,null,"HM","Site Verified","JML","2017-07-26",null,"Conduct on-site verification that indoor moisture control measure is installed."]
[null,null,null,null,null,null,null,null,null,null,"HM"]
[null,null,"True","Water-resistant flooring was installed in entryways within 3 feet of exterior door(s).",null,null,null,null,null,null,"HM","Site Verified","JML","2017-07-26",null,"Conduct on-site verification that indoor moisture control measure is installed."]
[null,null,null,null,null,null,null,null,null,null,"HM"]
[null,null,"N/A","A drain and drain pan, drain pan and automatic water shut-off or flow restrictors, or floor drain with floor sloped to drain was installed for all tank water heaters in or over living space.",null,null,null,null,null,null,"HM",null,null,null,null,"Conduct on-site verification that indoor moisture control measure is installed."]
[null,null,null,null,null,null,null,null,null,null,"HM"]
[null,null,null,null,null,null,null,null,null,null,"HM"]
[null,null,"N/A","A drain and drain pan, drain pan and automatic water shut-off or flow restrictors, or floor drain with floor sloped to drain was installed for clothes washer in or over living space.",null,null,null,null,null,null,"HM",null,null,null,null,"Conduct on-site verification that indoor moisture control measure is installed."]
[null,null,null,null,null,null,null,null,null,null,"HM"]
[null,null,null,null,null,null,null,null,null,null,"HM"]
[null,null,"N/A","Conventional clothes dryers exhaust directly to outdoors.",null,null,null,null,null,null,"HM","No Dryer","JML","2017-11-14",null,"Conduct on-site verification that indoor moisture control measure is installed."]
[null,null,null,null,null,null,null,null,null,null,"HM"]
["MRc1",{"$f":"IF(RatingSystem=1,HYPERLINK(\"http://www.usgbc.org/node/2612923\",L35),HYPERLINK(\"http://www.usgbc.org/node/2612923\",L35))","v":"MR Credit Durability Management Verification"},null,null,null,null,null,null,null,null,"HM","MR Credit Durability Management Verification"]
[null,null,null,null,null,null,null,null,null,null,"HM"]
[null,"1 point",null,null,"Preliminary    Y",1,"M",0,"Verified",1,"HM",null,"Responsible Party"]
[null,null,null,null,null,null,null,null,null,null,"HM"]
[null,null,null,null,null,null,null,null,null,null,"HM"]
[null,null,"True","Each measure in the ENERGY STAR for Homes, version 3, water management system builder checklist was verified by the verification team.",null,null,null,null,null,null,"HM","Site Verified by the HERS Rater","JML","2017-11-14",null,"Conduct on-site verification of each measured listed in ENERGY STAR for Homes water management system checklist, or verify that qualified energy rater signed off on each measure."]
[null,null,null,null,null,null,null,null,null,null,"HM"]
[null,null,null,null,null,null,null,null,null,null,"HM"]
["MRc2",{"$f":"IF(RatingSystem=1,HYPERLINK(\"http://www.usgbc.org/node/2613082\",L43),HYPERLINK(\"http://www.usgbc.org/node/2695211\",L43))","v":"MR Credit Environmentally Preferable Products"},null,null,null,null,null,null,null,null,"HM","MR Credit Environmentally Preferable Products"]
[null,null,null,null,null,null,null,null,null,null,"HM"]
[null,{"$f":"CONCATENATE(\"Up to\",IF(Instructions!$J$62=1,\" 4\",\" 5\"),\" points\")","v":"Up to 4 points"},null,null,"Preliminary    Y",{"$f":"IF(Instructions!$J$62=1,IF(SUM(F49,F58)>4,4,SUM(F49,F58)),IF(SUM(F49,F58)>5,5,SUM(F49,F58)))","v":4},"M",{"$f":"IF(Instructions!$J$62=1,IF(SUM(H49,H58)>4,4,SUM(H49,H58)),IF(SUM(H49,H58)>5,5,SUM(H49,H58)))","v":0},"Verified",{"$f":"IF(Instructions!$J$62=1,IF(SUM(J49,J58)>4,4,SUM(J49,J58)),IF(SUM(J49,J58)>5,5,SUM(J49,J58)))","v":4},"HM",null,"Responsible Party"]
[null,"Exemplary Performance: For Option 2, achieve a minimum of 4 points to earn another 2 points for purchasing products that meet the requirements.",null,null,null,null,null,null,null,null,"HM"]
[null,null,null,null,null,null,null,null,null,null,"HM"]
[null,null,null,null,null,null,null,null,null,null,"HM"]
[null,null,"Option 1. Local Production",null,"Preliminary    Y",1,"M",null,"Verified",1,"HM",{"$f":"C49","v":"Option 1. Local Production"}]
[null,null,null,null,null,null,null,null,null,null,"HM"]
[null,null,null,null,null,null,null,null,null,null,"HM"]
[null,null,"Select which the following were extracted, processed, and manufactured within 100 miles (160 km) of the project site:",null,null,null,null,null,null,null,"HM"]
[null,null,100,"Percentage of locally produced framing (%) (0.5 point)",null,null,null,null,null,null,"HM","Gut Rehab","JML","2017-07-26",null,"Verify that installed components meet definition of local production, using product literature, letters from manufacturers or suppliers, or other documentation."]
[null,null,100,"Percentage of locally produced aggregate for concrete and foundation (%) (0.5 point)",null,null,null,null,null,null,"HM","Reuse","JML","2017-07-26",null,"Verify that installed components meet definition of local production, using product literature, letters from manufacturers or suppliers, or other documentation."]
[null,null,null,"Percentage of locally produced drywall and interior sheathing (%) (0.5 point)",null,null,null,null,null,null,"HM",null,null,null,null,"Verify that installed components meet definition of local production, using product literature, letters from manufacturers or suppliers, or other documentation."]
[null,null,null,null,null,null,null,null,null,null,"HM"]
[null,null,"AND/OR",null,null,null,null,null,null,null,"HM"]
[null,null,"Option 2. Environmentally Preferable Products",null,"Preliminary    Y",3,"M",0,"Verified",3,"HM",{"$f":"C58","v":"Option 2. Environmentally Preferable Products"}]
[null,null,null,null,null,null,null,null,null,null,"HM"]
[null,null,null,null,null,null,null,null,null,null,"HM"]
[null,null,"Select the criteria met by at least 90% of the component:",null,null,null,null,null,null,null,"HM"]
[null,null,"No Floor Covering\n(2 points)",null,null,null,null,null,null,null,"HM",null,null,null,null,"Verify that installed components satisfy specific credit requirements, using product literature, labels, or other documentation."]
[null,null,"Floor Covering\n(1 point)","At least 25% reclaimed",null,null,null,null,null,null,"HM","Reused wood floors","JML","2017-11-14",null,"Verify that installed components satisfy specific credit requirements, using product literature, labels, or other documentation."]
[null,null,null,null,null,null,null,null,null,null,"HM"]
[null,null,"Insulation\n(1 point)","At least 25% postconsumer or 50% preconsumer recycled content",null,null,null,null,null,null,"HM","Cellulose ","JML","2017-11-14",null,"Verify that installed components satisfy specific credit requirements, using product literature, labels, or other documentation."]
[null,null,null,null,null,null,null,null,null,null,"HM"]
[null,null,"Sheathing\n(1 point)",null,null,null,null,null,null,null,"HM",null,null,null,null,"Verify that installed components satisfy specific credit requirements, using product literature, labels, or other documentation."]
[null,null,null,null,null,null,null,null,null,null,"HM"]
[null,null,"Framing\n(1 point)","At least 25% reclaimed",null,null,null,null,null,null,"HM","Complete Rehab","JML",null,null,"Verify that installed components satisfy specific credit requirements, using product literature, labels, or other documentation."]
[null,null,null,null,null,null,null,null,null,null,"HM"]
[null,null,"Drywall\n(1 point)",null,null,null,null,null,null,null,"HM",null,null,null,null,"Verify that installed components satisfy specific credit requirements, using product literature, labels, or other documentation."]
[null,null,null,null,null,null,null,null,null,null,"HM"]
[null,null,"Concrete\n(1 point)","Concrete with 90% recycled content aggregate",null,null,null,null,null,null,"HM","Rehab ","JML",null,null,"Verify that installed components satisfy specific credit requirements, using product literature, labels, or other documentation."]
[null,null,null,null,null,null,null,null,null,null,"HM"]
[null,null,"Roofing\n(1 point)",null,null,null,null,null,null,null,"HM","Rehab, re used roof framing members","JML",null,null,"Verify that installed components satisfy specific credit requirements, using product literature, labels, or other documentation."]
[null,null,null,"At least 25% reclaimed",null,null,null,null,null,null,"HM"]
[null,null,"Siding\n(1 point)",null,null,null,null,null,null,null,"HM",null,null,null,null,"Verify that installed components satisfy specific credit requirements, using product literature, labels, or other documentation."]
[null,null,null,null,null,null,null,null,null,null,"HM"]
[null,null,null,null,null,null,null,null,null,null,"HM"]
[null,null,"Select criteria met for at least 3 of the following additional components by at least 90% of the component (1 point):",null,null,null,null,null,null,null,"HM"]
[null,null,"Doors",null,null,null,null,null,null,null,"HM",null,null,null,null,"Verify that installed components satisfy specific credit requirements, using product literature, labels, or other documentation."]
[null,null,null,null,null,null,null,null,null,null,"HM"]
[null,null,"Cabinets",null,null,null,null,null,null,null,"HM",null,null,null,null,"Verify that installed components satisfy specific credit requirements, using product literature, labels, or other documentation."]
[null,null,null,null,null,null,null,null,null,null,"HM"]
[null,null,"Counters",null,null,null,null,null,null,null,"HM",null,null,null,null,"Verify that installed components satisfy specific credit requirements, using product literature, labels, or other documentation."]
[null,null,null,null,null,null,null,null,null,null,"HM"]
[null,null,"Interior Trim",null,null,null,null,null,null,null,"HM",null,null,null,null,"Verify that installed components satisfy specific credit requirements, using product literature, labels, or other documentation."]
[null,null,null,null,null,null,null,null,null,null,"HM"]
[null,null,"Decking/Patio",null,null,null,null,null,null,null,"HM",null,null,null,null,"Verify that installed components satisfy specific credit requirements, using product literature, labels, or other documentation."]
[null,null,null,null,null,null,null,null,null,null,"HM"]
[null,null,"Windows",null,null,null,null,null,null,null,"HM",null,null,null,null,"Verify that installed components satisfy specific credit requirements, using product literature, labels, or other documentation."]
[null,null,null,null,null,null,null,null,null,null,"HM"]
[null,null,null,null,null,null,null,null,null,null,"HM"]
["MRc3",{"$f":"IF(RatingSystem=1,HYPERLINK(\"http://www.usgbc.org/node/2613092\",L94),HYPERLINK(\"http://www.usgbc.org/node/2695214\",L94))","v":"MR Credit Construction Waste Management"},null,null,null,null,null,null,null,null,"HM","MR Credit Construction Waste Management"]
[null,null,null,null,null,null,null,null,null,null,"HM"]
[null,"Up to 3 points",null,null,"Preliminary    Y",0,"M",0,"Verified",0,"HM",null,"Responsible Party"]
[null,"Exemplary Performance: For renovation projects, track and divert at least 50% of demolition waste.",null,null,null,null,null,null,null,null,"HM"]
[null,null,null,null,null,null,null,null,null,null,"HM"]
[null,null,null,null,null,null,null,null,null,null,"HM"]
[null,null,11460,{"$f":"CONCATENATE(\"LEED Reference Home Baseline Waste\",IF(Instructions!$I$62=1,\" (lbs)\",\" (kg)\"))","v":"LEED Reference Home Baseline Waste (lbs)"},null,null,null,null,null,null,"HM",null,null,null,null,"Verify that calculations of construction waste rate are based on waste hauling documents."]
[null,null,null,null,null,null,null,null,null,null,"HM"]
[null,null,null,{"$f":"CONCATENATE(\"Total Waste\",IF(Instructions!$I$62=1,\" (lbs)\",\" (kg)\"))","v":"Total Waste (lbs)"},null,null,null,null,null,null,"HM"]
[null,null,null,{"$f":"CONCATENATE(\"Recycled Waste\",IF(Instructions!$I$62=1,\" (lbs)\",\" (kg)\"))","v":"Recycled Waste (lbs)"},null,null,null,null,null,null,"HM"]
[null,null,{"$f":"C102-(0.25*C103)","v":0},{"$f":"CONCATENATE(\"Project Construction Waste\",IF(Instructions!$I$62=1,\" (lbs)\",\" (kg)\"))","v":"Project Construction Waste (lbs)"},null,null,null,null,null,null,"HM"]
[null,null,{"$f":"IFERROR(IF(AND(C100=\"\",C102=\"\",C103=\"\"),\"\",(1-(C104/C100))),0)","v":1},"Percent reduction below baseline (%)",null,null,null,null,null,null,"HM"]
[null,null,null,null,null,null,null,null,null,null,"HM"]
["MRc4",{"$f":"IF(RatingSystem=1,HYPERLINK(\"http://www.usgbc.org/node/2613034\",L107),HYPERLINK(\"\",L107))","v":"MR Credit Material-Efficient Framing"},null,null,null,null,null,null,null,null,"H","MR Credit Material-Efficient Framing"]
[null,null,null,null,null,null,null,null,null,null,"H"]
[null,"Up to 2 points",null,null,"Preliminary    Y",0,"M",0,"Verified",0,"H",null,"Responsible Party"]
[null,"Exemplary Performance: Achieve a minimum of 2 points to earn up to 1/2 point for each additional requirement met.",null,null,null,null,null,null,null,null,"H"]
[null,null,null,null,null,null,null,null,null,null,"H"]
[null,null,null,null,null,null,null,null,null,null,"H"]
[null,null,"Select one of the following for at least 90% of each component: (1 point)",null,null,null,null,null,null,null,"H"]
[null,null,"(Select one)","No more than one horizontal 2x top plate on walls by aligning studs with joists and roof rafters was installed.  ",null,null,null,null,null,null,"H",null,null,null,null,"Conduct on-site verification that framing was installed per credit requirements."]
[null,null,"(Select one)","Window and door headers were placed in the rim joist.",null,null,null,null,null,null,"H",null,null,null,null,"Conduct on-site verification that framing was installed per credit requirements."]
[null,null,"(Select one)","Raised (directly beneath the top plate), single-ply headers not more than 2 inches nominal thickness in a 2x4 wall or 4 inches nominal thickness in a 2x6 wall, were installed.",null,null,null,null,null,null,"H",null,null,null,null,"Conduct on-site verification that framing was installed per credit requirements."]
[null,null,null,null,null,null,null,null,null,null,"H"]
[null,null,"(Select one)","Structural insulated panels (SIPs) were installed for walls. ",null,null,null,null,null,null,"H",null,null,null,null,"Conduct on-site verification that framing was installed per credit requirements."]
[null,null,null,null,null,null,null,null,null,null,"H"]
[null,null,"Select at least 2 of the following for at least 90% of each component: (0.5 point)",null,null,null,null,null,null,null,"H"]
[null,null,"(Select one)","Headers were sized for actual loads.",null,null,null,null,null,null,"H",null,null,null,null,"Conduct on-site verification that framing was installed per credit requirements."]
[null,null,"(Select one)","Ladder blocking or drywall clips were used.",null,null,null,null,null,null,"H",null,null,null,null,"Conduct on-site verification that framing was installed per credit requirements."]
[null,null,"(Select one)","Two-stud corners or California corners were used.",null,null,null,null,null,null,"H",null,null,null,null,"Conduct on-site verification that framing was installed per credit requirements."]
[null,null,null,null,null,null,null,null,null,null,"H"]
[null,null,"Select all that apply for at least 90% of each component: (0.5 point each)",null,null,null,null,null,null,null,"H"]
[null,null,"(Select one)","Interior wall studs were spaced greater than 16 inches (400 mm) o.c. ",null,null,null,null,null,null,"H",null,null,null,null,"Conduct on-site verification that framing was installed per credit requirements."]
[null,null,"(Select one)","Floor joists were spaced greater than 16 inches (400 mm) o.c. ",null,null,null,null,null,null,"H",null,null,null,null,"Conduct on-site verification that framing was installed per credit requirements."]
[null,null,"(Select one)","Roof rafters were spaced greater than 16 inches (400 mm) o.c ",null,null,null,null,null,null,"H",null,null,null,null,"Conduct on-site verification that framing was installed per credit requirements."]

{"sheet":"EQ","index":12,"n_rows":430,"n_cols":17,"rows_kept":430,"cut":false,"hidden":false,"merged":[[95,3,95,7],[97,3,97,7],[67,3,67,7],[69,3,69,7],[73,3,73,7],[75,3,75,7],[77,3,77,7],[86,3,86,7],[87,3,87,7],[90,3,90,7],[93,3,93,7],[304,3,304,7],[323,3,323,7],[325,3,325,7],[327,3,327,7],[306,3,306,8],[309,1,309,3],[12,3,12,8],[19,3,19,8],[21,3,21,8],[35,3,36,9],[23,3,24,9],[16,3,17,9],[42,3,44,9],[63,3,63,7],[64,3,64,7],[213,3,213,7],[221,3,221,7],[118,3,118,7],[128,3,128,7],[131,3,131,7],[133,3,133,7],[142,3,142,7],[143,3,143,7],[151,3,151,7],[269,3,269,7],[270,3,270,7],[279,3,279,7],[296,3,296,7],[224,3,224,7],[232,3,232,7],[226,3,226,8],[245,3,245,8],[281,1,281,3],[288,1,288,3],[332,3,332,8],[370,3,370,7],[400,3,400,7],[402,3,402,7],[410,3,410,8],[381,3,381,7],[383,3,383,7],[392,3,392,7],[375,3,375,8],[357,3,357,7],[366,3,366,7],[368,3,368,7],[339,3,339,7],[428,3,429,9],[394,3,394,9],[390,3,390,9],[50,3,50,9],[359,3,359,9],[372,3,373,9],[418,3,419,9],[305,3,305,9],[329,3,330,9],[355,3,355,9],[202,3,203,9],[205,3,205,9],[247,3,248,9],[272,3,273,9],[153,3,154,9],[121,3,122,9],[426,3,426,7],[412,3,412,7],[414,3,414,7],[416,3,416,8],[341,3,341,7],[343,3,343,7],[404,1,404,3],[421,1,421,3],[145,1,145,3],[158,1,158,3],[174,1,174,3],[193,1,193,3],[234,1,234,3],[4,1,4,3],[56,1,56,3],[79,1,79,3],[99,1,99,3],[135,1,135,3],[156,3,156,7],[166,3,166,7],[168,3,168,7],[182,2,182,3],[164,3,164,8],[182,4,183,9],[191,3,191,7],[211,3,211,7],[188,3,189,9],[119,3,119,9],[117,3,117,7],[38,3,38,8],[40,3,40,8],[114,3,114,7]]}
[null,"Indoor Environmental Quality",null,null,null,null,null,null,null,null,null,"Notes","Verified \n(initials)","Date \nVerified","Verification Details","Verification Measure","QAD \nVerification Notes"]
[]
[null,null,null,null,"Preliminary    Y",{"$f":"SUM(F424,F407,F312,F291,F284,F237,F196,F177)","v":10.5},"Maybe",{"$f":"SUM(H424,H407,H312,H291,H284,H237,H196,H177)","v":0},"Verified",{"$f":"SUM(J424,J407,J312,J291,J284,J237,J196,J177)","v":10.5}]
[]
["EQp1",{"$f":"IF(RatingSystem=1,HYPERLINK(\"http://www.usgbc.org/node/2612401\",L5),HYPERLINK(\"http://www.usgbc.org/node/2612401\",L5))","v":"EQ Prerequisite Ventilation"},null,null,null,null,null,null,null,null,"HM","EQ Prerequisite Ventilation"]
[null,null,null,null,null,null,null,null,null,null,"HM"]
[null,"Required",null,null,null,"Required",null,null,"Verified",{"$f":"IF(OR(J10=\"Y\",J31=\"Y\"),\"Y\",\"N\")","v":"Y"},"HM",null,"Responsible Party"]
[null,null,null,null,null,null,null,null,null,null,"HM"]
[null,null,null,null,null,null,null,null,null,null,"HM"]
[null,null,"Case 1. Single Family ",null,null,null,null,null,"V","Y","HM",{"$f":"C10","v":"Case 1. Single Family "}]
[null,null,null,null,null,null,null,null,null,null,"HM"]
[null,null,null,null,null,null,null,null,null,null,"HM"]
[null,null,"False","The project has earned the EPA Indoor airPLUS label",null,null,null,null,null,null,"HM"]
[null,null,"OR",null,null,null,null,null,null,null,"HM"]
[null,null,"Local Exhaust",null,null,null,null,null,null,null,"HM",{"$f":"C15","v":"Local Exhaust"}]
[null,null,"Confirm all of the following have been implemented on the project:",null,null,null,null,null,null,null,"HM"]
[null,null,"True","Local exhaust systems meeting the requirements of ASHRAE Standard 62.2–2010, Sections 5 and 7 or local equivalent, whichever is more stringent, were installed in all bathrooms (including half-baths) and the kitchen.",null,null,null,null,null,null,"HM","Site verified","JML","2017-11-14",null,"Verify that bathroom fans meet prerequisite requirements for sound and performance AND Test exhaust fans to ensure they are exhausting sufficient airflow to meet prerequisite requirements, and verify that exhaust goes directly to outdoors."]
[null,null,null,null,null,null,null,null,null,null,"HM","Site Verified","JML","2017-11-14",null,"Verify that kitchen fans meet prerequisite requirements for sound and performance; AND Test exhaust fans to ensure they are exhausting sufficient airflow to meet prerequisite requirements, and verify that exhaust goes directly to outdoors."]
[null,null,null,null,null,null,null,null,null,null,"HM"]
[null,null,"True","Local exhaust systems exhaust air directly to the outdoors.",null,null,null,null,null,null,"HM"]
[null,null,null,null,null,null,null,null,null,null,"HM"]
[null,null,"True","All bathroom exhaust fans are ENERGY STAR-labeled or an HRV or ERV is used.",null,null,null,null,null,null,"HM"]
[null,null,null,null,null,null,null,null,null,null,"HM"]
[null,null,"(Select one)","For exhaust hood systems capable of exhausting in excess of 400 cubic feet per minute (188 liters per second), makeup air is provided at a rate approximately equal to the exhaust air rate.\nMakeup air systems have a means of closure and can be automatically controlled to start and operate simultaneously with the exhaust system.",null,null,null,null,null,null,"HM",null,null,null,null,"If exhaust hood can exhaust more than 400 cfm, conduct on-site verification that makeup air source is installed with damper that opens when exhaust fan is turned on."]
[null,null,null,null,null,null,null,null,null,null,"HM"]
[null,null,null,null,null,null,null,null,null,null,"HM"]
[null,null,"Whole House Mechanical Ventilation",null,null,null,null,null,null,null,"HM",{"$f":"C27","v":"Whole House Mechanical Ventilation"}]
[null,null,"True","The building meets ASHRAE Standard 62.2-2010 Sections 4 and 7 or local equivalent, whichever is more stringent.",null,null,null,null,null,null,"HM","Balanced ERV","JML","2017-11-14",null,"Verify that whole house mechanical ventilation calculation is correct."]
[null,null,null,null,null,null,null,null,null,null,"HM"]
[null,null,"OR",null,null,null,null,null,null,null,"HM"]
[null,null,"Case 2. Multifamily ",null,null,null,null,null,"V",null,"HM",{"$f":"C31","v":"Case 2. Multifamily "}]
[null,null,null,null,null,null,null,null,null,null,"HM"]
[null,null,null,null,null,null,null,null,null,null,"HM"]
[null,null,"Local Exhaust",null,null,null,null,null,null,null,"HM",{"$f":"C34","v":"Local Exhaust"}]
[null,null,"Confirm all of the following have been implemented on the project:",null,null,null,null,null,null,null,"HM"]
[null,null,"(Select one)","Local exhaust systems meeting the requirements of ASHRAE Standard 62.2–2010, Sections 5 and 7 or local equivalent, whichever is more stringent, were installed in all bathrooms (including half-baths) and the kitchen.",null,null,null,null,null,null,"HM",null,null,null,null,"Verify that bathroom fans meet prerequisite requirements for sound and performance AND Test exhaust fans to ensure they are exhausting sufficient airflow to meet prerequisite requirements, and verify that exhaust goes directly to outdoors."]
[null,null,null,null,null,null,null,null,null,null,"HM",null,null,null,null,"Verify that kitchen fans meet prerequisite requirements for sound and performance; AND Test exhaust fans to ensure they are exhausting sufficient airflow to meet prerequisite requirements, and verify that exhaust goes directly to outdoors."]
[null,null,null,null,null,null,null,null,null,null,"HM"]
[null,null,"(Select one)","Local exhaust systems exhaust air directly to the outdoors.",null,null,null,null,null,null,"HM"]
[null,null,null,null,null,null,null,null,null,null,"HM"]
[null,null,"(Select one)","All bathroom exhaust fans are ENERGY STAR-labeled or an HRV or ERV is used.",null,null,null,null,null,null,"HM"]
[null,null,null,null,null,null,null,null,null,null,"HM"]
[null,null,"(Select one)","For exhaust hood systems capable of exhausting in excess of 400 cubic feet per minute (188 liters per second), makeup air is provided at a rate approximately equal to the exhaust air rate.  Makeup air systems have a means of closure and can be automatically controlled to start and operate simultaneously with the exhaust system.",null,null,null,null,null,null,"HM",null,null,null,null,"If exhaust hood can exhaust more than 400 cfm (188 lps), conduct on-site verification that makeup air source is installed with damper that opens when exhaust fan is turned on."]
[null,null,null,null,null,null,null,null,null,null,"HM"]
[]
[null,null,null,null,null,null,null,null,null,null,"HM"]
[null,null,"Whole Unit Mechanical Ventilation",null,null,null,null,null,null,null,"HM",{"$f":"C47","v":"Whole Unit Mechanical Ventilation"}]
[null,null,"(Select one)","The project meets ASHRAE Standard 62.2-2010 Sections 4 and 7 or local equivalent, whichever is more stringent.",null,null,null,null,null,null,"HM",null,null,null,null,"Verify that whole house mechanical ventilation calculation is correct."]
[null,null,null,null,null,null,null,null,null,null,"HM"]
[null,null,"Non-Unit Spaces",null,null,null,null,null,null,null,"HM"]
[null,null,"(Select one)","The project meets the minimum requirements of ASHRAE Standard 62.1-2010 Sections 4 -7 or local equivalent, whichever is more stringent.",null,null,null,null,null,null,"HM"]
[null,null,null,null,null,null,null,null,null,null,"HM"]
[null,null,"(Select one)","The project is located in a nonattainment area for PM2.5.  The project has installed MERV 11 or higher filters.",null,null,null,null,null,null,"HM"]
[null,null,null,null,null,null,null,null,null,null,"HM"]
[null,null,"(Select one)","The project is located in a nonattainment area for ozone.",null,null,null,null,null,null,"HM"]
[null,null,null,null,null,null,null,null,null,null,"HM"]
["EQp2",{"$f":"IF(RatingSystem=1,HYPERLINK(\"http://www.usgbc.org/node/2612425\",L57),HYPERLINK(\"http://www.usgbc.org/node/2612425\",L57))","v":"EQ Prerequisite Combustion Venting"},null,null,null,null,null,null,null,null,"HM","EQ Prerequisite Combustion Venting"]
[null,null,null,null,null,null,null,null,null,null,"HM"]
[null,"Required",null,null,null,"Required",null,null,"Verified","Y","HM",null,"Responsible Party"]
[null,null,null,null,null,null,null,null,null,null,"HM"]
[null,null,null,null,null,null,null,null,null,null,"HM"]
[null,null,"False","The project has earned the EPA Indoor airPLUS label",null,null,null,null,null,null,"HM"]
[null,null,null,"OR",null,null,null,null,null,null,"HM"]
[null,null,"True","No unvented combustion appliances were installed (ovens and ranges excluded).",null,null,null,null,null,null,"HM","Site verified","JML","2017-11-14",null,"Conduct on-site verification that no unvented combustion appliances are installed."]
[null,null,"True","A carbon monoxide (CO) monitor is installed on each floor, hard-wired with a battery backup. ",null,null,null,null,null,null,"HM","Site verified","JML","2017-11-14",null,"Conduct on-site verification that carbon monoxide monitors or sensors are installed on each floor and in every unit."]
[null,null,null,null,null,null,null,null,null,null,"HM"]
[null,null,"For projects with fireplaces or woodstoves installed",null,null,null,null,null,null,null,"HM",{"$f":"C67","v":"For projects with fireplaces or woodstoves installed"}]
[null,null,"N/A","Provide doors that close or a solid glass enclosure.",null,null,null,null,null,null,"HM",null,null,null,null,"Conduct on-site verification that any fireplace or woodstove has doors or seal AND for any fireplaces or woodstoves that are not closed-combustion or power-vented, conduct combustion appliance zone depressurization to ensure depressurization of zone is less than 5 Pa."]
[null,null,null,null,null,null,null,null,null,null,"HM"]
[null,null,"N/A","Closed-combustion, power-vented or passes BPI or RESENT combustion safety protocols ",null,null,null,null,null,null,"HM"]
[null,null,null,null,null,null,null,null,null,null,"HM"]
[null,null,"For projects where space and water heating equipment involving combustion are installed",null,null,null,null,null,null,null,"HM",{"$f":"C72","v":"For projects where space and water heating equipment involving combustion are installed"}]
[null,null,"Select one of the following:",null,null,null,null,null,null,null,"HM"]
[null,null,"N/A","Equipment is installed with closed combustion (i.e. sealed supply air and exhaust ducting)",null,null,null,null,null,null,"HM",null,null,null,null,"Conduct on-site verification that any combustion space- or water-heating equipment is installed with closed combustion or power-vented exhaust or is located in a detached building or open-air facility."]
[null,null,null,null,null,null,null,null,null,null,"HM"]
[null,null,"N/A","Equipment is installed with power-vented exhaust",null,null,null,null,null,null,"HM"]
[null,null,null,null,null,null,null,null,null,null,"HM"]
[null,null,"N/A","Equipment is located in a detached utility building or open-air facility",null,null,null,null,null,null,"HM"]
[null,null,null,null,null,null,null,null,null,null,"HM"]
["EQp3",{"$f":"IF(RatingSystem=1,HYPERLINK(\"http://www.usgbc.org/node/2612431\",L80),HYPERLINK(\"http://www.usgbc.org/node/2612431\",L80))","v":"EQ Prerequisite Garage Pollutant Protection"},null,null,null,null,null,null,null,null,"HM","EQ Prerequisite Garage Pollutant Protection"]
[null,null,null,null,null,null,null,null,null,null,"HM"]
[null,"Required",null,null,null,"Required",null,null,"Verified","Y","HM",null,"Responsible Party"]
[null,null,null,null,null,null,null,null,null,null,"HM"]
[null,null,null,null,null,null,null,null,null,null,"HM"]
[null,null,"False","The project has earned the EPA Indoor airPLUS label",null,null,null,null,null,null,"HM","No Garage"]
[null,null,null,"OR",null,null,null,null,null,null,"HM"]
[null,null,"(Select one)","All air-handling equipment and ductwork is placed outside the fire-rated envelope of the garage.",null,null,null,null,null,null,"HM","No Garage",null,null,null,"Conduct on-site verification that all air-handling equipment and ductwork are located outside fire-rated envelope of garage."]
[null,null,"(Select one)","Shared surfaces between the garage and conditioned spaces are tightly sealed.",null,null,null,null,null,null,"HM"]
[null,null,null,null,null,null,null,null,null,null,"HM"]
[null,null,"Conditioned Spaces Above Garage",null,null,null,null,null,null,null,"HM",{"$f":"C90","v":"Conditioned Spaces Above Garage"}]
[null,null,"N/A","All penetrations and all connecting floor and ceiling joist bays are sealed.",null,null,null,null,null,null,"HM",null,null,null,null,"Conduct on-site verification that surfaces between garage and conditioned spaces are sealed and weather-stripped."]
[null,null,null,null,null,null,null,null,null,null,"HM"]
[null,null,"Conditioned Spaces Next to Garage",null,null,null,null,null,null,null,"HM",{"$f":"C93","v":"Conditioned Spaces Next to Garage"}]
[null,null,"N/A","All doors are weather-striped.",null,null,null,null,null,null,"HM",null,null,null,null,"Conduct on-site verification that carbon monoxide monitors are installed in all rooms that share door with garage."]
[null,null,null,null,null,null,null,null,null,null,"HM"]
[null,null,"N/A","Carbon monoxide detectors are installed in rooms that share a door with the garage",null,null,null,null,null,null,"HM"]
[null,null,null,null,null,null,null,null,null,null,"HM"]
[null,null,"N/A","All penetrations and all cracks at the base of the walls are sealed. ",null,null,null,null,null,null,"HM"]
[null,null,null,null,null,null,null,null,null,null,"HM"]
["EQp4",{"$f":"IF(RatingSystem=1,HYPERLINK(\"http://www.usgbc.org/node/2612438\",L100),HYPERLINK(\"http://www.usgbc.org/node/2612438\",L100))","v":"EQ Prerequisite Radon-Resistant Construction"},null,null,null,null,null,null,null,null,"HM","EQ Prerequisite Radon-Resistant Construction"]
[null,null,null,null,null,null,null,null,null,null,"HM"]
[null,"Required",null,null,null,"Required",null,null,"Verified",{"$f":"IF(OR(J106=\"Y\",J112=\"Y\",J126=\"Y\"),\"Y\",\"N\")","v":"Y"},"HM",null,"Responsible Party"]
[null,"Exemplary Performance: For projects in radon zones 2 and 3, install a qualifying passive radon ventilation system.",null,null,null,null,null,null,null,null,"HM"]
[null,null,null,null,null,null,null,null,null,null,"HM"]
[null,null,null,null,null,null,null,null,null,null,"HM"]
[null,null,"EPA Indoor airPLUS label",null,null,null,null,null,"V",null,"HM",{"$f":"C106","v":"EPA Indoor airPLUS label"}]
[null,null,null,null,null,null,null,null,null,null,"HM"]
[null,null,null,null,null,null,null,null,null,null,"HM"]
[null,null,"False","The project has earned the EPA Indoor airPLUS label",null,null,null,null,null,null,"HM"]
[null,null,null,null,null,null,null,null,null,null,"HM"]
[null,null,"OR",null,null,null,null,null,null,null,"HM"]
[null,null,"Case 1. New Construction",null,null,null,null,null,"V",null,"HM",{"$f":"C112","v":"Case 1. New Construction"}]
[null,null,null,null,null,null,null,null,null,null,"HM"]
[null,null,null,null,null,null,null,null,null,null,"HM"]
[null,null,null,"EPA radon zone",null,null,null,null,null,null,"HM",null,null,null,null,"Conduct on-site verification that building is elevated at least 2 feet (600 millimeters), with open air space between building and ground, or built over the garage."]
[null,null,null,null,null,null,null,null,null,null,"HM"]
[null,null,"For projects in EPA radon zone 1",null,null,null,null,null,null,null,"HM",{"$f":"C117","v":"For projects in EPA radon zone 1"}]
[null,null,"(Select one)","There is a capillary break per the Indoor airPLUS specifications.",null,null,null,null,null,null,"HM",null,null,null,null,"Conduct on-site verification that radon-resistant construction elements are installed, including gas-permeable layer (e.g., gravel) and capillary break (e.g., plastic sheeting)."]
[null,null,"(Select one)","An electrical outlet has been provided near vent piping in the attic to facilitate future fan installation.",null,null,null,null,null,null,"HM",null,null,null,null,"Conduct on-site verification that radon-resistant construction elements are installed, including electrical outlet near vent piping."]
[null,null,"(Select one)","A gas-tight vertical vent pipe extending up through the conditioned spaces and terminating above the roof opening has been installed.",null,null,null,null,null,null,"HM",null,null,null,null,"Conduct on-site verification that radon-resistant construction elements are installed, including 3- or 4-inch (approximately 80- or 100-millimeter) vent piping that meets requirements."]
[null,null,null,"OR",null,null,null,null,null,null,"HM"]
[null,null,"(Select one)","The house is elevated by at least 2 feet (600 millimeters) with open air space between building and ground or there is a garage under the building.",null,null,null,null,null,null,"HM"]
[null,null,null,null,null,null,null,null,null,null,"HM"]
[null,null,null,null,null,null,null,null,null,null,"HM"]
[null,null,"OR",null,null,null,null,null,null,null,"HM"]
[null,null,"Case 2. Renovation of Existing Building",null,null,null,null,null,"V","Y","HM",{"$f":"C126","v":"Case 2. Renovation of Existing Building"}]
[null,null,null,null,null,null,null,null,null,null,"HM"]
[null,null,null,null,null,null,null,null,null,null,"HM"]
[null,null,2,"EPA radon zone",null,null,null,null,null,null,"HM","Radon Zone 2","JML","2017-07-26",null,"Conduct on-site verification that building is elevated at least 2 feet (600 millimeters), with open air space between building and ground, or built over the garage."]
[null,null,null,null,null,null,null,null,null,null,"HM"]
[null,null,"For renovation projects in EPA radon zone 1 with no slab work being performed",null,null,null,null,null,null,null,"HM"]
[null,null,null,"Radon test results (pCi/L)",null,null,null,null,null,null,"HM"]
[null,null,null,null,null,null,null,null,null,null,"HM"]
[null,null,"(Select one)","If results are greater than 4 pCi/L, an active ventilation system has been installed.",null,null,null,null,null,null,"HM"]
[null,null,null,null,null,null,null,null,null,null,"HM"]
["EQp5",{"$f":"IF(RatingSystem=1,HYPERLINK(\"http://www.usgbc.org/node/2612443\",L136),HYPERLINK(\"http://www.usgbc.org/node/2612443\",L136))","v":"EQ Prerequisite Air Filtering"},null,null,null,null,null,null,null,null,"HM","EQ Prerequisite Air Filtering"]
[null,null,null,null,null,null,null,null,null,null,"HM"]
[null,"Required",null,null,null,"Required",null,null,"Verified","Y","HM",null,"Responsible Party"]
[null,null,null,null,null,null,null,null,null,null,"HM"]
[null,null,null,null,null,null,null,null,null,null,"HM"]
[null,null,"False","The project has earned the EPA Indoor airPLUS label",null,null,null,null,null,null,"HM"]
[null,null,null,"OR",null,null,null,null,null,null,"HM"]
[null,null,8,"MERV rating of filters on recirculating space conditioning systems ",null,null,null,null,null,null,"HM","Site verified","JML","2017-11-14",null,"Conduct on-site verification that air filters of MERV 8 or higher are installed on all forced-air heating and cooling systems, using product literature or labels AND Conduct on-site verification that mechanical air filters are installed on all nonducted forced air heating and cooling systems in air-handling unit. "]
[null,null,6,"MERV rating of filters on mechanically supplied outdoor air systems with 10 ft (3 m) or more of ductwork",null,null,null,null,null,null,"HM","Site verified","JML","2017-11-14",null,"Conduct on-site verification that air filters of MERV 6 or higher are installed on all supply ventilation systems with at least 10 feet (3 meters) of ductwork, using product literature or labels. "]
[null,null,null,null,null,null,null,null,null,null,"HM"]
["EQp6",{"$f":"IF(RatingSystem=1,HYPERLINK(\"http://www.usgbc.org/node/2612450\",L146),HYPERLINK(\"http://www.usgbc.org/node/2612450\",L146))","v":"EQ Prerequisite Environmental Tobacco Smoke"},null,null,null,null,null,null,null,null,"HM","EQ Prerequisite Environmental Tobacco Smoke"]
[null,null,null,null,null,null,null,null,null,null,"HM"]
[null,"Required",null,null,null,"Required",null,null,"Verified","N","HM",null,"Responsible Party"]
[null,null,null,null,null,null,null,null,null,null,"HM"]
[null,null,null,null,null,null,null,null,null,null,"HM"]
[null,null,"For multifamily projects",null,null,null,null,null,null,null,"HM",{"$f":"C151","v":"For multifamily projects"}]
[null,null,"(Select one)","Smoking is prohibited in all common areas of the building.",null,null,null,null,null,null,"HM",null,null,null,null,"Conduct on-site verification of signage indicating smoking and nonsmoking areas."]
[null,null,null,null,null,null,null,null,null,null,"HM"]
[null,null,"(Select one)","Smoking is prohibited outside the project building(s) except in designated smoking areas located at least 25 ft (7.5 m) from all entries, outdoor air intakes, and operable windows. ",null,null,null,null,null,null,"HM",null,null,null,null,"Conduct on-site verification that any smoking areas are at least 25 feet (7.5 meters) away from entries, outdoor air intakes, and operable windows."]
[null,null,null,null,null,null,null,null,null,null,"HM"]
[null,null,null,null,null,null,null,null,null,null,"HM"]
[null,null,"(Select one)"," Signage communicating the smoking policy has been installed.",null,null,null,null,null,null,"HM"]
[null,null,null,null,null,null,null,null,null,null,"HM"]
["EQp7",{"$f":"IF(RatingSystem=1,HYPERLINK(\"http://www.usgbc.org/node/2612457\",L159),HYPERLINK(\"http://www.usgbc.org/node/2612457\",L159))","v":"EQ Prerequisite Compartmentalization"},null,null,null,null,null,null,null,null,"HM","EQ Prerequisite Compartmentalization"]
[null,null,null,null,null,null,null,null,null,null,"HM"]
[null,"Required",null,null,null,"Required",null,null,"Verified","N","HM",null,"Responsible Party"]
[null,null,null,null,null,null,null,null,null,null,"HM"]
[null,null,null,null,null,null,null,null,null,null,"HM"]
[null,null,"For multifamily and attached single-family projects",null,null,null,null,null,null,null,"HM",{"$f":"C164","v":"For multifamily and attached single-family projects"}]
[null,null,"True","Each residential unit has sealed penetrations through walls, ceilings, and floors and vertical chases adjacent to units.  ",null,null,null,null,null,null,"HM","Single Family Detached",null,null,null,"Verify penetrations in walls, ceilings, and floors and vertical chases adjacent to the units are sealed.  "]
[null,null,null,null,null,null,null,null,null,null,"HM"]
[null,null,"(Select one)","All doors in the residential units leading to common hallways have weather-stripping.",null,null,null,null,null,null,"HM",null,null,null,null,"Verify all doors in the residential units leading to common hallways are weather-striped."]
[null,null,null,null,null,null,null,null,null,null,"HM"]
[null,null,"True","All exterior doors and operable windows have weather-stripping..",null,null,null,null,null,null,"HM",null,null,null,null,"Verify all exterior doors and operable windows are weather-stripped."]
[null,null,null,null,null,null,null,null,null,null,"HM"]
[null,null,null,{"$f":"CONCATENATE(\"Blower door test results\",IF(Instructions!$I$62=1,\" (cfm50)\",\" (cmm50)\"))","v":"Blower door test results (cfm50)"},null,null,null,null,null,null,"HM",null,null,null,null,"Conduct on-site testing of compartmentalization using a blower door; OR Verify compartmentalization test results conducted by qualified energy rater or USGBC-approved alternative, according to HERS procedures."]
[null,null,null,{"$f":"CONCATENATE(\"Envelope enclosure area\",IF(Instructions!$I$62=1,\" (sq ft)\",\" (sq m)\"))","v":"Envelope enclosure area (sq ft)"},null,null,null,null,null,null,"HM"]
[null,null,{"$f":"IFERROR(C171/C172,0)","v":0},{"$f":"CONCATENATE(\"Leakage per area of enclosure\",IF(Instructions!$I$62=1,\" (cfm50/sq ft)\",\" (cmm50/sq m)\"))","v":"Leakage per area of enclosure (cfm50/sq ft)"},null,null,null,null,null,null,"HM"]
[null,null,null,null,null,null,null,null,null,null,"HM"]
["EQc1",{"$f":"IF(RatingSystem=1,HYPERLINK(\"http://www.usgbc.org/node/2612464\",L175),HYPERLINK(\"http://www.usgbc.org/node/2612464\",L175))","v":"EQ Credit Enhanced Ventilation"},null,null,null,null,null,null,null,null,"HM","EQ Credit Enhanced Ventilation"]
[null,null,null,null,null,null,null,null,null,null,"HM"]
[null,"Up to 3 points",null,null,"Preliminary    Y",{"$f":"SUM(F180,F186)","v":3},"M",{"$f":"SUM(H180,H186)","v":0},"Verified",{"$f":"SUM(J180,J186)","v":3},"HM",null,"Responsible Party"]
[null,null,null,null,null,null,null,null,null,null,"HM"]
[null,null,null,null,null,null,null,null,null,null,"HM"]
[null,null,"Option 1. Enhanced Local Exhaust (1 point)",null,"Y",1,"M",0,"V",1,"HM",{"$f":"C180","v":"Option 1. Enhanced Local Exhaust (1 point)"}]
[null,null,null,null,null,null,null,null,null,null,"HM"]
[null,null,null,null,null,null,null,null,null,null,"HM"]
[null,null,"automatic humidistat controller",null,"Bathroom exhaust fan control type in every bathroom with a shower, bathtub, or spa",null,null,null,null,null,"HM","Site verified","JML","2017-11-14",null,"Conduct on-site verification that each full bathroom has exhaust fan that either is controlled by occupancy sensor, humidistat, or delay timer that operates fan for at least 20 minutes, or runs continuously."]
[null,null,null,null,null,null,null,null,null,null,"HM"]
[null,null,"AND/OR",null,null,null,null,null,null,null,"HM"]
[null,null,"Option 2. Enhanced Whole-House Ventilation (2 points)",null,"Y",2,"M",0,"V",2,"HM",{"$f":"C186","v":"Option 2. Enhanced Whole-House Ventilation (2 points)"}]
[null,null,null,null,null,null,null,null,null,null,"HM"]
[null,null,null,null,null,null,null,null,null,null,"HM"]
[null,null,"True","A balanced whole-house ventilation system was designed and installed that meets ASHRAE 62.2-2010 sections 4 and 7 in each home or unit.",null,null,null,null,null,null,"HM","Site verified","JML","2017-11-14",null,"Conduct on-site verification that whole-house (or whole-unit) ventilation strategy is balanced."]
[]
[null,null,null,null,null,null,null,null,null,null,"HM"]
[null,null,"True","The system does not exceed ASHRAE 62.2-2010 requirements by more than 10%. ",null,null,null,null,null,null,"HM","Site verified,ERV  ran at 70%","JML","2017-11-14",null,"Conduct on-site verification that ventilation system is programmed to not exceed ASHRAE 62.2 by more than 10%."]
[null,null,null,null,null,null,null,null,null,null,"HM"]
["EQc2",{"$f":"IF(RatingSystem=1,HYPERLINK(\"http://www.usgbc.org/node/2612496\",L194),HYPERLINK(\"http://www.usgbc.org/node/2612497\",L194))","v":"EQ Credit Contaminant Control"},null,null,null,null,null,null,null,null,"HM","EQ Credit Contaminant Control"]
[null,null,null,null,null,null,null,null,null,null,"HM"]
[null,"Up to 2 points",null,null,"Preliminary    Y",{"$f":"IF(SUM(F200,F209,F217,F230)>2,2,SUM(F200,F209,F217,F230))","v":1},"M",{"$f":"IF(SUM(H200,H209,H217,H230)>2,2,SUM(H200,H209,H217,H230))","v":0},"Verified",{"$f":"IF(SUM(J200,J209,J217,J230)>2,2,SUM(J200,J209,J217,J230))","v":1},"HM",null,"Responsible Party"]
[null,"Exemplary Performance: Achieve a minimum of 2 1/2 points to earn another 1/2 point.",null,null,null,null,null,null,null,null,"HM"]
[null,null,null,null,null,null,null,null,null,null,"HM"]
[null,null,null,null,null,null,null,null,null,null,"HM"]
[null,null,"Option 1. Walk-off Mats (0.5 point)",null,"Y",null,"M",null,"V",null,"HM",{"$f":"C200","v":"Option 1. Walk-off Mats (0.5 point)"}]
[null,null,null,null,null,null,null,null,null,null,"HM"]
[null,null,null,null,null,null,null,null,null,null,"HM"]
[null,null,"False","For all primary entryways, a permanent walk-off mat that is at least 4 feet (1.2 meters) long and allows access for cleaning has been installed.",null,null,null,null,null,null,"HM",null,null,null,null,"Conduct on-site verification that permanent, cleanable, walk-off mats at least 4 feet (1.2 meters) long are installed at each entry (for common exterior entryways in multifamily buildings, at least 10 feet, or 3 meters, long)."]
[null,null,null,null,null,null,null,null,null,null,"HM"]
[null,null,"For multifamily projects",null,null,null,null,null,null,null,"HM"]
[null,null,"(Select one)","For exterior entryways in common areas, permanent systems that are at least 10 feet (3 meters) long have been installed.",null,null,null,null,null,null,"HM"]
[null,null,null,null,null,null,null,null,null,null,"HM"]
[null,null,"AND/OR",null,null,null,null,null,null,null,"HM"]
[null,null,"Option 2. Shoe Removal and Storage (0.5 point)",null,"Y",0.5,"M",0,"V",0.5,"HM",{"$f":"C209","v":"Option 2. Shoe Removal and Storage (0.5 point)"}]
[null,null,null,null,null,null,null,null,null,null,"HM"]
[null,null,null,null,null,null,null,null,null,null,"HM"]
[null,null,"True","A shoe removal and storage space is near the primary entryway.",null,null,null,null,null,null,"HM","Site Verified","JML","2017-11-14",null,"Conduct on-site verification that uncarpeted shoe removal and storage space is installed near primary entryway (of each unit in multifamily buildings). "]
[null,null,null,null,null,null,null,null,null,null,"HM"]
[null,null,"True","No conventional carpet is installed in shoe removal and storage area.",null,null,null,null,null,null,"HM"]
[null,null,null,null,null,null,null,null,null,null,"HM"]
[null,null,"AND/OR",null,null,null,null,null,null,null,"HM"]
[null,null,"Option 3. Preoccupancy Flush (0.5 point)",null,"Y",0.5,"M",null,"V",0.5,"HM",{"$f":"C217","v":"Option 3. Preoccupancy Flush (0.5 point)"}]
[null,null,null,null,null,null,null,null,null,null,"HM"]
[null,null,null,null,null,null,null,null,null,null,"HM"]
[null,null,"False","The project has earned the EPA Indoor airPLUS label",null,null,null,null,null,null,"HM"]
[null,null,null,"OR",null,null,null,null,null,null,"HM"]
[null,null,"True","At installation, all permanent ducts and vents were sealed to maximize contamination from construction.",null,null,null,null,null,null,"HM","Site Verified","JML","2017-11-14",null,"At midconstruction site visit, conduct on-site verification that ducts are sealed."]
[null,null,null,null,null,null,null,null,null,null,"HM"]
[null,null,"After construction ends and before occupancy",null,null,null,null,null,null,null,"HM",{"$f":"C224","v":"After construction ends and before occupancy"}]
[null,null,"True","Any dust and debris was removed from ducts.",null,null,null,null,null,null,"HM",null,"JML","2017-11-14",null,"At final site visit, conduct swipe of duct interiors and verify that ducts are clean."]
[null,null,null,null,null,null,null,null,null,null,"HM"]
[null,null,"True","The home was flushed out for 48 hours, with all windows open, a fan run continuously or all HVAC fans and exhaust fans.",null,null,null,null,null,null,"HM"]
[null,null,null,null,null,null,null,null,null,null,"HM"]
[null,null,"AND/OR",null,null,null,null,null,null,null,"HM"]
[null,null,"Option 4. Air Testing (1 point)",null,"Y",null,"M",null,"V",null,"HM",{"$f":"C230","v":"Option 4. Air Testing (1 point)"}]
[null,null,null,null,null,null,null,null,null,null,"HM"]
[null,null,null,null,null,null,null,null,null,null,"HM"]
[null,null,"(Select one)","The building was tested for indoor air contaminants and maximum concentrations were not exceeded.",null,null,null,null,null,null,"HM",null,null,null,null,"Verify indoor air contamination test results don't exceed maximum concentrations."]
[null,null,null,null,null,null,null,null,null,null,"HM"]
["EQc3",{"$f":"IF(RatingSystem=1,HYPERLINK(\"http://www.usgbc.org/node/2612511\",L235),HYPERLINK(\"http://www.usgbc.org/node/2612511\",L235))","v":"EQ Credit Balancing of Heating and Cooling Distribution Systems"},null,null,null,null,null,null,null,null,"HM","EQ Credit Balancing of Heating and Cooling Distribution Systems"]
[null,null,null,null,null,null,null,null,null,null,"HM"]
[null,"Up to 3 points",null,null,"Preliminary    Y",{"$f":"IF(F240>0,F240,F264)","v":2},"M",{"$f":"IF(H240>0,H240,H264)","v":0},"Verified",{"$f":"IF(J240>0,J240,J264)","v":2},"HM",null,"Responsible Party"]
[null,null,null,null,null,null,null,null,null,null,"HM"]
[null,null,null,null,null,null,null,null,null,null,"HM"]
[null,null,"Case 1. Forced-Air Systems",null,"Y",{"$f":"SUM(F243,F252,F258)","v":2},"M",{"$f":"SUM(H243,H252,H258)","v":0},"V",{"$f":"SUM(J243,J252,J258)","v":2},"HM",{"$f":"C240","v":"Case 1. Forced-Air Systems"}]
[null,null,null,null,null,null,null,null,null,null,"HM"]
[null,null,null,null,null,null,null,null,null,null,"HM"]
[null,null,"Option 1. Multiple Zones (1 point)",null,"Y",null,"M",null,"V",null,"HM",{"$f":"C243","v":"Option 1. Multiple Zones (1 point)"}]
[null,null,null,null,null,null,null,null,null,null,"HM"]
[null,null,null,null,null,null,null,null,null,null,"HM"]
[null,null,"(Select one)","A system with at least two space-conditioning zones with independent thermostatic controls has been installed.",null,null,null,null,null,null,"HM",null,null,null,null,"Conduct on-site verification that at least two space-conditioning zones are installed."]
[null,null,null,"OR",null,null,null,null,null,null,"HM"]
[null,null,"(Select one)","The project is a single family home less than 800 sq ft (74 sq m) or a multifamily building whose average unit size is less than 1,200 sq ft (110 sq m).",null,null,null,null,null,null,"HM",null,null,null,null,"Verify that single-family home is less than 800 square feet or Verify that average unit in multifamily building is less than 1,200 square feet."]
[null,null,null,null,null,null,null,null,null,null,"HM"]
[null,null,null,null,null,null,null,null,null,null,"HM"]
[null,null,"AND/OR",null,null,null,null,null,null,null,"HM"]
[null,null,"Option 2. Supply Air-Flow Testing (1 point)",null,"Y",1,"M",null,"V",1,"HM",{"$f":"C252","v":"Option 2. Supply Air-Flow Testing (1 point)"}]
[null,null,null,null,null,null,null,null,null,null,"HM"]
[null,null,null,null,null,null,null,null,null,null,"HM"]
[null,null,"True","The supply air-flow rates are within +/- 20% (or +/- 25 cfm or 11 lps) of calculated values from ACCA Manual J.",null,null,null,null,null,null,"HM","Balancing report was submitted","JML","2017-11-14",null,"Verify that ductless heating and cooling system is installed; OR Test supply air-flow rates for each room and verify that air-flow rates are within 20% or 25 cfm (11 lps) of design; OR Verify that supply air-flow rates, as tested by third-party, are within 20% or 25 cfm (11 lps) of design."]
[null,null,null,null,null,null,null,null,null,null,"HM"]
[null,null,"AND/OR",null,null,null,null,null,null,null,"HM"]
[null,null,"Option 3. Pressure Balancing (1 point)",null,"Y",1,"M",null,"V",1,"HM",{"$f":"C258","v":"Option 3. Pressure Balancing (1 point)"}]
[null,null,null,null,null,null,null,null,null,null,"HM"]
[null,null,null,null,null,null,null,null,null,null,"HM"]
[null,null,"True","The pressure differential between bedroom and rest of the house is less than 3 Pa.",null,null,null,null,null,null,"HM","Site Verified","JML","2017-11-14",null,"Test pressure difference between each bedroom and main part of house and verify that pressure difference is less than 3 Pa; OR  Verify that pressure differences between each bedroom and main part of house, as tested by third-party, are less than 3 Pa."]
[null,null,null,null,null,null,null,null,null,null,"HM"]
[null,null,"OR",null,null,null,null,null,null,null,"HM"]
[null,null,"Case 2. Radiative Systems",null,"Y",{"$f":"SUM(F267,F277)","v":0},"M",{"$f":"SUM(H267,H277)","v":0},"V",{"$f":"SUM(J267,J277)","v":0},"HM",{"$f":"C264","v":"Case 2. Radiative Systems"}]
[null,null,null,null,null,null,null,null,null,null,"HM"]
[null,null,null,null,null,null,null,null,null,null,"HM"]
[null,null,"Option 1. Multiple Zones (1 point)",null,"Y",null,"M",null,"V",null,"HM",{"$f":"C267","v":"Option 1. Multiple Zones (1 point)"}]
[null,null,null,null,null,null,null,null,null,null,"HM"]
[null,null,null,null,null,null,null,null,null,null,"HM"]
[null,null,"(Select one)","A system with at least two zones with independent thermostatic controls has been installed",null,null,null,null,null,null,"HM",null,null,null,null,"Conduct on-site verification that at least two space-conditioning zones are installed."]
[null,null,"(Select one)","Each zone has a separate loop and pump controlled automatically by a thermostat control.",null,null,null,null,null,null,"HM",null,null,null,null,"Verify that each zone has a separate loop and separate pump controlled automatically by a thermostat control"]
[null,null,null,"OR",null,null,null,null,null,null,"HM"]
[null,null,"(Select one)","The project is a single family home less than 800 sq ft (74 sq m) or a multifamily building whose average unit size is less than 1,200 sq ft (110 sq m).",null,null,null,null,null,null,"HM",null,null,null,null,"Verify that single-family home is less than 800 square feet or Verify that average unit in multifamily building is less than 1,200 square feet."]
[null,null,null,null,null,null,null,null,null,null,"HM"]
[null,null,null,null,null,null,null,null,null,null,"HM"]
[null,null,"AND/OR",null,null,null,null,null,null,null,"HM"]
[null,null,"Option 2. Room-by-Room Controls (2 points)",null,"Y",null,"M",null,"V",null,"HM",{"$f":"C277","v":"Option 2. Room-by-Room Controls (2 points)"}]
[null,null,null,null,null,null,null,null,null,null,"HM"]
[null,null,null,null,null,null,null,null,null,null,"HM"]
[null,null,"(Select one)","Room-by-room thermostatic controls are installed.",null,null,null,null,null,null,"HM",null,null,null,null,"Verify that each room has thermostatic control."]
[null,null,null,null,null,null,null,null,null,null,"HM"]
["EQc4",{"$f":"IF(RatingSystem=1,HYPERLINK(\"http://www.usgbc.org/node/2612530\",L282),HYPERLINK(\"http://www.usgbc.org/node/2612534\",L282))","v":"EQ Credit Enhanced Compartmentalization"},null,null,null,null,null,null,null,null,"HM","EQ Credit Enhanced Compartmentalization"]
[null,null,null,null,null,null,null,null,null,null,"HM"]
[null,{"$f":"CONCATENATE(IF(Instructions!$J$62=1,\"1 point\",\"Up to 3 points\"))","v":"1 point"},null,null,"Preliminary    Y",0,"M",0,"Verified",0,"HM",null,"Responsible Party"]
[null,null,null,null,null,null,null,null,null,null,"HM"]
[null,null,null,null,null,null,null,null,null,null,"HM"]
[null,null,{"$f":"C173","v":0},{"$f":"CONCATENATE(\"Leakage per area of enclosure\",IF(Instructions!$I$62=1,\" (cfm50/sq ft)\",\" (cmm50/sq m)\"))","v":"Leakage per area of enclosure (cfm50/sq ft)"},null,null,null,null,null,null,"HM",null,null,null,null,"Conduct on-site testing of compartmentalization using blower door; OR Verify compartmentalization test results conducted by qualified energy rater or USGBC-approved alternative, according to HERS procedures."]
[null,null,null,null,null,null,null,null,null,null,"HM"]
["EQc5",{"$f":"IF(RatingSystem=1,HYPERLINK(\"http://www.usgbc.org/node/2612541\",L289),HYPERLINK(\"http://www.usgbc.org/node/2612547\",L289))","v":"EQ Credit Combustion Venting"},null,null,null,null,null,null,null,null,"HM","EQ Credit Combustion Venting"]
[null,null,null,null,null,null,null,null,null,null,"HM"]
[null,"Up to 2 points",null,null,"Preliminary    Y",{"$f":"IF(F294>0,F294,F300)","v":2},"M",{"$f":"IF(H294>0,H294,H300)","v":0},"Verified",{"$f":"IF(J294>0,J294,J300)","v":2},"HM",null,"Responsible Party"]
[null,null,null,null,null,null,null,null,null,null,"HM"]
[null,null,null,null,null,null,null,null,null,null,"HM"]
[null,null,"Option 1. No Fireplace or Woodstove (2 points)",null,"Y",2,"M",null,"V",2,"HM",{"$f":"C294","v":"Option 1. No Fireplace or Woodstove (2 points)"}]
[null,null,null,null,null,null,null,null,null,null,"HM"]
[null,null,null,null,null,null,null,null,null,null,"HM"]
[null,null,"True","No fireplaces or woodstoves have been installed.",null,null,null,null,null,null,"HM","Site Verified","JML","2017-11-14",null,"Verify on site that no fireplace or woodstove is installed."]
[null,null,null,null,null,null,null,null,null,null,"HM"]
[null,null,"OR",null,null,null,null,null,null,null,"HM"]
[null,null,"Option 2. Enhanced Combustion Venting Measures (1 point)",null,"Y",null,"M",null,"V",null,"HM",{"$f":"C300","v":"Option 2. Enhanced Combustion Venting Measures (1 point)"}]
[null,null,null,null,null,null,null,null,null,null,"HM"]
[null,null,null,null,null,null,null,null,null,null,"HM"]
[null,null,"(Select one)","The project has earned the EPA Indoor airPLUS label",null,null,null,null,null,null,"HM"]
[null,null,null,"OR",null,null,null,null,null,null,"HM"]
[null,null,"(Select one)","EPA qualified wood- or pellet-burning fireplaces with either power or direct venting have been installed.",null,null,null,null,null,null,"HM",null,null,null,null,"Verify that any wood or pellet stove is EPA qualified and power or direct vented."]
[null,null,"(Select one)","A natural gas, propane, or alcohol stove approved by a safety testing facility and has power or direct venting has been installed. ",null,null,null,null,null,null,"HM",null,null,null,null,"Verify that any gas, propane, or alcohol stove has been listed by a safety testing facility, has a glass door and electronic pilot, and is power or direct vented."]
[null,null,"(Select one)","A natural gas, propane, or alcohol stove has a permanently fixed glass front or gasketed door and an electronic pilot. ",null,null,null,null,null,null,"HM"]
[null,null,null,null,null,null,null,null,null,null,"HM"]
[null,null,null,null,null,null,null,null,null,null,"HM"]
["EQc6",{"$f":"IF(RatingSystem=1,HYPERLINK(\"http://www.usgbc.org/node/2612569\",L310),HYPERLINK(\"http://www.usgbc.org/node/2612573\",L310))","v":"EQ Credit Enhanced Garage Pollutant Protection"},null,null,null,null,null,null,null,null,"HM","EQ Credit Enhanced Garage Pollutant Protection"]
[null,null,null,null,null,null,null,null,null,null,"HM"]
[null,{"$f":"CONCATENATE(IF(Instructions!$J$62=1,\"Up to 2 points\",\"1 point\"))","v":"Up to 2 points"},null,null,"Preliminary    Y",{"$f":"IF(Instructions!$J$62=1,IF(F315>0,F315,F347),IF(F386>0,F386,F398))","v":2},"M",{"$f":"IF(Instructions!$J$62=1,IF(H315>0,H315,H347),IF(H386>0,H386,H398))","v":0},"Verified",{"$f":"IF(Instructions!$J$62=1,IF(J315>0,J315,J347),IF(J386>0,J386,J398))","v":2},"HM",null,"Responsible Party"]
[null,null,null,null,null,null,null,null,null,null,"HM"]
[null,null,null,null,null,null,null,null,null,null,"HM"]
[null,null,"Case 1. Single Family",null,"Y",{"$f":"IF(F318>0,F318,F336)","v":2},"M",{"$f":"IF(H318>0,H318,H336)","v":0},"V",{"$f":"IF(J318>0,J318,J336)","v":2},"H",{"$f":"C315","v":"Case 1. Single Family"}]
[null,null,null,null,null,null,null,null,null,null,"H"]
[null,null,null,null,null,null,null,null,null,null,"H"]
[null,null,"Option 1. Exhaust Fan in Garage (1 point)",null,"Y",null,"M",null,"V",null,"H",{"$f":"C318","v":"Option 1. Exhaust Fan in Garage (1 point)"}]
[null,null,null,null,null,null,null,null,null,null,"H"]
[null,null,null,null,null,null,null,null,null,null,"H"]
[null,null,"(Select one)","The project has earned the EPA Indoor airPLUS label",null,null,null,null,null,null,"H"]
[null,null,null,"OR",null,null,null,null,null,null,"H"]
[null,null,"Meet all of the following:",null,null,null,null,null,null,null,"H"]
[null,null,"(Select one)","An exhaust fan is installed in the garage and is rated at least 75 cfm (35 lps).",null,null,null,null,null,null,"H",null,null,null,null,"Conduct on-site verification that exhaust fan in garage is rated at least 75 cfm (35 lps) "]
[null,null,null,null,null,null,null,null,null,null,"H"]
[null,null,"(Select one)","The exhaust fan meets Energy Star cfm/w performance requirements.",null,null,null,null,null,null,"H",null,null,null,null,"Conduct on-site verification that exhaust fan in garage meets ENERGY STAR performance requirements."]
[null,null,null,null,null,null,null,null,null,null,"H"]
[null,null,"(Select one)","The exhaust fan vents directly to the outdoors.",null,null,null,null,null,null,"H",null,null,null,null,"Conduct on-site verification that fan vents directly to the outdoors."]
[null,null,null,null,null,null,null,null,null,null,"H"]
[null,null,"(Select one)","The exhaust fan has an automatic timer control linked to an occupant sensor, a light switch, a garage door opening-closing mechanism, or a carbon monoxide sensor that turns on the fan when ambient CO levels reach 35 ppm, or equivalent.",null,null,null,null,null,null,"H",null,null,null,null,"Conduct on-site verification that fan is linked to occupant sensor, garage opening-closing mechanism, CO sensor, or similar automatic timer. "]
[null,null,null,null,null,null,null,null,null,null,"H",null,null,null,null,"Conduct on-site verification that fan has an automatic timer that is set to provide at least three air changes each time the fan is turned on. "]
[null,null,null,null,null,null,null,null,null,null,"H"]
[null,null,"(Select one)","The exhaust fan has an automatic timer set to provide at least three air changes each time the fan is turned on.",null,null,null,null,null,null,"H"]
[null,null,null,null,null,null,null,null,null,null,"H"]
[null,null,"OR",null,null,null,null,null,null,null,"H"]
[null,null,"Option 2. No Garage, or Detached Garage, or Carport (2 points)",null,"Y",2,"M",null,"V",2,"H",{"$f":"C336","v":"Option 2. No Garage, or Detached Garage, or Carport (2 points)"}]
[null,null,null,null,null,null,null,null,null,null,"H"]
[null,null,null,null,null,null,null,null,null,null,"H"]
[null,null,"Select one of the following:",null,null,null,null,null,null,null,"H"]
[null,null,"True","No garage has been constructed.",null,null,null,null,null,null,"H","Site Verified","JML","2017-11-14",null,"Conduct on-site verification that there is no garage attached to home."]
[null,null,null,null,null,null,null,null,null,null,"H"]
[null,null,"(Select one)","A detached garage has been constructed.",null,null,null,null,null,null,"H"]
[null,null,null,null,null,null,null,null,null,null,"H"]
[null,null,"(Select one)","A carport has been constructed.",null,null,null,null,null,null,"H"]
[null,null,null,null,null,null,null,null,null,null,"H"]
[null,null,"OR",null,null,null,null,null,null,null,"H"]
[null,null,"Case 2. Multifamily ",null,"Y",{"$f":"IF(F350>0,F350,IF(F363>0,F363,F379))","v":0},"M",{"$f":"IF(H350>0,H350,IF(H363>0,H363,H379))","v":0},"V",{"$f":"IF(J350>0,J350,IF(J363>0,J363,J379))","v":0},"H",{"$f":"C347","v":"Case 2. Multifamily "}]
[null,null,null,null,null,null,null,null,null,null,"H"]
[null,null,null,null,null,null,null,null,null,null,"H"]
[null,null,"Option 1. Exhaust Fan in Multicar Garage (1 point)",null,"Y",null,"M",null,"V",null,"H",{"$f":"C350","v":"Option 1. Exhaust Fan in Multicar Garage (1 point)"}]
[null,null,null,null,null,null,null,null,null,null,"H"]
[null,null,null,null,null,null,null,null,null,null,"H"]
[null,null,"Meet all of the following:",null,null,null,null,null,null,null,"H"]
[null,null,"(Select one)","All of the requirements in ASHRAE 62.1-2010 for garage ventilation have been met.",null,null,null,null,null,null,"H",null,null,null,null,"Conduct on-site verification that exhaust fans in garage are installed per plans."]
[null,null,null,null,null,null,null,null,null,null,"H"]
[null,null,"(Select one)","The garage has sufficient exhaust to create negative pressure with respect to adjacent spaces with the doors to the garage closed.",null,null,null,null,null,null,"H",null,null,null,null,"Conduct on-site verification that garage is fully air-sealed from rest of building and has hard-lid ceiling and self-closing doors."]
[null,null,null,null,null,null,null,null,null,null,"H"]
[null,null,"(Select one)","Self-closing doors have been installed.  Deck-to-deck partitions or a hard lid ceiling have been installed.",null,null,null,null,null,null,"H",null,null,null,null,"Test pressure difference between garage and surrounding spaces when exhaust fans are on and verify that garage is depressurized by at least 5 Pa."]
[null,null,null,null,null,null,null,null,null,null,"H"]
[null,null,"(Select one)","The exhaust fan either runs continuously or is on a carbon monoxide sensor that turns on the fan when ambient CO levels reach 35 ppm.",null,null,null,null,null,null,"H",null,null,null,null,"Conduct on-site verification that fans either are linked to CO sensor or run continuously."]
[null,null,null,null,null,null,null,null,null,null,"H"]
[null,null,"OR",null,null,null,null,null,null,null,"H"]
[null,null,"Option 2. Exhaust Fan in Small Garage (1 point)",null,"Y",null,"M",null,"V",null,"H",{"$f":"C363","v":"Option 2. Exhaust Fan in Small Garage (1 point)"}]
[null,null,null,null,null,null,null,null,null,null,"H"]
[null,null,null,null,null,null,null,null,null,null,"H"]
[null,null,"Meet all of the following:",null,null,null,null,null,null,null,"H"]
[null,null,"(Select one)","An exhaust fan that meets ENERGY STAR minimum efficacy levels (cfm/W) has been installed.",null,null,null,null,null,null,"H",null,null,null,null,"Conduct on-site verification that exhaust fan in garage meets ENERGY STAR performance requirements."]
[null,null,null,null,null,null,null,null,null,null,"H"]
[null,null,"(Select one)","Installed direct-exhaust fans are 100 cfm (47 lps) or greater.",null,null,null,null,null,null,"H",null,null,null,null,"Conduct on-site verification that exhaust fan in garage is rated at least 100 cfm (47 lps) nonducted"]
[null,null,null,null,null,null,null,null,null,null,"H"]
[null,null,"(Select one)","Installed ducted exhaust fans are 130 cfm (61 lps) or greater. ",null,null,null,null,null,null,"H",null,null,null,null,"Conduct on-site verification that exhaust fan in garage is rated at least 130 cfm (61 lps) ducted"]
[null,null,null,null,null,null,null,null,null,null,"H"]
[null,null,"(Select one)","The exhaust fan either runs continuously or has an automatic timer control linked to an occupant sensor, a light switch, a garage door opening-closing mechanism, or a carbon monoxide sensor that turns on the fan when ambient CO levels reach 35 ppm, or equivalent.",null,null,null,null,null,null,"H",null,null,null,null,"Conduct on-site verification that fan is linked to occupant sensor, garage opening-closing mechanism, CO sensor, or similar automatic timer. "]
[null,null,null,null,null,null,null,null,null,null,"H",null,null,null,null,"Conduct on-site verification that timer is set to provide at least three air changes each time the fan is turned on. "]
[null,null,null,null,null,null,null,null,null,null,"H"]
[null,null,"(Select one)","The exhaust fan has an automatic timer set to provide at least three air changes each time the fan is turned on.",null,null,null,null,null,null,"H"]
[null,null,null,null,null,null,null,null,null,null,"H"]
[null,null,"OR",null,null,null,null,null,null,null,"H"]
[null,null,"Option 3. No Garage, or Detached Garage (2 points)",null,"Y",null,"M",null,"V",null,"H",{"$f":"C379","v":"Option 3. No Garage, or Detached Garage (2 points)"}]
[null,null,null,null,null,null,null,null,null,null,"H"]
[null,null,null,null,null,null,null,null,null,null,"H"]
[null,null,"True","No garage has been constructed.",null,null,null,null,null,null,"H",null,null,null,null,"Conduct on-site verification that there is no garage attached to building."]
[null,null,null,null,null,null,null,null,null,null,"H"]
[null,null,"(Select one)","A detached garage has been constructed.",null,null,null,null,null,null,"H"]
[null,null,null,null,null,null,null,null,null,null,"H"]
[null,null,"Option 1. Exhaust Fan on Controls in Garage  (1 point)",null,"Y",null,"M",null,"V",null,"M",{"$f":"C386","v":"Option 1. Exhaust Fan on Controls in Garage  (1 point)"}]
[null,null,null,null,null,null,null,null,null,null,"M"]
[null,null,null,null,null,null,null,null,null,null,"M"]
[null,null,"(Select one)","All of the requirements in ASHRAE 62.1-2010 for garage ventilation have been met.",null,null,null,null,null,null,"M",null,null,null,null,"Conduct on-site verification that exhaust fans in garage are installed per plans."]
[null,null,null,null,null,null,null,null,null,null,"M"]
[null,null,"(Select one)","The garage has sufficient exhaust to create negative pressure with respect to adjacent spaces with the doors to the garage closed.",null,null,null,null,null,null,"M",null,null,null,null,"Conduct on-site verification that garage is fully air-sealed from rest of building and has hard-lid ceiling and self-closing doors."]
[null,null,null,null,null,null,null,null,null,null,"M"]
[null,null,"(Select one)","Self-closing doors have been installed.  Deck-to-deck partitions or a hard lid ceiling have been installed.",null,null,null,null,null,null,"M",null,null,null,null,"Test pressure difference between garage and surrounding spaces when exhaust fans are on and verify that garage is depressurized by at least 5 Pa."]
[null,null,null,null,null,null,null,null,null,null,"M"]
[null,null,"(Select one)","The exhaust fan either runs continuously or is on a carbon monoxide sensor that turns on the fan when ambient CO levels reach 35 ppm.",null,null,null,null,null,null,"M",null,null,null,null,"Conduct on-site verification that fans either are linked to CO sensor or run continuously."]
[null,null,null,null,null,null,null,null,null,null,"M"]
[null,null,"OR",null,null,null,null,null,null,null,"M"]
[null,null,"Option 2. Detached Garage or No Garage or Carport (1 point)",null,"Y",null,"M",null,"V",null,"M",{"$f":"C398","v":"Option 2. Detached Garage or No Garage or Carport (1 point)"}]
[null,null,null,null,null,null,null,null,null,null,"M"]
[null,null,null,null,null,null,null,null,null,null,"M"]
[null,null,"(Select one)","No garage has been constructed.",null,null,null,null,null,null,"M",null,null,null,null,"Conduct on-site verification that there is no garage attached to building."]
[null,null,null,null,null,null,null,null,null,null,"M"]
[null,null,"(Select one)","A detached garage has been constructed",null,null,null,null,null,null,"M"]
[null,null,null,null,null,null,null,null,null,null,"M"]
["EQc7",{"$f":"IF(RatingSystem=1,HYPERLINK(\"http://www.usgbc.org/node/2612576\",L405),HYPERLINK(\"http://www.usgbc.org/node/2612579\",L405))","v":"EQ Credit Low-Emitting Products"},null,null,null,null,null,null,null,null,"HM","EQ Credit Low-Emitting Products"]
[null,null,null,null,null,null,null,null,null,null,"HM"]
[null,"Up to 3 points",null,null,"Preliminary    Y",0.5,"M",0,"Verified",0.5,"HM",null,"Responsible Party"]
[null,null,null,null,null,null,null,null,null,null,"HM"]
[null,null,null,null,null,null,null,null,null,null,"HM"]
[null,null,"Select all that apply.  At least 90% of a component must meet the requirement:",null,null,null,null,null,null,null,"HM"]
[null,null,"True","Site-applied interior paints and coatings have been tested and meet the requirements of CA Section 01350. (0.5 point)",null,null,null,null,null,null,"HM","Site Verified","JML","2017-11-14",null,"Verify that installed components satisfy requirements, using product literature or labels."]
[null,null,null,null,null,null,null,null,null,null,"HM"]
[null,null,"(Select one)","Flooring has been tested and meets the requirements of CA Section 01350. (0.5 point)",null,null,null,null,null,null,"HM",null,null,null,null,"Verify that installed components satisfy requirements, using product literature or labels."]
[null,null,null,null,null,null,null,null,null,null,"HM"]
[null,null,"(Select one)","Insulation has been tested and meets the requirements of CA Section 01350. (0.5 point)",null,null,null,null,null,null,"HM",null,null,null,null,"Verify that installed components satisfy requirements, using product literature or labels."]
[null,null,null,null,null,null,null,null,null,null,"HM"]
[null,null,"(Select one)","Site-applied adhesives and sealants have been tested and meet the requirements of CA Section 01350. (0.5 point)",null,null,null,null,null,null,"HM",null,null,null,null,"Verify that installed components satisfy requirements, using product literature or labels."]
[null,null,null,null,null,null,null,null,null,null,"HM"]
[null,null,"(Select one)","Composite wood products have been tested and meet the California Air Resources Board requirements for ultra-low-emitting formaldehyde (ULEF) resins or no-added formaldehyde based resins. (1 point)",null,null,null,null,null,null,"HM",null,null,null,null,"Verify that installed components satisfy requirements, using product literature or labels."]
[null,null,null,null,null,null,null,null,null,null,"HM"]
[null,null,null,null,null,null,null,null,null,null,"HM"]
["EQc8",{"$f":"IF(RatingSystem=1,HYPERLINK(\"\",L422),HYPERLINK(\"http://www.usgbc.org/node/2612518\",L422))","v":"EQ Credit No Environmental Tobacco Smoke"},null,null,null,null,null,null,null,null,"M","EQ Credit No Environmental Tobacco Smoke"]
[null,null,null,null,null,null,null,null,null,null,"M"]
[null,"1 point",null,null,"Preliminary    Y",0,"M",0,"Verified",0,"M",null,"Responsible Party"]
[null,null,null,null,null,null,null,null,null,null,"M"]
[null,null,null,null,null,null,null,null,null,null,"M"]
[null,null,"(Select one)","Smoking is prohibited throughout the building, including within living units.",null,null,null,null,null,null,"M",null,null,null,null,"Conduct on-site verification of signage indicating smoking and nonsmoking areas."]
[null,null,null,null,null,null,null,null,null,null,"M"]
[null,null,"(Select one)","The prohibition is communicated to tenants through building rental or lease agreements or in condo or co-op association covenants.  Restrictions and provisions for enforcement are also included.",null,null,null,null,null,null,"M",null,null,null,null,"Conduct on-site verification that any smoking areas are at least 25 feet (7.5 meters) away from entries, outdoor air intakes, and operable windows."]
[null,null,null,null,null,null,null,null,null,null,"M"]

{"sheet":"IN","index":13,"n_rows":56,"n_cols":17,"rows_kept":56,"cut":false,"hidden":false,"merged":[[55,2,55,4],[45,2,45,4],[26,2,26,4],[33,2,33,4],[32,2,32,4],[44,2,44,4],[41,2,41,4],[42,2,42,4],[38,2,38,4],[39,2,39,4],[35,2,35,4],[36,2,36,4],[4,1,4,3],[11,1,11,3],[50,1,50,3],[20,2,20,4],[19,2,19,4],[47,2,47,4],[48,2,48,4]]}
[null,"Innovation",null,null,null,null,null,null,null,null,null,"Notes","Verified \n(initials)","Date \nVerified","Verification Details","Verification Measure","QAD \nVerification Notes"]
[]
[null,null,null,null,"Preliminary    Y",{"$f":"SUM(F14,F53)","v":2},"Maybe",{"$f":"SUM(H14,H53)","v":0},"Verified",{"$f":"SUM(J14,J53)","v":2}]
[]
["INp1",{"$f":"IF(RatingSystem=1,HYPERLINK(\"http://www.usgbc.org/node/2613096\",L5),HYPERLINK(\"http://www.usgbc.org/node/2613096\",L5))","v":"IN Prerequisite Preliminary Rating"},null,null,null,null,null,null,null,null,"HM","IN Prerequisite Preliminary Rating"]
[null,null,null,null,null,null,null,null,null,null,"HM"]
[null,"Required",null,null,null,"Required",null,null,"Verified","Y","HM",null,"Responsible Party"]
[null,null,null,null,null,null,null,null,null,null,"HM"]
[null,null,null,null,null,null,null,null,null,null,"HM"]
[null,null,"True","Preliminary rating and meeting are complete.",null,null,null,null,null,null,"HM","Meeting was held 3/29/17 at Catalyst Partners","JML","2017-03-29",null,"Participate in preliminary rating."]
[null,null,null,null,null,null,null,null,null,null,"HM"]
["INc1",{"$f":"IF(RatingSystem=1,HYPERLINK(\"http://www.usgbc.org/node/2613189\",L12),HYPERLINK(\"http://www.usgbc.org/node/2613189\",L12))","v":"IN Credit Innovation"},null,null,null,null,null,null,null,null,"HM","IN Credit Innovation"]
[null,null,null,null,null,null,null,null,null,null,"HM"]
[null,"Up to 5 points",null,null,"Preliminary    Y",{"$f":"SUM(F17,F24,F30)","v":1},"M",{"$f":"SUM(H17,H24,H30)","v":0},"Verified",{"$f":"SUM(J17,J24,J30)","v":1},"HM",null,"Responsible Party"]
[null,null,null,null,null,null,null,null,null,null,"HM"]
[null,null,null,null,null,null,null,null,null,null,"HM"]
[null,null,"Option 1. Innovation (1 point)",null,"Y",null,"M",null,"V",null,"HM",{"$f":"C17","v":"Option 1. Innovation (1 point)"}]
[null,null,null,null,null,null,null,null,null,null,"HM"]
[null,null,null,null,null,null,null,null,null,null,"HM"]
[null,null,"Describe the intent of the proposed innovation credit.",null,null,null,null,null,null,null,"HM"]
[null,null,null,null,null,null,null,null,null,null,"HM",null,null,null,null,"Verify that all components listed in USGBC-approved Innovation request are installed;"]
[null,null,null,null,null,null,null,null,null,null,"HM"]
[null,null,"AND/OR",null,null,null,null,null,null,null,"HM"]
[null,null,"Option 2. Pilot (1 point)",null,"Y",null,"M",null,"V",null,"HM",{"$f":"C24","v":"Option 2. Pilot (1 point)"}]
[null,null,null,null,null,null,null,null,null,null,"HM"]
[null,null,null,null,null,null,null,null,null,null,"HM"]
[null,null,null,null,null,"Pilot credit name ",null,null,null,null,"HM",null,null,null,null,"Verify that all components listed in USGBC-approved pilot credit are installed."]
[null,null,null,null,null,null,null,null,null,null,"HM"]
[null,null,"AND/OR",null,null,null,null,null,null,null,"HM"]
[null,null,"Option 3. Additional Strategies (0.5-3 points)",null,"Y",1,"M",null,"V",1,"HM",{"$f":"C30","v":"Option 3. Additional Strategies (0.5-3 points)"}]
[null,null,null,null,null,null,null,null,null,null,"HM"]
[null,null,null,null,null,null,null,null,null,null,"HM"]
[null,null,"Exemplary Performance",null,null,"Strategy",null,null,null,null,"HM",null,"JML","2017-11-14",null,"Verify that all components listed in USGBC-approved Innovation request are installed; OR Verify that all components listed in USGBC-approved pilot credit are installed."]
[null,null,"MR Option 2",null,null,"Credit name ",null,null,null,null,"HM"]
[null,null,null,null,null,null,null,null,null,null,"HM"]
[null,null,null,null,null,"Strategy",null,null,null,null,"HM",null,null,null,null,"Verify that all components listed in USGBC-approved Innovation request are installed; OR Verify that all components listed in USGBC-approved pilot credit are installed."]
[null,null,null,null,null,"Credit name ",null,null,null,null,"HM"]
[null,null,null,null,null,null,null,null,null,null,"HM"]
[null,null,null,null,null,"Strategy",null,null,null,null,"HM",null,null,null,null,"Verify that all components listed in USGBC-approved Innovation request are installed; OR Verify that all components listed in USGBC-approved pilot credit are installed."]
[null,null,null,null,null,"Credit name ",null,null,null,null,"HM"]
[null,null,null,null,null,null,null,null,null,null,"HM"]
[null,null,null,null,null,"Strategy",null,null,null,null,"HM",null,null,null,null,"Verify that all components listed in USGBC-approved Innovation request are installed; OR Verify that all components listed in USGBC-approved pilot credit are installed."]
[null,null,null,null,null,"Credit name ",null,null,null,null,"HM"]
[null,null,null,null,null,null,null,null,null,null,"HM"]
[null,null,null,null,null,"Strategy",null,null,null,null,"HM",null,null,null,null,"Verify that all components listed in USGBC-approved Innovation request are installed; OR Verify that all components listed in USGBC-approved pilot credit are installed."]
[null,null,null,null,null,"Credit name ",null,null,null,null,"HM"]
[null,null,null,null,null,null,null,null,null,null,"HM"]
[null,null,null,null,null,"Strategy",null,null,null,null,"HM",null,null,null,null,"Verify that all components listed in USGBC-approved Innovation request are installed; OR Verify that all components listed in USGBC-approved pilot credit are installed."]
[null,null,null,null,null,"Credit name ",null,null,null,null,"HM"]
[null,null,null,null,null,null,null,null,null,null,"HM"]
["INc2",{"$f":"IF(RatingSystem=1,HYPERLINK(\"http://www.usgbc.org/node/2613192\",L51),HYPERLINK(\"http://www.usgbc.org/node/2613192\",L51))","v":"IN Credit LEED Accredited Professional"},null,null,null,null,null,null,null,null,"HM","IN Credit LEED Accredited Professional"]
[null,null,null,null,null,null,null,null,null,null,"HM"]
[null,"1 point",null,null,"Preliminary    Y",1,"M",0,"Verified",1,"HM",null,"Responsible Party"]
[null,null,null,null,null,null,null,null,null,null,"HM"]
[null,null,null,null,null,null,null,null,null,null,"HM"]
[null,null,"Jordin Winn",null,null,"Name of credential holder",null,null,null,null,"HM","Verified on USGBC.org","JML","2017-11-14",null,"Verify that principal member of project team is LEED AP Homes."]

{"sheet":"RP","index":14,"n_rows":19,"n_cols":17,"rows_kept":19,"cut":false,"hidden":false,"merged":[[4,1,4,3],[9,2,9,9],[17,2,17,3],[18,2,18,3],[14,2,14,3],[15,2,15,3],[10,2,10,3],[11,2,11,3],[12,2,12,3],[13,2,13,3],[16,2,16,3]]}
[null,"Regional Priority",null,null,null,null,null,null,null,null,null,"Notes","Verified \n(initials)","Date \nVerified","Verification Details","Verification Measure","QAD \nVerification Notes"]
[]
[null,null,null,null,"Preliminary    Y",{"$f":"F7","v":3},"Maybe",{"$f":"H7","v":0},"Verified",{"$f":"J7","v":3}]
[]
["RPc1",{"$f":"IF(RatingSystem=1,HYPERLINK(\"http://www.usgbc.org/node/2613197\",L5),HYPERLINK(\"http://www.usgbc.org/node/2613197\",L5))","v":"RP Credit Regional Priority"},null,null,null,null,null,null,null,null,"HM","RP Credit Regional Priority"]
[null,null,null,null,null,null,null,null,null,null,"HM"]
[null,"Up to 4 points",null,null,"Preliminary    Y",3,"M",0,"Verified",3,"HM",null,"Responsible Party"]
[null,null,null,null,null,null,null,null,null,null,"HM"]
[null,null,null,null,null,null,null,null,null,null,"HM"]
[null,null,"Regional priority credits may be found on www.usgbc.org/rpc.",null,null,null,null,null,null,null,"HM"]
[null,null,"Regional Priority Credit Name",null,"Zone"]
[null,null,"Indoor Water Use",null,null,null,null,null,null,null,"HM",null,"JML"]
[null,null,"Site Selection",null,null,null,null,null,null,null,"HM",null,"JML"]
[null,null,"Annual Energy Use",null,null,null,null,null,null,null,"HM",null,"JML"]
[null,null,null,null,null,null,null,null,null,null,"HM",null,"JML"]
[null,null,null,null,null,null,null,null,null,null,"HM"]
[null,null,null,null,null,null,null,null,null,null,"HM"]
[null,null,null,null,null,null,null,null,null,null,"HM"]
[null,null,null,null,null,null,null,null,null,null,"HM"]

{"sheet":"Water Reduction Calculator","index":15,"n_rows":150,"n_cols":23,"rows_kept":150,"cut":false,"hidden":false,"merged":[[78,15,79,15],[78,5,78,6],[78,7,78,8],[78,9,78,10],[78,11,78,12],[78,13,79,13],[77,15,77,17],[78,19,79,19],[78,16,79,16],[97,21,98,21],[97,17,98,17],[97,13,98,13],[97,14,98,14],[97,5,97,6],[97,7,97,8],[97,9,97,10],[97,11,97,12],[116,21,117,21],[115,15,115,17],[116,5,116,6],[116,7,116,8],[116,9,116,10],[116,11,116,12],[116,15,117,15],[116,16,117,16],[116,17,117,17],[116,13,117,13],[116,14,117,14],[115,18,115,19],[78,21,79,21],[78,4,79,4],[66,1,66,4],[116,18,117,18],[116,19,117,19],[35,18,35,19],[35,15,35,17],[53,1,53,4],[53,5,53,14],[54,5,54,6],[54,7,54,8],[54,9,54,10],[54,11,54,12],[54,13,55,13],[53,15,53,17],[53,18,53,19],[36,1,37,1],[36,3,37,3],[96,15,96,17],[96,18,96,19],[97,18,98,18],[97,19,98,19],[97,15,98,15],[97,16,98,16],[36,7,36,8],[36,9,36,10],[36,11,36,12],[78,17,79,17],[78,18,79,18],[77,18,77,19],[97,1,98,1],[97,2,98,2],[97,4,98,4],[97,3,98,3],[78,1,79,1],[78,2,79,2],[89,1,89,2],[36,13,37,13],[77,1,77,4],[54,1,55,1],[78,3,79,3],[54,3,55,3],[36,2,37,2],[54,16,55,16],[54,19,55,19],[54,15,55,15],[54,14,55,14],[78,14,79,14],[54,21,55,21],[54,4,55,4],[54,18,55,18],[54,17,55,17],[4,1,4,8],[9,1,9,7],[10,1,10,7],[8,1,8,7],[7,1,7,6],[35,1,35,4],[54,2,55,2],[13,1,13,3],[25,1,25,3],[27,1,27,2],[34,1,34,4],[36,21,37,21],[36,4,37,4],[36,14,37,14],[36,15,37,15],[36,16,37,16],[36,17,37,17],[36,18,37,18],[36,19,37,19],[36,5,36,6],[132,1,132,5],[127,1,127,5],[128,1,128,5],[129,1,129,5],[130,1,130,5],[131,1,131,5],[96,1,96,4],[143,9,143,10],[143,5,143,8],[143,1,144,1],[143,2,144,4],[144,7,144,8],[144,5,144,6],[136,1,136,5],[137,1,137,5],[138,1,138,5],[139,1,139,5],[140,1,140,7],[115,1,115,4],[116,1,117,1],[116,2,117,2],[116,4,117,4],[108,1,108,2],[116,3,117,3]]}
[]
[null,"Water Reduction Calculator"]
[]
[]
[null,"Use this calculator to determine if your building uses less water than the requirements of  WE Credit Total Water Use.\n\nNote:  This calculator is a relative measure of water use based on how the products are designed and not how they actually perform in the field.  Therefore, please use values/rates from the product specifications.  Measurements from field testing should NOT be used in this calculator, but may be used to identify improperly installed or malfunctioning products.  "]
[]
[null,"Outdoor Water Use"]
[null,"Provide the following values from the WaterSense Water Budget Calculator"]
[null,{"$f":"CONCATENATE(\"Baseline for the site\",IF(Instructions!$I$62=1,\" (gal/peak month)\",\" (l/peak month)\"))","v":"Baseline for the site (gal/peak month)"}]
[null,{"$f":"CONCATENATE(\"Landscape water requirement for site\",IF(Instructions!$I$62=1,\" (gal/peak month)\",\" (l/peak month)\"))","v":"Landscape water requirement for site (gal/peak month)"}]
[null,{"$f":"CONCATENATE(\"Rainwater or graywater\",IF(Instructions!$I$62=1,\" (gal/peak month)\",\" (l/peak month)\"))","v":"Rainwater or graywater (gal/peak month)"}]
[]
[null,"Unit Information"]
[null,"List the number of each type of unit for the building. This information is used to double check your entries for each fixture type.  For single family homes, put  '1' by the number of bedrooms."]
[null,"Unit Type","Number of \nUnits","Occupants",null,null,null,null,null,null,null,null,null,null,null,null,null,null,null,null,null,"Number of Bedrooms","All units"]
[{"$f":"IF(B16>0,0,0)","v":0},"Efficiency",null,{"$f":"(1+1)*C16","v":0},null,null,null,null,null,null,null,null,null,null,null,null,null,null,null,null,null,1,"Efficiency"]
[{"$f":"IF(B17>0,0,0)","v":0},"1 Bedroom",null,{"$f":"(1+1)*C17","v":0},null,null,null,null,null,null,null,null,null,null,null,null,null,null,null,null,null,1,"1 Bedroom"]
[{"$f":"IF(B18>0,0,0)","v":0},"2 Bedrooms",null,{"$f":"(2+1)*C18","v":0},null,null,null,null,null,null,null,null,null,null,null,null,null,null,null,null,null,2,"2 Bedrooms"]
[{"$f":"IF(B19>0,0,0)","v":0},"3 Bedrooms",null,{"$f":"(3+1)*C19","v":0},null,null,null,null,null,null,null,null,null,null,null,null,null,null,null,null,null,3,"3 Bedrooms"]
[{"$f":"IF(B20>0,0,0)","v":0},"4 Bedrooms",null,{"$f":"(4+1)*C20","v":0},null,null,null,null,null,null,null,null,null,null,null,null,null,null,null,null,null,4,"4 Bedrooms"]
[null,"5 Bedrooms",null,{"$f":"(5+1)*C21","v":0},null,null,null,null,null,null,null,null,null,null,null,null,null,null,null,null,null,5,"5 Bedrooms"]
[null,"6 Bedrooms",null,{"$f":"(6+1)*C22","v":0},null,null,null,null,null,null,null,null,null,null,null,null,null,null,null,null,null,6,"6 Bedrooms"]
[null,"Totals",{"$f":"SUM(C16:C22)","v":0},{"$f":"SUM(D16:D22)","v":0}]
["A"]
[null,"Indoor Water Use"]
[null,"This section determines the average flow rate of each fixture, for each unique unit type which is used to calculate the average indoor water use for each unit's occupants."]
[null,"Fixture Use for Showers"]
[null,"Enter the flow rate and a brief description for each type of fixture."]
[null,"Fixture ID",{"$f":"CONCATENATE(\"Flow Rate\n\",IF(Instructions!$I$62=1,\"(gpm)\",\"(lpm)\"))","v":"Flow Rate\n(gpm)"}]
[{"$f":"IF(B30>0,0,0)","v":0}]
[{"$f":"IF(B31>0,0,0)","v":0}]
[{"$f":"IF(B32>0,0,0)","v":0}]
[]
[]
[null,"Complete one row for each unique set of units and enter each fixture's information. This will calculate the average water use of the occupant of each unit type. If the fixture is the same throughout the building, select 'All units' under 'Unit Type' and select the appropriate fixture in Fixture 1."]
[null,"Unit Information",null,null,null,"Design",null,null,null,null,null,null,null,null,null,"Baseline",null,null,"Totals"]
[null,"Unit Type","Unit \nDescription","Number of \nUnits","Occupants","Fixture 1",null,"Fixture 2",null,"Fixture 3",null,"Fixture 4",null,{"$f":"CONCATENATE(\"Average \nFlow Rate\n\",IF(Instructions!$I$62=1,\"(gpm)\",\"(lpm)\"))","v":"Average \nFlow Rate\n(gpm)"},{"$f":"CONCATENATE(\"Calculated\nWater Usage\n\",IF(Instructions!$I$62=1,\" (gallons)\",\" (liters)\"))","v":"Calculated\nWater Usage\n (gallons)"},"Estimated Fixture Usage\n(minutes)",{"$f":"CONCATENATE(\"Flow Rate\n\",IF(Instructions!$I$62=1,\"(gpm)\",\"(lpm)\"))","v":"Flow Rate\n(gpm)"},{"$f":"CONCATENATE(\"Estimated\nWater Usage\n\",IF(Instructions!$I$62=1,\" (gallons)\",\" (liters)\"))","v":"Estimated\nWater Usage\n (gallons)"},{"$f":"CONCATENATE(\"Design \nMonthly \nWater Use\n\",IF(Instructions!$I$62=1,\" (gal/month)\",\" (l/month)\"))","v":"Design \nMonthly \nWater Use\n (gal/month)"},{"$f":"CONCATENATE(\"Baseline Monthly \nWater Use\n\",IF(Instructions!$I$62=1,\" (gal/month)\",\" (l/month)\"))","v":"Baseline Monthly \nWater Use\n (gal/month)"},null,"Number of Bedrooms"]
[null,null,null,null,null,"Fixture 1 \nID",{"$f":"CONCATENATE(\"Fixture 1 \nFlow Rate\n\",IF(Instructions!$I$62=1,\"(gpm)\",\"(lpm)\"))","v":"Fixture 1 \nFlow Rate\n(gpm)"},"Fixture 2\nID",{"$f":"CONCATENATE(\"Fixture 2 \nFlow Rate\n\",IF(Instructions!$I$62=1,\"(gpm)\",\"(lpm)\"))","v":"Fixture 2 \nFlow Rate\n(gpm)"},"Fixture 3\nID",{"$f":"CONCATENATE(\"Fixture 3 \nFlow Rate\n\",IF(Instructions!$I$62=1,\"(gpm)\",\"(lpm)\"))","v":"Fixture 3 \nFlow Rate\n(gpm)"},"Fixture 4\nID",{"$f":"CONCATENATE(\"Fixture 4 \nFlow Rate\n\",IF(Instructions!$I$62=1,\"(gpm)\",\"(lpm)\"))","v":"Fixture 4 \nFlow Rate\n(gpm)"}]
[{"$f":"IF(B39>0,0,0)","v":0},null,null,null,{"$f":"IFERROR(IF(B39=\"All units\",$D$23,(V39+1)*D39),0)","v":0},null,{"$f":"IFERROR(VLOOKUP(F39,$B$30:$C$33,2,FALSE),\"\")","v":""},null,{"$f":"IFERROR(VLOOKUP(H39,$B$30:$C$33,2,FALSE),\"\")","v":""},null,{"$f":"IFERROR(VLOOKUP(J39,$B$30:$C$33,2,FALSE),\"\")","v":""},null,{"$f":"IFERROR(VLOOKUP(L39,$B$30:$C$33,2,FALSE),\"\")","v":""},{"$f":"IFERROR(SUM(G39,I39,K39,M39)/COUNTA(F39,H39,J39,L39),\"\")","v":""},{"$f":"IFERROR(N39*$P39,\"\")","v":""},{"$f":"IF(B39<>\"\",$C$146,\"\")","v":""},{"$f":"IF(B39<>\"\",IF(Instructions!$I$62=1,$F$146,$H$146),\"\")","v":""},{"$f":"IF(B39<>\"\",IF(Instructions!$I$62=1,$J$146,$K$146),\"\")","v":""},{"$f":"IFERROR(O39*30*$E39,\"\")","v":""},{"$f":"IFERROR(R39*30*$E39,\"\")","v":""},null,{"$f":"IFERROR(VLOOKUP(B39,$B$16:$V$22,21,FALSE),\"\")","v":""}]
[{"$f":"IF(B40>0,0,0)","v":0},null,null,null,{"$f":"IFERROR(IF(B40=\"All units\",$D$23,(V40+1)*D40),0)","v":0},null,{"$f":"IFERROR(VLOOKUP(F40,$B$30:$C$33,2,FALSE),\"\")","v":""},null,"",null,{"$f":"IFERROR(VLOOKUP(J40,$B$30:$C$33,2,FALSE),\"\")","v":""},null,{"$f":"IFERROR(VLOOKUP(L40,$B$30:$C$33,2,FALSE),\"\")","v":""},{"$f":"IFERROR(SUM(G40,I40,K40,M40)/COUNTA(F40,H40,J40,L40),\"\")","v":""},{"$f":"IFERROR(N40*$P40,\"\")","v":""},{"$f":"IF(B40<>\"\",$C$146,\"\")","v":""},{"$f":"IF(B40<>\"\",IF(Instructions!$I$62=1,$F$146,$H$146),\"\")","v":""},{"$f":"IF(B40<>\"\",IF(Instructions!$I$62=1,$J$146,$K$146),\"\")","v":""},{"$f":"IFERROR(O40*30*$E40,\"\")","v":""},{"$f":"IFERROR(R40*30*$E40,\"\")","v":""},null,{"$f":"IFERROR(VLOOKUP(B40,$B$16:$V$22,21,FALSE),\"\")","v":""}]
[{"$f":"IF(B41>0,0,0)","v":0},null,null,null,{"$f":"IFERROR(IF(B41=\"All units\",$D$23,(V41+1)*D41),0)","v":0},null,"",null,"",null,{"$f":"IFERROR(VLOOKUP(J41,$B$30:$C$33,2,FALSE),\"\")","v":""},null,{"$f":"IFERROR(VLOOKUP(L41,$B$30:$C$33,2,FALSE),\"\")","v":""},{"$f":"IFERROR(SUM(G41,I41,K41,M41)/COUNTA(F41,H41,J41,L41),\"\")","v":""},{"$f":"IFERROR(N41*$P41,\"\")","v":""},{"$f":"IF(B41<>\"\",$C$146,\"\")","v":""},{"$f":"IF(B41<>\"\",IF(Instructions!$I$62=1,$F$146,$H$146),\"\")","v":""},{"$f":"IF(B41<>\"\",IF(Instructions!$I$62=1,$J$146,$K$146),\"\")","v":""},{"$f":"IFERROR(O41*30*$E41,\"\")","v":""},{"$f":"IFERROR(R41*30*$E41,\"\")","v":""},null,{"$f":"IFERROR(VLOOKUP(B41,$B$16:$V$22,21,FALSE),\"\")","v":""}]
[null,null,null,null,{"$f":"IFERROR(IF(B42=\"All units\",$D$23,(V42+1)*D42),0)","v":0},null,"",null,"",null,{"$f":"IFERROR(VLOOKUP(J42,$B$30:$C$33,2,FALSE),\"\")","v":""},null,{"$f":"IFERROR(VLOOKUP(L42,$B$30:$C$33,2,FALSE),\"\")","v":""},{"$f":"IFERROR(SUM(G42,I42,K42,M42)/COUNTA(F42,H42,J42,L42),\"\")","v":""},{"$f":"IFERROR(N42*$P42,\"\")","v":""},{"$f":"IF(B42<>\"\",$C$146,\"\")","v":""},{"$f":"IF(B42<>\"\",IF(Instructions!$I$62=1,$F$146,$H$146),\"\")","v":""},{"$f":"IF(B42<>\"\",IF(Instructions!$I$62=1,$J$146,$K$146),\"\")","v":""},{"$f":"IFERROR(O42*30*$E42,\"\")","v":""},{"$f":"IFERROR(R42*30*$E42,\"\")","v":""},null,{"$f":"IFERROR(VLOOKUP(B42,$B$16:$V$22,21,FALSE),\"\")","v":""}]
[null,null,null,null,{"$f":"IFERROR(IF(B43=\"All units\",$D$23,(V43+1)*D43),0)","v":0},null,"",null,"",null,{"$f":"IFERROR(VLOOKUP(J43,$B$30:$C$33,2,FALSE),\"\")","v":""},null,{"$f":"IFERROR(VLOOKUP(L43,$B$30:$C$33,2,FALSE),\"\")","v":""},{"$f":"IFERROR(SUM(G43,I43,K43,M43)/COUNTA(F43,H43,J43,L43),\"\")","v":""},{"$f":"IFERROR(N43*$P43,\"\")","v":""},{"$f":"IF(B43<>\"\",$C$146,\"\")","v":""},{"$f":"IF(B43<>\"\",IF(Instructions!$I$62=1,$F$146,$H$146),\"\")","v":""},{"$f":"IF(B43<>\"\",IF(Instructions!$I$62=1,$J$146,$K$146),\"\")","v":""},{"$f":"IFERROR(O43*30*$E43,\"\")","v":""},{"$f":"IFERROR(R43*30*$E43,\"\")","v":""},null,{"$f":"IFERROR(VLOOKUP(B43,$B$16:$V$22,21,FALSE),\"\")","v":""}]
["B","Totals for showers",null,{"$f":"SUM(D39:D43)","v":0},{"$f":"SUM(E39:E43)","v":0},null,null,null,null,null,null,null,null,null,null,null,null,null,{"$f":"SUM(S39:S43)","v":0},{"$f":"SUM(T39:T43)","v":0}]
[]
[]
[null,"Fixture Use for Lavatories and Kitchen Faucets"]
[null,"Fixture ID",{"$f":"CONCATENATE(\"Flow Rate\n\",IF(Instructions!$I$62=1,\"(gpm)\",\"(lpm)\"))","v":"Flow Rate\n(gpm)"}]
[{"$f":"IF(B49>0,0,0)","v":0}]
[{"$f":"IF(B50>0,0,0)","v":0}]
[{"$f":"IF(B51>0,0,0)","v":0}]
[]
[]
[null,"Unit Information",null,null,null,"Design",null,null,null,null,null,null,null,null,null,"Baseline",null,null,"Totals"]
[null,"Unit Type","Unit \nDescription","Number of \nUnits","Occupants","Fixture 1",null,"Fixture 2",null,"Fixture 3",null,"Fixture 4",null,{"$f":"CONCATENATE(\"Average \nFlow Rate\n\",IF(Instructions!$I$62=1,\"(gpm)\",\"(lpm)\"))","v":"Average \nFlow Rate\n(gpm)"},{"$f":"CONCATENATE(\"Calculated\nWater Usage\n\",IF(Instructions!$I$62=1,\" (gallons)\",\" (liters)\"))","v":"Calculated\nWater Usage\n (gallons)"},"Estimated Fixture Usage\n(minutes)",{"$f":"CONCATENATE(\"Flow Rate\n\",IF(Instructions!$I$62=1,\"(gpm)\",\"(lpm)\"))","v":"Flow Rate\n(gpm)"},{"$f":"CONCATENATE(\"Estimated\nWater Usage\n\",IF(Instructions!$I$62=1,\" (gallons)\",\" (liters)\"))","v":"Estimated\nWater Usage\n (gallons)"},{"$f":"CONCATENATE(\"Design\nMonthly \nWater Use\n\",IF(Instructions!$I$62=1,\" (gal/month)\",\" (l/month)\"))","v":"Design\nMonthly \nWater Use\n (gal/month)"},{"$f":"CONCATENATE(\"Baseline Monthly \nWater Use\n\",IF(Instructions!$I$62=1,\" (gal/month)\",\" (l/month)\"))","v":"Baseline Monthly \nWater Use\n (gal/month)"},null,"Number of Bedrooms"]
[null,null,null,null,null,"Fixture 1 \nID",{"$f":"CONCATENATE(\"Fixture 1 \nFlow Rate\n\",IF(Instructions!$I$62=1,\"(gpm)\",\"(lpm)\"))","v":"Fixture 1 \nFlow Rate\n(gpm)"},"Fixture 2\nID",{"$f":"CONCATENATE(\"Fixture 2 \nFlow Rate\n\",IF(Instructions!$I$62=1,\"(gpm)\",\"(lpm)\"))","v":"Fixture 2 \nFlow Rate\n(gpm)"},"Fixture 3\nID",{"$f":"CONCATENATE(\"Fixture 3 \nFlow Rate\n\",IF(Instructions!$I$62=1,\"(gpm)\",\"(lpm)\"))","v":"Fixture 3 \nFlow Rate\n(gpm)"},"Fixture 4\nID",{"$f":"CONCATENATE(\"Fixture 4 \nFlow Rate\n\",IF(Instructions!$I$62=1,\"(gpm)\",\"(lpm)\"))","v":"Fixture 4 \nFlow Rate\n(gpm)"}]
[{"$f":"IF(B57>0,0,0)","v":0},null,null,null,{"$f":"IFERROR(IF(B57=\"All units\",$D$23,(V57+1)*D57),0)","v":0},null,{"$f":"IFERROR(VLOOKUP(F57,$B$49:$C$52,2,FALSE),\"\")","v":""},null,{"$f":"IFERROR(VLOOKUP(H57,$B$49:$C$52,2,FALSE),\"\")","v":""},null,{"$f":"IFERROR(VLOOKUP(J57,$B$49:$C$52,2,FALSE),\"\")","v":""},null,{"$f":"IFERROR(VLOOKUP(L57,$B$49:$C$52,2,FALSE),\"\")","v":""},{"$f":"IFERROR(SUM(G57,I57,K57,M57)/COUNTA(F57,H57,J57,L57),\"\")","v":""},{"$f":"IFERROR(N57*$P57,\"\")","v":""},{"$f":"IF(B57<>\"\",$C$147,\"\")","v":""},{"$f":"IF(B57<>\"\",IF(Instructions!$I$62=1,$F$147,$H$147),\"\")","v":""},{"$f":"IF(B57<>\"\",IF(Instructions!$I$62=1,$J$147,$K$147),\"\")","v":""},{"$f":"IFERROR(O57*30*$E57,\"\")","v":""},{"$f":"IFERROR(R57*30*$E57,\"\")","v":""},null,{"$f":"IFERROR(VLOOKUP(B57,$B$16:$V$22,21,FALSE),\"\")","v":""}]
[{"$f":"IF(B58>0,0,0)","v":0},null,null,null,{"$f":"IFERROR(IF(B58=\"All units\",$D$23,(V58+1)*D58),0)","v":0},null,{"$f":"IFERROR(VLOOKUP(F58,$B$49:$C$52,2,FALSE),\"\")","v":""},null,"",null,{"$f":"IFERROR(VLOOKUP(J58,$B$49:$C$52,2,FALSE),\"\")","v":""},null,{"$f":"IFERROR(VLOOKUP(L58,$B$49:$C$52,2,FALSE),\"\")","v":""},{"$f":"IFERROR(SUM(G58,I58,K58,M58)/COUNTA(F58,H58,J58,L58),\"\")","v":""},{"$f":"IFERROR(N58*$P58,\"\")","v":""},{"$f":"IF(B58<>\"\",$C$147,\"\")","v":""},{"$f":"IF(B58<>\"\",IF(Instructions!$I$62=1,$F$147,$H$147),\"\")","v":""},{"$f":"IF(B58<>\"\",IF(Instructions!$I$62=1,$J$147,$K$147),\"\")","v":""},{"$f":"IFERROR(O58*30*$E58,\"\")","v":""},{"$f":"IFERROR(R58*30*$E58,\"\")","v":""},null,{"$f":"IFERROR(VLOOKUP(B58,$B$16:$V$22,21,FALSE),\"\")","v":""}]
[{"$f":"IF(B59>0,0,0)","v":0},null,null,null,{"$f":"IFERROR(IF(B59=\"All units\",$D$23,(V59+1)*D59),0)","v":0},null,"",null,"",null,{"$f":"IFERROR(VLOOKUP(J59,$B$49:$C$52,2,FALSE),\"\")","v":""},null,{"$f":"IFERROR(VLOOKUP(L59,$B$49:$C$52,2,FALSE),\"\")","v":""},{"$f":"IFERROR(SUM(G59,I59,K59,M59)/COUNTA(F59,H59,J59,L59),\"\")","v":""},{"$f":"IFERROR(N59*$P59,\"\")","v":""},{"$f":"IF(B59<>\"\",$C$147,\"\")","v":""},{"$f":"IF(B59<>\"\",IF(Instructions!$I$62=1,$F$147,$H$147),\"\")","v":""},{"$f":"IF(B59<>\"\",IF(Instructions!$I$62=1,$J$147,$K$147),\"\")","v":""},{"$f":"IFERROR(O59*30*$E59,\"\")","v":""},{"$f":"IFERROR(R59*30*$E59,\"\")","v":""},null,{"$f":"IFERROR(VLOOKUP(B59,$B$16:$V$22,21,FALSE),\"\")","v":""}]
[null,null,null,null,{"$f":"IFERROR(IF(B60=\"All units\",$D$23,(V60+1)*D60),0)","v":0},null,"",null,"",null,{"$f":"IFERROR(VLOOKUP(J60,$B$49:$C$52,2,FALSE),\"\")","v":""},null,{"$f":"IFERROR(VLOOKUP(L60,$B$49:$C$52,2,FALSE),\"\")","v":""},{"$f":"IFERROR(SUM(G60,I60,K60,M60)/COUNTA(F60,H60,J60,L60),\"\")","v":""},{"$f":"IFERROR(N60*$P60,\"\")","v":""},{"$f":"IF(B60<>\"\",$C$147,\"\")","v":""},{"$f":"IF(B60<>\"\",IF(Instructions!$I$62=1,$F$147,$H$147),\"\")","v":""},{"$f":"IF(B60<>\"\",IF(Instructions!$I$62=1,$J$147,$K$147),\"\")","v":""},{"$f":"IFERROR(O60*30*$E60,\"\")","v":""},{"$f":"IFERROR(R60*30*$E60,\"\")","v":""},null,{"$f":"IFERROR(VLOOKUP(B60,$B$16:$V$22,21,FALSE),\"\")","v":""}]
[null,null,null,null,{"$f":"IFERROR(IF(B61=\"All units\",$D$23,(V61+1)*D61),0)","v":0},null,"",null,"",null,{"$f":"IFERROR(VLOOKUP(J61,$B$49:$C$52,2,FALSE),\"\")","v":""},null,{"$f":"IFERROR(VLOOKUP(L61,$B$49:$C$52,2,FALSE),\"\")","v":""},{"$f":"IFERROR(SUM(G61,I61,K61,M61)/COUNTA(F61,H61,J61,L61),\"\")","v":""},{"$f":"IFERROR(N61*$P61,\"\")","v":""},{"$f":"IF(B61<>\"\",$C$147,\"\")","v":""},{"$f":"IF(B61<>\"\",IF(Instructions!$I$62=1,$F$147,$H$147),\"\")","v":""},{"$f":"IF(B61<>\"\",IF(Instructions!$I$62=1,$J$147,$K$147),\"\")","v":""},{"$f":"IFERROR(O61*30*$E61,\"\")","v":""},{"$f":"IFERROR(R61*30*$E61,\"\")","v":""},null,{"$f":"IFERROR(VLOOKUP(B61,$B$16:$V$22,21,FALSE),\"\")","v":""}]
["C","Totals for lavs and kitchen faucets",null,{"$f":"SUM(D57:D61)","v":0},{"$f":"SUM(E57:E61)","v":0},null,null,null,null,null,null,null,null,null,null,null,null,null,{"$f":"SUM(S57:S61)","v":0},{"$f":"SUM(T57:T61)","v":0}]
[]
[]
[null,"Fixture Use for Toilets"]
[]
[null,"For projects with dual-flush toilets\nCalculate the average flush rate below and enter the resulting flush rate into the design case flush rate section for toilet."]
[null,{"$f":"CONCATENATE(\"High flush rate\",IF(Instructions!$I$62=1,\" (gpf)\",\" (lpf)\"))","v":"High flush rate (gpf)"}]
[null,{"$f":"CONCATENATE(\"Low flush rate\",IF(Instructions!$I$62=1,\" (gpf)\",\" (lpf)\"))","v":"Low flush rate (gpf)"}]
[null,{"$f":"CONCATENATE(\"Average flush rate\",IF(Instructions!$I$62=1,\" (gpf)\",\" (lpf)\"))","v":"Average flush rate (gpf)"},null,null,{"$f":"IFERROR((2*E69+E68)/3,0)","v":0}]
[]
[null,"Fixture ID",{"$f":"CONCATENATE(\"Flush Rate\n\",IF(Instructions!$I$62=1,\"(gpf)\",\"(lpf)\"))","v":"Flush Rate\n(gpf)"}]
[{"$f":"IF(B73>0,0,0)","v":0}]
[{"$f":"IF(B74>0,0,0)","v":0}]
[{"$f":"IF(B75>0,0,0)","v":0}]
[]
[]
[null,"Unit Information",null,null,null,"Design",null,null,null,null,null,null,null,null,null,"Baseline",null,null,"Totals"]
[null,"Unit Type","Unit \nDescription","Number of \nUnits","Occupants","Fixture 1",null,"Fixture 2",null,"Fixture 3",null,"Fixture 4",null,{"$f":"CONCATENATE(\"Average\nFlush Rate\n\",IF(Instructions!$I$62=1,\"(gpf)\",\"(lpf)\"))","v":"Average\nFlush Rate\n(gpf)"},{"$f":"CONCATENATE(\"Calculated\nWater Usage\n\",IF(Instructions!$I$62=1,\" (gallons)\",\" (liters)\"))","v":"Calculated\nWater Usage\n (gallons)"},"Estimated Fixture Usage\n(flushes)",{"$f":"CONCATENATE(\"Flush Rate\n\",IF(Instructions!$I$62=1,\"(gpf)\",\"(lpf)\"))","v":"Flush Rate\n(gpf)"},{"$f":"CONCATENATE(\"Estimated\nWater Usage\n\",IF(Instructions!$I$62=1,\" (gallons)\",\" (liters)\"))","v":"Estimated\nWater Usage\n (gallons)"},{"$f":"CONCATENATE(\"Design\nMonthly \nWater Use\n\",IF(Instructions!$I$62=1,\" (gal/month)\",\" (l/month)\"))","v":"Design\nMonthly \nWater Use\n (gal/month)"},{"$f":"CONCATENATE(\"Baseline Monthly \nWater Use\n\",IF(Instructions!$I$62=1,\" (gal/month)\",\" (l/month)\"))","v":"Baseline Monthly \nWater Use\n (gal/month)"},null,"Number of Bedrooms"]
[null,null,null,null,null,"Fixture 1 \nID",{"$f":"CONCATENATE(\"Fixture 1\nFlush Rate\n\",IF(Instructions!$I$62=1,\"(gpf)\",\"(lpf)\"))","v":"Fixture 1\nFlush Rate\n(gpf)"},"Fixture 2\nID",{"$f":"CONCATENATE(\"Fixture 2\nFlush Rate\n\",IF(Instructions!$I$62=1,\"(gpf)\",\"(lpf)\"))","v":"Fixture 2\nFlush Rate\n(gpf)"},"Fixture 3\nID",{"$f":"CONCATENATE(\"Fixture 3\nFlush Rate\n\",IF(Instructions!$I$62=1,\"(gpf)\",\"(lpf)\"))","v":"Fixture 3\nFlush Rate\n(gpf)"},"Fixture 4\nID",{"$f":"CONCATENATE(\"Fixture 4\nFlush Rate\n\",IF(Instructions!$I$62=1,\"(gpf)\",\"(lpf)\"))","v":"Fixture 4\nFlush Rate\n(gpf)"}]
[{"$f":"IF(B81>0,0,0)","v":0},null,null,null,{"$f":"IFERROR(IF(B81=\"All units\",$D$23,(V81+1)*D81),0)","v":0},null,{"$f":"IFERROR(VLOOKUP(F81,$B$73:$C$76,2,FALSE),\"\")","v":""},null,{"$f":"IFERROR(VLOOKUP(H81,$B$73:$C$76,2,FALSE),\"\")","v":""},null,{"$f":"IFERROR(VLOOKUP(J81,$B$73:$C$76,2,FALSE),\"\")","v":""},null,{"$f":"IFERROR(VLOOKUP(L81,$B$73:$C$76,2,FALSE),\"\")","v":""},{"$f":"IFERROR(SUM(G81,I81,K81,M81)/COUNTA(F81,H81,J81,L81),\"\")","v":""},{"$f":"IFERROR(N81*$P81,\"\")","v":""},{"$f":"IF(B81<>\"\",$C$148,\"\")","v":""},{"$f":"IF(B81<>\"\",IF(Instructions!$I$62=1,$F$148,$H$148),\"\")","v":""},{"$f":"IF(B81<>\"\",IF(Instructions!$I$62=1,$J$148,$K$148),\"\")","v":""},{"$f":"IFERROR(O81*30*$E81,\"\")","v":""},{"$f":"IFERROR(R81*30*$E81,\"\")","v":""},null,{"$f":"IFERROR(VLOOKUP(B81,$B$16:$V$22,21,FALSE),\"\")","v":""}]
[{"$f":"IF(B82>0,0,0)","v":0},null,null,null,{"$f":"IFERROR(IF(B82=\"All units\",$D$23,(V82+1)*D82),0)","v":0},null,"",null,"",null,{"$f":"IFERROR(VLOOKUP(J82,$B$73:$C$76,2,FALSE),\"\")","v":""},null,{"$f":"IFERROR(VLOOKUP(L82,$B$73:$C$76,2,FALSE),\"\")","v":""},{"$f":"IFERROR(SUM(G82,I82,K82,M82)/COUNTA(F82,H82,J82,L82),\"\")","v":""},{"$f":"IFERROR(N82*$P82,\"\")","v":""},{"$f":"IF(B82<>\"\",$C$148,\"\")","v":""},{"$f":"IF(B82<>\"\",IF(Instructions!$I$62=1,$F$148,$H$148),\"\")","v":""},{"$f":"IF(B82<>\"\",IF(Instructions!$I$62=1,$J$148,$K$148),\"\")","v":""},{"$f":"IFERROR(O82*30*$E82,\"\")","v":""},{"$f":"IFERROR(R82*30*$E82,\"\")","v":""},null,{"$f":"IFERROR(VLOOKUP(B82,$B$16:$V$22,21,FALSE),\"\")","v":""}]
[{"$f":"IF(B83>0,0,0)","v":0},null,null,null,{"$f":"IFERROR(IF(B83=\"All units\",$D$23,(V83+1)*D83),0)","v":0},null,"",null,"",null,{"$f":"IFERROR(VLOOKUP(J83,$B$73:$C$76,2,FALSE),\"\")","v":""},null,{"$f":"IFERROR(VLOOKUP(L83,$B$73:$C$76,2,FALSE),\"\")","v":""},{"$f":"IFERROR(SUM(G83,I83,K83,M83)/COUNTA(F83,H83,J83,L83),\"\")","v":""},{"$f":"IFERROR(N83*$P83,\"\")","v":""},{"$f":"IF(B83<>\"\",$C$148,\"\")","v":""},{"$f":"IF(B83<>\"\",IF(Instructions!$I$62=1,$F$148,$H$148),\"\")","v":""},{"$f":"IF(B83<>\"\",IF(Instructions!$I$62=1,$J$148,$K$148),\"\")","v":""},{"$f":"IFERROR(O83*30*$E83,\"\")","v":""},{"$f":"IFERROR(R83*30*$E83,\"\")","v":""},null,{"$f":"IFERROR(VLOOKUP(B83,$B$16:$V$22,21,FALSE),\"\")","v":""}]
[null,null,null,null,{"$f":"IFERROR(IF(B84=\"All units\",$D$23,(V84+1)*D84),0)","v":0},null,"",null,"",null,{"$f":"IFERROR(VLOOKUP(J84,$B$73:$C$76,2,FALSE),\"\")","v":""},null,{"$f":"IFERROR(VLOOKUP(L84,$B$73:$C$76,2,FALSE),\"\")","v":""},{"$f":"IFERROR(SUM(G84,I84,K84,M84)/COUNTA(F84,H84,J84,L84),\"\")","v":""},{"$f":"IFERROR(N84*$P84,\"\")","v":""},{"$f":"IF(B84<>\"\",$C$148,\"\")","v":""},{"$f":"IF(B84<>\"\",IF(Instructions!$I$62=1,$F$148,$H$148),\"\")","v":""},{"$f":"IF(B84<>\"\",IF(Instructions!$I$62=1,$J$148,$K$148),\"\")","v":""},{"$f":"IFERROR(O84*30*$E84,\"\")","v":""},{"$f":"IFERROR(R84*30*$E84,\"\")","v":""},null,{"$f":"IFERROR(VLOOKUP(B84,$B$16:$V$22,21,FALSE),\"\")","v":""}]
[null,null,null,null,{"$f":"IFERROR(IF(B85=\"All units\",$D$23,(V85+1)*D85),0)","v":0},null,"",null,"",null,{"$f":"IFERROR(VLOOKUP(J85,$B$73:$C$76,2,FALSE),\"\")","v":""},null,{"$f":"IFERROR(VLOOKUP(L85,$B$73:$C$76,2,FALSE),\"\")","v":""},{"$f":"IFERROR(SUM(G85,I85,K85,M85)/COUNTA(F85,H85,J85,L85),\"\")","v":""},{"$f":"IFERROR(N85*$P85,\"\")","v":""},{"$f":"IF(B85<>\"\",$C$148,\"\")","v":""},{"$f":"IF(B85<>\"\",IF(Instructions!$I$62=1,$F$148,$H$148),\"\")","v":""},{"$f":"IF(B85<>\"\",IF(Instructions!$I$62=1,$J$148,$K$148),\"\")","v":""},{"$f":"IFERROR(O85*30*$E85,\"\")","v":""},{"$f":"IFERROR(R85*30*$E85,\"\")","v":""},null,{"$f":"IFERROR(VLOOKUP(B85,$B$16:$V$22,21,FALSE),\"\")","v":""}]
["D","Totals for toilets",null,{"$f":"SUM(D81:D85)","v":0},{"$f":"SUM(E81:E85)","v":0},null,null,null,null,null,null,null,null,null,null,null,null,null,{"$f":"SUM(S81:S85)","v":0},{"$f":"SUM(T81:T85)","v":0}]
[]
[]
[null,"Fixture Use for Clothes Washers"]
[null,"Enter the flow rate and a brief description for each type of fixture.  If no clothes washer is installed in the project, enter 'Baseline' under 'Fixture ID' and '9.5' under 'Flow Rate.'"]
[null,"Fixture ID","Flow Rate\n(water factor)"]
[{"$f":"IF(B92>0,0,0)","v":0}]
[{"$f":"IF(B93>0,0,0)","v":0}]
[{"$f":"IF(B94>0,0,0)","v":0}]
[]
[]
[null,"Unit Information",null,null,null,"Design",null,null,null,null,null,null,null,null,null,"Baseline",null,null,"Totals"]
[null,"Unit Type","Unit \nDescription","Number of \nUnits","Occupants","Fixture 1",null,"Fixture 2",null,"Fixture 3",null,"Fixture 4",null,"Average \nFlow Rate\n(water factor)",{"$f":"CONCATENATE(\"Calculated\nWater Usage\n\",IF(Instructions!$I$62=1,\" (gallons)\",\" (liters)\"))","v":"Calculated\nWater Usage\n (gallons)"},{"$f":"CONCATENATE(\"Estimated Fixture Usage\n(cycles \",IF(Instructions!$I$62=1,\"at 3.5 cu ft)\",\"at 0.1 cu m)\"))","v":"Estimated Fixture Usage\n(cycles at 3.5 cu ft)"},"Flow Rate\n(water factor)",{"$f":"CONCATENATE(\"Estimated\nWater Usage\n\",IF(Instructions!$I$62=1,\" (gallons)\",\" (liters)\"))","v":"Estimated\nWater Usage\n (gallons)"},{"$f":"CONCATENATE(\"Design\nMonthly \nWater Use\n\",IF(Instructions!$I$62=1,\" (gal/month)\",\" (l/month)\"))","v":"Design\nMonthly \nWater Use\n (gal/month)"},{"$f":"CONCATENATE(\"Baseline\nMonthly \nWater Use\n\",IF(Instructions!$I$62=1,\" (gal/month)\",\" (l/month)\"))","v":"Baseline\nMonthly \nWater Use\n (gal/month)"},null,"Number of Bedrooms"]
[null,null,null,null,null,"Fixture 1 \nID","Fixture 1\nFlow Rate\n(water factor)","Fixture 2\nID","Fixture 2\nFlow Rate\n(water factor)","Fixture 3\nID","Fixture 3\nFlow Rate\n(water factor)","Fixture 4\nID","Fixture 4\nFlow Rate\n(water factor)"]
[{"$f":"IF(B100>0,0,0)","v":0},null,null,null,{"$f":"IFERROR(IF(B100=\"All units\",$D$23,(V100+1)*D100),0)","v":0},null,{"$f":"IFERROR(VLOOKUP(F100,$B$92:$C$95,2,FALSE),\"\")","v":""},null,{"$f":"IFERROR(VLOOKUP(H100,$B$92:$C$95,2,FALSE),\"\")","v":""},null,{"$f":"IFERROR(VLOOKUP(J100,$B$92:$C$95,2,FALSE),\"\")","v":""},null,{"$f":"IFERROR(VLOOKUP(L100,$B$92:$C$95,2,FALSE),\"\")","v":""},{"$f":"IFERROR(SUM(G100,I100,K100,M100)/COUNTA(F100,H100,J100,L100),\"\")","v":""},{"$f":"IFERROR(IF(N100=\"\",\"\",IF(Instructions!$I$62=1,(P100*N100*3.5)*1.23,((P100*N100*3.5)*1.23)*3.78)),\"\")","v":""},{"$f":"IF(B100<>\"\",$C$149,\"\")","v":""},{"$f":"IF(B100<>\"\",$F$149,\"\")","v":""},{"$f":"IF(B100<>\"\",IF(Instructions!$I$62=1,$J$149,$K$149),\"\")","v":""},{"$f":"IFERROR(O100*30*$E100,\"\")","v":""},{"$f":"IFERROR(R100*30*$E100,\"\")","v":""},null,{"$f":"IFERROR(VLOOKUP(B100,$B$16:$V$22,21,FALSE),\"\")","v":""}]
[{"$f":"IF(B101>0,0,0)","v":0},null,null,null,{"$f":"IFERROR(IF(B101=\"All units\",$D$23,(V101+1)*D101),0)","v":0},null,{"$f":"IFERROR(VLOOKUP(F101,$B$92:$C$95,2,FALSE),\"\")","v":""},null,"",null,{"$f":"IFERROR(VLOOKUP(J101,$B$92:$C$95,2,FALSE),\"\")","v":""},null,{"$f":"IFERROR(VLOOKUP(L101,$B$92:$C$95,2,FALSE),\"\")","v":""},{"$f":"IFERROR(SUM(G101,I101,K101,M101)/COUNTA(F101,H101,J101,L101),\"\")","v":""},{"$f":"IFERROR(IF(N101=\"\",\"\",IF(Instructions!$I$62=1,(P101*N101*3.5)*1.23,((P101*N101*3.5)*1.23)*3.78)),\"\")","v":""},{"$f":"IF(B101<>\"\",$C$149,\"\")","v":""},{"$f":"IF(B101<>\"\",$F$149,\"\")","v":""},{"$f":"IF(B101<>\"\",IF(Instructions!$I$62=1,$J$149,$K$149),\"\")","v":""},{"$f":"IFERROR(O101*30*$E101,\"\")","v":""},{"$f":"IFERROR(R101*30*$E101,\"\")","v":""},null,{"$f":"IFERROR(VLOOKUP(B101,$B$16:$V$22,21,FALSE),\"\")","v":""}]
[{"$f":"IF(B102>0,0,0)","v":0},null,null,null,{"$f":"IFERROR(IF(B102=\"All units\",$D$23,(V102+1)*D102),0)","v":0},null,"",null,"",null,{"$f":"IFERROR(VLOOKUP(J102,$B$92:$C$95,2,FALSE),\"\")","v":""},null,{"$f":"IFERROR(VLOOKUP(L102,$B$92:$C$95,2,FALSE),\"\")","v":""},{"$f":"IFERROR(SUM(G102,I102,K102,M102)/COUNTA(F102,H102,J102,L102),\"\")","v":""},{"$f":"IFERROR(IF(N102=\"\",\"\",IF(Instructions!$I$62=1,(P102*N102*3.5)*1.23,((P102*N102*3.5)*1.23)*3.78)),\"\")","v":""},{"$f":"IF(B102<>\"\",$C$149,\"\")","v":""},{"$f":"IF(B102<>\"\",$F$149,\"\")","v":""},{"$f":"IF(B102<>\"\",IF(Instructions!$I$62=1,$J$149,$K$149),\"\")","v":""},{"$f":"IFERROR(O102*30*$E102,\"\")","v":""},{"$f":"IFERROR(R102*30*$E102,\"\")","v":""},null,{"$f":"IFERROR(VLOOKUP(B102,$B$16:$V$22,21,FALSE),\"\")","v":""}]
[null,null,null,null,{"$f":"IFERROR(IF(B103=\"All units\",$D$23,(V103+1)*D103),0)","v":0},null,"",null,"",null,{"$f":"IFERROR(VLOOKUP(J103,$B$92:$C$95,2,FALSE),\"\")","v":""},null,{"$f":"IFERROR(VLOOKUP(L103,$B$92:$C$95,2,FALSE),\"\")","v":""},{"$f":"IFERROR(SUM(G103,I103,K103,M103)/COUNTA(F103,H103,J103,L103),\"\")","v":""},{"$f":"IFERROR(IF(N103=\"\",\"\",IF(Instructions!$I$62=1,(P103*N103*3.5)*1.23,((P103*N103*3.5)*1.23)*3.78)),\"\")","v":""},{"$f":"IF(B103<>\"\",$C$149,\"\")","v":""},{"$f":"IF(B103<>\"\",$F$149,\"\")","v":""},{"$f":"IF(B103<>\"\",IF(Instructions!$I$62=1,$J$149,$K$149),\"\")","v":""},{"$f":"IFERROR(O103*30*$E103,\"\")","v":""},{"$f":"IFERROR(R103*30*$E103,\"\")","v":""},null,{"$f":"IFERROR(VLOOKUP(B103,$B$16:$V$22,21,FALSE),\"\")","v":""}]
[null,null,null,null,{"$f":"IFERROR(IF(B104=\"All units\",$D$23,(V104+1)*D104),0)","v":0},null,"",null,"",null,{"$f":"IFERROR(VLOOKUP(J104,$B$92:$C$95,2,FALSE),\"\")","v":""},null,{"$f":"IFERROR(VLOOKUP(L104,$B$92:$C$95,2,FALSE),\"\")","v":""},{"$f":"IFERROR(SUM(G104,I104,K104,M104)/COUNTA(F104,H104,J104,L104),\"\")","v":""},{"$f":"IFERROR(IF(N104=\"\",\"\",IF(Instructions!$I$62=1,(P104*N104*3.5)*1.23,((P104*N104*3.5)*1.23)*3.78)),\"\")","v":""},{"$f":"IF(B104<>\"\",$C$149,\"\")","v":""},{"$f":"IF(B104<>\"\",$F$149,\"\")","v":""},{"$f":"IF(B104<>\"\",IF(Instructions!$I$62=1,$J$149,$K$149),\"\")","v":""},{"$f":"IFERROR(O104*30*$E104,\"\")","v":""},{"$f":"IFERROR(R104*30*$E104,\"\")","v":""},null,{"$f":"IFERROR(VLOOKUP(B104,$B$16:$V$22,21,FALSE),\"\")","v":""}]
["E","Totals for clothes washers",null,{"$f":"SUM(D100:D104)","v":0},{"$f":"SUM(E100:E104)","v":0},null,null,null,null,null,null,null,null,null,null,null,null,null,{"$f":"SUM(S100:S104)","v":0},{"$f":"SUM(T100:T104)","v":0}]
[]
[]
[null,"Fixture Use for Dishwashers"]
[null,{"$f":"CONCATENATE(\"Enter the flow rate and a brief description for each type of fixture. If no dishwasher is installed in the project, enter 'Baseline' under 'Fixture ID', and '\",IF(Instructions!$I$62=1,\"'6.5' under 'Flow Rate'.\",\"3 under 'Flow Rate'.\"))","v":"Enter the flow rate and a brief description for each type of fixture. If no dishwasher is installed in the project, enter 'Baseline' under 'Fixture ID', and ''6.5' under 'Flow Rate'."}]
[null,"Fixture ID",{"$f":"CONCATENATE(\"Flow Rate\n\",IF(Instructions!$I$62=1,\"(gpc)\",\"(lpc)\"))","v":"Flow Rate\n(gpc)"}]
[{"$f":"IF(B111>0,0,0)","v":0}]
[{"$f":"IF(B112>0,0,0)","v":0}]
[{"$f":"IF(B113>0,0,0)","v":0}]
[]
[]
[null,"Unit Information",null,null,null,"Design",null,null,null,null,null,null,null,null,null,"Baseline",null,null,"Totals"]
[null,"Unit Type","Unit \nDescription","Number of \nUnits","Occupants","Fixture 1",null,"Fixture 2",null,"Fixture 3",null,"Fixture 4",null,{"$f":"CONCATENATE(\"Average \nFlow Rate\n\",IF(Instructions!$I$62=1,\"(gpc)\",\"(lpc)\"))","v":"Average \nFlow Rate\n(gpc)"},{"$f":"CONCATENATE(\"Calculated\nWater Usage\n\",IF(Instructions!$I$62=1,\" (gallons)\",\" (liters)\"))","v":"Calculated\nWater Usage\n (gallons)"},"Estimated Fixture Usage\n(cycles)",{"$f":"CONCATENATE(\"Flow Rate\n\",IF(Instructions!$I$62=1,\"(gpc)\",\"(lpc)\"))","v":"Flow Rate\n(gpc)"},{"$f":"CONCATENATE(\"Estimated\nWater Usage\n\",IF(Instructions!$I$62=1,\" (gallons)\",\" (liters)\"))","v":"Estimated\nWater Usage\n (gallons)"},{"$f":"CONCATENATE(\"Design\nMonthly \nWater Use\n\",IF(Instructions!$I$62=1,\" (gal/month)\",\" (l/month)\"))","v":"Design\nMonthly \nWater Use\n (gal/month)"},{"$f":"CONCATENATE(\"Baseline\nMonthly \nWater Use\n\",IF(Instructions!$I$62=1,\" (gal/month)\",\" (l/month)\"))","v":"Baseline\nMonthly \nWater Use\n (gal/month)"},null,"Number of Bedrooms"]
[null,null,null,null,null,"Fixture 1 \nID",{"$f":"CONCATENATE(\"Fixture 1\nFlow Rate\n\",IF(Instructions!$I$62=1,\"(gpc)\",\"(lpc)\"))","v":"Fixture 1\nFlow Rate\n(gpc)"},"Fixture 2\nID",{"$f":"CONCATENATE(\"Fixture 2\nFlow Rate\n\",IF(Instructions!$I$62=1,\"(gpc)\",\"(lpc)\"))","v":"Fixture 2\nFlow Rate\n(gpc)"},"Fixture 3\nID",{"$f":"CONCATENATE(\"Fixture 3\nFlow Rate\n\",IF(Instructions!$I$62=1,\"(gpc)\",\"(lpc)\"))","v":"Fixture 3\nFlow Rate\n(gpc)"},"Fixture 4\nID",{"$f":"CONCATENATE(\"Fixture 4\nFlow Rate\n\",IF(Instructions!$I$62=1,\"(gpc)\",\"(lpc)\"))","v":"Fixture 4\nFlow Rate\n(gpc)"}]
[{"$f":"IF(B119>0,0,0)","v":0},null,null,null,{"$f":"IFERROR(IF(B119=\"All units\",$D$23,(V119+1)*D119),0)","v":0},null,{"$f":"IFERROR(VLOOKUP(F119,$B$111:$C$114,2,FALSE),\"\")","v":""},null,{"$f":"IFERROR(VLOOKUP(H119,$B$111:$C$114,2,FALSE),\"\")","v":""},null,{"$f":"IFERROR(VLOOKUP(J119,$B$111:$C$114,2,FALSE),\"\")","v":""},null,{"$f":"IFERROR(VLOOKUP(L119,$B$111:$C$114,2,FALSE),\"\")","v":""},{"$f":"IFERROR(SUM(G119,I119,K119,M119)/COUNTA(F119,H119,J119,L119),\"\")","v":""},{"$f":"IFERROR(N119*$P119,\"\")","v":""},{"$f":"IF(B119<>\"\",$C$150,\"\")","v":""},{"$f":"IF(B119<>\"\",IF(Instructions!$I$62=1,$F$150,$H$150),\"\")","v":""},{"$f":"IF(B119<>\"\",IF(Instructions!$I$62=1,$J$150,$K$150),\"\")","v":""},{"$f":"IFERROR(O119*30*$E119,\"\")","v":""},{"$f":"IFERROR(R119*30*$E119,\"\")","v":""},null,{"$f":"IFERROR(VLOOKUP(B119,$B$16:$V$22,21,FALSE),\"\")","v":""}]
[{"$f":"IF(B120>0,0,0)","v":0},null,null,null,{"$f":"IFERROR(IF(B120=\"All units\",$D$23,(V120+1)*D120),0)","v":0},null,{"$f":"IFERROR(VLOOKUP(F120,$B$111:$C$114,2,FALSE),\"\")","v":""},null,"",null,{"$f":"IFERROR(VLOOKUP(J120,$B$111:$C$114,2,FALSE),\"\")","v":""},null,{"$f":"IFERROR(VLOOKUP(L120,$B$111:$C$114,2,FALSE),\"\")","v":""},{"$f":"IFERROR(SUM(G120,I120,K120,M120)/COUNTA(F120,H120,J120,L120),\"\")","v":""},{"$f":"IFERROR(N120*$P120,\"\")","v":""},{"$f":"IF(B120<>\"\",$C$150,\"\")","v":""},{"$f":"IF(B120<>\"\",IF(Instructions!$I$62=1,$F$150,$H$150),\"\")","v":""},{"$f":"IF(B120<>\"\",IF(Instructions!$I$62=1,$J$150,$K$150),\"\")","v":""},{"$f":"IFERROR(O120*30*$E120,\"\")","v":""},{"$f":"IFERROR(R120*30*$E120,\"\")","v":""},null,{"$f":"IFERROR(VLOOKUP(B120,$B$16:$V$22,21,FALSE),\"\")","v":""}]
[{"$f":"IF(B121>0,0,0)","v":0},null,null,null,{"$f":"IFERROR(IF(B121=\"All units\",$D$23,(V121+1)*D121),0)","v":0},null,"",null,"",null,{"$f":"IFERROR(VLOOKUP(J121,$B$111:$C$114,2,FALSE),\"\")","v":""},null,{"$f":"IFERROR(VLOOKUP(L121,$B$111:$C$114,2,FALSE),\"\")","v":""},{"$f":"IFERROR(SUM(G121,I121,K121,M121)/COUNTA(F121,H121,J121,L121),\"\")","v":""},{"$f":"IFERROR(N121*$P121,\"\")","v":""},{"$f":"IF(B121<>\"\",$C$150,\"\")","v":""},{"$f":"IF(B121<>\"\",IF(Instructions!$I$62=1,$F$150,$H$150),\"\")","v":""},{"$f":"IF(B121<>\"\",IF(Instructions!$I$62=1,$J$150,$K$150),\"\")","v":""},{"$f":"IFERROR(O121*30*$E121,\"\")","v":""},{"$f":"IFERROR(R121*30*$E121,\"\")","v":""},null,{"$f":"IFERROR(VLOOKUP(B121,$B$16:$V$22,21,FALSE),\"\")","v":""}]
[null,null,null,null,{"$f":"IFERROR(IF(B122=\"All units\",$D$23,(V122+1)*D122),0)","v":0},null,"",null,"",null,{"$f":"IFERROR(VLOOKUP(J122,$B$111:$C$114,2,FALSE),\"\")","v":""},null,{"$f":"IFERROR(VLOOKUP(L122,$B$111:$C$114,2,FALSE),\"\")","v":""},{"$f":"IFERROR(SUM(G122,I122,K122,M122)/COUNTA(F122,H122,J122,L122),\"\")","v":""},{"$f":"IFERROR(N122*$P122,\"\")","v":""},{"$f":"IF(B122<>\"\",$C$150,\"\")","v":""},{"$f":"IF(B122<>\"\",IF(Instructions!$I$62=1,$F$150,$H$150),\"\")","v":""},{"$f":"IF(B122<>\"\",IF(Instructions!$I$62=1,$J$150,$K$150),\"\")","v":""},{"$f":"IFERROR(O122*30*$E122,\"\")","v":""},{"$f":"IFERROR(R122*30*$E122,\"\")","v":""},null,{"$f":"IFERROR(VLOOKUP(B122,$B$16:$V$22,21,FALSE),\"\")","v":""}]
[null,null,null,null,{"$f":"IFERROR(IF(B123=\"All units\",$D$23,(V123+1)*D123),0)","v":0},null,"",null,"",null,{"$f":"IFERROR(VLOOKUP(J123,$B$111:$C$114,2,FALSE),\"\")","v":""},null,{"$f":"IFERROR(VLOOKUP(L123,$B$111:$C$114,2,FALSE),\"\")","v":""},{"$f":"IFERROR(SUM(G123,I123,K123,M123)/COUNTA(F123,H123,J123,L123),\"\")","v":""},{"$f":"IFERROR(N123*$P123,\"\")","v":""},{"$f":"IF(B123<>\"\",$C$150,\"\")","v":""},{"$f":"IF(B123<>\"\",IF(Instructions!$I$62=1,$F$150,$H$150),\"\")","v":""},{"$f":"IF(B123<>\"\",IF(Instructions!$I$62=1,$J$150,$K$150),\"\")","v":""},{"$f":"IFERROR(O123*30*$E123,\"\")","v":""},{"$f":"IFERROR(R123*30*$E123,\"\")","v":""},null,{"$f":"IFERROR(VLOOKUP(B123,$B$16:$V$22,21,FALSE),\"\")","v":""}]
["F","Totals for dishwashers",null,{"$f":"SUM(D119:D123)","v":0},{"$f":"SUM(E119:E123)","v":0},null,null,null,null,null,null,null,null,null,null,null,null,null,{"$f":"SUM(S119:S123)","v":0},{"$f":"SUM(T119:T123)","v":0}]
[]
[]
[null,"Indoor Water Use Summary"]
[null,"Fixture Type",null,null,null,null,{"$f":"CONCATENATE(\"Design\nWater Use\n\",IF(Instructions!$I$62=1,\" (gal/month)\",\" (l/month)\"))","v":"Design\nWater Use\n (gal/month)"},{"$f":"CONCATENATE(\"Baseline\nWater Use\n\",IF(Instructions!$I$62=1,\" (gal/month)\",\" (l/month)\"))","v":"Baseline\nWater Use\n (gal/month)"},{"$f":"CONCATENATE(\"Savings\n\",IF(Instructions!$I$62=1,\" (gal/month)\",\" (l/month)\"))","v":"Savings\n (gal/month)"}]
[null,"Showers",null,null,null,null,{"$f":"S44","v":0},{"$f":"T44","v":0},{"$f":"IF(G129=0,0,H129-G129)","v":0}]
[null,"Lavatories and kitchen faucets",null,null,null,null,{"$f":"S62","v":0},{"$f":"T62","v":0},{"$f":"IF(G130=0,0,H130-G130)","v":0}]
[null,"Toilets",null,null,null,null,{"$f":"S86","v":0},{"$f":"T86","v":0},{"$f":"IF(G131=0,0,H131-G131)","v":0}]
[null,"Clothes washers",null,null,null,null,{"$f":"S105","v":0},{"$f":"T105","v":0},{"$f":"IF(G132=0,0,H132-G132)","v":0}]
[null,"Dishwashers",null,null,null,null,{"$f":"S124","v":0},{"$f":"T124","v":0},{"$f":"IF(G133=0,0,H133-G133)","v":0}]
[null,"Totals",null,null,null,null,{"$f":"SUM(G129:G133)","v":0},{"$f":"SUM(H129:H133)","v":0},{"$f":"SUM(I129:I133)","v":0}]
[]
[null,"Results"]
[null,null,null,null,null,null,{"$f":"CONCATENATE(\"Design\nWater Use\n\",IF(Instructions!$I$62=1,\" (gal/month)\",\" (l/month)\"))","v":"Design\nWater Use\n (gal/month)"},{"$f":"CONCATENATE(\"Baseline\nWater Use\n\",IF(Instructions!$I$62=1,\" (gal/month)\",\" (l/month)\"))","v":"Baseline\nWater Use\n (gal/month)"},{"$f":"CONCATENATE(\"Savings\n\",IF(Instructions!$I$62=1,\" (gal/month)\",\" (l/month)\"))","v":"Savings\n (gal/month)"}]
[null,"Outdoor water use",null,null,null,null,{"$f":"(I10-I11)","v":0},{"$f":"I9","v":0},{"$f":"H138-G138","v":0}]
[null,"Indoor water use",null,null,null,null,{"$f":"G134","v":0},{"$f":"H134","v":0},{"$f":"I134","v":0}]
[null,"Totals",null,null,null,null,{"$f":"SUM(G138:G139)","v":0},{"$f":"SUM(H138:H139)","v":0},{"$f":"SUM(I138:I139)","v":0}]
[null,"Total monthly water savings as a percentage of total water use (%)",null,null,null,null,null,null,{"$f":"IFERROR((H140-G140)/H140,0)","v":0}]
[]
[null,"Assumptions"]
[null,"Fixture","Estimated \nFixture Usage",null,null,"Baseline \nFlush or Flow Rate",null,null,null,"Estimated \nWater Usage"]
[null,null,null,null,null,"IP",null,"SI",null,"IP\n(gallons per person)","SI\n(liters per person)"]
[null,"Shower",{"$f":"8.2*0.75","v":6.1499999999999995},"minutes",null,2.5,"gpm",9.5,"lpm",{"$f":"F146*C146","v":15.374999999999998},{"$f":"H146*C146","v":58.424999999999997}]
[null,"Lavatory or kitchen faucet",5,"minutes",null,2.2000000000000002,"gpm",8.3000000000000007,"lpm",{"$f":"F147*C147","v":11},{"$f":"H147*C147","v":41.5}]
[null,"Toilet",5.05,"flushes",null,1.6,"gpf",6,"lpf",{"$f":"F148*C148","v":8.08},{"$f":"H148*C148","v":30.299999999999997}]
[null,"Clothes washer",0.37,"at 3.5 cu ft (0.1 cu m)",null,9.5,"WF",9.5,"WF",{"$f":"(C149*F149*3.5)*1.23","v":15.132075},{"$f":"((C149*F149*3.5)*1.23)*3.78","v":57.199243500000001}]
[null,"Dishwasher",0.1,"cycles",null,6.5,"gpc",24,"lpc",{"$f":"F150*C150","v":0.65},{"$f":"H150*C150","v":2.4000000000000004}]

{"sheet":"Sampling Reporting Form","index":16,"n_rows":22,"n_cols":13,"rows_kept":22,"cut":false,"hidden":false,"merged":[[4,6,5,6],[4,7,4,9],[4,12,5,12],[4,10,4,11],[4,1,5,1],[4,2,5,2],[4,3,5,3],[4,4,5,4],[4,5,5,5]]}
[]
[null,"Sampling Reporting Form"]
[]
[]
[null,"Sample Set","Size of\nSample Set\n(Number of Lots/Units)","Lot/Unit Numbers \nwithin \nSample Set","Sampling \nRate\n(%)","Number of \nUnits or Buildings Verified","Lot/Unit Numbers\nVerified","On-site Verification",null,null,"Failures",null,"Notes"]
[null,null,null,null,null,null,null,"Pre-Slab\nVerification Date","Pre-Drywall\nVerification Date","Final\nVerification Date","Lot/Unit Number \nof any Failures","Remediation Activity\nfor Failure"]
[{"$f":"IF(B7=1,0,0)","v":0},1]
[{"$f":"IF(B8=1,0,0)","v":0},2]
[0,3]
[0,4]
[0,5]
[{"$f":"IF(B12=1,0,0)","v":0},1]
[0,2]
[0,3]
[0,4]
[0,5]
[{"$f":"IF(B17=1,0,0)","v":0}]
[]
[]
["A","Total number of units selected for verification",null,null,null,{"$f":"SUM(F7:F19)","v":0}]
[null,"Total number of units or buildings utilizing sampling",null,null,null,{"$f":"SUM(C7:C19)","v":0}]
[null,"Overall sampling rate (%)",null,null,null,{"$f":"IFERROR(F20/F21,0)","v":0}]

{"sheet":"Scorecard Data","index":17,"n_rows":619,"n_cols":17,"rows_kept":619,"cut":false,"hidden":true,"merged":[]}
["Project ID #",{"$f":"Instructions!F34","v":"Woodlawn Residence "}]
["Units",{"$f":"Instructions!F12","v":"IP units"}]
["Rating System",{"$f":"Instructions!F15","v":"LEED BD+C: Homes and Multifamily Lowrise v4 - LEED v4"}]
["Building type",{"$f":"IF(Type=\"Batch\",Instructions!F49,Instructions!F41)","v":1}]
["Project name",{"$f":"Instructions!F35","v":"537 Woodlawn"}]
["Project address",{"$f":"Instructions!F36","v":"Grand Rapids "}]
["City",{"$f":"Instructions!F37","v":"Michigan "}]
["State",{"$f":"Instructions!F38","v":"USA"}]
["Country",{"$f":"Instructions!F39","v":49507}]
["Zip code",{"$f":"Instructions!F40","v":"Single family detached"}]
["Number of stories",{"$f":"Instructions!F42","v":4}]
["Conditioned floor area",{"$f":"Instructions!#REF!","v":{"$error":"#REF!"}}]
["Gross floor area",{"$f":"Instructions!F44","v":0}]
["Number of bedrooms",{"$f":"Instructions!F43","v":1055}]
["Number of units",{"$f":"'Multifamily HSA'!P12","v":0}]
["Gut-rehab",{"$f":"IF(Instructions!F21=\"Gut-rehab\",\"Yes\",\"No\")","v":"Yes"}]
["Sampling applied",{"$f":"IF('Sampling Reporting Form'!F22>0,\"Yes\",\"No\")","v":"No"}]
["Rating system","Credit category","P/C","Credit name","Credit ID","Credit Attempted","Pts \nVerified","Total Pts Possible ","Threshold Name","Short ID","Attempted","Option name","Short ID","Attempted","Path name","Short ID","Attempted"]
["LEED v4 BD+C: Homes","IP","C","Integrative process","IP102",{"$f":"IF(IP!$J$7>0,\"X\",\"\")","v":"X"},{"$f":"IP!$J$7","v":1},2,null,null,null,"Option 1","IP02O1",{"$f":"IF(IP!$J$11>0,\"X\",\"\")","v":"X"}]
["LEED v4 BD+C: Homes","IP","C","Integrative process","IP102",{"$f":"IF(IP!$J$7>0,\"X\",\"\")","v":"X"},{"$f":"IP!$J$7","v":1},2,null,null,null,"Option 2","IP02O2",{"$f":"IF(IP!$J$33>0,\"X\",\"\")","v":""}]
["LEED v4 BD+C: Homes","IP","C","Integrative process","IP102",{"$f":"IF(IP!$J$7>0,\"X\",\"\")","v":"X"},{"$f":"IP!$J$7","v":1},2,null,null,null,"Option 3","IP02O3",{"$f":"IF(IP!$J$42>0,\"X\",\"\")","v":""}]
["LEED v4 BD+C: Homes","LT","P","Floodplain avoidance","LT101","x",{"$f":"LT!$J$7","v":"Y"},0]
["LEED v4 BD+C: Homes","LT","C","LEED for Neighborhood Development","LT102",{"$f":"IF(LT!$J$20>0,\"X\",\"\")","v":""},{"$f":"LT!$J$20","v":0},15]
["LEED v4 BD+C: Homes","LT","C","Site selection","LT103",{"$f":"IF(LT!$J$34>0,\"X\",\"\")","v":"X"},{"$f":"LT!$J$34","v":8},8,null,null,null,"Option 1","LT03O1",{"$f":"IF(LT!$J$38>0,\"X\",\"\")","v":"X"}]
["LEED v4 BD+C: Homes","LT","C","Site selection","LT103",{"$f":"IF(LT!$J$34>0,\"X\",\"\")","v":"X"},{"$f":"LT!$J$34","v":8},8,null,null,null,"Option 1","LT03O1",{"$f":"IF(LT!$J$38>0,\"X\",\"\")","v":"X"},"Path 1","LT03O1P1",{"$f":"IF(LT!$J$41>0,\"X\",\"\")","v":"X"}]
["LEED v4 BD+C: Homes","LT","C","Site selection","LT103",{"$f":"IF(LT!$J$34>0,\"X\",\"\")","v":"X"},{"$f":"LT!$J$34","v":8},8,null,null,null,"Option 1","LT03O1",{"$f":"IF(LT!$J$38>0,\"X\",\"\")","v":"X"},"Path 2","LT03O1P2",{"$f":"IF(LT!$J$49>0,\"X\",\"\")","v":""}]
["LEED v4 BD+C: Homes","LT","C","Site selection","LT103",{"$f":"IF(LT!$J$34>0,\"X\",\"\")","v":"X"},{"$f":"LT!$J$34","v":8},8,null,null,null,"Option 2","LT03O2",{"$f":"IF(LT!$J$69>0,\"X\",\"\")","v":"X"}]
["LEED v4 BD+C: Homes","LT","C","Site selection","LT103",{"$f":"IF(LT!$J$34>0,\"X\",\"\")","v":"X"},{"$f":"LT!$J$34","v":8},8,null,null,null,"Option 3","LT03O3",{"$f":"IF(LT!$J$78>0,\"X\",\"\")","v":"X"}]
["LEED v4 BD+C: Homes","LT","C","Site selection","LT103",{"$f":"IF(LT!$J$34>0,\"X\",\"\")","v":"X"},{"$f":"LT!$J$34","v":8},8,null,null,null,"Option 4","LT03O4",{"$f":"IF(LT!$J$86>0,\"X\",\"\")","v":"X"}]
["LEED v4 BD+C: Homes","LT","C","Site selection","LT103",{"$f":"IF(LT!$J$34>0,\"X\",\"\")","v":"X"},{"$f":"LT!$J$34","v":8},8,null,null,null,"Option 5","LT03O5",{"$f":"IF(LT!$J$92>0,\"X\",\"\")","v":""}]
["LEED v4 BD+C: Homes","LT","C","Compact development","LT104",{"$f":"IF(LT!$J$117>0,\"X\",\"\")","v":"X"},{"$f":"LT!$J$117","v":1},3,"1 point","LT04T1",{"$f":"IF($G$31=1,\"X\",\"\")","v":"X"}]
["LEED v4 BD+C: Homes","LT","C","Compact development","LT104",{"$f":"IF(LT!$J$117>0,\"X\",\"\")","v":"X"},{"$f":"LT!$J$117","v":1},3,"2 points","LT04T2",{"$f":"IF($G$32=2,\"X\",\"\")","v":""}]
["LEED v4 BD+C: Homes","LT","C","Compact development","LT104",{"$f":"IF(LT!$J$117>0,\"X\",\"\")","v":"X"},{"$f":"LT!$J$117","v":1},3,"3 points","LT04T3",{"$f":"IF($G$33=3,\"X\",\"\")","v":""}]
["LEED v4 BD+C: Homes","LT","C","Community resources","LT105",{"$f":"IF(LT!$J$127>0,\"X\",\"\")","v":""},{"$f":"LT!$J$127","v":0},2,"1 point","LT05T1",{"$f":"IF($G$34=1,\"X\",\"\")","v":""}]
["LEED v4 BD+C: Homes","LT","C","Community resources","LT105",{"$f":"IF(LT!$J$127>0,\"X\",\"\")","v":""},{"$f":"LT!$J$127","v":0},2,"1.5 points","LT05T2",{"$f":"IF($G$35=1.5,\"X\",\"\")","v":""}]
["LEED v4 BD+C: Homes","LT","C","Community resources","LT105",{"$f":"IF(LT!$J$127>0,\"X\",\"\")","v":""},{"$f":"LT!$J$127","v":0},2,"2 points","LT05T3",{"$f":"IF($G$36=2,\"X\",\"\")","v":""}]
["LEED v4 BD+C: Homes","LT","C","Access to transit","LT106",{"$f":"IF(LT!$J$135>0,\"X\",\"\")","v":""},{"$f":"LT!$J$135","v":0},2,"1 point","LT06T1",{"$f":"IF($G$37=1,\"X\",\"\")","v":""}]
["LEED v4 BD+C: Homes","LT","C","Access to transit","LT106",{"$f":"IF(LT!$J$135>0,\"X\",\"\")","v":""},{"$f":"LT!$J$135","v":0},2,"1.5 points","LT06T2",{"$f":"IF($G$38=1.5,\"X\",\"\")","v":""}]
["LEED v4 BD+C: Homes","LT","C","Access to transit","LT106",{"$f":"IF(LT!$J$135>0,\"X\",\"\")","v":""},{"$f":"LT!$J$135","v":0},2,"2 points","LT06T3",{"$f":"IF($G$39=2,\"X\",\"\")","v":""}]
["LEED v4 BD+C: Homes","SS","P","Construction activity pollution prevention","SS101","x",{"$f":"SS!$J$7","v":"Y"},0]
["LEED v4 BD+C: Homes","SS","P","No invasive plants","SS102","x",{"$f":"SS!$J$34","v":"Y"},0]
["LEED v4 BD+C: Homes","SS","C","Heat island reduction","SS110",{"$f":"IF(SS!$J$41>0,\"X\",\"\")","v":""},{"$f":"SS!$J$41","v":0},2,null,null,null,"Option 1","SS10O1",{"$f":"IF(SS!$J$44>0,\"X\",\"\")","v":""}]
["LEED v4 BD+C: Homes","SS","C","Heat island reduction","SS110",{"$f":"IF(SS!$J$41>0,\"X\",\"\")","v":""},{"$f":"SS!$J$41","v":0},2,null,null,null,"Option 1","SS10O1",{"$f":"IF(SS!$J$44>0,\"X\",\"\")","v":""},"1 point","SS10O1P1",{"$f":"IF(SS!$J$44=1,\"X\",\"\")","v":""}]
["LEED v4 BD+C: Homes","SS","C","Heat island reduction","SS110",{"$f":"IF(SS!$J$41>0,\"X\",\"\")","v":""},{"$f":"SS!$J$41","v":0},2,null,null,null,"Option 1","SS10O1",{"$f":"IF(SS!$J$44>0,\"X\",\"\")","v":""},"2 points","SS10O1P2",{"$f":"IF(SS!$J$44=2,\"X\",\"\")","v":""}]
["LEED v4 BD+C: Homes","SS","C","Heat island reduction","SS110",{"$f":"IF(SS!$J$41>0,\"X\",\"\")","v":""},{"$f":"SS!$J$41","v":0},2,null,null,null,"Option 2","SS10O2",{"$f":"IF(SS!$J$50>0,\"X\",\"\")","v":""}]
["LEED v4 BD+C: Homes","SS","C","Heat island reduction","SS110",{"$f":"IF(SS!$J$41>0,\"X\",\"\")","v":""},{"$f":"SS!$J$41","v":0},2,null,null,null,"Option 2","SS10O2",{"$f":"IF(SS!$J$50>0,\"X\",\"\")","v":""},"1 point","SS10O2P1",{"$f":"IF(SS!$J$50=1,\"X\",\"\")","v":""}]
["LEED v4 BD+C: Homes","SS","C","Heat island reduction","SS110",{"$f":"IF(SS!$J$41>0,\"X\",\"\")","v":""},{"$f":"SS!$J$41","v":0},2,null,null,null,"Option 2","SS10O2",{"$f":"IF(SS!$J$50>0,\"X\",\"\")","v":""},"2 points","SS10O2P2",{"$f":"IF(SS!$J$50=2,\"X\",\"\")","v":""}]
["LEED v4 BD+C: Homes","SS","C","Rainwater management","SS108",{"$f":"IF(SS!$J$69>0,\"X\",\"\")","v":""},{"$f":"SS!$J$69","v":0},3,null,null,null,"Case 1","SS08O1",{"$f":"IF(SS!$J$73>0,\"X\",\"\")","v":""}]
["LEED v4 BD+C: Homes","SS","C","Rainwater management","SS108",{"$f":"IF(SS!$J$69>0,\"X\",\"\")","v":""},{"$f":"SS!$J$69","v":0},3,null,null,null,"Case 1","SS08O1",{"$f":"IF(SS!$J$73>0,\"X\",\"\")","v":""},"1 point","SS08O1P1",{"$f":"IF(SS!$J$73=1,\"X\",\"\")","v":""}]
["LEED v4 BD+C: Homes","SS","C","Rainwater management","SS108",{"$f":"IF(SS!$J$69>0,\"X\",\"\")","v":""},{"$f":"SS!$J$69","v":0},3,null,null,null,"Case 1","SS08O1",{"$f":"IF(SS!$J$73>0,\"X\",\"\")","v":""},"2 points","SS08O1P2",{"$f":"IF(SS!$J$73=2,\"X\",\"\")","v":""}]
["LEED v4 BD+C: Homes","SS","C","Rainwater management","SS108",{"$f":"IF(SS!$J$69>0,\"X\",\"\")","v":""},{"$f":"SS!$J$69","v":0},3,null,null,null,"Case 1","SS08O1",{"$f":"IF(SS!$J$73>0,\"X\",\"\")","v":""},"3 points","SS08O1P3",{"$f":"IF(SS!$J$73=3,\"X\",\"\")","v":""}]
["LEED v4 BD+C: Homes","SS","C","Rainwater management","SS108",{"$f":"IF(SS!$J$69>0,\"X\",\"\")","v":""},{"$f":"SS!$J$69","v":0},3,null,null,null,"Case 2","SS08O2",{"$f":"IF(SS!$J$88>0,\"X\",\"\")","v":""}]
["LEED v4 BD+C: Homes","SS","C","Rainwater management","SS108",{"$f":"IF(SS!$J$69>0,\"X\",\"\")","v":""},{"$f":"SS!$J$69","v":0},3,null,null,null,"Case 2","SS08O2",{"$f":"IF(SS!$J$88>0,\"X\",\"\")","v":""},"2 points","SS08O2P1",{"$f":"IF(SS!$J$88=2,\"X\",\"\")","v":""}]
["LEED v4 BD+C: Homes","SS","C","Rainwater management","SS108",{"$f":"IF(SS!$J$69>0,\"X\",\"\")","v":""},{"$f":"SS!$J$69","v":0},3,null,null,null,"Case 2","SS08O2",{"$f":"IF(SS!$J$88>0,\"X\",\"\")","v":""},"3 points","SS08O2P2",{"$f":"IF(SS!$J$88=3,\"X\",\"\")","v":""}]
["LEED v4 BD+C: Homes","SS","C","Nontoxic pest control","SS112",{"$f":"IF(SS!$J$95>0,\"X\",\"\")","v":"X"},{"$f":"SS!$J$95","v":1.5},2,"0.5 points","SS12T1",{"$f":"IF($G$55=0.5,\"X\",\"\")","v":""}]
["LEED v4 BD+C: Homes","SS","C","Nontoxic pest control","SS112",{"$f":"IF(SS!$J$95>0,\"X\",\"\")","v":"X"},{"$f":"SS!$J$95","v":1.5},2,"1 point","SS12T2",{"$f":"IF($G$56=1,\"X\",\"\")","v":""}]
["LEED v4 BD+C: Homes","SS","C","Nontoxic pest control","SS112",{"$f":"IF(SS!$J$95>0,\"X\",\"\")","v":"X"},{"$f":"SS!$J$95","v":1.5},2,"1.5 points","SS12T3",{"$f":"IF($G$57=1.5,\"X\",\"\")","v":"X"}]
["LEED v4 BD+C: Homes","SS","C","Nontoxic pest control","SS112",{"$f":"IF(SS!$J$95>0,\"X\",\"\")","v":"X"},{"$f":"SS!$J$95","v":1.5},2,"2 points","SS12T4",{"$f":"IF($G$58=2,\"X\",\"\")","v":""}]
["LEED v4 BD+C: Homes","WE","P","Water metering","WE101","x",{"$f":"WE!$J$7","v":"Y"},0,null,null,null,"Case 1","WE01O1",{"$f":"IF(WE!$J$10=\"Y\",\"X\",\"\")","v":"X"}]
["LEED v4 BD+C: Homes","WE","P","Water metering","WE101","x",{"$f":"WE!$J$7","v":"Y"},0,null,null,null,"Case 2","WE01O2",{"$f":"IF(WE!$J$18=\"Y\",\"X\",\"\")","v":""}]
["LEED v4 BD+C: Homes","WE","C","Total water use","WE102",{"$f":"IF(WE!$J$27>0,\"X\",\"\")","v":""},{"$f":"WE!$J$27","v":0},12,"1 point","WE02T1",{"$f":"IF($G$61=1,\"X\",\"\")","v":""}]
["LEED v4 BD+C: Homes","WE","C","Total water use","WE102",{"$f":"IF(WE!$J$27>0,\"X\",\"\")","v":""},{"$f":"WE!$J$27","v":0},12,"2 points","WE02T2",{"$f":"IF($G$62=2,\"X\",\"\")","v":""}]
["LEED v4 BD+C: Homes","WE","C","Total water use","WE102",{"$f":"IF(WE!$J$27>0,\"X\",\"\")","v":""},{"$f":"WE!$J$27","v":0},12,"3 points","WE02T3",{"$f":"IF($G$63=3,\"X\",\"\")","v":""}]
["LEED v4 BD+C: Homes","WE","C","Total water use","WE102",{"$f":"IF(WE!$J$27>0,\"X\",\"\")","v":""},{"$f":"WE!$J$27","v":0},12,"4 points","WE02T4",{"$f":"IF($G$64=4,\"X\",\"\")","v":""}]
["LEED v4 BD+C: Homes","WE","C","Total water use","WE102",{"$f":"IF(WE!$J$27>0,\"X\",\"\")","v":""},{"$f":"WE!$J$27","v":0},12,"5 points","WE02T5",{"$f":"IF($G$65=5,\"X\",\"\")","v":""}]
["LEED v4 BD+C: Homes","WE","C","Total water use","WE102",{"$f":"IF(WE!$J$27>0,\"X\",\"\")","v":""},{"$f":"WE!$J$27","v":0},12,"6 points","WE02T6",{"$f":"IF($G$66=6,\"X\",\"\")","v":""}]
["LEED v4 BD+C: Homes","WE","C","Total water use","WE102",{"$f":"IF(WE!$J$27>0,\"X\",\"\")","v":""},{"$f":"WE!$J$27","v":0},12,"7 points","WE02T7",{"$f":"IF($G$67=7,\"X\",\"\")","v":""}]
["LEED v4 BD+C: Homes","WE","C","Total water use","WE102",{"$f":"IF(WE!$J$27>0,\"X\",\"\")","v":""},{"$f":"WE!$J$27","v":0},12,"8 points","WE02T8",{"$f":"IF($G$68=8,\"X\",\"\")","v":""}]
["LEED v4 BD+C: Homes","WE","C","Total water use","WE102",{"$f":"IF(WE!$J$27>0,\"X\",\"\")","v":""},{"$f":"WE!$J$27","v":0},12,"9 points","WE02T9",{"$f":"IF($G$69=9,\"X\",\"\")","v":""}]
["LEED v4 BD+C: Homes","WE","C","Total water use","WE102",{"$f":"IF(WE!$J$27>0,\"X\",\"\")","v":""},{"$f":"WE!$J$27","v":0},12,"10 points","WE02T10",{"$f":"IF($G$70=10,\"X\",\"\")","v":""}]
["LEED v4 BD+C: Homes","WE","C","Total water use","WE102",{"$f":"IF(WE!$J$27>0,\"X\",\"\")","v":""},{"$f":"WE!$J$27","v":0},12,"11 points","WE02T11",{"$f":"IF($G$71=11,\"X\",\"\")","v":""}]
["LEED v4 BD+C: Homes","WE","C","Total water use","WE102",{"$f":"IF(WE!$J$27>0,\"X\",\"\")","v":""},{"$f":"WE!$J$27","v":0},12,"12 points","WE02T12",{"$f":"IF($G$72=12,\"X\",\"\")","v":""}]
["LEED v4 BD+C: Homes","WE","C","Indoor water use","WE103",{"$f":"IF(WE!$J$40>0,\"X\",\"\")","v":"X"},{"$f":"WE!$J$40","v":5},6,null,null,null,"Case 1","WE03O1",{"$f":"IF(WE!$J$43>0,\"X\",\"\")","v":"X"}]
["LEED v4 BD+C: Homes","WE","C","Indoor water use","WE103",{"$f":"IF(WE!$J$40>0,\"X\",\"\")","v":"X"},{"$f":"WE!$J$40","v":5},6,null,null,null,"Case 1","WE03O1",{"$f":"IF(WE!$J$43>0,\"X\",\"\")","v":"X"},"1 point","WE03O1P1",{"$f":"IF(WE!$J$43=1,\"X\",\"\")","v":""}]
["LEED v4 BD+C: Homes","WE","C","Indoor water use","WE103",{"$f":"IF(WE!$J$40>0,\"X\",\"\")","v":"X"},{"$f":"WE!$J$40","v":5},6,null,null,null,"Case 1","WE03O1",{"$f":"IF(WE!$J$43>0,\"X\",\"\")","v":"X"},"2 points","WE03O1P2",{"$f":"IF(WE!$J$43=2,\"X\",\"\")","v":""}]
["LEED v4 BD+C: Homes","WE","C","Indoor water use","WE103",{"$f":"IF(WE!$J$40>0,\"X\",\"\")","v":"X"},{"$f":"WE!$J$40","v":5},6,null,null,null,"Case 1","WE03O1",{"$f":"IF(WE!$J$43>0,\"X\",\"\")","v":"X"},"3 points","WE03O1P3",{"$f":"IF(WE!$J$43=3,\"X\",\"\")","v":""}]
["LEED v4 BD+C: Homes","WE","C","Indoor water use","WE103",{"$f":"IF(WE!$J$40>0,\"X\",\"\")","v":"X"},{"$f":"WE!$J$40","v":5},6,null,null,null,"Case 1","WE03O1",{"$f":"IF(WE!$J$43>0,\"X\",\"\")","v":"X"},"4 points","WE03O1P4",{"$f":"IF(WE!$J$43=4,\"X\",\"\")","v":""}]
["LEED v4 BD+C: Homes","WE","C","Indoor water use","WE103",{"$f":"IF(WE!$J$40>0,\"X\",\"\")","v":"X"},{"$f":"WE!$J$40","v":5},6,null,null,null,"Case 1","WE03O1",{"$f":"IF(WE!$J$43>0,\"X\",\"\")","v":"X"},"5 points","WE03O1P5",{"$f":"IF(WE!$J$43=5,\"X\",\"\")","v":"X"}]
["LEED v4 BD+C: Homes","WE","C","Indoor water use","WE103",{"$f":"IF(WE!$J$40>0,\"X\",\"\")","v":"X"},{"$f":"WE!$J$40","v":5},6,null,null,null,"Case 1","WE03O1",{"$f":"IF(WE!$J$43>0,\"X\",\"\")","v":"X"},"6 points","WE03O1P6",{"$f":"IF(WE!$J$43=6,\"X\",\"\")","v":""}]
["LEED v4 BD+C: Homes","WE","C","Indoor water use","WE103",{"$f":"IF(WE!$J$40>0,\"X\",\"\")","v":"X"},{"$f":"WE!$J$40","v":5},6,null,null,null,"Case 2","WE03O2",{"$f":"IF(WE!$J$64>0,\"X\",\"\")","v":""}]
["LEED v4 BD+C: Homes","WE","C","Indoor water use","WE103",{"$f":"IF(WE!$J$40>0,\"X\",\"\")","v":"X"},{"$f":"WE!$J$40","v":5},6,null,null,null,"Case 2","WE03O2",{"$f":"IF(WE!$J$64>0,\"X\",\"\")","v":""},"1 point","WE03O2P1",{"$f":"IF(WE!$J$64=1,\"X\",\"\")","v":""}]
["LEED v4 BD+C: Homes","WE","C","Indoor water use","WE103",{"$f":"IF(WE!$J$40>0,\"X\",\"\")","v":"X"},{"$f":"WE!$J$40","v":5},6,null,null,null,"Case 2","WE03O2",{"$f":"IF(WE!$J$64>0,\"X\",\"\")","v":""},"2 points","WE03O2P2",{"$f":"IF(WE!$J$64=2,\"X\",\"\")","v":""}]
["LEED v4 BD+C: Homes","WE","C","Indoor water use","WE103",{"$f":"IF(WE!$J$40>0,\"X\",\"\")","v":"X"},{"$f":"WE!$J$40","v":5},6,null,null,null,"Case 2","WE03O2",{"$f":"IF(WE!$J$64>0,\"X\",\"\")","v":""},"3 points","WE03O2P3",{"$f":"IF(WE!$J$64=3,\"X\",\"\")","v":""}]
["LEED v4 BD+C: Homes","WE","C","Indoor water use","WE103",{"$f":"IF(WE!$J$40>0,\"X\",\"\")","v":"X"},{"$f":"WE!$J$40","v":5},6,null,null,null,"Case 2","WE03O2",{"$f":"IF(WE!$J$64>0,\"X\",\"\")","v":""},"4 points","WE03O2P4",{"$f":"IF(WE!$J$64=4,\"X\",\"\")","v":""}]
["LEED v4 BD+C: Homes","WE","C","Indoor water use","WE103",{"$f":"IF(WE!$J$40>0,\"X\",\"\")","v":"X"},{"$f":"WE!$J$40","v":5},6,null,null,null,"Case 2","WE03O2",{"$f":"IF(WE!$J$64>0,\"X\",\"\")","v":""},"5 points","WE03O2P5",{"$f":"IF(WE!$J$64=5,\"X\",\"\")","v":""}]
["LEED v4 BD+C: Homes","WE","C","Indoor water use","WE103",{"$f":"IF(WE!$J$40>0,\"X\",\"\")","v":"X"},{"$f":"WE!$J$40","v":5},6,null,null,null,"Case 2","WE03O2",{"$f":"IF(WE!$J$64>0,\"X\",\"\")","v":""},"6 points","WE03O2P6",{"$f":"IF(WE!$J$64=6,\"X\",\"\")","v":""}]
["LEED v4 BD+C: Homes","WE","C","Outdoor water use","WE104",{"$f":"IF(WE!$J$86>0,\"X\",\"\")","v":""},{"$f":"WE!$J$86","v":0},4,"1 point","WE04T1",{"$f":"IF(G87=1,\"X\",\"\")","v":""}]
["LEED v4 BD+C: Homes","WE","C","Outdoor water use","WE104",{"$f":"IF(WE!$J$86>0,\"X\",\"\")","v":""},{"$f":"WE!$J$86","v":0},4,"2 points","WE04T2",{"$f":"IF(G88=2,\"X\",\"\")","v":""}]
["LEED v4 BD+C: Homes","WE","C","Outdoor water use","WE104",{"$f":"IF(WE!$J$86>0,\"X\",\"\")","v":""},{"$f":"WE!$J$86","v":0},4,"3 points","WE04T3",{"$f":"IF(G89=3,\"X\",\"\")","v":""}]
["LEED v4 BD+C: Homes","WE","C","Outdoor water use","WE104",{"$f":"IF(WE!$J$86>0,\"X\",\"\")","v":""},{"$f":"WE!$J$86","v":0},4,"4 points","WE04T4",{"$f":"IF(G90=4,\"X\",\"\")","v":""}]
["LEED v4 BD+C: Homes","EA","P","Minimum energy performance","EA101","x",{"$f":"EA!$J$7","v":"Y"},0]
["LEED v4 BD+C: Homes","EA","P","Energy metering","EA102","x",{"$f":"EA!$J$73","v":"Y"},0,null,null,null,"Case 1","EA02O1",{"$f":"IF(EA!$J$76=\"Y\",\"X\",\"\")","v":"X"}]
["LEED v4 BD+C: Homes","EA","P","Energy metering","EA102","x",{"$f":"EA!$J$73","v":"Y"},0,null,null,null,"Case 2","EA02O2",{"$f":"IF(EA!$J$83=\"Y\",\"X\",\"\")","v":""}]
["LEED v4 BD+C: Homes","EA","P","Education of homeowner, tenant, or building manager","EA103","x",{"$f":"EA!$J$91","v":"Y"},0]
["LEED v4 BD+C: Homes","EA","C","Annual energy use","EA105",{"$f":"IF(EA!$J$101>0,\"X\",\"\")","v":"X"},{"$f":"EA!$J$101","v":28},29,null,null,null,"Option 1","EA05O1",{"$f":"IF(EA!$J$105>0,\"X\",\"\")","v":""}]
["LEED v4 BD+C: Homes","EA","C","Annual energy use","EA105",{"$f":"IF(EA!$J$101>0,\"X\",\"\")","v":"X"},{"$f":"EA!$J$101","v":28},29,null,null,null,"Option 1","EA05O1",{"$f":"IF(EA!$J$105>0,\"X\",\"\")","v":""},"1 point","EA05O1P1",{"$f":"IF(EA!$J$105=1,\"X\",\"\")","v":""}]
["LEED v4 BD+C: Homes","EA","C","Annual energy use","EA105",{"$f":"IF(EA!$J$101>0,\"X\",\"\")","v":"X"},{"$f":"EA!$J$101","v":28},29,null,null,null,"Option 1","EA05O1",{"$f":"IF(EA!$J$105>0,\"X\",\"\")","v":""},"2 points","EA05O1P2",{"$f":"IF(EA!$J$105=2,\"X\",\"\")","v":""}]
["LEED v4 BD+C: Homes","EA","C","Annual energy use","EA105",{"$f":"IF(EA!$J$101>0,\"X\",\"\")","v":"X"},{"$f":"EA!$J$101","v":28},29,null,null,null,"Option 1","EA05O1",{"$f":"IF(EA!$J$105>0,\"X\",\"\")","v":""},"3 points","EA05O1P3",{"$f":"IF(EA!$J$105=3,\"X\",\"\")","v":""}]
["LEED v4 BD+C: Homes","EA","C","Annual energy use","EA105",{"$f":"IF(EA!$J$101>0,\"X\",\"\")","v":"X"},{"$f":"EA!$J$101","v":28},29,null,null,null,"Option 1","EA05O1",{"$f":"IF(EA!$J$105>0,\"X\",\"\")","v":""},"4 points","EA05O1P4",{"$f":"IF(EA!$J$105=4,\"X\",\"\")","v":""}]
["LEED v4 BD+C: Homes","EA","C","Annual energy use","EA105",{"$f":"IF(EA!$J$101>0,\"X\",\"\")","v":"X"},{"$f":"EA!$J$101","v":28},29,null,null,null,"Option 1","EA05O1",{"$f":"IF(EA!$J$105>0,\"X\",\"\")","v":""},"5 points","EA05O1P5",{"$f":"IF(EA!$J$105=5,\"X\",\"\")","v":""}]
["LEED v4 BD+C: Homes","EA","C","Annual energy use","EA105",{"$f":"IF(EA!$J$101>0,\"X\",\"\")","v":"X"},{"$f":"EA!$J$101","v":28},29,null,null,null,"Option 1","EA05O1",{"$f":"IF(EA!$J$105>0,\"X\",\"\")","v":""},"6 points","EA05O1P6",{"$f":"IF(EA!$J$105=6,\"X\",\"\")","v":""}]
["LEED v4 BD+C: Homes","EA","C","Annual energy use","EA105",{"$f":"IF(EA!$J$101>0,\"X\",\"\")","v":"X"},{"$f":"EA!$J$101","v":28},29,null,null,null,"Option 1","EA05O1",{"$f":"IF(EA!$J$105>0,\"X\",\"\")","v":""},"7 points","EA05O1P7",{"$f":"IF(EA!$J$105=7,\"X\",\"\")","v":""}]
["LEED v4 BD+C: Homes","EA","C","Annual energy use","EA105",{"$f":"IF(EA!$J$101>0,\"X\",\"\")","v":"X"},{"$f":"EA!$J$101","v":28},29,null,null,null,"Option 1","EA05O1",{"$f":"IF(EA!$J$105>0,\"X\",\"\")","v":""},"8 points","EA05O1P8",{"$f":"IF(EA!$J$105=8,\"X\",\"\")","v":""}]
["LEED v4 BD+C: Homes","EA","C","Annual energy use","EA105",{"$f":"IF(EA!$J$101>0,\"X\",\"\")","v":"X"},{"$f":"EA!$J$101","v":28},29,null,null,null,"Option 1","EA05O1",{"$f":"IF(EA!$J$105>0,\"X\",\"\")","v":""},"9 points","EA05O1P9",{"$f":"IF(EA!$J$105=9,\"X\",\"\")","v":""}]
["LEED v4 BD+C: Homes","EA","C","Annual energy use","EA105",{"$f":"IF(EA!$J$101>0,\"X\",\"\")","v":"X"},{"$f":"EA!$J$101","v":28},29,null,null,null,"Option 1","EA05O1",{"$f":"IF(EA!$J$105>0,\"X\",\"\")","v":""},"10 points","EA05O1P10",{"$f":"IF(EA!$J$105=10,\"X\",\"\")","v":""}]
["LEED v4 BD+C: Homes","EA","C","Annual energy use","EA105",{"$f":"IF(EA!$J$101>0,\"X\",\"\")","v":"X"},{"$f":"EA!$J$101","v":28},29,null,null,null,"Option 1","EA05O1",{"$f":"IF(EA!$J$105>0,\"X\",\"\")","v":""},"11 points","EA05O1P11",{"$f":"IF(EA!$J$105=11,\"X\",\"\")","v":""}]
["LEED v4 BD+C: Homes","EA","C","Annual energy use","EA105",{"$f":"IF(EA!$J$101>0,\"X\",\"\")","v":"X"},{"$f":"EA!$J$101","v":28},29,null,null,null,"Option 1","EA05O1",{"$f":"IF(EA!$J$105>0,\"X\",\"\")","v":""},"12 points","EA05O1P12",{"$f":"IF(EA!$J$105=12,\"X\",\"\")","v":""}]
["LEED v4 BD+C: Homes","EA","C","Annual energy use","EA105",{"$f":"IF(EA!$J$101>0,\"X\",\"\")","v":"X"},{"$f":"EA!$J$101","v":28},29,null,null,null,"Option 1","EA05O1",{"$f":"IF(EA!$J$105>0,\"X\",\"\")","v":""},"13 points","EA05O1P13",{"$f":"IF(EA!$J$105=13,\"X\",\"\")","v":""}]
["LEED v4 BD+C: Homes","EA","C","Annual energy use","EA105",{"$f":"IF(EA!$J$101>0,\"X\",\"\")","v":"X"},{"$f":"EA!$J$101","v":28},29,null,null,null,"Option 1","EA05O1",{"$f":"IF(EA!$J$105>0,\"X\",\"\")","v":""},"14 points","EA05O1P14",{"$f":"IF(EA!$J$105=14,\"X\",\"\")","v":""}]
["LEED v4 BD+C: Homes","EA","C","Annual energy use","EA105",{"$f":"IF(EA!$J$101>0,\"X\",\"\")","v":"X"},{"$f":"EA!$J$101","v":28},29,null,null,null,"Option 1","EA05O1",{"$f":"IF(EA!$J$105>0,\"X\",\"\")","v":""},"15 points","EA05O1P15",{"$f":"IF(EA!$J$105=15,\"X\",\"\")","v":""}]
["LEED v4 BD+C: Homes","EA","C","Annual energy use","EA105",{"$f":"IF(EA!$J$101>0,\"X\",\"\")","v":"X"},{"$f":"EA!$J$101","v":28},29,null,null,null,"Option 1","EA05O1",{"$f":"IF(EA!$J$105>0,\"X\",\"\")","v":""},"16 points","EA05O1P16",{"$f":"IF(EA!$J$105=16,\"X\",\"\")","v":""}]
["LEED v4 BD+C: Homes","EA","C","Annual energy use","EA105",{"$f":"IF(EA!$J$101>0,\"X\",\"\")","v":"X"},{"$f":"EA!$J$101","v":28},29,null,null,null,"Option 1","EA05O1",{"$f":"IF(EA!$J$105>0,\"X\",\"\")","v":""},"17 points","EA05O1P17",{"$f":"IF(EA!$J$105=17,\"X\",\"\")","v":""}]
["LEED v4 BD+C: Homes","EA","C","Annual energy use","EA105",{"$f":"IF(EA!$J$101>0,\"X\",\"\")","v":"X"},{"$f":"EA!$J$101","v":28},29,null,null,null,"Option 1","EA05O1",{"$f":"IF(EA!$J$105>0,\"X\",\"\")","v":""},"18 points","EA05O1P18",{"$f":"IF(EA!$J$105=18,\"X\",\"\")","v":""}]
["LEED v4 BD+C: Homes","EA","C","Annual energy use","EA105",{"$f":"IF(EA!$J$101>0,\"X\",\"\")","v":"X"},{"$f":"EA!$J$101","v":28},29,null,null,null,"Option 1","EA05O1",{"$f":"IF(EA!$J$105>0,\"X\",\"\")","v":""},"19 points","EA05O1P19",{"$f":"IF(EA!$J$105=19,\"X\",\"\")","v":""}]
["LEED v4 BD+C: Homes","EA","C","Annual energy use","EA105",{"$f":"IF(EA!$J$101>0,\"X\",\"\")","v":"X"},{"$f":"EA!$J$101","v":28},29,null,null,null,"Option 1","EA05O1",{"$f":"IF(EA!$J$105>0,\"X\",\"\")","v":""},"20 points","EA05O1P20",{"$f":"IF(EA!$J$105=20,\"X\",\"\")","v":""}]
["LEED v4 BD+C: Homes","EA","C","Annual energy use","EA105",{"$f":"IF(EA!$J$101>0,\"X\",\"\")","v":"X"},{"$f":"EA!$J$101","v":28},29,null,null,null,"Option 1","EA05O1",{"$f":"IF(EA!$J$105>0,\"X\",\"\")","v":""},"21 points","EA05O1P21",{"$f":"IF(EA!$J$105=21,\"X\",\"\")","v":""}]
["LEED v4 BD+C: Homes","EA","C","Annual energy use","EA105",{"$f":"IF(EA!$J$101>0,\"X\",\"\")","v":"X"},{"$f":"EA!$J$101","v":28},29,null,null,null,"Option 1","EA05O1",{"$f":"IF(EA!$J$105>0,\"X\",\"\")","v":""},"22 points","EA05O1P22",{"$f":"IF(EA!$J$105=22,\"X\",\"\")","v":""}]
["LEED v4 BD+C: Homes","EA","C","Annual energy use","EA105",{"$f":"IF(EA!$J$101>0,\"X\",\"\")","v":"X"},{"$f":"EA!$J$101","v":28},29,null,null,null,"Option 1","EA05O1",{"$f":"IF(EA!$J$105>0,\"X\",\"\")","v":""},"23 points","EA05O1P23",{"$f":"IF(EA!$J$105=23,\"X\",\"\")","v":""}]
["LEED v4 BD+C: Homes","EA","C","Annual energy use","EA105",{"$f":"IF(EA!$J$101>0,\"X\",\"\")","v":"X"},{"$f":"EA!$J$101","v":28},29,null,null,null,"Option 1","EA05O1",{"$f":"IF(EA!$J$105>0,\"X\",\"\")","v":""},"24 points","EA05O1P24",{"$f":"IF(EA!$J$105=24,\"X\",\"\")","v":""}]
["LEED v4 BD+C: Homes","EA","C","Annual energy use","EA105",{"$f":"IF(EA!$J$101>0,\"X\",\"\")","v":"X"},{"$f":"EA!$J$101","v":28},29,null,null,null,"Option 1","EA05O1",{"$f":"IF(EA!$J$105>0,\"X\",\"\")","v":""},"25 points","EA05O1P25",{"$f":"IF(EA!$J$105=25,\"X\",\"\")","v":""}]
["LEED v4 BD+C: Homes","EA","C","Annual energy use","EA105",{"$f":"IF(EA!$J$101>0,\"X\",\"\")","v":"X"},{"$f":"EA!$J$101","v":28},29,null,null,null,"Option 1","EA05O1",{"$f":"IF(EA!$J$105>0,\"X\",\"\")","v":""},"26 points","EA05O1P26",{"$f":"IF(EA!$J$105=26,\"X\",\"\")","v":""}]
["LEED v4 BD+C: Homes","EA","C","Annual energy use","EA105",{"$f":"IF(EA!$J$101>0,\"X\",\"\")","v":"X"},{"$f":"EA!$J$101","v":28},29,null,null,null,"Option 1","EA05O1",{"$f":"IF(EA!$J$105>0,\"X\",\"\")","v":""},"27 points","EA05O1P27",{"$f":"IF(EA!$J$105=27,\"X\",\"\")","v":""}]
["LEED v4 BD+C: Homes","EA","C","Annual energy use","EA105",{"$f":"IF(EA!$J$101>0,\"X\",\"\")","v":"X"},{"$f":"EA!$J$101","v":28},29,null,null,null,"Option 1","EA05O1",{"$f":"IF(EA!$J$105>0,\"X\",\"\")","v":""},"28 points","EA05O1P28",{"$f":"IF(EA!$J$105=28,\"X\",\"\")","v":""}]
["LEED v4 BD+C: Homes","EA","C","Annual energy use","EA105",{"$f":"IF(EA!$J$101>0,\"X\",\"\")","v":"X"},{"$f":"EA!$J$101","v":28},29,null,null,null,"Option 1","EA05O1",{"$f":"IF(EA!$J$105>0,\"X\",\"\")","v":""},"29 points","EA05O1P29",{"$f":"IF(EA!$J$105=29,\"X\",\"\")","v":""}]
["LEED v4 BD+C: Homes","EA","C","Annual energy use","EA105",{"$f":"IF(EA!$J$101>0,\"X\",\"\")","v":"X"},{"$f":"EA!$J$101","v":28},29,null,null,null,"Option 2","EA05O2",{"$f":"IF(EA!$J$113>0,\"X\",\"\")","v":"X"}]
["LEED v4 BD+C: Homes","EA","C","Annual energy use","EA105",{"$f":"IF(EA!$J$101>0,\"X\",\"\")","v":"X"},{"$f":"EA!$J$101","v":28},29,null,null,null,"Option 2","EA05O2",{"$f":"IF(EA!$J$113>0,\"X\",\"\")","v":"X"},"0.5 points","EA05O2P1",{"$f":"IF(EA!$J$113=0.5,\"X\",\"\")","v":""}]
["LEED v4 BD+C: Homes","EA","C","Annual energy use","EA105",{"$f":"IF(EA!$J$101>0,\"X\",\"\")","v":"X"},{"$f":"EA!$J$101","v":28},29,null,null,null,"Option 2","EA05O2",{"$f":"IF(EA!$J$113>0,\"X\",\"\")","v":"X"},"1 point","EA05O2P2",{"$f":"IF(EA!$J$113=1,\"X\",\"\")","v":""}]
["LEED v4 BD+C: Homes","EA","C","Annual energy use","EA105",{"$f":"IF(EA!$J$101>0,\"X\",\"\")","v":"X"},{"$f":"EA!$J$101","v":28},29,null,null,null,"Option 2","EA05O2",{"$f":"IF(EA!$J$113>0,\"X\",\"\")","v":"X"},"1.5 points","EA05O2P3",{"$f":"IF(EA!$J$113=1.5,\"X\",\"\")","v":""}]
["LEED v4 BD+C: Homes","EA","C","Annual energy use","EA105",{"$f":"IF(EA!$J$101>0,\"X\",\"\")","v":"X"},{"$f":"EA!$J$101","v":28},29,null,null,null,"Option 2","EA05O2",{"$f":"IF(EA!$J$113>0,\"X\",\"\")","v":"X"},"2 points","EA05O2P4",{"$f":"IF(EA!$J$113=2,\"X\",\"\")","v":""}]
["LEED v4 BD+C: Homes","EA","C","Annual energy use","EA105",{"$f":"IF(EA!$J$101>0,\"X\",\"\")","v":"X"},{"$f":"EA!$J$101","v":28},29,null,null,null,"Option 2","EA05O2",{"$f":"IF(EA!$J$113>0,\"X\",\"\")","v":"X"},"2.5 points","EA05O2P5",{"$f":"IF(EA!$J$113=2.5,\"X\",\"\")","v":""}]
["LEED v4 BD+C: Homes","EA","C","Annual energy use","EA105",{"$f":"IF(EA!$J$101>0,\"X\",\"\")","v":"X"},{"$f":"EA!$J$101","v":28},29,null,null,null,"Option 2","EA05O2",{"$f":"IF(EA!$J$113>0,\"X\",\"\")","v":"X"},"3 points","EA05O2P6",{"$f":"IF(EA!$J$113=3,\"X\",\"\")","v":""}]
["LEED v4 BD+C: Homes","EA","C","Annual energy use","EA105",{"$f":"IF(EA!$J$101>0,\"X\",\"\")","v":"X"},{"$f":"EA!$J$101","v":28},29,null,null,null,"Option 2","EA05O2",{"$f":"IF(EA!$J$113>0,\"X\",\"\")","v":"X"},"3.5 points","EA05O2P7",{"$f":"IF(EA!$J$113=3.5,\"X\",\"\")","v":""}]
["LEED v4 BD+C: Homes","EA","C","Annual energy use","EA105",{"$f":"IF(EA!$J$101>0,\"X\",\"\")","v":"X"},{"$f":"EA!$J$101","v":28},29,null,null,null,"Option 2","EA05O2",{"$f":"IF(EA!$J$113>0,\"X\",\"\")","v":"X"},"4 points","EA05O2P8",{"$f":"IF(EA!$J$113=4,\"X\",\"\")","v":""}]
["LEED v4 BD+C: Homes","EA","C","Annual energy use","EA105",{"$f":"IF(EA!$J$101>0,\"X\",\"\")","v":"X"},{"$f":"EA!$J$101","v":28},29,null,null,null,"Option 2","EA05O2",{"$f":"IF(EA!$J$113>0,\"X\",\"\")","v":"X"},"4.5 points","EA05O2P9",{"$f":"IF(EA!$J$113=4.5,\"X\",\"\")","v":""}]
["LEED v4 BD+C: Homes","EA","C","Annual energy use","EA105",{"$f":"IF(EA!$J$101>0,\"X\",\"\")","v":"X"},{"$f":"EA!$J$101","v":28},29,null,null,null,"Option 2","EA05O2",{"$f":"IF(EA!$J$113>0,\"X\",\"\")","v":"X"},"5 points","EA05O2P10",{"$f":"IF(EA!$J$113=5,\"X\",\"\")","v":""}]
["LEED v4 BD+C: Homes","EA","C","Annual energy use","EA105",{"$f":"IF(EA!$J$101>0,\"X\",\"\")","v":"X"},{"$f":"EA!$J$101","v":28},29,null,null,null,"Option 2","EA05O2",{"$f":"IF(EA!$J$113>0,\"X\",\"\")","v":"X"},"5.5 points","EA05O2P11",{"$f":"IF(EA!$J$113=5.5,\"X\",\"\")","v":""}]
["LEED v4 BD+C: Homes","EA","C","Annual energy use","EA105",{"$f":"IF(EA!$J$101>0,\"X\",\"\")","v":"X"},{"$f":"EA!$J$101","v":28},29,null,null,null,"Option 2","EA05O2",{"$f":"IF(EA!$J$113>0,\"X\",\"\")","v":"X"},"6 points","EA05O2P12",{"$f":"IF(EA!$J$113=6,\"X\",\"\")","v":""}]
["LEED v4 BD+C: Homes","EA","C","Annual energy use","EA105",{"$f":"IF(EA!$J$101>0,\"X\",\"\")","v":"X"},{"$f":"EA!$J$101","v":28},29,null,null,null,"Option 2","EA05O2",{"$f":"IF(EA!$J$113>0,\"X\",\"\")","v":"X"},"6.5 points","EA05O2P13",{"$f":"IF(EA!$J$113=6.5,\"X\",\"\")","v":""}]
["LEED v4 BD+C: Homes","EA","C","Annual energy use","EA105",{"$f":"IF(EA!$J$101>0,\"X\",\"\")","v":"X"},{"$f":"EA!$J$101","v":28},29,null,null,null,"Option 2","EA05O2",{"$f":"IF(EA!$J$113>0,\"X\",\"\")","v":"X"},"7 points","EA05O2P14",{"$f":"IF(EA!$J$113=7,\"X\",\"\")","v":""}]
["LEED v4 BD+C: Homes","EA","C","Annual energy use","EA105",{"$f":"IF(EA!$J$101>0,\"X\",\"\")","v":"X"},{"$f":"EA!$J$101","v":28},29,null,null,null,"Option 2","EA05O2",{"$f":"IF(EA!$J$113>0,\"X\",\"\")","v":"X"},"7.5 points","EA05O2P15",{"$f":"IF(EA!$J$113=7.5,\"X\",\"\")","v":""}]
["LEED v4 BD+C: Homes","EA","C","Annual energy use","EA105",{"$f":"IF(EA!$J$101>0,\"X\",\"\")","v":"X"},{"$f":"EA!$J$101","v":28},29,null,null,null,"Option 2","EA05O2",{"$f":"IF(EA!$J$113>0,\"X\",\"\")","v":"X"},"8 points","EA05O2P16",{"$f":"IF(EA!$J$113=8,\"X\",\"\")","v":""}]
["LEED v4 BD+C: Homes","EA","C","Annual energy use","EA105",{"$f":"IF(EA!$J$101>0,\"X\",\"\")","v":"X"},{"$f":"EA!$J$101","v":28},29,null,null,null,"Option 2","EA05O2",{"$f":"IF(EA!$J$113>0,\"X\",\"\")","v":"X"},"8.5 points","EA05O2P17",{"$f":"IF(EA!$J$113=8.5,\"X\",\"\")","v":""}]
["LEED v4 BD+C: Homes","EA","C","Annual energy use","EA105",{"$f":"IF(EA!$J$101>0,\"X\",\"\")","v":"X"},{"$f":"EA!$J$101","v":28},29,null,null,null,"Option 2","EA05O2",{"$f":"IF(EA!$J$113>0,\"X\",\"\")","v":"X"},"9 points","EA05O2P18",{"$f":"IF(EA!$J$113=9,\"X\",\"\")","v":""}]
["LEED v4 BD+C: Homes","EA","C","Annual energy use","EA105",{"$f":"IF(EA!$J$101>0,\"X\",\"\")","v":"X"},{"$f":"EA!$J$101","v":28},29,null,null,null,"Option 2","EA05O2",{"$f":"IF(EA!$J$113>0,\"X\",\"\")","v":"X"},"9.5 points","EA05O2P19",{"$f":"IF(EA!$J$113=9.5,\"X\",\"\")","v":""}]
["LEED v4 BD+C: Homes","EA","C","Annual energy use","EA105",{"$f":"IF(EA!$J$101>0,\"X\",\"\")","v":"X"},{"$f":"EA!$J$101","v":28},29,null,null,null,"Option 2","EA05O2",{"$f":"IF(EA!$J$113>0,\"X\",\"\")","v":"X"},"10 points","EA05O2P20",{"$f":"IF(EA!$J$113=10,\"X\",\"\")","v":""}]
["LEED v4 BD+C: Homes","EA","C","Annual energy use","EA105",{"$f":"IF(EA!$J$101>0,\"X\",\"\")","v":"X"},{"$f":"EA!$J$101","v":28},29,null,null,null,"Option 2","EA05O2",{"$f":"IF(EA!$J$113>0,\"X\",\"\")","v":"X"},"10.5 points","EA05O2P21",{"$f":"IF(EA!$J$113=10.5,\"X\",\"\")","v":""}]
["LEED v4 BD+C: Homes","EA","C","Annual energy use","EA105",{"$f":"IF(EA!$J$101>0,\"X\",\"\")","v":"X"},{"$f":"EA!$J$101","v":28},29,null,null,null,"Option 2","EA05O2",{"$f":"IF(EA!$J$113>0,\"X\",\"\")","v":"X"},"11 points","EA05O2P22",{"$f":"IF(EA!$J$113=11,\"X\",\"\")","v":""}]
["LEED v4 BD+C: Homes","EA","C","Annual energy use","EA105",{"$f":"IF(EA!$J$101>0,\"X\",\"\")","v":"X"},{"$f":"EA!$J$101","v":28},29,null,null,null,"Option 2","EA05O2",{"$f":"IF(EA!$J$113>0,\"X\",\"\")","v":"X"},"11.5 points","EA05O2P23",{"$f":"IF(EA!$J$113=11.5,\"X\",\"\")","v":""}]
["LEED v4 BD+C: Homes","EA","C","Annual energy use","EA105",{"$f":"IF(EA!$J$101>0,\"X\",\"\")","v":"X"},{"$f":"EA!$J$101","v":28},29,null,null,null,"Option 2","EA05O2",{"$f":"IF(EA!$J$113>0,\"X\",\"\")","v":"X"},"12 points","EA05O2P24",{"$f":"IF(EA!$J$113=12,\"X\",\"\")","v":""}]
["LEED v4 BD+C: Homes","EA","C","Annual energy use","EA105",{"$f":"IF(EA!$J$101>0,\"X\",\"\")","v":"X"},{"$f":"EA!$J$101","v":28},29,null,null,null,"Option 2","EA05O2",{"$f":"IF(EA!$J$113>0,\"X\",\"\")","v":"X"},"12.5 points","EA05O2P25",{"$f":"IF(EA!$J$113=12.5,\"X\",\"\")","v":""}]
["LEED v4 BD+C: Homes","EA","C","Annual energy use","EA105",{"$f":"IF(EA!$J$101>0,\"X\",\"\")","v":"X"},{"$f":"EA!$J$101","v":28},29,null,null,null,"Option 2","EA05O2",{"$f":"IF(EA!$J$113>0,\"X\",\"\")","v":"X"},"13 points","EA05O2P26",{"$f":"IF(EA!$J$113=13,\"X\",\"\")","v":""}]
["LEED v4 BD+C: Homes","EA","C","Annual energy use","EA105",{"$f":"IF(EA!$J$101>0,\"X\",\"\")","v":"X"},{"$f":"EA!$J$101","v":28},29,null,null,null,"Option 2","EA05O2",{"$f":"IF(EA!$J$113>0,\"X\",\"\")","v":"X"},"13.5 points","EA05O2P27",{"$f":"IF(EA!$J$113=13.5,\"X\",\"\")","v":""}]
["LEED v4 BD+C: Homes","EA","C","Annual energy use","EA105",{"$f":"IF(EA!$J$101>0,\"X\",\"\")","v":"X"},{"$f":"EA!$J$101","v":28},29,null,null,null,"Option 2","EA05O2",{"$f":"IF(EA!$J$113>0,\"X\",\"\")","v":"X"},"14 points","EA05O2P28",{"$f":"IF(EA!$J$113=14,\"X\",\"\")","v":""}]
["LEED v4 BD+C: Homes","EA","C","Annual energy use","EA105",{"$f":"IF(EA!$J$101>0,\"X\",\"\")","v":"X"},{"$f":"EA!$J$101","v":28},29,null,null,null,"Option 2","EA05O2",{"$f":"IF(EA!$J$113>0,\"X\",\"\")","v":"X"},"14.5 points","EA05O2P29",{"$f":"IF(EA!$J$113=14.5,\"X\",\"\")","v":""}]
["LEED v4 BD+C: Homes","EA","C","Annual energy use","EA105",{"$f":"IF(EA!$J$101>0,\"X\",\"\")","v":"X"},{"$f":"EA!$J$101","v":28},29,null,null,null,"Option 2","EA05O2",{"$f":"IF(EA!$J$113>0,\"X\",\"\")","v":"X"},"15 points","EA05O2P30",{"$f":"IF(EA!$J$113=15,\"X\",\"\")","v":""}]
["LEED v4 BD+C: Homes","EA","C","Annual energy use","EA105",{"$f":"IF(EA!$J$101>0,\"X\",\"\")","v":"X"},{"$f":"EA!$J$101","v":28},29,null,null,null,"Option 2","EA05O2",{"$f":"IF(EA!$J$113>0,\"X\",\"\")","v":"X"},"15.5 points","EA05O2P31",{"$f":"IF(EA!$J$113=15.5,\"X\",\"\")","v":""}]
["LEED v4 BD+C: Homes","EA","C","Annual energy use","EA105",{"$f":"IF(EA!$J$101>0,\"X\",\"\")","v":"X"},{"$f":"EA!$J$101","v":28},29,null,null,null,"Option 2","EA05O2",{"$f":"IF(EA!$J$113>0,\"X\",\"\")","v":"X"},"16 points","EA05O2P32",{"$f":"IF(EA!$J$113=16,\"X\",\"\")","v":""}]
["LEED v4 BD+C: Homes","EA","C","Annual energy use","EA105",{"$f":"IF(EA!$J$101>0,\"X\",\"\")","v":"X"},{"$f":"EA!$J$101","v":28},29,null,null,null,"Option 2","EA05O2",{"$f":"IF(EA!$J$113>0,\"X\",\"\")","v":"X"},"16.5 points","EA05O2P33",{"$f":"IF(EA!$J$113=16.5,\"X\",\"\")","v":""}]
["LEED v4 BD+C: Homes","EA","C","Annual energy use","EA105",{"$f":"IF(EA!$J$101>0,\"X\",\"\")","v":"X"},{"$f":"EA!$J$101","v":28},29,null,null,null,"Option 2","EA05O2",{"$f":"IF(EA!$J$113>0,\"X\",\"\")","v":"X"},"17 points","EA05O2P34",{"$f":"IF(EA!$J$113=17,\"X\",\"\")","v":""}]
["LEED v4 BD+C: Homes","EA","C","Annual energy use","EA105",{"$f":"IF(EA!$J$101>0,\"X\",\"\")","v":"X"},{"$f":"EA!$J$101","v":28},29,null,null,null,"Option 2","EA05O2",{"$f":"IF(EA!$J$113>0,\"X\",\"\")","v":"X"},"17.5 points","EA05O2P35",{"$f":"IF(EA!$J$113=17.5,\"X\",\"\")","v":""}]
["LEED v4 BD+C: Homes","EA","C","Annual energy use","EA105",{"$f":"IF(EA!$J$101>0,\"X\",\"\")","v":"X"},{"$f":"EA!$J$101","v":28},29,null,null,null,"Option 2","EA05O2",{"$f":"IF(EA!$J$113>0,\"X\",\"\")","v":"X"},"18 points","EA05O2P36",{"$f":"IF(EA!$J$113=18,\"X\",\"\")","v":""}]
["LEED v4 BD+C: Homes","EA","C","Annual energy use","EA105",{"$f":"IF(EA!$J$101>0,\"X\",\"\")","v":"X"},{"$f":"EA!$J$101","v":28},29,null,null,null,"Option 2","EA05O2",{"$f":"IF(EA!$J$113>0,\"X\",\"\")","v":"X"},"18.5 points","EA05O2P37",{"$f":"IF(EA!$J$113=18.5,\"X\",\"\")","v":""}]
["LEED v4 BD+C: Homes","EA","C","Annual energy use","EA105",{"$f":"IF(EA!$J$101>0,\"X\",\"\")","v":"X"},{"$f":"EA!$J$101","v":28},29,null,null,null,"Option 2","EA05O2",{"$f":"IF(EA!$J$113>0,\"X\",\"\")","v":"X"},"19 points","EA05O2P38",{"$f":"IF(EA!$J$113=19,\"X\",\"\")","v":""}]
["LEED v4 BD+C: Homes","EA","C","Annual energy use","EA105",{"$f":"IF(EA!$J$101>0,\"X\",\"\")","v":"X"},{"$f":"EA!$J$101","v":28},29,null,null,null,"Option 2","EA05O2",{"$f":"IF(EA!$J$113>0,\"X\",\"\")","v":"X"},"19.5 points","EA05O2P39",{"$f":"IF(EA!$J$113=19.5,\"X\",\"\")","v":""}]
["LEED v4 BD+C: Homes","EA","C","Annual energy use","EA105",{"$f":"IF(EA!$J$101>0,\"X\",\"\")","v":"X"},{"$f":"EA!$J$101","v":28},29,null,null,null,"Option 2","EA05O2",{"$f":"IF(EA!$J$113>0,\"X\",\"\")","v":"X"},"20 points","EA05O2P40",{"$f":"IF(EA!$J$113=20,\"X\",\"\")","v":""}]
["LEED v4 BD+C: Homes","EA","C","Annual energy use","EA105",{"$f":"IF(EA!$J$101>0,\"X\",\"\")","v":"X"},{"$f":"EA!$J$101","v":28},29,null,null,null,"Option 2","EA05O2",{"$f":"IF(EA!$J$113>0,\"X\",\"\")","v":"X"},"20.5 points","EA05O2P41",{"$f":"IF(EA!$J$113=20.5,\"X\",\"\")","v":""}]
["LEED v4 BD+C: Homes","EA","C","Annual energy use","EA105",{"$f":"IF(EA!$J$101>0,\"X\",\"\")","v":"X"},{"$f":"EA!$J$101","v":28},29,null,null,null,"Option 2","EA05O2",{"$f":"IF(EA!$J$113>0,\"X\",\"\")","v":"X"},"21 points","EA05O2P42",{"$f":"IF(EA!$J$113=21,\"X\",\"\")","v":""}]
["LEED v4 BD+C: Homes","EA","C","Annual energy use","EA105",{"$f":"IF(EA!$J$101>0,\"X\",\"\")","v":"X"},{"$f":"EA!$J$101","v":28},29,null,null,null,"Option 2","EA05O2",{"$f":"IF(EA!$J$113>0,\"X\",\"\")","v":"X"},"21.5 points","EA05O2P43",{"$f":"IF(EA!$J$113=21.5,\"X\",\"\")","v":""}]
["LEED v4 BD+C: Homes","EA","C","Annual energy use","EA105",{"$f":"IF(EA!$J$101>0,\"X\",\"\")","v":"X"},{"$f":"EA!$J$101","v":28},29,null,null,null,"Option 2","EA05O2",{"$f":"IF(EA!$J$113>0,\"X\",\"\")","v":"X"},"22 points","EA05O2P44",{"$f":"IF(EA!$J$113=22,\"X\",\"\")","v":""}]
["LEED v4 BD+C: Homes","EA","C","Annual energy use","EA105",{"$f":"IF(EA!$J$101>0,\"X\",\"\")","v":"X"},{"$f":"EA!$J$101","v":28},29,null,null,null,"Option 2","EA05O2",{"$f":"IF(EA!$J$113>0,\"X\",\"\")","v":"X"},"22.5 points","EA05O2P45",{"$f":"IF(EA!$J$113=22.5,\"X\",\"\")","v":""}]
["LEED v4 BD+C: Homes","EA","C","Annual energy use","EA105",{"$f":"IF(EA!$J$101>0,\"X\",\"\")","v":"X"},{"$f":"EA!$J$101","v":28},29,null,null,null,"Option 2","EA05O2",{"$f":"IF(EA!$J$113>0,\"X\",\"\")","v":"X"},"23 points","EA05O2P46",{"$f":"IF(EA!$J$113=23,\"X\",\"\")","v":""}]
["LEED v4 BD+C: Homes","EA","C","Annual energy use","EA105",{"$f":"IF(EA!$J$101>0,\"X\",\"\")","v":"X"},{"$f":"EA!$J$101","v":28},29,null,null,null,"Option 2","EA05O2",{"$f":"IF(EA!$J$113>0,\"X\",\"\")","v":"X"},"23.5 points","EA05O2P47",{"$f":"IF(EA!$J$113=23.5,\"X\",\"\")","v":""}]
["LEED v4 BD+C: Homes","EA","C","Annual energy use","EA105",{"$f":"IF(EA!$J$101>0,\"X\",\"\")","v":"X"},{"$f":"EA!$J$101","v":28},29,null,null,null,"Option 2","EA05O2",{"$f":"IF(EA!$J$113>0,\"X\",\"\")","v":"X"},"24 points","EA05O2P48",{"$f":"IF(EA!$J$113=24,\"X\",\"\")","v":""}]
["LEED v4 BD+C: Homes","EA","C","Annual energy use","EA105",{"$f":"IF(EA!$J$101>0,\"X\",\"\")","v":"X"},{"$f":"EA!$J$101","v":28},29,null,null,null,"Option 2","EA05O2",{"$f":"IF(EA!$J$113>0,\"X\",\"\")","v":"X"},"24.5 points","EA05O2P49",{"$f":"IF(EA!$J$113=24.5,\"X\",\"\")","v":""}]
["LEED v4 BD+C: Homes","EA","C","Annual energy use","EA105",{"$f":"IF(EA!$J$101>0,\"X\",\"\")","v":"X"},{"$f":"EA!$J$101","v":28},29,null,null,null,"Option 2","EA05O2",{"$f":"IF(EA!$J$113>0,\"X\",\"\")","v":"X"},"25 points","EA05O2P50",{"$f":"IF(EA!$J$113=25,\"X\",\"\")","v":""}]
["LEED v4 BD+C: Homes","EA","C","Annual energy use","EA105",{"$f":"IF(EA!$J$101>0,\"X\",\"\")","v":"X"},{"$f":"EA!$J$101","v":28},29,null,null,null,"Option 2","EA05O2",{"$f":"IF(EA!$J$113>0,\"X\",\"\")","v":"X"},"25.5 points","EA05O2P51",{"$f":"IF(EA!$J$113=25.5,\"X\",\"\")","v":""}]
["LEED v4 BD+C: Homes","EA","C","Annual energy use","EA105",{"$f":"IF(EA!$J$101>0,\"X\",\"\")","v":"X"},{"$f":"EA!$J$101","v":28},29,null,null,null,"Option 2","EA05O2",{"$f":"IF(EA!$J$113>0,\"X\",\"\")","v":"X"},"26 points","EA05O2P52",{"$f":"IF(EA!$J$113=26,\"X\",\"\")","v":""}]
["LEED v4 BD+C: Homes","EA","C","Annual energy use","EA105",{"$f":"IF(EA!$J$101>0,\"X\",\"\")","v":"X"},{"$f":"EA!$J$101","v":28},29,null,null,null,"Option 2","EA05O2",{"$f":"IF(EA!$J$113>0,\"X\",\"\")","v":"X"},"26.5 points","EA05O2P53",{"$f":"IF(EA!$J$113=26.5,\"X\",\"\")","v":""}]
["LEED v4 BD+C: Homes","EA","C","Annual energy use","EA105",{"$f":"IF(EA!$J$101>0,\"X\",\"\")","v":"X"},{"$f":"EA!$J$101","v":28},29,null,null,null,"Option 2","EA05O2",{"$f":"IF(EA!$J$113>0,\"X\",\"\")","v":"X"},"27 points","EA05O2P54",{"$f":"IF(EA!$J$113=27,\"X\",\"\")","v":""}]
["LEED v4 BD+C: Homes","EA","C","Annual energy use","EA105",{"$f":"IF(EA!$J$101>0,\"X\",\"\")","v":"X"},{"$f":"EA!$J$101","v":28},29,null,null,null,"Option 2","EA05O2",{"$f":"IF(EA!$J$113>0,\"X\",\"\")","v":"X"},"27.5 points","EA05O2P55",{"$f":"IF(EA!$J$113=27.5,\"X\",\"\")","v":""}]
["LEED v4 BD+C: Homes","EA","C","Annual energy use","EA105",{"$f":"IF(EA!$J$101>0,\"X\",\"\")","v":"X"},{"$f":"EA!$J$101","v":28},29,null,null,null,"Option 2","EA05O2",{"$f":"IF(EA!$J$113>0,\"X\",\"\")","v":"X"},"28 points","EA05O2P56",{"$f":"IF(EA!$J$113=28,\"X\",\"\")","v":"X"}]
["LEED v4 BD+C: Homes","EA","C","Annual energy use","EA105",{"$f":"IF(EA!$J$101>0,\"X\",\"\")","v":"X"},{"$f":"EA!$J$101","v":28},29,null,null,null,"Option 2","EA05O2",{"$f":"IF(EA!$J$113>0,\"X\",\"\")","v":"X"},"28.5 points","EA05O2P57",{"$f":"IF(EA!$J$113=28.5,\"X\",\"\")","v":""}]
["LEED v4 BD+C: Homes","EA","C","Annual energy use","EA105",{"$f":"IF(EA!$J$101>0,\"X\",\"\")","v":"X"},{"$f":"EA!$J$101","v":28},29,null,null,null,"Option 2","EA05O2",{"$f":"IF(EA!$J$113>0,\"X\",\"\")","v":"X"},"29 points","EA05O2P58",{"$f":"IF(EA!$J$113>=29,\"X\",\"\")","v":""}]
["LEED v4 BD+C: Homes","EA","C","Efficient hot water distribution system","EA106",{"$f":"IF(EA!$J$137>0,\"X\",\"\")","v":"X"},{"$f":"EA!$J$137","v":2},5,null,null,null,"Option 1","EA06O1",{"$f":"IF(EA!$J$140>0,\"X\",\"\")","v":""}]
["LEED v4 BD+C: Homes","EA","C","Efficient hot water distribution system","EA106",{"$f":"IF(EA!$J$137>0,\"X\",\"\")","v":"X"},{"$f":"EA!$J$137","v":2},5,null,null,null,"Option 1","EA06O1",{"$f":"IF(EA!$J$140>0,\"X\",\"\")","v":""},"Path 1","EA06O1P1",{"$f":"IF(EA!$J$159>0,\"X\",\"\")","v":""}]
["LEED v4 BD+C: Homes","EA","C","Efficient hot water distribution system","EA106",{"$f":"IF(EA!$J$137>0,\"X\",\"\")","v":"X"},{"$f":"EA!$J$137","v":2},5,null,null,null,"Option 1","EA06O1",{"$f":"IF(EA!$J$140>0,\"X\",\"\")","v":""},"Path 2","EA06O1P2",{"$f":"IF(EA!$J$169>0,\"X\",\"\")","v":""}]
["LEED v4 BD+C: Homes","EA","C","Efficient hot water distribution system","EA106",{"$f":"IF(EA!$J$137>0,\"X\",\"\")","v":"X"},{"$f":"EA!$J$137","v":2},5,null,null,null,"Option 2","EA06O2",{"$f":"IF(EA!$J$175>0,\"X\",\"\")","v":""}]
["LEED v4 BD+C: Homes","EA","C","Efficient hot water distribution system","EA106",{"$f":"IF(EA!$J$137>0,\"X\",\"\")","v":"X"},{"$f":"EA!$J$137","v":2},5,null,null,null,"Option 2","EA06O2",{"$f":"IF(EA!$J$175>0,\"X\",\"\")","v":""},"Case 1","EA06O2P1",{"$f":"IF(EA!$J$179>0,\"X\",\"\")","v":""}]
["LEED v4 BD+C: Homes","EA","C","Efficient hot water distribution system","EA106",{"$f":"IF(EA!$J$137>0,\"X\",\"\")","v":"X"},{"$f":"EA!$J$137","v":2},5,null,null,null,"Option 2","EA06O2",{"$f":"IF(EA!$J$175>0,\"X\",\"\")","v":""},"Case 2","EA06O2P2",{"$f":"IF(EA!$J$187>0,\"X\",\"\")","v":""}]
["LEED v4 BD+C: Homes","EA","C","Efficient hot water distribution system","EA106",{"$f":"IF(EA!$J$137>0,\"X\",\"\")","v":"X"},{"$f":"EA!$J$137","v":2},5,null,null,null,"Option 3","EA06O3",{"$f":"IF(EA!$J$196>0,\"X\",\"\")","v":"X"}]
["LEED v4 BD+C: Homes","EA","C","Advanced utility tracking","EA108",{"$f":"IF(EA!$J$203>0,\"X\",\"\")","v":""},{"$f":"EA!$J$203","v":0},2,null,null,null,"Case 1, Option 1","EA08O1",{"$f":"IF(EA!$J$210>0,\"X\",\"\")","v":""}]
["LEED v4 BD+C: Homes","EA","C","Advanced utility tracking","EA108",{"$f":"IF(EA!$J$203>0,\"X\",\"\")","v":""},{"$f":"EA!$J$203","v":0},2,null,null,null,"Case 1, Option 2","EA08O2",{"$f":"IF(EA!$J$220>0,\"X\",\"\")","v":""}]
["LEED v4 BD+C: Homes","EA","C","Advanced utility tracking","EA108",{"$f":"IF(EA!$J$203>0,\"X\",\"\")","v":""},{"$f":"EA!$J$203","v":0},2,null,null,null,"Case 2, Option 1","EA08O3",{"$f":"IF(EA!$J$228>0,\"X\",\"\")","v":""}]
["LEED v4 BD+C: Homes","EA","C","Advanced utility tracking","EA108",{"$f":"IF(EA!$J$203>0,\"X\",\"\")","v":""},{"$f":"EA!$J$203","v":0},2,null,null,null,"Case 2, Option 2","EA08O4",{"$f":"IF(EA!$J$238>0,\"X\",\"\")","v":""}]
["LEED v4 BD+C: Homes","EA","C","Advanced utility tracking","EA108",{"$f":"IF(EA!$J$203>0,\"X\",\"\")","v":""},{"$f":"EA!$J$203","v":0},2,null,null,null,"Case 2, Option 2","EA08O4",{"$f":"IF(EA!$J$238>0,\"X\",\"\")","v":""},"Path 1","EA08O4P1",{"$f":"IF(EA!$J$241>0,\"X\",\"\")","v":""}]
["LEED v4 BD+C: Homes","EA","C","Advanced utility tracking","EA108",{"$f":"IF(EA!$J$203>0,\"X\",\"\")","v":""},{"$f":"EA!$J$203","v":0},2,null,null,null,"Case 2, Option 2","EA08O4",{"$f":"IF(EA!$J$238>0,\"X\",\"\")","v":""},"Path 2","EA08O4P2",{"$f":"IF(EA!$J$247>0,\"X\",\"\")","v":""}]
["LEED v4 BD+C: Homes","EA","C","Active solar-ready design","EA109",{"$f":"IF(EA!$J$254>0,\"X\",\"\")","v":""},{"$f":"EA!$J$254","v":0},1,null,null,null,"Option  1","EA09O1",{"$f":"IF(EA!J258>0,\"X\",\"\")","v":""}]
["LEED v4 BD+C: Homes","EA","C","Active solar-ready design","EA109",{"$f":"IF(EA!$J$254>0,\"X\",\"\")","v":""},{"$f":"EA!$J$254","v":0},1,null,null,null,"Option  2","EA09O2",{"$f":"IF(EA!J265>0,\"X\",\"\")","v":""}]
["LEED v4 BD+C: Homes","EA","C","HVAC start-up credentialing","EA110",{"$f":"IF(EA!$J$273>0,\"X\",\"\")","v":""},{"$f":"EA!$J$273","v":0},1]
["LEED v4 BD+C: Homes","EA","P","Home Size","EA111","x",{"$f":"EA!$J$286","v":0},38,"Prerequisite","EA11T1",{"$f":"IF(G200=0,\"X\",\"\")","v":"X"}]
["LEED v4 BD+C: Homes","EA","P","Home Size","EA111","x",{"$f":"EA!$J$286","v":0},38,"0.5 points","EA11T2",{"$f":"IF(G201=0.5,\"X\",\"\")","v":""}]
["LEED v4 BD+C: Homes","EA","P","Home Size","EA111","x",{"$f":"EA!$J$286","v":0},38,"1 point","EA11T3",{"$f":"IF(G202=1,\"X\",\"\")","v":""}]
["LEED v4 BD+C: Homes","EA","P","Home Size","EA111","x",{"$f":"EA!$J$286","v":0},38,"1.5 points","EA11T4",{"$f":"IF(G203=1.5,\"X\",\"\")","v":""}]
["LEED v4 BD+C: Homes","EA","P","Home Size","EA111","x",{"$f":"EA!$J$286","v":0},38,"2 points","EA11T5",{"$f":"IF(G204=2,\"X\",\"\")","v":""}]
["LEED v4 BD+C: Homes","EA","P","Home Size","EA111","x",{"$f":"EA!$J$286","v":0},38,"2.5 points","EA11T6",{"$f":"IF(G205=2.5,\"X\",\"\")","v":""}]
["LEED v4 BD+C: Homes","EA","P","Home Size","EA111","x",{"$f":"EA!$J$286","v":0},38,"3 points","EA11T7",{"$f":"IF(G206=3,\"X\",\"\")","v":""}]
["LEED v4 BD+C: Homes","EA","P","Home Size","EA111","x",{"$f":"EA!$J$286","v":0},38,"3.5 points","EA11T8",{"$f":"IF(G207=3.5,\"X\",\"\")","v":""}]
["LEED v4 BD+C: Homes","EA","P","Home Size","EA111","x",{"$f":"EA!$J$286","v":0},38,"4 points","EA11T9",{"$f":"IF(G208=4,\"X\",\"\")","v":""}]
["LEED v4 BD+C: Homes","EA","P","Home Size","EA111","x",{"$f":"EA!$J$286","v":0},38,"4.5 points","EA11T10",{"$f":"IF(G209=4.5,\"X\",\"\")","v":""}]
["LEED v4 BD+C: Homes","EA","P","Home Size","EA111","x",{"$f":"EA!$J$286","v":0},38,"5 points","EA11T11",{"$f":"IF(G210=5,\"X\",\"\")","v":""}]
["LEED v4 BD+C: Homes","EA","P","Home Size","EA111","x",{"$f":"EA!$J$286","v":0},38,"5.5 points","EA11T12",{"$f":"IF(G211=5.5,\"X\",\"\")","v":""}]
["LEED v4 BD+C: Homes","EA","P","Home Size","EA111","x",{"$f":"EA!$J$286","v":0},38,"6 points","EA11T13",{"$f":"IF(G212=6,\"X\",\"\")","v":""}]
["LEED v4 BD+C: Homes","EA","P","Home Size","EA111","x",{"$f":"EA!$J$286","v":0},38,"6.5 points","EA11T14",{"$f":"IF(G213=6.5,\"X\",\"\")","v":""}]
["LEED v4 BD+C: Homes","EA","P","Home Size","EA111","x",{"$f":"EA!$J$286","v":0},38,"7 points","EA11T15",{"$f":"IF(G214=7,\"X\",\"\")","v":""}]
["LEED v4 BD+C: Homes","EA","P","Home Size","EA111","x",{"$f":"EA!$J$286","v":0},38,"7.5 points","EA11T16",{"$f":"IF(G215=7.5,\"X\",\"\")","v":""}]
["LEED v4 BD+C: Homes","EA","P","Home Size","EA111","x",{"$f":"EA!$J$286","v":0},38,"8 points","EA11T17",{"$f":"IF(G216=8,\"X\",\"\")","v":""}]
["LEED v4 BD+C: Homes","EA","P","Home Size","EA111","x",{"$f":"EA!$J$286","v":0},38,"8.5 points","EA11T18",{"$f":"IF(G217=8.5,\"X\",\"\")","v":""}]
["LEED v4 BD+C: Homes","EA","P","Home Size","EA111","x",{"$f":"EA!$J$286","v":0},38,"9 points","EA11T19",{"$f":"IF(G218=9,\"X\",\"\")","v":""}]
["LEED v4 BD+C: Homes","EA","P","Home Size","EA111","x",{"$f":"EA!$J$286","v":0},38,"9.5 points","EA11T20",{"$f":"IF(G219=9.5,\"X\",\"\")","v":""}]
["LEED v4 BD+C: Homes","EA","P","Home Size","EA111","x",{"$f":"EA!$J$286","v":0},38,"10 points","EA11T21",{"$f":"IF(G220=10,\"X\",\"\")","v":""}]
["LEED v4 BD+C: Homes","EA","P","Home Size","EA111","x",{"$f":"EA!$J$286","v":0},38,"10.5 points","EA11T22",{"$f":"IF(G221=10.5,\"X\",\"\")","v":""}]
["LEED v4 BD+C: Homes","EA","P","Home Size","EA111","x",{"$f":"EA!$J$286","v":0},38,"11 points","EA11T23",{"$f":"IF(G222=11,\"X\",\"\")","v":""}]
["LEED v4 BD+C: Homes","EA","P","Home Size","EA111","x",{"$f":"EA!$J$286","v":0},38,"11.5 points","EA11T24",{"$f":"IF(G223=11.5,\"X\",\"\")","v":""}]
["LEED v4 BD+C: Homes","EA","P","Home Size","EA111","x",{"$f":"EA!$J$286","v":0},38,"12 points","EA11T25",{"$f":"IF(G224=12,\"X\",\"\")","v":""}]
["LEED v4 BD+C: Homes","EA","P","Home Size","EA111","x",{"$f":"EA!$J$286","v":0},38,"12.5 points","EA11T26",{"$f":"IF(G225=12.5,\"X\",\"\")","v":""}]
["LEED v4 BD+C: Homes","EA","P","Home Size","EA111","x",{"$f":"EA!$J$286","v":0},38,"13 points","EA11T27",{"$f":"IF(G226=13,\"X\",\"\")","v":""}]
["LEED v4 BD+C: Homes","EA","P","Home Size","EA111","x",{"$f":"EA!$J$286","v":0},38,"13.5 points","EA11T28",{"$f":"IF(G227=13.5,\"X\",\"\")","v":""}]
["LEED v4 BD+C: Homes","EA","P","Home Size","EA111","x",{"$f":"EA!$J$286","v":0},38,"14 points","EA11T29",{"$f":"IF(G228=14,\"X\",\"\")","v":""}]
["LEED v4 BD+C: Homes","EA","P","Home Size","EA111","x",{"$f":"EA!$J$286","v":0},38,"14.5 points","EA11T30",{"$f":"IF(G229=14.5,\"X\",\"\")","v":""}]
["LEED v4 BD+C: Homes","EA","P","Home Size","EA111","x",{"$f":"EA!$J$286","v":0},38,"15 points","EA11T31",{"$f":"IF(G230=15,\"X\",\"\")","v":""}]
["LEED v4 BD+C: Homes","EA","P","Home Size","EA111","x",{"$f":"EA!$J$286","v":0},38,"15.5 points","EA11T32",{"$f":"IF(G231=15.5,\"X\",\"\")","v":""}]
["LEED v4 BD+C: Homes","EA","P","Home Size","EA111","x",{"$f":"EA!$J$286","v":0},38,"16 points","EA11T33",{"$f":"IF(G232=16,\"X\",\"\")","v":""}]
["LEED v4 BD+C: Homes","EA","P","Home Size","EA111","x",{"$f":"EA!$J$286","v":0},38,"16.5 points","EA11T34",{"$f":"IF(G233=16.5,\"X\",\"\")","v":""}]
["LEED v4 BD+C: Homes","EA","P","Home Size","EA111","x",{"$f":"EA!$J$286","v":0},38,"17 points","EA11T35",{"$f":"IF(G234=17,\"X\",\"\")","v":""}]
["LEED v4 BD+C: Homes","EA","P","Home Size","EA111","x",{"$f":"EA!$J$286","v":0},38,"17.5 points","EA11T36",{"$f":"IF(G235=17.5,\"X\",\"\")","v":""}]
["LEED v4 BD+C: Homes","EA","P","Home Size","EA111","x",{"$f":"EA!$J$286","v":0},38,"18 points","EA11T37",{"$f":"IF(G236=18,\"X\",\"\")","v":""}]
["LEED v4 BD+C: Homes","EA","P","Home Size","EA111","x",{"$f":"EA!$J$286","v":0},38,"18.5 points","EA11T38",{"$f":"IF(G237=18.5,\"X\",\"\")","v":""}]
["LEED v4 BD+C: Homes","EA","P","Home Size","EA111","x",{"$f":"EA!$J$286","v":0},38,"19 points","EA11T39",{"$f":"IF(G238=19,\"X\",\"\")","v":""}]
["LEED v4 BD+C: Homes","EA","P","Home Size","EA111","x",{"$f":"EA!$J$286","v":0},38,"19.5 points","EA11T40",{"$f":"IF(G239=19.5,\"X\",\"\")","v":""}]
["LEED v4 BD+C: Homes","EA","P","Home Size","EA111","x",{"$f":"EA!$J$286","v":0},38,"20 points","EA11T41",{"$f":"IF(G240=20,\"X\",\"\")","v":""}]
["LEED v4 BD+C: Homes","EA","P","Home Size","EA111","x",{"$f":"EA!$J$286","v":0},38,"20.5 points","EA11T42",{"$f":"IF(G241=20.5,\"X\",\"\")","v":""}]
["LEED v4 BD+C: Homes","EA","P","Home Size","EA111","x",{"$f":"EA!$J$286","v":0},38,"21 points","EA11T43",{"$f":"IF(G242=21,\"X\",\"\")","v":""}]
["LEED v4 BD+C: Homes","EA","P","Home Size","EA111","x",{"$f":"EA!$J$286","v":0},38,"21.5 points","EA11T44",{"$f":"IF(G243=21.5,\"X\",\"\")","v":""}]
["LEED v4 BD+C: Homes","EA","P","Home Size","EA111","x",{"$f":"EA!$J$286","v":0},38,"22 points","EA11T45",{"$f":"IF(G244=22,\"X\",\"\")","v":""}]
["LEED v4 BD+C: Homes","EA","P","Home Size","EA111","x",{"$f":"EA!$J$286","v":0},38,"22.5 points","EA11T46",{"$f":"IF(G245=22.5,\"X\",\"\")","v":""}]
["LEED v4 BD+C: Homes","EA","P","Home Size","EA111","x",{"$f":"EA!$J$286","v":0},38,"23 points","EA11T47",{"$f":"IF(G246=23,\"X\",\"\")","v":""}]
["LEED v4 BD+C: Homes","EA","P","Home Size","EA111","x",{"$f":"EA!$J$286","v":0},38,"23.5 points","EA11T48",{"$f":"IF(G247=23.5,\"X\",\"\")","v":""}]
["LEED v4 BD+C: Homes","EA","P","Home Size","EA111","x",{"$f":"EA!$J$286","v":0},38,"24 points","EA11T49",{"$f":"IF(G248=24,\"X\",\"\")","v":""}]
["LEED v4 BD+C: Homes","EA","P","Home Size","EA111","x",{"$f":"EA!$J$286","v":0},38,"24.5 points","EA11T50",{"$f":"IF(G249=24.5,\"X\",\"\")","v":""}]
["LEED v4 BD+C: Homes","EA","P","Home Size","EA111","x",{"$f":"EA!$J$286","v":0},38,"25 points","EA11T51",{"$f":"IF(G250=25,\"X\",\"\")","v":""}]
["LEED v4 BD+C: Homes","EA","P","Home Size","EA111","x",{"$f":"EA!$J$286","v":0},38,"25.5 points","EA11T52",{"$f":"IF(G251=25.5,\"X\",\"\")","v":""}]
["LEED v4 BD+C: Homes","EA","P","Home Size","EA111","x",{"$f":"EA!$J$286","v":0},38,"26 points","EA11T53",{"$f":"IF(G252=26,\"X\",\"\")","v":""}]
["LEED v4 BD+C: Homes","EA","P","Home Size","EA111","x",{"$f":"EA!$J$286","v":0},38,"26.5 points","EA11T54",{"$f":"IF(G253=26.5,\"X\",\"\")","v":""}]
["LEED v4 BD+C: Homes","EA","P","Home Size","EA111","x",{"$f":"EA!$J$286","v":0},38,"27 points","EA11T55",{"$f":"IF(G254=27,\"X\",\"\")","v":""}]
["LEED v4 BD+C: Homes","EA","P","Home Size","EA111","x",{"$f":"EA!$J$286","v":0},38,"27.5 points","EA11T56",{"$f":"IF(G255=27.8,\"X\",\"\")","v":""}]
["LEED v4 BD+C: Homes","EA","P","Home Size","EA111","x",{"$f":"EA!$J$286","v":0},38,"28 points","EA11T57",{"$f":"IF(G256=28,\"X\",\"\")","v":""}]
["LEED v4 BD+C: Homes","EA","P","Home Size","EA111","x",{"$f":"EA!$J$286","v":0},38,"28.5 points","EA11T58",{"$f":"IF(G257=28.5,\"X\",\"\")","v":""}]
["LEED v4 BD+C: Homes","EA","P","Home Size","EA111","x",{"$f":"EA!$J$286","v":0},38,"29 points","EA11T59",{"$f":"IF(G258=29,\"X\",\"\")","v":""}]
["LEED v4 BD+C: Homes","EA","P","Home Size","EA111","x",{"$f":"EA!$J$286","v":0},38,"29.5 points","EA11T60",{"$f":"IF(G259=29.5,\"X\",\"\")","v":""}]
["LEED v4 BD+C: Homes","EA","P","Home Size","EA111","x",{"$f":"EA!$J$286","v":0},38,"30 points","EA11T61",{"$f":"IF(G260=30,\"X\",\"\")","v":""}]
["LEED v4 BD+C: Homes","EA","P","Home Size","EA111","x",{"$f":"EA!$J$286","v":0},38,"30.5 points","EA11T62",{"$f":"IF(G261=30.5,\"X\",\"\")","v":""}]
["LEED v4 BD+C: Homes","EA","P","Home Size","EA111","x",{"$f":"EA!$J$286","v":0},38,"31 points ","EA11T63",{"$f":"IF(G262=31,\"X\",\"\")","v":""}]
["LEED v4 BD+C: Homes","EA","P","Home Size","EA111","x",{"$f":"EA!$J$286","v":0},38,"31.5 points","EA11T64",{"$f":"IF(G263=31.5,\"X\",\"\")","v":""}]
["LEED v4 BD+C: Homes","EA","P","Home Size","EA111","x",{"$f":"EA!$J$286","v":0},38,"32 points","EA11T65",{"$f":"IF(G264=32,\"X\",\"\")","v":""}]
["LEED v4 BD+C: Homes","EA","P","Home Size","EA111","x",{"$f":"EA!$J$286","v":0},38,"32.5 points","EA11T66",{"$f":"IF(G265=32.5,\"X\",\"\")","v":""}]
["LEED v4 BD+C: Homes","EA","P","Home Size","EA111","x",{"$f":"EA!$J$286","v":0},38,"33 points","EA11T67",{"$f":"IF(G266=33,\"X\",\"\")","v":""}]
["LEED v4 BD+C: Homes","EA","P","Home Size","EA111","x",{"$f":"EA!$J$286","v":0},38,"33.5 points","EA11T68",{"$f":"IF(G267=33.5,\"X\",\"\")","v":""}]
["LEED v4 BD+C: Homes","EA","P","Home Size","EA111","x",{"$f":"EA!$J$286","v":0},38,"34 points","EA11T69",{"$f":"IF(G268=34,\"X\",\"\")","v":""}]
["LEED v4 BD+C: Homes","EA","P","Home Size","EA111","x",{"$f":"EA!$J$286","v":0},38,"34.5 points","EA11T70",{"$f":"IF(G269=34.5,\"X\",\"\")","v":""}]
["LEED v4 BD+C: Homes","EA","P","Home Size","EA111","x",{"$f":"EA!$J$286","v":0},38,"35 points","EA11T71",{"$f":"IF(G270=35,\"X\",\"\")","v":""}]
["LEED v4 BD+C: Homes","EA","P","Home Size","EA111","x",{"$f":"EA!$J$286","v":0},38,"35.5 points","EA11T72",{"$f":"IF(G271=35.5,\"X\",\"\")","v":""}]
["LEED v4 BD+C: Homes","EA","P","Home Size","EA111","x",{"$f":"EA!$J$286","v":0},38,"36 points","EA11T73",{"$f":"IF(G272=36,\"X\",\"\")","v":""}]
["LEED v4 BD+C: Homes","EA","P","Home Size","EA111","x",{"$f":"EA!$J$286","v":0},38,"36.5 points","EA11T74",{"$f":"IF(G273=36.5,\"X\",\"\")","v":""}]
["LEED v4 BD+C: Homes","EA","P","Home Size","EA111","x",{"$f":"EA!$J$286","v":0},38,"37 points","EA11T75",{"$f":"IF(G274=37,\"X\",\"\")","v":""}]
["LEED v4 BD+C: Homes","EA","P","Home Size","EA111","x",{"$f":"EA!$J$286","v":0},38,"37.5 points","EA11T76",{"$f":"IF(G275=37.5,\"X\",\"\")","v":""}]
["LEED v4 BD+C: Homes","EA","P","Home Size","EA111","x",{"$f":"EA!$J$286","v":0},38,"38 points","EA11T77",{"$f":"IF(G42>0=38,\"X\",\"\")","v":""}]
["LEED v4 BD+C: Homes","EA","C","Building Orientation for Passive Solar","EA112",{"$f":"IF(EA!$J$297>0,\"X\",\"\")","v":""},{"$f":"EA!$J$297","v":0},3]
["LEED v4 BD+C: Homes","EA","C","Air Infiltration","EA113",{"$f":"IF(EA!$J$310>0,\"X\",\"\")","v":""},{"$f":"EA!$J$310","v":0},2,null,null,null,"Case 1","EA13O1",{"$f":"IF(EA!$J$313>0,\"X\",\"\")","v":""}]
["LEED v4 BD+C: Homes","EA","C","Air Infiltration","EA113",{"$f":"IF(EA!$J$310>0,\"X\",\"\")","v":""},{"$f":"EA!$J$310","v":0},2,null,null,null,"Case 1","EA13O1",{"$f":"IF(EA!$J$313>0,\"X\",\"\")","v":""},"1 point","EA13O1P1",{"$f":"IF(EA!$J$313=1,\"X\",\"\")","v":""}]
["LEED v4 BD+C: Homes","EA","C","Air Infiltration","EA113",{"$f":"IF(EA!$J$310>0,\"X\",\"\")","v":""},{"$f":"EA!$J$310","v":0},2,null,null,null,"Case 1","EA13O1",{"$f":"IF(EA!$J$313>0,\"X\",\"\")","v":""},"2 points","EA13O1P2",{"$f":"IF(EA!$J$313=2,\"X\",\"\")","v":""}]
["LEED v4 BD+C: Homes","EA","C","Air Infiltration","EA113",{"$f":"IF(EA!$J$310>0,\"X\",\"\")","v":""},{"$f":"EA!$J$310","v":0},2,null,null,null,"Case 2","EA13O2",{"$f":"IF(EA!$J$323>0,\"X\",\"\")","v":""}]
["LEED v4 BD+C: Homes","EA","C","Air Infiltration","EA113",{"$f":"IF(EA!$J$310>0,\"X\",\"\")","v":""},{"$f":"EA!$J$310","v":0},2,null,null,null,"Case 2","EA13O2",{"$f":"IF(EA!$J$323>0,\"X\",\"\")","v":""},"1 point","EA13O2P1",{"$f":"IF(EA!$J$323=1,\"X\",\"\")","v":""}]
["LEED v4 BD+C: Homes","EA","C","Air Infiltration","EA113",{"$f":"IF(EA!$J$310>0,\"X\",\"\")","v":""},{"$f":"EA!$J$310","v":0},2,null,null,null,"Case 2","EA13O2",{"$f":"IF(EA!$J$323>0,\"X\",\"\")","v":""},"2 points","EA13O2P2",{"$f":"IF(EA!$J$323=2,\"X\",\"\")","v":""}]
["LEED v4 BD+C: Homes","EA","C","Envelope Insulation","EA114",{"$f":"IF(EA!$J$334>0,\"X\",\"\")","v":""},{"$f":"EA!$J$334","v":0},2,"1 point","EA14T1",{"$f":"IF(G284=1,\"X\",\"\")","v":""}]
["LEED v4 BD+C: Homes","EA","C","Envelope Insulation","EA114",{"$f":"IF(EA!$J$334>0,\"X\",\"\")","v":""},{"$f":"EA!$J$334","v":0},2,"2 points","EA14T2",{"$f":"IF(G285=2,\"X\",\"\")","v":""}]
["LEED v4 BD+C: Homes","EA","C","Windows","EA115",{"$f":"IF(EA!$J$343>0,\"X\",\"\")","v":""},{"$f":"EA!$J$343","v":0},3,"1.5 points","EA15T1",{"$f":"IF(G286=1.5,\"X\",\"\")","v":""}]
["LEED v4 BD+C: Homes","EA","C","Windows","EA115",{"$f":"IF(EA!$J$343>0,\"X\",\"\")","v":""},{"$f":"EA!$J$343","v":0},3,"3 points","EA15T2",{"$f":"IF(G287=3,\"X\",\"\")","v":""}]
["LEED v4 BD+C: Homes","EA","C","Space Heating & Cooling Equipment","EA116",{"$f":"IF(EA!$J$363>0,\"X\",\"\")","v":""},{"$f":"EA!$J$363","v":0},4,"1 point","EA16T1",{"$f":"IF(G288=1,\"X\",\"\")","v":""}]
["LEED v4 BD+C: Homes","EA","C","Space Heating & Cooling Equipment","EA116",{"$f":"IF(EA!$J$363>0,\"X\",\"\")","v":""},{"$f":"EA!$J$363","v":0},4,"2 points","EA16T2",{"$f":"IF(G289=2,\"X\",\"\")","v":""}]
["LEED v4 BD+C: Homes","EA","C","Space Heating & Cooling Equipment","EA116",{"$f":"IF(EA!$J$363>0,\"X\",\"\")","v":""},{"$f":"EA!$J$363","v":0},4,"3 points","EA16T3",{"$f":"IF(G290=3,\"X\",\"\")","v":""}]
["LEED v4 BD+C: Homes","EA","C","Space Heating & Cooling Equipment","EA116",{"$f":"IF(EA!$J$363>0,\"X\",\"\")","v":""},{"$f":"EA!$J$363","v":0},4,"4 points","EA16T4",{"$f":"IF(G291=4,\"X\",\"\")","v":""}]
["LEED v4 BD+C: Homes","EA","C","Heating & Cooling Distribution Systems","EA117",{"$f":"IF(EA!$J$387>0,\"X\",\"\")","v":""},{"$f":"EA!$J$387","v":0},3,null,null,null,"Case 1","EA17O1",{"$f":"IF(EA!$J$390>0,\"X\",\"\")","v":""}]
["LEED v4 BD+C: Homes","EA","C","Heating & Cooling Distribution Systems","EA117",{"$f":"IF(EA!$J$387>0,\"X\",\"\")","v":""},{"$f":"EA!$J$387","v":0},3,null,null,null,"Case 1","EA17O1",{"$f":"IF(EA!$J$390>0,\"X\",\"\")","v":""},"Option 1","EA17O1P1",{"$f":"IF(EA!J393>0,\"X\",\"\")","v":""}]
["LEED v4 BD+C: Homes","EA","C","Heating & Cooling Distribution Systems","EA117",{"$f":"IF(EA!$J$387>0,\"X\",\"\")","v":""},{"$f":"EA!$J$387","v":0},3,null,null,null,"Case 1","EA17O1",{"$f":"IF(EA!$J$390>0,\"X\",\"\")","v":""},"Option 2","EA17O1P2",{"$f":"IF(EA!J400>0,\"X\",\"\")","v":""}]
["LEED v4 BD+C: Homes","EA","C","Heating & Cooling Distribution Systems","EA117",{"$f":"IF(EA!$J$387>0,\"X\",\"\")","v":""},{"$f":"EA!$J$387","v":0},3,null,null,null,"Case 2","EA17O2",{"$f":"IF(EA!$J$406>0,\"X\",\"\")","v":""}]
["LEED v4 BD+C: Homes","EA","C","Heating & Cooling Distribution Systems","EA117",{"$f":"IF(EA!$J$387>0,\"X\",\"\")","v":""},{"$f":"EA!$J$387","v":0},3,null,null,null,"Case 2","EA17O2",{"$f":"IF(EA!$J$406>0,\"X\",\"\")","v":""},"2 points","EA17O2P1",{"$f":"IF(EA!$J$406=2,\"X\",\"\")","v":""}]
["LEED v4 BD+C: Homes","EA","C","Heating & Cooling Distribution Systems","EA117",{"$f":"IF(EA!$J$387>0,\"X\",\"\")","v":""},{"$f":"EA!$J$387","v":0},3,null,null,null,"Case 2","EA17O2",{"$f":"IF(EA!$J$406>0,\"X\",\"\")","v":""},"3 points","EA17O2P2",{"$f":"IF(EA!$J$406=3,\"X\",\"\")","v":""}]
["LEED v4 BD+C: Homes","EA","C","Efficient Domestic Hot Water Equipment","EA118",{"$f":"IF(EA!$J$415>0,\"X\",\"\")","v":""},{"$f":"EA!$J$415","v":0},3,"1 point","EA18T1",{"$f":"IF(G298=1,\"X\",\"\")","v":""}]
["LEED v4 BD+C: Homes","EA","C","Efficient Domestic Hot Water Equipment","EA118",{"$f":"IF(EA!$J$415>0,\"X\",\"\")","v":""},{"$f":"EA!$J$415","v":0},3,"1.5 points","EA18T2",{"$f":"IF(G299=1.5,\"X\",\"\")","v":""}]
["LEED v4 BD+C: Homes","EA","C","Efficient Domestic Hot Water Equipment","EA118",{"$f":"IF(EA!$J$415>0,\"X\",\"\")","v":""},{"$f":"EA!$J$415","v":0},3,"2 points","EA18T3",{"$f":"IF(G300=2,\"X\",\"\")","v":""}]
["LEED v4 BD+C: Homes","EA","C","Efficient Domestic Hot Water Equipment","EA118",{"$f":"IF(EA!$J$415>0,\"X\",\"\")","v":""},{"$f":"EA!$J$415","v":0},3,"2.5 points","EA18T4",{"$f":"IF(G301=2.5,\"X\",\"\")","v":""}]
["LEED v4 BD+C: Homes","EA","C","Efficient Domestic Hot Water Equipment","EA118",{"$f":"IF(EA!$J$415>0,\"X\",\"\")","v":""},{"$f":"EA!$J$415","v":0},3,"3 points","EA18T5",{"$f":"IF(G302=3,\"X\",\"\")","v":""}]
["LEED v4 BD+C: Homes","EA","C","Lighting","EA119",{"$f":"IF(EA!$J$428>0,\"X\",\"\")","v":""},{"$f":"EA!$J$428","v":0},2,null,null,null,"Case 1, Option 1","EA19O1",{"$f":"IF(EA!$J$434>0,\"X\",\"\")","v":""}]
["LEED v4 BD+C: Homes","EA","C","Lighting","EA119",{"$f":"IF(EA!$J$428>0,\"X\",\"\")","v":""},{"$f":"EA!$J$428","v":0},2,null,null,null,"Case 1, Option 1","EA19O1",{"$f":"IF(EA!$J$434>0,\"X\",\"\")","v":""},"0.5 points","EA19O1P1",{"$f":"IF(EA!$J$434=0.5,\"X\",\"\")","v":""}]
["LEED v4 BD+C: Homes","EA","C","Lighting","EA119",{"$f":"IF(EA!$J$428>0,\"X\",\"\")","v":""},{"$f":"EA!$J$428","v":0},2,null,null,null,"Case 1, Option 1","EA19O1",{"$f":"IF(EA!$J$434>0,\"X\",\"\")","v":""},"1 point ","EA19O1P2",{"$f":"IF(EA!$J$434=1,\"X\",\"\")","v":""}]
["LEED v4 BD+C: Homes","EA","C","Lighting","EA119",{"$f":"IF(EA!$J$428>0,\"X\",\"\")","v":""},{"$f":"EA!$J$428","v":0},2,null,null,null,"Case 1, Option 1","EA19O1",{"$f":"IF(EA!$J$434>0,\"X\",\"\")","v":""},"1.5 points","EA19O1P3",{"$f":"IF(EA!$J$434=1.5,\"X\",\"\")","v":""}]
["LEED v4 BD+C: Homes","EA","C","Lighting","EA119",{"$f":"IF(EA!$J$428>0,\"X\",\"\")","v":""},{"$f":"EA!$J$428","v":0},2,null,null,null,"Case 1, Option 2","EA19O2",{"$f":"IF(EA!J440>0,\"X\",\"\")","v":""}]
["LEED v4 BD+C: Homes","EA","C","Lighting","EA119",{"$f":"IF(EA!$J$428>0,\"X\",\"\")","v":""},{"$f":"EA!$J$428","v":0},2,null,null,null,"Case 2, Option 1","EA19O3",{"$f":"IF(EA!$J$450>0,\"X\",\"\")","v":""}]
["LEED v4 BD+C: Homes","EA","C","Lighting","EA119",{"$f":"IF(EA!$J$428>0,\"X\",\"\")","v":""},{"$f":"EA!$J$428","v":0},2,null,null,null,"Case 2, Option 1","EA19O3",{"$f":"IF(EA!$J$450>0,\"X\",\"\")","v":""},"0.5 points","EA19O3P1",{"$f":"IF(EA!$J$450=0.5,\"X\",\"\")","v":""}]
["LEED v4 BD+C: Homes","EA","C","Lighting","EA119",{"$f":"IF(EA!$J$428>0,\"X\",\"\")","v":""},{"$f":"EA!$J$428","v":0},2,null,null,null,"Case 2, Option 1","EA19O3",{"$f":"IF(EA!$J$450>0,\"X\",\"\")","v":""},"1 point ","EA19O3P2",{"$f":"IF(EA!$J$450=1,\"X\",\"\")","v":""}]
["LEED v4 BD+C: Homes","EA","C","Lighting","EA119",{"$f":"IF(EA!$J$428>0,\"X\",\"\")","v":""},{"$f":"EA!$J$428","v":0},2,null,null,null,"Case 2, Option 1","EA19O3",{"$f":"IF(EA!$J$450>0,\"X\",\"\")","v":""},"1.5 points","EA19O3P3",{"$f":"IF(EA!$J$450=1.5,\"X\",\"\")","v":""}]
["LEED v4 BD+C: Homes","EA","C","Lighting","EA119",{"$f":"IF(EA!$J$428>0,\"X\",\"\")","v":""},{"$f":"EA!$J$428","v":0},2,null,null,null,"Case 2, Option 2","EA19O4",{"$f":"IF(EA!J458>0,\"X\",\"\")","v":""}]
["LEED v4 BD+C: Homes","EA","C","High-Efficiency Appliances","EA120",{"$f":"IF(EA!$J$466>0,\"X\",\"\")","v":""},{"$f":"EA!$J$466","v":0},2,"0.5 points","EA20T1",{"$f":"IF(G313=0.5,\"X\",\"\")","v":""}]
["LEED v4 BD+C: Homes","EA","C","High-Efficiency Appliances","EA120",{"$f":"IF(EA!$J$466>0,\"X\",\"\")","v":""},{"$f":"EA!$J$466","v":0},2,"1 point","EA20T2",{"$f":"IF(G314=1,\"X\",\"\")","v":""}]
["LEED v4 BD+C: Homes","EA","C","High-Efficiency Appliances","EA120",{"$f":"IF(EA!$J$466>0,\"X\",\"\")","v":""},{"$f":"EA!$J$466","v":0},2,"1.5 points","EA20T3",{"$f":"IF(G315=1.5,\"X\",\"\")","v":""}]
["LEED v4 BD+C: Homes","EA","C","High-Efficiency Appliances","EA120",{"$f":"IF(EA!$J$466>0,\"X\",\"\")","v":""},{"$f":"EA!$J$466","v":0},2,"2 points","EA20T4",{"$f":"IF(G316=2,\"X\",\"\")","v":""}]
["LEED v4 BD+C: Homes","EA","C","Renewable Energy","EA121",{"$f":"IF(EA!$J$478>0,\"X\",\"\")","v":""},{"$f":"EA!$J$478","v":0},4,"1 point","EA21T1",{"$f":"IF(G317=1,\"X\",\"\")","v":""}]
["LEED v4 BD+C: Homes","EA","C","Renewable Energy","EA121",{"$f":"IF(EA!$J$478>0,\"X\",\"\")","v":""},{"$f":"EA!$J$478","v":0},4,"2 points","EA21T2",{"$f":"IF(G318=2,\"X\",\"\")","v":""}]
["LEED v4 BD+C: Homes","EA","C","Renewable Energy","EA121",{"$f":"IF(EA!$J$478>0,\"X\",\"\")","v":""},{"$f":"EA!$J$478","v":0},4,"3 points","EA21T3",{"$f":"IF(G319=3,\"X\",\"\")","v":""}]
["LEED v4 BD+C: Homes","EA","C","Renewable Energy","EA121",{"$f":"IF(EA!$J$478>0,\"X\",\"\")","v":""},{"$f":"EA!$J$478","v":0},4,"4 points","EA21T4",{"$f":"IF(G320=4,\"X\",\"\")","v":""}]
["LEED v4 BD+C: Homes","MR","P","Certified tropical wood","MR101","x",{"$f":"MR!$J$7","v":"Y"},0]
["LEED v4 BD+C: Homes","MR","P","Durability management","MR102","x",{"$f":"MR!$J$14","v":"Y"},0]
["LEED v4 BD+C: Homes","MR","C","Durability management verification","MR103",{"$f":"IF(MR!$J$37>0,\"X\",\"\")","v":"X"},{"$f":"MR!$J$37","v":1},1]
["LEED v4 BD+C: Homes","MR","C","Environmentally preferable products","MR104",{"$f":"IF(MR!$J$45>0,\"X\",\"\")","v":"X"},{"$f":"MR!$J$45","v":4},4,null,null,null,"Option 1","MR04O1",{"$f":"IF(MR!$J$49>0,\"X\",\"\")","v":"X"}]
["LEED v4 BD+C: Homes","MR","C","Environmentally preferable products","MR104",{"$f":"IF(MR!$J$45>0,\"X\",\"\")","v":"X"},{"$f":"MR!$J$45","v":4},4,null,null,null,"Option 1","MR04O1",{"$f":"IF(MR!$J$49>0,\"X\",\"\")","v":"X"},"0.5 points","MR04O1P1",{"$f":"IF(MR!$J$49=0.5,\"X\",\"\")","v":""}]
["LEED v4 BD+C: Homes","MR","C","Environmentally preferable products","MR104",{"$f":"IF(MR!$J$45>0,\"X\",\"\")","v":"X"},{"$f":"MR!$J$45","v":4},4,null,null,null,"Option 1","MR04O1",{"$f":"IF(MR!$J$49>0,\"X\",\"\")","v":"X"},"1 point","MR04O1P2",{"$f":"IF(MR!$J$49=1,\"X\",\"\")","v":"X"}]
["LEED v4 BD+C: Homes","MR","C","Environmentally preferable products","MR104",{"$f":"IF(MR!$J$45>0,\"X\",\"\")","v":"X"},{"$f":"MR!$J$45","v":4},4,null,null,null,"Option 1","MR04O1",{"$f":"IF(MR!$J$49>0,\"X\",\"\")","v":"X"},"1.5 points","MR04O1P3",{"$f":"IF(MR!$J$49=1.5,\"X\",\"\")","v":""}]
["LEED v4 BD+C: Homes","MR","C","Environmentally preferable products","MR104",{"$f":"IF(MR!$J$45>0,\"X\",\"\")","v":"X"},{"$f":"MR!$J$45","v":4},4,null,null,null,"Option 2","MR04O2",{"$f":"IF(MR!$J$58>0,\"X\",\"\")","v":"X"}]
["LEED v4 BD+C: Homes","MR","C","Environmentally preferable products","MR104",{"$f":"IF(MR!$J$45>0,\"X\",\"\")","v":"X"},{"$f":"MR!$J$45","v":4},4,null,null,null,"Option 2","MR04O2",{"$f":"IF(MR!$J$58>0,\"X\",\"\")","v":"X"},"0.5 points","MR04O2P1",{"$f":"IF(MR!$J$58=0.5,\"X\",\"\")","v":""}]
["LEED v4 BD+C: Homes","MR","C","Environmentally preferable products","MR104",{"$f":"IF(MR!$J$45>0,\"X\",\"\")","v":"X"},{"$f":"MR!$J$45","v":4},4,null,null,null,"Option 2","MR04O2",{"$f":"IF(MR!$J$58>0,\"X\",\"\")","v":"X"},"1 point","MR04O2P2",{"$f":"IF(MR!$J$58=1,\"X\",\"\")","v":""}]
["LEED v4 BD+C: Homes","MR","C","Environmentally preferable products","MR104",{"$f":"IF(MR!$J$45>0,\"X\",\"\")","v":"X"},{"$f":"MR!$J$45","v":4},4,null,null,null,"Option 2","MR04O2",{"$f":"IF(MR!$J$58>0,\"X\",\"\")","v":"X"},"1.5 points","MR04O2P3",{"$f":"IF(MR!$J$58=1.5,\"X\",\"\")","v":""}]
["LEED v4 BD+C: Homes","MR","C","Environmentally preferable products","MR104",{"$f":"IF(MR!$J$45>0,\"X\",\"\")","v":"X"},{"$f":"MR!$J$45","v":4},4,null,null,null,"Option 2","MR04O2",{"$f":"IF(MR!$J$58>0,\"X\",\"\")","v":"X"},"2 points","MR04O2P4",{"$f":"IF(MR!$J$58=2,\"X\",\"\")","v":""}]
["LEED v4 BD+C: Homes","MR","C","Environmentally preferable products","MR104",{"$f":"IF(MR!$J$45>0,\"X\",\"\")","v":"X"},{"$f":"MR!$J$45","v":4},4,null,null,null,"Option 2","MR04O2",{"$f":"IF(MR!$J$58>0,\"X\",\"\")","v":"X"},"2.5 points","MR04O2P5",{"$f":"IF(MR!$J$58=2.5,\"X\",\"\")","v":""}]
["LEED v4 BD+C: Homes","MR","C","Environmentally preferable products","MR104",{"$f":"IF(MR!$J$45>0,\"X\",\"\")","v":"X"},{"$f":"MR!$J$45","v":4},4,null,null,null,"Option 2","MR04O2",{"$f":"IF(MR!$J$58>0,\"X\",\"\")","v":"X"},"3 points","MR04O2P6",{"$f":"IF(MR!$J$58=3,\"X\",\"\")","v":"X"}]
["LEED v4 BD+C: Homes","MR","C","Environmentally preferable products","MR104",{"$f":"IF(MR!$J$45>0,\"X\",\"\")","v":"X"},{"$f":"MR!$J$45","v":4},4,null,null,null,"Option 2","MR04O2",{"$f":"IF(MR!$J$58>0,\"X\",\"\")","v":"X"},"3.5 points","MR04O2P7",{"$f":"IF(MR!$J$58=3.5,\"X\",\"\")","v":""}]
["LEED v4 BD+C: Homes","MR","C","Environmentally preferable products","MR104",{"$f":"IF(MR!$J$45>0,\"X\",\"\")","v":"X"},{"$f":"MR!$J$45","v":4},4,null,null,null,"Option 2","MR04O2",{"$f":"IF(MR!$J$58>0,\"X\",\"\")","v":"X"},"4 points","MR04O2P8",{"$f":"IF(MR!$J$58=4,\"X\",\"\")","v":""}]
["LEED v4 BD+C: Homes","MR","C","Construction waste management","MR105",{"$f":"IF(MR!$J$96>0,\"X\",\"\")","v":""},{"$f":"MR!$J$96","v":0},3,"0.5 points","MR05T1",{"$f":"IF(G337=0.5,\"X\",\"\")","v":""}]
["LEED v4 BD+C: Homes","MR","C","Construction waste management","MR105",{"$f":"IF(MR!$J$96>0,\"X\",\"\")","v":""},{"$f":"MR!$J$96","v":0},3,"1 point","MR05T2",{"$f":"IF(G338=1,\"X\",\"\")","v":""}]
["LEED v4 BD+C: Homes","MR","C","Construction waste management","MR105",{"$f":"IF(MR!$J$96>0,\"X\",\"\")","v":""},{"$f":"MR!$J$96","v":0},3,"1.5 points","MR05T3",{"$f":"IF(G339=1.5,\"X\",\"\")","v":""}]
["LEED v4 BD+C: Homes","MR","C","Construction waste management","MR105",{"$f":"IF(MR!$J$96>0,\"X\",\"\")","v":""},{"$f":"MR!$J$96","v":0},3,"2 points","MR05T4",{"$f":"IF(G340=2,\"X\",\"\")","v":""}]
["LEED v4 BD+C: Homes","MR","C","Construction waste management","MR105",{"$f":"IF(MR!$J$96>0,\"X\",\"\")","v":""},{"$f":"MR!$J$96","v":0},3,"2.5 points","MR05T5",{"$f":"IF(G341=2.5,\"X\",\"\")","v":""}]
["LEED v4 BD+C: Homes","MR","C","Construction waste management","MR105",{"$f":"IF(MR!$J$96>0,\"X\",\"\")","v":""},{"$f":"MR!$J$96","v":0},3,"3 points","MR05T6",{"$f":"IF(G342=3,\"X\",\"\")","v":""}]
["LEED v4 BD+C: Homes","MR","C","Material-efficient framing","MR106",{"$f":"IF(MR!$J$109>0,\"X\",\"\")","v":""},{"$f":"MR!$J$109","v":0},2,"0.5 points","MR06T1",{"$f":"IF(G343=0.5,\"X\",\"\")","v":""}]
["LEED v4 BD+C: Homes","MR","C","Material-efficient framing","MR106",{"$f":"IF(MR!$J$109>0,\"X\",\"\")","v":""},{"$f":"MR!$J$109","v":0},2,"1 point","MR06T2",{"$f":"IF(G344=1,\"X\",\"\")","v":""}]
["LEED v4 BD+C: Homes","MR","C","Material-efficient framing","MR106",{"$f":"IF(MR!$J$109>0,\"X\",\"\")","v":""},{"$f":"MR!$J$109","v":0},2,"1.5 points","MR06T3",{"$f":"IF(G345=1.5,\"X\",\"\")","v":""}]
["LEED v4 BD+C: Homes","MR","C","Material-efficient framing","MR106",{"$f":"IF(MR!$J$109>0,\"X\",\"\")","v":""},{"$f":"MR!$J$109","v":0},2,"2 points","MR06T4",{"$f":"IF(G346=2,\"X\",\"\")","v":""}]
["LEED v4 BD+C: Homes","EQ","P","Ventilation","EQ101","x",{"$f":"EQ!$J$7","v":"Y"},0,null,null,null,"Case 1","EQ01O1",{"$f":"IF(EQ!$J$10=\"Y\",\"X\",\"\")","v":"X"}]
["LEED v4 BD+C: Homes","EQ","P","Ventilation","EQ101","x",{"$f":"EQ!$J$7","v":"Y"},0,null,null,null,"Case 2","EQ01O2",{"$f":"IF(EQ!$J$31=\"Y\",\"X\",\"\")","v":""}]
["LEED v4 BD+C: Homes","EQ","P","Combustion venting","EQ102","x",{"$f":"EQ!$J$59","v":"Y"},0]
["LEED v4 BD+C: Homes","EQ","P","Garage pollutant protection","EQ103","x",{"$f":"EQ!$J$82","v":"Y"},0]
["LEED v4 BD+C: Homes","EQ","P","Radon-resistant construction","EQ104","x",{"$f":"EQ!$J$102","v":"Y"},0,null,null,null,"EPA label","EQ04O1",{"$f":"IF(EQ!$J$106=\"Y\",\"X\",\"\")","v":""}]
["LEED v4 BD+C: Homes","EQ","P","Radon-resistant construction","EQ104","x",{"$f":"EQ!$J$102","v":"Y"},0,null,null,null,"Case 1","EQ04O2",{"$f":"IF(EQ!$J$112=\"Y\",\"X\",\"\")","v":""}]
["LEED v4 BD+C: Homes","EQ","P","Radon-resistant construction","EQ104","x",{"$f":"EQ!$J$102","v":"Y"},0,null,null,null,"Case 2","EQ04O3",{"$f":"IF(EQ!$J$126=\"Y\",\"X\",\"\")","v":"X"}]
["LEED v4 BD+C: Homes","EQ","P","Air filtering","EQ105","x",{"$f":"EQ!$J$138","v":"Y"},0]
["LEED v4 BD+C: Homes","EQ","P","Environmental tobacco smoke","EQ106","x",{"$f":"EQ!$J$148","v":"N"},0]
["LEED v4 BD+C: Homes","EQ","P","Compartmentalization","EQ107","x",{"$f":"EQ!$J$161","v":"N"},0]
["LEED v4 BD+C: Homes","EQ","C","Enhanced ventilation","EQ108",{"$f":"IF(EQ!$J$177>0,\"X\",\"\")","v":"X"},{"$f":"EQ!$J$177","v":3},3,null,null,null,"Option 1","EQ08O1",{"$f":"IF(EQ!$J$180>0,\"X\",\"\")","v":"X"}]
["LEED v4 BD+C: Homes","EQ","C","Enhanced ventilation","EQ108",{"$f":"IF(EQ!$J$177>0,\"X\",\"\")","v":"X"},{"$f":"EQ!$J$177","v":3},3,null,null,null,"Option 2","EQ08O2",{"$f":"IF(EQ!$J$186>0,\"X\",\"\")","v":"X"}]
["LEED v4 BD+C: Homes","EQ","C","Contaminant control","EQ109",{"$f":"IF(EQ!$J$196>0,\"X\",\"\")","v":"X"},{"$f":"EQ!$J$196","v":1},2,null,null,null,"Option 1","EQ09O1",{"$f":"IF(EQ!$J$200>0,\"X\",\"\")","v":""}]
["LEED v4 BD+C: Homes","EQ","C","Contaminant control","EQ109",{"$f":"IF(EQ!$J$196>0,\"X\",\"\")","v":"X"},{"$f":"EQ!$J$196","v":1},2,null,null,null,"Option 2","EQ09O2",{"$f":"IF(EQ!$J$209>0,\"X\",\"\")","v":"X"}]
["LEED v4 BD+C: Homes","EQ","C","Contaminant control","EQ109",{"$f":"IF(EQ!$J$196>0,\"X\",\"\")","v":"X"},{"$f":"EQ!$J$196","v":1},2,null,null,null,"Option 3","EQ09O3",{"$f":"IF(EQ!$J$217>0,\"X\",\"\")","v":"X"}]
["LEED v4 BD+C: Homes","EQ","C","Contaminant control","EQ109",{"$f":"IF(EQ!$J$196>0,\"X\",\"\")","v":"X"},{"$f":"EQ!$J$196","v":1},2,null,null,null,"Option 4","EQ09O4",{"$f":"IF(EQ!$J$230>0,\"X\",\"\")","v":""}]
["LEED v4 BD+C: Homes","EQ","C","Balancing of heating and cooling distribution systems","EQ110",{"$f":"IF(EQ!$J$237>0,\"X\",\"\")","v":"X"},{"$f":"EQ!$J$237","v":2},3,null,null,null,"Case 1","EQ10O1",{"$f":"IF(EQ!$J$240>0,\"X\",\"\")","v":"X"}]
["LEED v4 BD+C: Homes","EQ","C","Balancing of heating and cooling distribution systems","EQ110",{"$f":"IF(EQ!$J$237>0,\"X\",\"\")","v":"X"},{"$f":"EQ!$J$237","v":2},3,null,null,null,"Case 1","EQ10O1",{"$f":"IF(EQ!$J$240>0,\"X\",\"\")","v":"X"},"Option 1","EQ10O1P1",{"$f":"IF(EQ!$J$243>0,\"X\",\"\")","v":""}]
["LEED v4 BD+C: Homes","EQ","C","Balancing of heating and cooling distribution systems","EQ110",{"$f":"IF(EQ!$J$237>0,\"X\",\"\")","v":"X"},{"$f":"EQ!$J$237","v":2},3,null,null,null,"Case 1","EQ10O1",{"$f":"IF(EQ!$J$240>0,\"X\",\"\")","v":"X"},"Option 2","EQ10O1P2",{"$f":"IF(EQ!$J$252>0,\"X\",\"\")","v":"X"}]
["LEED v4 BD+C: Homes","EQ","C","Balancing of heating and cooling distribution systems","EQ110",{"$f":"IF(EQ!$J$237>0,\"X\",\"\")","v":"X"},{"$f":"EQ!$J$237","v":2},3,null,null,null,"Case 1","EQ10O1",{"$f":"IF(EQ!$J$240>0,\"X\",\"\")","v":"X"},"Option 3","EQ10O1P3",{"$f":"IF(EQ!$J$258>0,\"X\",\"\")","v":"X"}]
["LEED v4 BD+C: Homes","EQ","C","Balancing of heating and cooling distribution systems","EQ110",{"$f":"IF(EQ!$J$237>0,\"X\",\"\")","v":"X"},{"$f":"EQ!$J$237","v":2},3,null,null,null,"Case 2","EQ10O2",{"$f":"IF(EQ!$J$264>0,\"X\",\"\")","v":""}]
["LEED v4 BD+C: Homes","EQ","C","Balancing of heating and cooling distribution systems","EQ110",{"$f":"IF(EQ!$J$237>0,\"X\",\"\")","v":"X"},{"$f":"EQ!$J$237","v":2},3,null,null,null,"Case 2","EQ10O2",{"$f":"IF(EQ!$J$264>0,\"X\",\"\")","v":""},"Option 1","EQ10O2P1",{"$f":"IF(EQ!$J$267>0,\"X\",\"\")","v":""}]
["LEED v4 BD+C: Homes","EQ","C","Balancing of heating and cooling distribution systems","EQ110",{"$f":"IF(EQ!$J$237>0,\"X\",\"\")","v":"X"},{"$f":"EQ!$J$237","v":2},3,null,null,null,"Case 2","EQ10O2",{"$f":"IF(EQ!$J$264>0,\"X\",\"\")","v":""},"Option 2","EQ10O2P2",{"$f":"IF(EQ!$J$277>0,\"X\",\"\")","v":""}]
["LEED v4 BD+C: Homes","EQ","C","Enhanced compartmentalization","EQ111",{"$f":"IF(EQ!$J$284>0,\"X\",\"\")","v":""},{"$f":"EQ!$J$284","v":0},1]
["LEED v4 BD+C: Homes","EQ","C","Enhanced combustion venting","EQ112",{"$f":"IF(EQ!$J$291>0,\"X\",\"\")","v":"X"},{"$f":"EQ!$J$291","v":2},2,null,null,null,"Option 1","EQ12O1",{"$f":"IF(EQ!$J$294>0,\"X\",\"\")","v":"X"}]
["LEED v4 BD+C: Homes","EQ","C","Enhanced combustion venting","EQ112",{"$f":"IF(EQ!$J$291>0,\"X\",\"\")","v":"X"},{"$f":"EQ!$J$291","v":2},2,null,null,null,"Option 2","EQ12O2",{"$f":"IF(EQ!$J$300>0,\"X\",\"\")","v":""}]
["LEED v4 BD+C: Homes","EQ","C","Enhanced garage pollutant protection","EQ113",{"$f":"IF(EQ!$J$312>0,\"X\",\"\")","v":"X"},{"$f":"EQ!$J$312","v":2},2,null,null,null,"Case 1","EQ13O1",{"$f":"IF(EQ!$J$315>0,\"X\",\"\")","v":"X"}]
["LEED v4 BD+C: Homes","EQ","C","Enhanced garage pollutant protection","EQ113",{"$f":"IF(EQ!$J$312>0,\"X\",\"\")","v":"X"},{"$f":"EQ!$J$312","v":2},2,null,null,null,"Case 1","EQ13O1",{"$f":"IF(EQ!$J$315>0,\"X\",\"\")","v":"X"},"Option 1","EQ13O1P1",{"$f":"IF(EQ!$J$318>0,\"X\",\"\")","v":""}]
["LEED v4 BD+C: Homes","EQ","C","Enhanced garage pollutant protection","EQ113",{"$f":"IF(EQ!$J$312>0,\"X\",\"\")","v":"X"},{"$f":"EQ!$J$312","v":2},2,null,null,null,"Case 1","EQ13O1",{"$f":"IF(EQ!$J$315>0,\"X\",\"\")","v":"X"},"Option 2","EQ13O1P2",{"$f":"IF(EQ!$J$336>0,\"X\",\"\")","v":"X"}]
["LEED v4 BD+C: Homes","EQ","C","Enhanced garage pollutant protection","EQ113",{"$f":"IF(EQ!$J$312>0,\"X\",\"\")","v":"X"},{"$f":"EQ!$J$312","v":2},2,null,null,null,"Case 2","EQ13O2",{"$f":"IF(EQ!$J$347>0,\"X\",\"\")","v":""}]
["LEED v4 BD+C: Homes","EQ","C","Enhanced garage pollutant protection","EQ113",{"$f":"IF(EQ!$J$312>0,\"X\",\"\")","v":"X"},{"$f":"EQ!$J$312","v":2},2,null,null,null,"Case 2","EQ13O2",{"$f":"IF(EQ!$J$347>0,\"X\",\"\")","v":""},"Option 1","EQ13O2P1",{"$f":"IF(EQ!$J$350>0,\"X\",\"\")","v":""}]
["LEED v4 BD+C: Homes","EQ","C","Enhanced garage pollutant protection","EQ113",{"$f":"IF(EQ!$J$312>0,\"X\",\"\")","v":"X"},{"$f":"EQ!$J$312","v":2},2,null,null,null,"Case 2","EQ13O2",{"$f":"IF(EQ!$J$347>0,\"X\",\"\")","v":""},"Option 2","EQ13O2P2",{"$f":"IF(EQ!$J$363>0,\"X\",\"\")","v":""}]
["LEED v4 BD+C: Homes","EQ","C","Enhanced garage pollutant protection","EQ113",{"$f":"IF(EQ!$J$312>0,\"X\",\"\")","v":"X"},{"$f":"EQ!$J$312","v":2},2,null,null,null,"Case 2","EQ13O2",{"$f":"IF(EQ!$J$347>0,\"X\",\"\")","v":""},"Option 3","EQ13O2P3",{"$f":"IF(EQ!$J$379>0,\"X\",\"\")","v":""}]
["LEED v4 BD+C: Homes","EQ","C","Low-emitting products","EQ114",{"$f":"IF(EQ!$J$407>0,\"X\",\"\")","v":"X"},{"$f":"EQ!$J$407","v":0.5},3,"0.5 points","EQ14T1",{"$f":"IF(G380=0.5,\"X\",\"\")","v":"X"}]
["LEED v4 BD+C: Homes","EQ","C","Low-emitting products","EQ114",{"$f":"IF(EQ!$J$407>0,\"X\",\"\")","v":"X"},{"$f":"EQ!$J$407","v":0.5},3,"1 point","EQ14T2",{"$f":"IF(G381=1,\"X\",\"\")","v":""}]
["LEED v4 BD+C: Homes","EQ","C","Low-emitting products","EQ114",{"$f":"IF(EQ!$J$407>0,\"X\",\"\")","v":"X"},{"$f":"EQ!$J$407","v":0.5},3,"1.5 points","EQ14T3",{"$f":"IF(G382=1.5,\"X\",\"\")","v":""}]
["LEED v4 BD+C: Homes","EQ","C","Low-emitting products","EQ114",{"$f":"IF(EQ!$J$407>0,\"X\",\"\")","v":"X"},{"$f":"EQ!$J$407","v":0.5},3,"2 points","EQ14T4",{"$f":"IF(G383=2,\"X\",\"\")","v":""}]
["LEED v4 BD+C: Homes","EQ","C","Low-emitting products","EQ114",{"$f":"IF(EQ!$J$407>0,\"X\",\"\")","v":"X"},{"$f":"EQ!$J$407","v":0.5},3,"2.5 points","EQ14T5",{"$f":"IF(G384=2.5,\"X\",\"\")","v":""}]
["LEED v4 BD+C: Homes","EQ","C","Low-emitting products","EQ114",{"$f":"IF(EQ!$J$407>0,\"X\",\"\")","v":"X"},{"$f":"EQ!$J$407","v":0.5},3,"3 points","EQ14T6",{"$f":"IF(G385=3,\"X\",\"\")","v":""}]
["LEED v4 BD+C: Homes","IN","P","Preliminary rating","IN101","x",{"$f":"IN!$J$7","v":"Y"},0]
["LEED v4 BD+C: Homes","IN","C","Innovation","IN102",{"$f":"IF(IN!$J$14>0,\"X\",\"\")","v":"X"},{"$f":"IN!$J$14","v":1},5,null,null,null,"Option 1","IN02O1",{"$f":"IF(IN!$J$17>0,\"X\",\"\")","v":""}]
["LEED v4 BD+C: Homes","IN","C","Innovation","IN102",{"$f":"IF(IN!$J$14>0,\"X\",\"\")","v":"X"},{"$f":"IN!$J$14","v":1},5,null,null,null,"Option 2","IN02O2",{"$f":"IF(IN!$J$24>0,\"X\",\"\")","v":""}]
["LEED v4 BD+C: Homes","IN","C","Innovation","IN102",{"$f":"IF(IN!$J$14>0,\"X\",\"\")","v":"X"},{"$f":"IN!$J$14","v":1},5,null,null,null,"Option 3","IN02O3",{"$f":"IF(IN!$J$30>0,\"X\",\"\")","v":"X"}]
["LEED v4 BD+C: Homes","IN","C","Innovation","IN102",{"$f":"IF(IN!$J$14>0,\"X\",\"\")","v":"X"},{"$f":"IN!$J$14","v":1},5,null,null,null,"Option 3","IN02O3",{"$f":"IF(IN!$J$30>0,\"X\",\"\")","v":"X"},"0.5 points","IN02O3P1",{"$f":"IF(IN!$J$30=0.5,\"X\",\"\")","v":""}]
["LEED v4 BD+C: Homes","IN","C","Innovation","IN102",{"$f":"IF(IN!$J$14>0,\"X\",\"\")","v":"X"},{"$f":"IN!$J$14","v":1},5,null,null,null,"Option 3","IN02O3",{"$f":"IF(IN!$J$30>0,\"X\",\"\")","v":"X"},"1 point","IN02O3P2",{"$f":"IF(IN!$J$30=1,\"X\",\"\")","v":"X"}]
["LEED v4 BD+C: Homes","IN","C","Innovation","IN102",{"$f":"IF(IN!$J$14>0,\"X\",\"\")","v":"X"},{"$f":"IN!$J$14","v":1},5,null,null,null,"Option 3","IN02O3",{"$f":"IF(IN!$J$30>0,\"X\",\"\")","v":"X"},"1.5 points","IN02O3P3",{"$f":"IF(IN!$J$30=1.5,\"X\",\"\")","v":""}]
["LEED v4 BD+C: Homes","IN","C","Innovation","IN102",{"$f":"IF(IN!$J$14>0,\"X\",\"\")","v":"X"},{"$f":"IN!$J$14","v":1},5,null,null,null,"Option 3","IN02O3",{"$f":"IF(IN!$J$30>0,\"X\",\"\")","v":"X"},"2 points","IN02O3P4",{"$f":"IF(IN!$J$30=2,\"X\",\"\")","v":""}]
["LEED v4 BD+C: Homes","IN","C","Innovation","IN102",{"$f":"IF(IN!$J$14>0,\"X\",\"\")","v":"X"},{"$f":"IN!$J$14","v":1},5,null,null,null,"Option 3","IN02O3",{"$f":"IF(IN!$J$30>0,\"X\",\"\")","v":"X"},"2.5 points","IN02O3P5",{"$f":"IF(IN!$J$30=2.5,\"X\",\"\")","v":""}]
["LEED v4 BD+C: Homes","IN","C","Innovation","IN102",{"$f":"IF(IN!$J$14>0,\"X\",\"\")","v":"X"},{"$f":"IN!$J$14","v":1},5,null,null,null,"Option 3","IN02O3",{"$f":"IF(IN!$J$30>0,\"X\",\"\")","v":"X"},"3 points","IN02O3P6",{"$f":"IF(IN!$J$30=3,\"X\",\"\")","v":""}]
["LEED v4 BD+C: Homes","IN","C","LEED Accredited Professional","IN103",{"$f":"IF(IN!$J$53>0,\"X\",\"\")","v":"X"},{"$f":"IN!$J$53","v":1},1]
[]
["LEED v4 BD+C: Midrise","IP","C","Integrative process","IP102",{"$f":"IF(IP!$J$7>0,\"X\",\"\")","v":"X"},{"$f":"IP!$J$7","v":1},2,null,null,null,"Option 1","IP02O1",{"$f":"IF(IP!$J$11>0,\"X\",\"\")","v":"X"}]
["LEED v4 BD+C: Midrise","IP","C","Integrative process","IP102",{"$f":"IF(IP!$J$7>0,\"X\",\"\")","v":"X"},{"$f":"IP!$J$7","v":1},2,null,null,null,"Option 2","IP02O2",{"$f":"IF(IP!$J$33>0,\"X\",\"\")","v":""}]
["LEED v4 BD+C: Midrise","IP","C","Integrative process","IP102",{"$f":"IF(IP!$J$7>0,\"X\",\"\")","v":"X"},{"$f":"IP!$J$7","v":1},2,null,null,null,"Option 3","IP02O3",{"$f":"IF(IP!$J$42>0,\"X\",\"\")","v":""}]
["LEED v4 BD+C: Midrise","LT","P","Floodplain avoidance","LT101","x",{"$f":"LT!$J$7","v":"Y"},0]
["LEED v4 BD+C: Midrise","LT","C","LEED for Neighborhood Development","LT102",{"$f":"IF(LT!$J$20>0,\"X\",\"\")","v":""},{"$f":"LT!$J$20","v":0},15]
["LEED v4 BD+C: Midrise","LT","C","Site selection","LT103",{"$f":"IF(LT!$J$34>0,\"X\",\"\")","v":"X"},{"$f":"LT!$J$34","v":8},8,null,null,null,"Option 1","LT03O1",{"$f":"IF(LT!$J$38>0,\"X\",\"\")","v":"X"}]
["LEED v4 BD+C: Midrise","LT","C","Site selection","LT103",{"$f":"IF(LT!$J$34>0,\"X\",\"\")","v":"X"},{"$f":"LT!$J$34","v":8},8,null,null,null,"Option 1","LT03O1",{"$f":"IF(LT!$J$38>0,\"X\",\"\")","v":"X"},"Path 1","LT03O1P1",{"$f":"IF(LT!$J$41>0,\"X\",\"\")","v":"X"}]
["LEED v4 BD+C: Midrise","LT","C","Site selection","LT103",{"$f":"IF(LT!$J$34>0,\"X\",\"\")","v":"X"},{"$f":"LT!$J$34","v":8},8,null,null,null,"Option 1","LT03O1",{"$f":"IF(LT!$J$38>0,\"X\",\"\")","v":"X"},"Path 2","LT03O1P2",{"$f":"IF(LT!$J$49>0,\"X\",\"\")","v":""}]
["LEED v4 BD+C: Midrise","LT","C","Site selection","LT103",{"$f":"IF(LT!$J$34>0,\"X\",\"\")","v":"X"},{"$f":"LT!$J$34","v":8},8,null,null,null,"Option 2","LT03O2",{"$f":"IF(LT!$J$69>0,\"X\",\"\")","v":"X"}]
["LEED v4 BD+C: Midrise","LT","C","Site selection","LT103",{"$f":"IF(LT!$J$34>0,\"X\",\"\")","v":"X"},{"$f":"LT!$J$34","v":8},8,null,null,null,"Option 3","LT03O3",{"$f":"IF(LT!$J$78>0,\"X\",\"\")","v":"X"}]
["LEED v4 BD+C: Midrise","LT","C","Site selection","LT103",{"$f":"IF(LT!$J$34>0,\"X\",\"\")","v":"X"},{"$f":"LT!$J$34","v":8},8,null,null,null,"Option 4","LT03O4",{"$f":"IF(LT!$J$86>0,\"X\",\"\")","v":"X"}]
["LEED v4 BD+C: Midrise","LT","C","Site selection","LT103",{"$f":"IF(LT!$J$34>0,\"X\",\"\")","v":"X"},{"$f":"LT!$J$34","v":8},8,null,null,null,"Option 5","LT03O5",{"$f":"IF(LT!$J$92>0,\"X\",\"\")","v":""}]
["LEED v4 BD+C: Midrise","LT","C","Compact development","LT104",{"$f":"IF(LT!$J$117>0,\"X\",\"\")","v":"X"},{"$f":"LT!$J$117","v":1},3,"1 point","LT04T1",{"$f":"IF($G$31=1,\"X\",\"\")","v":"X"}]
["LEED v4 BD+C: Midrise","LT","C","Compact development","LT104",{"$f":"IF(LT!$J$117>0,\"X\",\"\")","v":"X"},{"$f":"LT!$J$117","v":1},3,"2 points","LT04T2",{"$f":"IF($G$32=2,\"X\",\"\")","v":""}]
["LEED v4 BD+C: Midrise","LT","C","Compact development","LT104",{"$f":"IF(LT!$J$117>0,\"X\",\"\")","v":"X"},{"$f":"LT!$J$117","v":1},3,"3 points","LT04T3",{"$f":"IF($G$33=3,\"X\",\"\")","v":""}]
["LEED v4 BD+C: Midrise","LT","C","Community resources","LT105",{"$f":"IF(LT!$J$127>0,\"X\",\"\")","v":""},{"$f":"LT!$J$127","v":0},2,"1 point","LT05T1",{"$f":"IF($G$34=1,\"X\",\"\")","v":""}]
["LEED v4 BD+C: Midrise","LT","C","Community resources","LT105",{"$f":"IF(LT!$J$127>0,\"X\",\"\")","v":""},{"$f":"LT!$J$127","v":0},2,"1.5 points","LT05T2",{"$f":"IF($G$35=1.5,\"X\",\"\")","v":""}]
["LEED v4 BD+C: Midrise","LT","C","Community resources","LT105",{"$f":"IF(LT!$J$127>0,\"X\",\"\")","v":""},{"$f":"LT!$J$127","v":0},2,"2 points","LT05T3",{"$f":"IF($G$36=2,\"X\",\"\")","v":""}]
["LEED v4 BD+C: Midrise","LT","C","Access to transit","LT106",{"$f":"IF(LT!$J$135>0,\"X\",\"\")","v":""},{"$f":"LT!$J$135","v":0},2,"1 point","LT06T1",{"$f":"IF($G$37=1,\"X\",\"\")","v":""}]
["LEED v4 BD+C: Midrise","LT","C","Access to transit","LT106",{"$f":"IF(LT!$J$135>0,\"X\",\"\")","v":""},{"$f":"LT!$J$135","v":0},2,"1.5 points","LT06T2",{"$f":"IF($G$38=1.5,\"X\",\"\")","v":""}]
["LEED v4 BD+C: Midrise","LT","C","Access to transit","LT106",{"$f":"IF(LT!$J$135>0,\"X\",\"\")","v":""},{"$f":"LT!$J$135","v":0},2,"2 points","LT06T3",{"$f":"IF($G$39=2,\"X\",\"\")","v":""}]
["LEED v4 BD+C: Midrise","SS","P","Construction activity pollution prevention","SS101","x",{"$f":"SS!$J$7","v":"Y"},0]
["LEED v4 BD+C: Midrise","SS","P","No invasive plants","SS102","x",{"$f":"SS!$J$34","v":"Y"},0]
["LEED v4 BD+C: Midrise","SS","C","Heat island reduction","SS110",{"$f":"IF(SS!$J$41>0,\"X\",\"\")","v":""},{"$f":"SS!$J$41","v":0},2,null,null,null,"Option 1","SS10O1",{"$f":"IF(SS!$J$44>0,\"X\",\"\")","v":""}]
["LEED v4 BD+C: Midrise","SS","C","Heat island reduction","SS110",{"$f":"IF(SS!$J$41>0,\"X\",\"\")","v":""},{"$f":"SS!$J$41","v":0},2,null,null,null,"Option 1","SS10O1",{"$f":"IF(SS!$J$44>0,\"X\",\"\")","v":""},"1 point","SS10O1P1",{"$f":"IF(SS!$J$44=1,\"X\",\"\")","v":""}]
["LEED v4 BD+C: Midrise","SS","C","Heat island reduction","SS110",{"$f":"IF(SS!$J$41>0,\"X\",\"\")","v":""},{"$f":"SS!$J$41","v":0},2,null,null,null,"Option 1","SS10O1",{"$f":"IF(SS!$J$44>0,\"X\",\"\")","v":""},"2 points","SS10O1P2",{"$f":"IF(SS!$J$44=2,\"X\",\"\")","v":""}]
["LEED v4 BD+C: Midrise","SS","C","Heat island reduction","SS110",{"$f":"IF(SS!$J$41>0,\"X\",\"\")","v":""},{"$f":"SS!$J$41","v":0},2,null,null,null,"Option 2","SS10O2",{"$f":"IF(SS!$J$50>0,\"X\",\"\")","v":""}]
["LEED v4 BD+C: Midrise","SS","C","Heat island reduction","SS110",{"$f":"IF(SS!$J$41>0,\"X\",\"\")","v":""},{"$f":"SS!$J$41","v":0},2,null,null,null,"Option 2","SS10O2",{"$f":"IF(SS!$J$50>0,\"X\",\"\")","v":""},"1 point","SS10O2P1",{"$f":"IF(SS!$J$50=1,\"X\",\"\")","v":""}]
["LEED v4 BD+C: Midrise","SS","C","Heat island reduction","SS110",{"$f":"IF(SS!$J$41>0,\"X\",\"\")","v":""},{"$f":"SS!$J$41","v":0},2,null,null,null,"Option 2","SS10O2",{"$f":"IF(SS!$J$50>0,\"X\",\"\")","v":""},"2 points","SS10O2P2",{"$f":"IF(SS!$J$50=2,\"X\",\"\")","v":""}]
["LEED v4 BD+C: Midrise","SS","C","Rainwater management","SS108",{"$f":"IF(SS!$J$69>0,\"X\",\"\")","v":""},{"$f":"SS!$J$69","v":0},3,null,null,null,"Case 1","SS08O1",{"$f":"IF(SS!$J$73>0,\"X\",\"\")","v":""}]
["LEED v4 BD+C: Midrise","SS","C","Rainwater management","SS108",{"$f":"IF(SS!$J$69>0,\"X\",\"\")","v":""},{"$f":"SS!$J$69","v":0},3,null,null,null,"Case 1","SS08O1",{"$f":"IF(SS!$J$73>0,\"X\",\"\")","v":""},"1 point","SS08O1P1",{"$f":"IF(SS!$J$73=1,\"X\",\"\")","v":""}]
["LEED v4 BD+C: Midrise","SS","C","Rainwater management","SS108",{"$f":"IF(SS!$J$69>0,\"X\",\"\")","v":""},{"$f":"SS!$J$69","v":0},3,null,null,null,"Case 1","SS08O1",{"$f":"IF(SS!$J$73>0,\"X\",\"\")","v":""},"2 points","SS08O1P2",{"$f":"IF(SS!$J$73=2,\"X\",\"\")","v":""}]
["LEED v4 BD+C: Midrise","SS","C","Rainwater management","SS108",{"$f":"IF(SS!$J$69>0,\"X\",\"\")","v":""},{"$f":"SS!$J$69","v":0},3,null,null,null,"Case 1","SS08O1",{"$f":"IF(SS!$J$73>0,\"X\",\"\")","v":""},"3 points","SS08O1P3",{"$f":"IF(SS!$J$73=3,\"X\",\"\")","v":""}]
["LEED v4 BD+C: Midrise","SS","C","Rainwater management","SS108",{"$f":"IF(SS!$J$69>0,\"X\",\"\")","v":""},{"$f":"SS!$J$69","v":0},3,null,null,null,"Case 2","SS08O2",{"$f":"IF(SS!$J$88>0,\"X\",\"\")","v":""}]
["LEED v4 BD+C: Midrise","SS","C","Rainwater management","SS108",{"$f":"IF(SS!$J$69>0,\"X\",\"\")","v":""},{"$f":"SS!$J$69","v":0},3,null,null,null,"Case 2","SS08O2",{"$f":"IF(SS!$J$88>0,\"X\",\"\")","v":""},"2 points","SS08O2P1",{"$f":"IF(SS!$J$88=2,\"X\",\"\")","v":""}]
["LEED v4 BD+C: Midrise","SS","C","Rainwater management","SS108",{"$f":"IF(SS!$J$69>0,\"X\",\"\")","v":""},{"$f":"SS!$J$69","v":0},3,null,null,null,"Case 2","SS08O2",{"$f":"IF(SS!$J$88>0,\"X\",\"\")","v":""},"3 points","SS08O2P2",{"$f":"IF(SS!$J$88=3,\"X\",\"\")","v":""}]
["LEED v4 BD+C: Midrise","SS","C","Nontoxic pest control","SS112",{"$f":"IF(SS!$J$95>0,\"X\",\"\")","v":"X"},{"$f":"SS!$J$95","v":1.5},2,"0.5 points","SS12T1",{"$f":"IF($G$55=0.5,\"X\",\"\")","v":""}]
["LEED v4 BD+C: Midrise","SS","C","Nontoxic pest control","SS112",{"$f":"IF(SS!$J$95>0,\"X\",\"\")","v":"X"},{"$f":"SS!$J$95","v":1.5},2,"1 point","SS12T2",{"$f":"IF($G$56=1,\"X\",\"\")","v":""}]
["LEED v4 BD+C: Midrise","SS","C","Nontoxic pest control","SS112",{"$f":"IF(SS!$J$95>0,\"X\",\"\")","v":"X"},{"$f":"SS!$J$95","v":1.5},2,"1.5 points","SS12T3",{"$f":"IF($G$57=1.5,\"X\",\"\")","v":"X"}]
["LEED v4 BD+C: Midrise","SS","C","Nontoxic pest control","SS112",{"$f":"IF(SS!$J$95>0,\"X\",\"\")","v":"X"},{"$f":"SS!$J$95","v":1.5},2,"2 points","SS12T4",{"$f":"IF($G$58=2,\"X\",\"\")","v":""}]
["LEED v4 BD+C: Midrise","WE","P","Water metering","WE101","x",{"$f":"WE!$J$7","v":"Y"},0,null,null,null,"Case 1","WE01O1",{"$f":"IF(WE!$J$10=\"Y\",\"X\",\"\")","v":"X"}]
["LEED v4 BD+C: Midrise","WE","P","Water metering","WE101","x",{"$f":"WE!$J$7","v":"Y"},0,null,null,null,"Case 2","WE01O2",{"$f":"IF(WE!$J$18=\"Y\",\"X\",\"\")","v":""}]
["LEED v4 BD+C: Midrise","WE","C","Total water use","WE102",{"$f":"IF(WE!$J$27>0,\"X\",\"\")","v":""},{"$f":"WE!$J$27","v":0},12,"1 point","WE02T1",{"$f":"IF($G$61=1,\"X\",\"\")","v":""}]
["LEED v4 BD+C: Midrise","WE","C","Total water use","WE102",{"$f":"IF(WE!$J$27>0,\"X\",\"\")","v":""},{"$f":"WE!$J$27","v":0},12,"2 points","WE02T2",{"$f":"IF($G$62=2,\"X\",\"\")","v":""}]
["LEED v4 BD+C: Midrise","WE","C","Total water use","WE102",{"$f":"IF(WE!$J$27>0,\"X\",\"\")","v":""},{"$f":"WE!$J$27","v":0},12,"3 points","WE02T3",{"$f":"IF($G$63=3,\"X\",\"\")","v":""}]
["LEED v4 BD+C: Midrise","WE","C","Total water use","WE102",{"$f":"IF(WE!$J$27>0,\"X\",\"\")","v":""},{"$f":"WE!$J$27","v":0},12,"4 points","WE02T4",{"$f":"IF($G$64=4,\"X\",\"\")","v":""}]
["LEED v4 BD+C: Midrise","WE","C","Total water use","WE102",{"$f":"IF(WE!$J$27>0,\"X\",\"\")","v":""},{"$f":"WE!$J$27","v":0},12,"5 points","WE02T5",{"$f":"IF($G$65=5,\"X\",\"\")","v":""}]
["LEED v4 BD+C: Midrise","WE","C","Total water use","WE102",{"$f":"IF(WE!$J$27>0,\"X\",\"\")","v":""},{"$f":"WE!$J$27","v":0},12,"6 points","WE02T6",{"$f":"IF($G$66=6,\"X\",\"\")","v":""}]
["LEED v4 BD+C: Midrise","WE","C","Total water use","WE102",{"$f":"IF(WE!$J$27>0,\"X\",\"\")","v":""},{"$f":"WE!$J$27","v":0},12,"7 points","WE02T7",{"$f":"IF($G$67=7,\"X\",\"\")","v":""}]
["LEED v4 BD+C: Midrise","WE","C","Total water use","WE102",{"$f":"IF(WE!$J$27>0,\"X\",\"\")","v":""},{"$f":"WE!$J$27","v":0},12,"8 points","WE02T8",{"$f":"IF($G$68=8,\"X\",\"\")","v":""}]
["LEED v4 BD+C: Midrise","WE","C","Total water use","WE102",{"$f":"IF(WE!$J$27>0,\"X\",\"\")","v":""},{"$f":"WE!$J$27","v":0},12,"9 points","WE02T9",{"$f":"IF($G$69=9,\"X\",\"\")","v":""}]
["LEED v4 BD+C: Midrise","WE","C","Total water use","WE102",{"$f":"IF(WE!$J$27>0,\"X\",\"\")","v":""},{"$f":"WE!$J$27","v":0},12,"10 points","WE02T10",{"$f":"IF($G$70=10,\"X\",\"\")","v":""}]
["LEED v4 BD+C: Midrise","WE","C","Total water use","WE102",{"$f":"IF(WE!$J$27>0,\"X\",\"\")","v":""},{"$f":"WE!$J$27","v":0},12,"11 points","WE02T11",{"$f":"IF($G$71=11,\"X\",\"\")","v":""}]
["LEED v4 BD+C: Midrise","WE","C","Total water use","WE102",{"$f":"IF(WE!$J$27>0,\"X\",\"\")","v":""},{"$f":"WE!$J$27","v":0},12,"12 points","WE02T12",{"$f":"IF($G$72=12,\"X\",\"\")","v":""}]
["LEED v4 BD+C: Midrise","WE","C","Indoor water use","WE103",{"$f":"IF(WE!$J$40>0,\"X\",\"\")","v":"X"},{"$f":"WE!$J$40","v":5},6,null,null,null,"Case 1","WE03O1",{"$f":"IF(WE!$J$43>0,\"X\",\"\")","v":"X"}]
["LEED v4 BD+C: Midrise","WE","C","Indoor water use","WE103",{"$f":"IF(WE!$J$40>0,\"X\",\"\")","v":"X"},{"$f":"WE!$J$40","v":5},6,null,null,null,"Case 1","WE03O1",{"$f":"IF(WE!$J$43>0,\"X\",\"\")","v":"X"},"1 point","WE03O1P1",{"$f":"IF(WE!$J$43=1,\"X\",\"\")","v":""}]
["LEED v4 BD+C: Midrise","WE","C","Indoor water use","WE103",{"$f":"IF(WE!$J$40>0,\"X\",\"\")","v":"X"},{"$f":"WE!$J$40","v":5},6,null,null,null,"Case 1","WE03O1",{"$f":"IF(WE!$J$43>0,\"X\",\"\")","v":"X"},"2 points","WE03O1P2",{"$f":"IF(WE!$J$43=2,\"X\",\"\")","v":""}]
["LEED v4 BD+C: Midrise","WE","C","Indoor water use","WE103",{"$f":"IF(WE!$J$40>0,\"X\",\"\")","v":"X"},{"$f":"WE!$J$40","v":5},6,null,null,null,"Case 1","WE03O1",{"$f":"IF(WE!$J$43>0,\"X\",\"\")","v":"X"},"3 points","WE03O1P3",{"$f":"IF(WE!$J$43=3,\"X\",\"\")","v":""}]
["LEED v4 BD+C: Midrise","WE","C","Indoor water use","WE103",{"$f":"IF(WE!$J$40>0,\"X\",\"\")","v":"X"},{"$f":"WE!$J$40","v":5},6,null,null,null,"Case 1","WE03O1",{"$f":"IF(WE!$J$43>0,\"X\",\"\")","v":"X"},"4 points","WE03O1P4",{"$f":"IF(WE!$J$43=4,\"X\",\"\")","v":""}]
["LEED v4 BD+C: Midrise","WE","C","Indoor water use","WE103",{"$f":"IF(WE!$J$40>0,\"X\",\"\")","v":"X"},{"$f":"WE!$J$40","v":5},6,null,null,null,"Case 1","WE03O1",{"$f":"IF(WE!$J$43>0,\"X\",\"\")","v":"X"},"5 points","WE03O1P5",{"$f":"IF(WE!$J$43=5,\"X\",\"\")","v":"X"}]
["LEED v4 BD+C: Midrise","WE","C","Indoor water use","WE103",{"$f":"IF(WE!$J$40>0,\"X\",\"\")","v":"X"},{"$f":"WE!$J$40","v":5},6,null,null,null,"Case 1","WE03O1",{"$f":"IF(WE!$J$43>0,\"X\",\"\")","v":"X"},"6 points","WE03O1P6",{"$f":"IF(WE!$J$43=6,\"X\",\"\")","v":""}]
["LEED v4 BD+C: Midrise","WE","C","Indoor water use","WE103",{"$f":"IF(WE!$J$40>0,\"X\",\"\")","v":"X"},{"$f":"WE!$J$40","v":5},6,null,null,null,"Case 2","WE03O2",{"$f":"IF(WE!$J$64>0,\"X\",\"\")","v":""}]
["LEED v4 BD+C: Midrise","WE","C","Indoor water use","WE103",{"$f":"IF(WE!$J$40>0,\"X\",\"\")","v":"X"},{"$f":"WE!$J$40","v":5},6,null,null,null,"Case 2","WE03O2",{"$f":"IF(WE!$J$64>0,\"X\",\"\")","v":""},"1 point","WE03O2P1",{"$f":"IF(WE!$J$64=1,\"X\",\"\")","v":""}]
["LEED v4 BD+C: Midrise","WE","C","Indoor water use","WE103",{"$f":"IF(WE!$J$40>0,\"X\",\"\")","v":"X"},{"$f":"WE!$J$40","v":5},6,null,null,null,"Case 2","WE03O2",{"$f":"IF(WE!$J$64>0,\"X\",\"\")","v":""},"2 points","WE03O2P2",{"$f":"IF(WE!$J$64=2,\"X\",\"\")","v":""}]
["LEED v4 BD+C: Midrise","WE","C","Indoor water use","WE103",{"$f":"IF(WE!$J$40>0,\"X\",\"\")","v":"X"},{"$f":"WE!$J$40","v":5},6,null,null,null,"Case 2","WE03O2",{"$f":"IF(WE!$J$64>0,\"X\",\"\")","v":""},"3 points","WE03O2P3",{"$f":"IF(WE!$J$64=3,\"X\",\"\")","v":""}]
["LEED v4 BD+C: Midrise","WE","C","Indoor water use","WE103",{"$f":"IF(WE!$J$40>0,\"X\",\"\")","v":"X"},{"$f":"WE!$J$40","v":5},6,null,null,null,"Case 2","WE03O2",{"$f":"IF(WE!$J$64>0,\"X\",\"\")","v":""},"4 points","WE03O2P4",{"$f":"IF(WE!$J$64=4,\"X\",\"\")","v":""}]
["LEED v4 BD+C: Midrise","WE","C","Indoor water use","WE103",{"$f":"IF(WE!$J$40>0,\"X\",\"\")","v":"X"},{"$f":"WE!$J$40","v":5},6,null,null,null,"Case 2","WE03O2",{"$f":"IF(WE!$J$64>0,\"X\",\"\")","v":""},"5 points","WE03O2P5",{"$f":"IF(WE!$J$64=5,\"X\",\"\")","v":""}]
["LEED v4 BD+C: Midrise","WE","C","Indoor water use","WE103",{"$f":"IF(WE!$J$40>0,\"X\",\"\")","v":"X"},{"$f":"WE!$J$40","v":5},6,null,null,null,"Case 2","WE03O2",{"$f":"IF(WE!$J$64>0,\"X\",\"\")","v":""},"6 points","WE03O2P6",{"$f":"IF(WE!$J$64=6,\"X\",\"\")","v":""}]
["LEED v4 BD+C: Midrise","WE","C","Outdoor water use","WE104",{"$f":"IF(WE!$J$86>0,\"X\",\"\")","v":""},{"$f":"WE!$J$86","v":0},4,"1 point","WE04T1",{"$f":"IF(G466=1,\"X\",\"\")","v":""}]
["LEED v4 BD+C: Midrise","WE","C","Outdoor water use","WE104",{"$f":"IF(WE!$J$86>0,\"X\",\"\")","v":""},{"$f":"WE!$J$86","v":0},4,"2 points","WE04T2",{"$f":"IF(G467=2,\"X\",\"\")","v":""}]
["LEED v4 BD+C: Midrise","WE","C","Outdoor water use","WE104",{"$f":"IF(WE!$J$86>0,\"X\",\"\")","v":""},{"$f":"WE!$J$86","v":0},4,"3 points","WE04T3",{"$f":"IF(G468=3,\"X\",\"\")","v":""}]
["LEED v4 BD+C: Midrise","WE","C","Outdoor water use","WE104",{"$f":"IF(WE!$J$86>0,\"X\",\"\")","v":""},{"$f":"WE!$J$86","v":0},4,"4 points","WE04T4",{"$f":"IF(G469=4,\"X\",\"\")","v":""}]
["LEED v4 BD+C: Midrise","EA","P","Minimum energy performance","EA101","x",{"$f":"EA!$J$7","v":"Y"},0,null,null,null,"Option 1","EA101O1",{"$f":"IF(EA!$J$40>0,\"X\",\"\")","v":""}]
["LEED v4 BD+C: Midrise","EA","P","Minimum energy performance","EA101","x",{"$f":"EA!$J$7","v":"Y"},0,null,null,null,"Option 2","EA101O2",{"$f":"IF(EA!$J$46>0,\"X\",\"\")","v":""}]
["LEED v4 BD+C: Midrise","EA","P","Energy metering","EA102","x",{"$f":"EA!$J$73","v":"Y"},0,null,null,null,"Case 1","EA02O1",{"$f":"IF(EA!$J$76=\"Y\",\"X\",\"\")","v":"X"}]
["LEED v4 BD+C: Midrise","EA","P","Energy metering","EA102","x",{"$f":"EA!$J$73","v":"Y"},0,null,null,null,"Case 2","EA02O2",{"$f":"IF(EA!$J$83=\"Y\",\"X\",\"\")","v":""}]
["LEED v4 BD+C: Midrise","EA","P","Education of homeowner, tenant, or building manager","EA103","x",{"$f":"EA!$J$91","v":"Y"},0,null,null,null,"Option 1","EA05O1",{"$f":"IF(EA!$J$105>0,\"X\",\"\")","v":""}]
["LEED v4 BD+C: Midrise","EA","C","Annual energy use","EA105",{"$f":"IF(EA!$J$125>0,\"X\",\"\")","v":""},{"$f":"EA!$J$125","v":0},30,"0.5 points","EA05T1",{"$f":"IF(G475=0.5,\"X\",\"\")","v":""}]
["LEED v4 BD+C: Midrise","EA","C","Annual energy use","EA105",{"$f":"IF(EA!$J$125>0,\"X\",\"\")","v":""},{"$f":"EA!$J$125","v":0},30,"1 point","EA05T2",{"$f":"IF(G476=1,\"X\",\"\")","v":""}]
["LEED v4 BD+C: Midrise","EA","C","Annual energy use","EA105",{"$f":"IF(EA!$J$125>0,\"X\",\"\")","v":""},{"$f":"EA!$J$125","v":0},30,"1.5 points","EA05T3",{"$f":"IF(G477=1.5,\"X\",\"\")","v":""}]
["LEED v4 BD+C: Midrise","EA","C","Annual energy use","EA105",{"$f":"IF(EA!$J$125>0,\"X\",\"\")","v":""},{"$f":"EA!$J$125","v":0},30,"2 points","EA05T4",{"$f":"IF(G478=2,\"X\",\"\")","v":""}]
["LEED v4 BD+C: Midrise","EA","C","Annual energy use","EA105",{"$f":"IF(EA!$J$125>0,\"X\",\"\")","v":""},{"$f":"EA!$J$125","v":0},30,"2.5 points","EA05T5",{"$f":"IF(G479=2.5,\"X\",\"\")","v":""}]
["LEED v4 BD+C: Midrise","EA","C","Annual energy use","EA105",{"$f":"IF(EA!$J$125>0,\"X\",\"\")","v":""},{"$f":"EA!$J$125","v":0},30,"3 points","EA05T6",{"$f":"IF(G480=3,\"X\",\"\")","v":""}]
["LEED v4 BD+C: Midrise","EA","C","Annual energy use","EA105",{"$f":"IF(EA!$J$125>0,\"X\",\"\")","v":""},{"$f":"EA!$J$125","v":0},30,"3.5 points","EA05T7",{"$f":"IF(G481=3.5,\"X\",\"\")","v":""}]
["LEED v4 BD+C: Midrise","EA","C","Annual energy use","EA105",{"$f":"IF(EA!$J$125>0,\"X\",\"\")","v":""},{"$f":"EA!$J$125","v":0},30,"4 points","EA05T8",{"$f":"IF(G482=4,\"X\",\"\")","v":""}]
["LEED v4 BD+C: Midrise","EA","C","Annual energy use","EA105",{"$f":"IF(EA!$J$125>0,\"X\",\"\")","v":""},{"$f":"EA!$J$125","v":0},30,"4.5 points","EA05T9",{"$f":"IF(G483=4.5,\"X\",\"\")","v":""}]
["LEED v4 BD+C: Midrise","EA","C","Annual energy use","EA105",{"$f":"IF(EA!$J$125>0,\"X\",\"\")","v":""},{"$f":"EA!$J$125","v":0},30,"5 points","EA05T10",{"$f":"IF(G484=55,\"X\",\"\")","v":""}]
["LEED v4 BD+C: Midrise","EA","C","Annual energy use","EA105",{"$f":"IF(EA!$J$125>0,\"X\",\"\")","v":""},{"$f":"EA!$J$125","v":0},30,"5.5 points","EA05T11",{"$f":"IF(G485=5.5,\"X\",\"\")","v":""}]
["LEED v4 BD+C: Midrise","EA","C","Annual energy use","EA105",{"$f":"IF(EA!$J$125>0,\"X\",\"\")","v":""},{"$f":"EA!$J$125","v":0},30,"6 points","EA05T12",{"$f":"IF(G486=6,\"X\",\"\")","v":""}]
["LEED v4 BD+C: Midrise","EA","C","Annual energy use","EA105",{"$f":"IF(EA!$J$125>0,\"X\",\"\")","v":""},{"$f":"EA!$J$125","v":0},30,"6.5 points","EA05T13",{"$f":"IF(G487=6.5,\"X\",\"\")","v":""}]
["LEED v4 BD+C: Midrise","EA","C","Annual energy use","EA105",{"$f":"IF(EA!$J$125>0,\"X\",\"\")","v":""},{"$f":"EA!$J$125","v":0},30,"7 points","EA05T14",{"$f":"IF(G488=7,\"X\",\"\")","v":""}]
["LEED v4 BD+C: Midrise","EA","C","Annual energy use","EA105",{"$f":"IF(EA!$J$125>0,\"X\",\"\")","v":""},{"$f":"EA!$J$125","v":0},30,"7.5 points","EA05T15",{"$f":"IF(G489=7.5,\"X\",\"\")","v":""}]
["LEED v4 BD+C: Midrise","EA","C","Annual energy use","EA105",{"$f":"IF(EA!$J$125>0,\"X\",\"\")","v":""},{"$f":"EA!$J$125","v":0},30,"8 points","EA05T16",{"$f":"IF(G490=8,\"X\",\"\")","v":""}]
["LEED v4 BD+C: Midrise","EA","C","Annual energy use","EA105",{"$f":"IF(EA!$J$125>0,\"X\",\"\")","v":""},{"$f":"EA!$J$125","v":0},30,"8.5 points","EA05T17",{"$f":"IF(G491=8.5,\"X\",\"\")","v":""}]
["LEED v4 BD+C: Midrise","EA","C","Annual energy use","EA105",{"$f":"IF(EA!$J$125>0,\"X\",\"\")","v":""},{"$f":"EA!$J$125","v":0},30,"9 points","EA05T18",{"$f":"IF(G492=9,\"X\",\"\")","v":""}]
["LEED v4 BD+C: Midrise","EA","C","Annual energy use","EA105",{"$f":"IF(EA!$J$125>0,\"X\",\"\")","v":""},{"$f":"EA!$J$125","v":0},30,"9.5 points","EA05T19",{"$f":"IF(G493=9.5,\"X\",\"\")","v":""}]
["LEED v4 BD+C: Midrise","EA","C","Annual energy use","EA105",{"$f":"IF(EA!$J$125>0,\"X\",\"\")","v":""},{"$f":"EA!$J$125","v":0},30,"10 points","EA05T20",{"$f":"IF(G494=10,\"X\",\"\")","v":""}]
["LEED v4 BD+C: Midrise","EA","C","Annual energy use","EA105",{"$f":"IF(EA!$J$125>0,\"X\",\"\")","v":""},{"$f":"EA!$J$125","v":0},30,"10.5 points","EA05T21",{"$f":"IF(G495=10.5,\"X\",\"\")","v":""}]
["LEED v4 BD+C: Midrise","EA","C","Annual energy use","EA105",{"$f":"IF(EA!$J$125>0,\"X\",\"\")","v":""},{"$f":"EA!$J$125","v":0},30,"11 points","EA05T22",{"$f":"IF(G496=11,\"X\",\"\")","v":""}]
["LEED v4 BD+C: Midrise","EA","C","Annual energy use","EA105",{"$f":"IF(EA!$J$125>0,\"X\",\"\")","v":""},{"$f":"EA!$J$125","v":0},30,"11.5 points","EA05T23",{"$f":"IF(G497=11.5,\"X\",\"\")","v":""}]
["LEED v4 BD+C: Midrise","EA","C","Annual energy use","EA105",{"$f":"IF(EA!$J$125>0,\"X\",\"\")","v":""},{"$f":"EA!$J$125","v":0},30,"12 points","EA05T24",{"$f":"IF(G498=12,\"X\",\"\")","v":""}]
["LEED v4 BD+C: Midrise","EA","C","Annual energy use","EA105",{"$f":"IF(EA!$J$125>0,\"X\",\"\")","v":""},{"$f":"EA!$J$125","v":0},30,"12.5 points","EA05T25",{"$f":"IF(G499=12.5,\"X\",\"\")","v":""}]
["LEED v4 BD+C: Midrise","EA","C","Annual energy use","EA105",{"$f":"IF(EA!$J$125>0,\"X\",\"\")","v":""},{"$f":"EA!$J$125","v":0},30,"13 points","EA05T26",{"$f":"IF(G500=13,\"X\",\"\")","v":""}]
["LEED v4 BD+C: Midrise","EA","C","Annual energy use","EA105",{"$f":"IF(EA!$J$125>0,\"X\",\"\")","v":""},{"$f":"EA!$J$125","v":0},30,"13.5 points","EA05T27",{"$f":"IF(G501=13.5,\"X\",\"\")","v":""}]
["LEED v4 BD+C: Midrise","EA","C","Annual energy use","EA105",{"$f":"IF(EA!$J$125>0,\"X\",\"\")","v":""},{"$f":"EA!$J$125","v":0},30,"14 points","EA05T28",{"$f":"IF(G502=14,\"X\",\"\")","v":""}]
["LEED v4 BD+C: Midrise","EA","C","Annual energy use","EA105",{"$f":"IF(EA!$J$125>0,\"X\",\"\")","v":""},{"$f":"EA!$J$125","v":0},30,"14.5 points","EA05T29",{"$f":"IF(G503=14.5,\"X\",\"\")","v":""}]
["LEED v4 BD+C: Midrise","EA","C","Annual energy use","EA105",{"$f":"IF(EA!$J$125>0,\"X\",\"\")","v":""},{"$f":"EA!$J$125","v":0},30,"15 points","EA05T30",{"$f":"IF(G504=15,\"X\",\"\")","v":""}]
["LEED v4 BD+C: Midrise","EA","C","Annual energy use","EA105",{"$f":"IF(EA!$J$125>0,\"X\",\"\")","v":""},{"$f":"EA!$J$125","v":0},30,"15.5 points","EA05T31",{"$f":"IF(G505=15.5,\"X\",\"\")","v":""}]
["LEED v4 BD+C: Midrise","EA","C","Annual energy use","EA105",{"$f":"IF(EA!$J$125>0,\"X\",\"\")","v":""},{"$f":"EA!$J$125","v":0},30,"16 points","EA05T32",{"$f":"IF(G506=16,\"X\",\"\")","v":""}]
["LEED v4 BD+C: Midrise","EA","C","Annual energy use","EA105",{"$f":"IF(EA!$J$125>0,\"X\",\"\")","v":""},{"$f":"EA!$J$125","v":0},30,"16.5 points","EA05T33",{"$f":"IF(G507=16.5,\"X\",\"\")","v":""}]
["LEED v4 BD+C: Midrise","EA","C","Annual energy use","EA105",{"$f":"IF(EA!$J$125>0,\"X\",\"\")","v":""},{"$f":"EA!$J$125","v":0},30,"17 points","EA05T34",{"$f":"IF(G508=17,\"X\",\"\")","v":""}]
["LEED v4 BD+C: Midrise","EA","C","Annual energy use","EA105",{"$f":"IF(EA!$J$125>0,\"X\",\"\")","v":""},{"$f":"EA!$J$125","v":0},30,"17.5 points","EA05T35",{"$f":"IF(G509=17.5,\"X\",\"\")","v":""}]
["LEED v4 BD+C: Midrise","EA","C","Annual energy use","EA105",{"$f":"IF(EA!$J$125>0,\"X\",\"\")","v":""},{"$f":"EA!$J$125","v":0},30,"18 points","EA05T36",{"$f":"IF(G510=18,\"X\",\"\")","v":""}]
["LEED v4 BD+C: Midrise","EA","C","Annual energy use","EA105",{"$f":"IF(EA!$J$125>0,\"X\",\"\")","v":""},{"$f":"EA!$J$125","v":0},30,"18.5 points","EA05T37",{"$f":"IF(G511=18.5,\"X\",\"\")","v":""}]
["LEED v4 BD+C: Midrise","EA","C","Annual energy use","EA105",{"$f":"IF(EA!$J$125>0,\"X\",\"\")","v":""},{"$f":"EA!$J$125","v":0},30,"19 points","EA05T38",{"$f":"IF(G512=19,\"X\",\"\")","v":""}]
["LEED v4 BD+C: Midrise","EA","C","Annual energy use","EA105",{"$f":"IF(EA!$J$125>0,\"X\",\"\")","v":""},{"$f":"EA!$J$125","v":0},30,"19.5 points","EA05T39",{"$f":"IF(G513=19.5,\"X\",\"\")","v":""}]
["LEED v4 BD+C: Midrise","EA","C","Annual energy use","EA105",{"$f":"IF(EA!$J$125>0,\"X\",\"\")","v":""},{"$f":"EA!$J$125","v":0},30,"20 points","EA05T40",{"$f":"IF(G514=20,\"X\",\"\")","v":""}]
["LEED v4 BD+C: Midrise","EA","C","Annual energy use","EA105",{"$f":"IF(EA!$J$125>0,\"X\",\"\")","v":""},{"$f":"EA!$J$125","v":0},30,"20.5 points","EA05T41",{"$f":"IF(G515=20.5,\"X\",\"\")","v":""}]
["LEED v4 BD+C: Midrise","EA","C","Annual energy use","EA105",{"$f":"IF(EA!$J$125>0,\"X\",\"\")","v":""},{"$f":"EA!$J$125","v":0},30,"21 points","EA05T42",{"$f":"IF(G516=21,\"X\",\"\")","v":""}]
["LEED v4 BD+C: Midrise","EA","C","Annual energy use","EA105",{"$f":"IF(EA!$J$125>0,\"X\",\"\")","v":""},{"$f":"EA!$J$125","v":0},30,"21.5 points","EA05T43",{"$f":"IF(G517=21.5,\"X\",\"\")","v":""}]
["LEED v4 BD+C: Midrise","EA","C","Annual energy use","EA105",{"$f":"IF(EA!$J$125>0,\"X\",\"\")","v":""},{"$f":"EA!$J$125","v":0},30,"22 points","EA05T44",{"$f":"IF(G518=22,\"X\",\"\")","v":""}]
["LEED v4 BD+C: Midrise","EA","C","Annual energy use","EA105",{"$f":"IF(EA!$J$125>0,\"X\",\"\")","v":""},{"$f":"EA!$J$125","v":0},30,"22.5 points","EA05T45",{"$f":"IF(G519=22.5,\"X\",\"\")","v":""}]
["LEED v4 BD+C: Midrise","EA","C","Annual energy use","EA105",{"$f":"IF(EA!$J$125>0,\"X\",\"\")","v":""},{"$f":"EA!$J$125","v":0},30,"23 points","EA05T46",{"$f":"IF(G520=23,\"X\",\"\")","v":""}]
["LEED v4 BD+C: Midrise","EA","C","Annual energy use","EA105",{"$f":"IF(EA!$J$125>0,\"X\",\"\")","v":""},{"$f":"EA!$J$125","v":0},30,"23.5 points","EA05T47",{"$f":"IF(G521=23.5,\"X\",\"\")","v":""}]
["LEED v4 BD+C: Midrise","EA","C","Annual energy use","EA105",{"$f":"IF(EA!$J$125>0,\"X\",\"\")","v":""},{"$f":"EA!$J$125","v":0},30,"24 points","EA05T48",{"$f":"IF(G522=24,\"X\",\"\")","v":""}]
["LEED v4 BD+C: Midrise","EA","C","Annual energy use","EA105",{"$f":"IF(EA!$J$125>0,\"X\",\"\")","v":""},{"$f":"EA!$J$125","v":0},30,"24.5 points","EA05T49",{"$f":"IF(G523=24.5,\"X\",\"\")","v":""}]
["LEED v4 BD+C: Midrise","EA","C","Annual energy use","EA105",{"$f":"IF(EA!$J$125>0,\"X\",\"\")","v":""},{"$f":"EA!$J$125","v":0},30,"25 points","EA05T50",{"$f":"IF(G524=25,\"X\",\"\")","v":""}]
["LEED v4 BD+C: Midrise","EA","C","Annual energy use","EA105",{"$f":"IF(EA!$J$125>0,\"X\",\"\")","v":""},{"$f":"EA!$J$125","v":0},30,"25.5 points","EA05T51",{"$f":"IF(G525=25.5,\"X\",\"\")","v":""}]
["LEED v4 BD+C: Midrise","EA","C","Annual energy use","EA105",{"$f":"IF(EA!$J$125>0,\"X\",\"\")","v":""},{"$f":"EA!$J$125","v":0},30,"26 points","EA05T52",{"$f":"IF(G526=26,\"X\",\"\")","v":""}]
["LEED v4 BD+C: Midrise","EA","C","Annual energy use","EA105",{"$f":"IF(EA!$J$125>0,\"X\",\"\")","v":""},{"$f":"EA!$J$125","v":0},30,"26.5 points","EA05T53",{"$f":"IF(G527=26.5,\"X\",\"\")","v":""}]
["LEED v4 BD+C: Midrise","EA","C","Annual energy use","EA105",{"$f":"IF(EA!$J$125>0,\"X\",\"\")","v":""},{"$f":"EA!$J$125","v":0},30,"27 points","EA05T54",{"$f":"IF(G528=27,\"X\",\"\")","v":""}]
["LEED v4 BD+C: Midrise","EA","C","Annual energy use","EA105",{"$f":"IF(EA!$J$125>0,\"X\",\"\")","v":""},{"$f":"EA!$J$125","v":0},30,"27.5 points","EA05T55",{"$f":"IF(G529=27.5,\"X\",\"\")","v":""}]
["LEED v4 BD+C: Midrise","EA","C","Annual energy use","EA105",{"$f":"IF(EA!$J$125>0,\"X\",\"\")","v":""},{"$f":"EA!$J$125","v":0},30,"28 points","EA05T56",{"$f":"IF(G530=28,\"X\",\"\")","v":""}]
["LEED v4 BD+C: Midrise","EA","C","Annual energy use","EA105",{"$f":"IF(EA!$J$125>0,\"X\",\"\")","v":""},{"$f":"EA!$J$125","v":0},30,"28.5 points","EA05T57",{"$f":"IF(G531=28.5,\"X\",\"\")","v":""}]
["LEED v4 BD+C: Midrise","EA","C","Annual energy use","EA105",{"$f":"IF(EA!$J$125>0,\"X\",\"\")","v":""},{"$f":"EA!$J$125","v":0},30,"29 points","EA05T58",{"$f":"IF(G532=29,\"X\",\"\")","v":""}]
["LEED v4 BD+C: Midrise","EA","C","Annual energy use","EA105",{"$f":"IF(EA!$J$125>0,\"X\",\"\")","v":""},{"$f":"EA!$J$125","v":0},30,"29.5 points","EA05T59",{"$f":"IF(G533=29.5,\"X\",\"\")","v":""}]
["LEED v4 BD+C: Midrise","EA","C","Annual energy use","EA105",{"$f":"IF(EA!$J$125>0,\"X\",\"\")","v":""},{"$f":"EA!$J$125","v":0},30,"30 points","EA05T60",{"$f":"IF(G534>=30,\"X\",\"\")","v":""}]
["LEED v4 BD+C: Midrise","EA","C","Efficient hot water distribution system","EA106",{"$f":"IF(EA!$J$137>0,\"X\",\"\")","v":"X"},{"$f":"EA!$J$137","v":2},5,null,null,null,"Option 1","EA06O1",{"$f":"IF(EA!$J$140>0,\"X\",\"\")","v":""}]
["LEED v4 BD+C: Midrise","EA","C","Efficient hot water distribution system","EA106",{"$f":"IF(EA!$J$137>0,\"X\",\"\")","v":"X"},{"$f":"EA!$J$137","v":2},5,null,null,null,"Option 1","EA06O1",{"$f":"IF(EA!$J$140>0,\"X\",\"\")","v":""},"Path 1","EA06O1P1",{"$f":"IF(EA!$J$159>0,\"X\",\"\")","v":""}]
["LEED v4 BD+C: Midrise","EA","C","Efficient hot water distribution system","EA106",{"$f":"IF(EA!$J$137>0,\"X\",\"\")","v":"X"},{"$f":"EA!$J$137","v":2},5,null,null,null,"Option 1","EA06O1",{"$f":"IF(EA!$J$140>0,\"X\",\"\")","v":""},"Path 2","EA06O1P2",{"$f":"IF(EA!$J$169>0,\"X\",\"\")","v":""}]
["LEED v4 BD+C: Midrise","EA","C","Efficient hot water distribution system","EA106",{"$f":"IF(EA!$J$137>0,\"X\",\"\")","v":"X"},{"$f":"EA!$J$137","v":2},5,null,null,null,"Option 2","EA06O2",{"$f":"IF(EA!$J$175>0,\"X\",\"\")","v":""}]
["LEED v4 BD+C: Midrise","EA","C","Efficient hot water distribution system","EA106",{"$f":"IF(EA!$J$137>0,\"X\",\"\")","v":"X"},{"$f":"EA!$J$137","v":2},5,null,null,null,"Option 2","EA06O2",{"$f":"IF(EA!$J$175>0,\"X\",\"\")","v":""},"Case 1","EA06O2P1",{"$f":"IF(EA!$J$179>0,\"X\",\"\")","v":""}]
["LEED v4 BD+C: Midrise","EA","C","Efficient hot water distribution system","EA106",{"$f":"IF(EA!$J$137>0,\"X\",\"\")","v":"X"},{"$f":"EA!$J$137","v":2},5,null,null,null,"Option 2","EA06O2",{"$f":"IF(EA!$J$175>0,\"X\",\"\")","v":""},"Case 2","EA06O2P2",{"$f":"IF(EA!$J$187>0,\"X\",\"\")","v":""}]
["LEED v4 BD+C: Midrise","EA","C","Efficient hot water distribution system","EA106",{"$f":"IF(EA!$J$137>0,\"X\",\"\")","v":"X"},{"$f":"EA!$J$137","v":2},5,null,null,null,"Option 3","EA06O3",{"$f":"IF(EA!$J$196>0,\"X\",\"\")","v":"X"}]
["LEED v4 BD+C: Midrise","EA","C","Advanced utility tracking","EA108",{"$f":"IF(EA!$J$203>0,\"X\",\"\")","v":""},{"$f":"EA!$J$203","v":0},2,null,null,null,"Case 1, Option 1","EA08O1",{"$f":"IF(EA!$J$210>0,\"X\",\"\")","v":""}]
["LEED v4 BD+C: Midrise","EA","C","Advanced utility tracking","EA108",{"$f":"IF(EA!$J$203>0,\"X\",\"\")","v":""},{"$f":"EA!$J$203","v":0},2,null,null,null,"Case 1, Option 2","EA08O2",{"$f":"IF(EA!$J$220>0,\"X\",\"\")","v":""}]
["LEED v4 BD+C: Midrise","EA","C","Advanced utility tracking","EA108",{"$f":"IF(EA!$J$203>0,\"X\",\"\")","v":""},{"$f":"EA!$J$203","v":0},2,null,null,null,"Case 2, Option 1","EA08O3",{"$f":"IF(EA!$J$228>0,\"X\",\"\")","v":""}]
["LEED v4 BD+C: Midrise","EA","C","Advanced utility tracking","EA108",{"$f":"IF(EA!$J$203>0,\"X\",\"\")","v":""},{"$f":"EA!$J$203","v":0},2,null,null,null,"Case 2, Option 2","EA08O4",{"$f":"IF(EA!$J$238>0,\"X\",\"\")","v":""}]
["LEED v4 BD+C: Midrise","EA","C","Advanced utility tracking","EA108",{"$f":"IF(EA!$J$203>0,\"X\",\"\")","v":""},{"$f":"EA!$J$203","v":0},2,null,null,null,"Case 2, Option 2","EA08O4",{"$f":"IF(EA!$J$238>0,\"X\",\"\")","v":""},"Path 1","EA08O4P1",{"$f":"IF(EA!$J$241>0,\"X\",\"\")","v":""}]
["LEED v4 BD+C: Midrise","EA","C","Advanced utility tracking","EA108",{"$f":"IF(EA!$J$203>0,\"X\",\"\")","v":""},{"$f":"EA!$J$203","v":0},2,null,null,null,"Case 2, Option 2","EA08O4",{"$f":"IF(EA!$J$238>0,\"X\",\"\")","v":""},"Path 2","EA08O4P2",{"$f":"IF(EA!$J$247>0,\"X\",\"\")","v":""}]
["LEED v4 BD+C: Midrise","MR","P","Certified tropical wood","MR101","x",{"$f":"MR!$J$7","v":"Y"},0]
["LEED v4 BD+C: Midrise","MR","P","Durability management","MR102","x",{"$f":"MR!$J$14","v":"Y"},0]
["LEED v4 BD+C: Midrise","MR","C","Durability management verification","MR103",{"$f":"IF(MR!$J$37>0,\"X\",\"\")","v":"X"},{"$f":"MR!$J$37","v":1},1]
["LEED v4 BD+C: Midrise","MR","C","Environmentally preferable products","MR104",{"$f":"IF(MR!$J$45>0,\"X\",\"\")","v":"X"},{"$f":"MR!$J$45","v":4},5,null,null,null,"Option 1","MR04O1",{"$f":"IF(MR!$J$49>0,\"X\",\"\")","v":"X"}]
["LEED v4 BD+C: Midrise","MR","C","Environmentally preferable products","MR104",{"$f":"IF(MR!$J$45>0,\"X\",\"\")","v":"X"},{"$f":"MR!$J$45","v":4},5,null,null,null,"Option 1","MR04O1",{"$f":"IF(MR!$J$49>0,\"X\",\"\")","v":"X"},"0.5 points","MR04O1P1",{"$f":"IF(MR!$J$49=0.5,\"X\",\"\")","v":""}]
["LEED v4 BD+C: Midrise","MR","C","Environmentally preferable products","MR104",{"$f":"IF(MR!$J$45>0,\"X\",\"\")","v":"X"},{"$f":"MR!$J$45","v":4},5,null,null,null,"Option 1","MR04O1",{"$f":"IF(MR!$J$49>0,\"X\",\"\")","v":"X"},"1 point","MR04O1P2",{"$f":"IF(MR!$J$49=1,\"X\",\"\")","v":"X"}]
["LEED v4 BD+C: Midrise","MR","C","Environmentally preferable products","MR104",{"$f":"IF(MR!$J$45>0,\"X\",\"\")","v":"X"},{"$f":"MR!$J$45","v":4},5,null,null,null,"Option 1","MR04O1",{"$f":"IF(MR!$J$49>0,\"X\",\"\")","v":"X"},"1.5 points","MR04O1P3",{"$f":"IF(MR!$J$49=1.5,\"X\",\"\")","v":""}]
["LEED v4 BD+C: Midrise","MR","C","Environmentally preferable products","MR104",{"$f":"IF(MR!$J$45>0,\"X\",\"\")","v":"X"},{"$f":"MR!$J$45","v":4},5,null,null,null,"Option 2","MR04O2",{"$f":"IF(MR!$J$58>0,\"X\",\"\")","v":"X"}]
["LEED v4 BD+C: Midrise","MR","C","Environmentally preferable products","MR104",{"$f":"IF(MR!$J$45>0,\"X\",\"\")","v":"X"},{"$f":"MR!$J$45","v":4},5,null,null,null,"Option 2","MR04O2",{"$f":"IF(MR!$J$58>0,\"X\",\"\")","v":"X"},"0.5 points","MR04O2P1",{"$f":"IF(MR!$J$58=0.5,\"X\",\"\")","v":""}]
["LEED v4 BD+C: Midrise","MR","C","Environmentally preferable products","MR104",{"$f":"IF(MR!$J$45>0,\"X\",\"\")","v":"X"},{"$f":"MR!$J$45","v":4},5,null,null,null,"Option 2","MR04O2",{"$f":"IF(MR!$J$58>0,\"X\",\"\")","v":"X"},"1 point","MR04O2P2",{"$f":"IF(MR!$J$58=1,\"X\",\"\")","v":""}]
["LEED v4 BD+C: Midrise","MR","C","Environmentally preferable products","MR104",{"$f":"IF(MR!$J$45>0,\"X\",\"\")","v":"X"},{"$f":"MR!$J$45","v":4},5,null,null,null,"Option 2","MR04O2",{"$f":"IF(MR!$J$58>0,\"X\",\"\")","v":"X"},"1.5 points","MR04O2P3",{"$f":"IF(MR!$J$58=1.5,\"X\",\"\")","v":""}]
["LEED v4 BD+C: Midrise","MR","C","Environmentally preferable products","MR104",{"$f":"IF(MR!$J$45>0,\"X\",\"\")","v":"X"},{"$f":"MR!$J$45","v":4},5,null,null,null,"Option 2","MR04O2",{"$f":"IF(MR!$J$58>0,\"X\",\"\")","v":"X"},"2 points","MR04O2P4",{"$f":"IF(MR!$J$58=2,\"X\",\"\")","v":""}]
["LEED v4 BD+C: Midrise","MR","C","Environmentally preferable products","MR104",{"$f":"IF(MR!$J$45>0,\"X\",\"\")","v":"X"},{"$f":"MR!$J$45","v":4},5,null,null,null,"Option 2","MR04O2",{"$f":"IF(MR!$J$58>0,\"X\",\"\")","v":"X"},"2.5 points","MR04O2P5",{"$f":"IF(MR!$J$58=2.5,\"X\",\"\")","v":""}]
["LEED v4 BD+C: Midrise","MR","C","Environmentally preferable products","MR104",{"$f":"IF(MR!$J$45>0,\"X\",\"\")","v":"X"},{"$f":"MR!$J$45","v":4},5,null,null,null,"Option 2","MR04O2",{"$f":"IF(MR!$J$58>0,\"X\",\"\")","v":"X"},"3 points","MR04O2P6",{"$f":"IF(MR!$J$58=3,\"X\",\"\")","v":"X"}]
["LEED v4 BD+C: Midrise","MR","C","Environmentally preferable products","MR104",{"$f":"IF(MR!$J$45>0,\"X\",\"\")","v":"X"},{"$f":"MR!$J$45","v":4},5,null,null,null,"Option 2","MR04O2",{"$f":"IF(MR!$J$58>0,\"X\",\"\")","v":"X"},"3.5 points","MR04O2P7",{"$f":"IF(MR!$J$58=3.5,\"X\",\"\")","v":""}]
["LEED v4 BD+C: Midrise","MR","C","Environmentally preferable products","MR104",{"$f":"IF(MR!$J$45>0,\"X\",\"\")","v":"X"},{"$f":"MR!$J$45","v":4},5,null,null,null,"Option 2","MR04O2",{"$f":"IF(MR!$J$58>0,\"X\",\"\")","v":"X"},"4 points","MR04O2P8",{"$f":"IF(MR!$J$58=4,\"X\",\"\")","v":""}]
["LEED v4 BD+C: Midrise","MR","C","Environmentally preferable products","MR104",{"$f":"IF(MR!$J$45>0,\"X\",\"\")","v":"X"},{"$f":"MR!$J$45","v":4},5,null,null,null,"Option 2","MR04O2",{"$f":"IF(MR!$J$58>0,\"X\",\"\")","v":"X"},"4.5 points","MR04O2P9",{"$f":"IF(MR!$J$58=4.5,\"X\",\"\")","v":""}]
["LEED v4 BD+C: Midrise","MR","C","Environmentally preferable products","MR104",{"$f":"IF(MR!$J$45>0,\"X\",\"\")","v":"X"},{"$f":"MR!$J$45","v":4},5,null,null,null,"Option 2","MR04O2",{"$f":"IF(MR!$J$58>0,\"X\",\"\")","v":"X"},"5 points","MR04O2P10",{"$f":"IF(MR!$J$58=5,\"X\",\"\")","v":""}]
["LEED v4 BD+C: Midrise","MR","C","Construction waste management","MR105",{"$f":"IF(MR!$J$96>0,\"X\",\"\")","v":""},{"$f":"MR!$J$96","v":0},3,"0.5 points","MR05T1",{"$f":"IF(G566=0.5,\"X\",\"\")","v":""}]
["LEED v4 BD+C: Midrise","MR","C","Construction waste management","MR105",{"$f":"IF(MR!$J$96>0,\"X\",\"\")","v":""},{"$f":"MR!$J$96","v":0},3,"1 point","MR05T2",{"$f":"IF(G567=1,\"X\",\"\")","v":""}]
["LEED v4 BD+C: Midrise","MR","C","Construction waste management","MR105",{"$f":"IF(MR!$J$96>0,\"X\",\"\")","v":""},{"$f":"MR!$J$96","v":0},3,"1.5 points","MR05T3",{"$f":"IF(G568=1.5,\"X\",\"\")","v":""}]
["LEED v4 BD+C: Midrise","MR","C","Construction waste management","MR105",{"$f":"IF(MR!$J$96>0,\"X\",\"\")","v":""},{"$f":"MR!$J$96","v":0},3,"2 points","MR05T4",{"$f":"IF(G569=2,\"X\",\"\")","v":""}]
["LEED v4 BD+C: Midrise","MR","C","Construction waste management","MR105",{"$f":"IF(MR!$J$96>0,\"X\",\"\")","v":""},{"$f":"MR!$J$96","v":0},3,"2.5 points","MR05T5",{"$f":"IF(G570=2.5,\"X\",\"\")","v":""}]
["LEED v4 BD+C: Midrise","MR","C","Construction waste management","MR105",{"$f":"IF(MR!$J$96>0,\"X\",\"\")","v":""},{"$f":"MR!$J$96","v":0},3,"3 points","MR05T6",{"$f":"IF(G571=3,\"X\",\"\")","v":""}]
["LEED v4 BD+C: Midrise","EQ","P","Ventilation","EQ101","x",{"$f":"EQ!$J$7","v":"Y"},0,null,null,null,"Case 1","EQ01O1",{"$f":"IF(EQ!$J$10=\"Y\",\"X\",\"\")","v":"X"}]
["LEED v4 BD+C: Midrise","EQ","P","Ventilation","EQ101","x",{"$f":"EQ!$J$7","v":"Y"},0,null,null,null,"Case 2","EQ01O2",{"$f":"IF(EQ!$J$31=\"Y\",\"X\",\"\")","v":""}]
["LEED v4 BD+C: Midrise","EQ","P","Combustion venting","EQ102","x",{"$f":"EQ!$J$59","v":"Y"},0]
["LEED v4 BD+C: Midrise","EQ","P","Garage pollutant protection","EQ103","x",{"$f":"EQ!$J$82","v":"Y"},0]
["LEED v4 BD+C: Midrise","EQ","P","Radon-resistant construction","EQ104","x",{"$f":"EQ!$J$102","v":"Y"},0,null,null,null,"EPA label","EQ04O1",{"$f":"IF(EQ!$J$106=\"Y\",\"X\",\"\")","v":""}]
["LEED v4 BD+C: Midrise","EQ","P","Radon-resistant construction","EQ104","x",{"$f":"EQ!$J$102","v":"Y"},0,null,null,null,"Case 1","EQ04O2",{"$f":"IF(EQ!$J$112=\"Y\",\"X\",\"\")","v":""}]
["LEED v4 BD+C: Midrise","EQ","P","Radon-resistant construction","EQ104","x",{"$f":"EQ!$J$102","v":"Y"},0,null,null,null,"Case 2","EQ04O3",{"$f":"IF(EQ!$J$126=\"Y\",\"X\",\"\")","v":"X"}]
["LEED v4 BD+C: Midrise","EQ","P","Air filtering","EQ105","x",{"$f":"EQ!$J$138","v":"Y"},0]
["LEED v4 BD+C: Midrise","EQ","P","Environmental tobacco smoke","EQ106","x",{"$f":"EQ!$J$148","v":"N"},0]
["LEED v4 BD+C: Midrise","EQ","P","Compartmentalization","EQ107","x",{"$f":"EQ!$J$161","v":"N"},0]
["LEED v4 BD+C: Midrise","EQ","C","Enhanced ventilation","EQ108",{"$f":"IF(EQ!$J$177>0,\"X\",\"\")","v":"X"},{"$f":"EQ!$J$177","v":3},3,null,null,null,"Option 1","EQ08O1",{"$f":"IF(EQ!$J$180>0,\"X\",\"\")","v":"X"}]
["LEED v4 BD+C: Midrise","EQ","C","Enhanced ventilation","EQ108",{"$f":"IF(EQ!$J$177>0,\"X\",\"\")","v":"X"},{"$f":"EQ!$J$177","v":3},3,null,null,null,"Option 2","EQ08O2",{"$f":"IF(EQ!$J$186>0,\"X\",\"\")","v":"X"}]
["LEED v4 BD+C: Midrise","EQ","C","Contaminant control","EQ109",{"$f":"IF(EQ!$J$196>0,\"X\",\"\")","v":"X"},{"$f":"EQ!$J$196","v":1},2,null,null,null,"Option 1","EQ09O1",{"$f":"IF(EQ!$J$200>0,\"X\",\"\")","v":""}]
["LEED v4 BD+C: Midrise","EQ","C","Contaminant control","EQ109",{"$f":"IF(EQ!$J$196>0,\"X\",\"\")","v":"X"},{"$f":"EQ!$J$196","v":1},2,null,null,null,"Option 2","EQ09O2",{"$f":"IF(EQ!$J$209>0,\"X\",\"\")","v":"X"}]
["LEED v4 BD+C: Midrise","EQ","C","Contaminant control","EQ109",{"$f":"IF(EQ!$J$196>0,\"X\",\"\")","v":"X"},{"$f":"EQ!$J$196","v":1},2,null,null,null,"Option 3","EQ09O3",{"$f":"IF(EQ!$J$217>0,\"X\",\"\")","v":"X"}]
["LEED v4 BD+C: Midrise","EQ","C","Contaminant control","EQ109",{"$f":"IF(EQ!$J$196>0,\"X\",\"\")","v":"X"},{"$f":"EQ!$J$196","v":1},2,null,null,null,"Option 4","EQ09O4",{"$f":"IF(EQ!$J$230>0,\"X\",\"\")","v":""}]
["LEED v4 BD+C: Midrise","EQ","C","Balancing of heating and cooling distribution systems","EQ110",{"$f":"IF(EQ!$J$237>0,\"X\",\"\")","v":"X"},{"$f":"EQ!$J$237","v":2},3,null,null,null,"Case 1","EQ10O1",{"$f":"IF(EQ!$J$240>0,\"X\",\"\")","v":"X"}]
["LEED v4 BD+C: Midrise","EQ","C","Balancing of heating and cooling distribution systems","EQ110",{"$f":"IF(EQ!$J$237>0,\"X\",\"\")","v":"X"},{"$f":"EQ!$J$237","v":2},3,null,null,null,"Case 1","EQ10O1",{"$f":"IF(EQ!$J$240>0,\"X\",\"\")","v":"X"},"Option 1","EQ10O1P1",{"$f":"IF(EQ!$J$243>0,\"X\",\"\")","v":""}]
["LEED v4 BD+C: Midrise","EQ","C","Balancing of heating and cooling distribution systems","EQ110",{"$f":"IF(EQ!$J$237>0,\"X\",\"\")","v":"X"},{"$f":"EQ!$J$237","v":2},3,null,null,null,"Case 1","EQ10O1",{"$f":"IF(EQ!$J$240>0,\"X\",\"\")","v":"X"},"Option 2","EQ10O1P2",{"$f":"IF(EQ!$J$252>0,\"X\",\"\")","v":"X"}]
["LEED v4 BD+C: Midrise","EQ","C","Balancing of heating and cooling distribution systems","EQ110",{"$f":"IF(EQ!$J$237>0,\"X\",\"\")","v":"X"},{"$f":"EQ!$J$237","v":2},3,null,null,null,"Case 1","EQ10O1",{"$f":"IF(EQ!$J$240>0,\"X\",\"\")","v":"X"},"Option 3","EQ10O1P3",{"$f":"IF(EQ!$J$258>0,\"X\",\"\")","v":"X"}]
["LEED v4 BD+C: Midrise","EQ","C","Balancing of heating and cooling distribution systems","EQ110",{"$f":"IF(EQ!$J$237>0,\"X\",\"\")","v":"X"},{"$f":"EQ!$J$237","v":2},3,null,null,null,"Case 2","EQ10O2",{"$f":"IF(EQ!$J$264>0,\"X\",\"\")","v":""}]
["LEED v4 BD+C: Midrise","EQ","C","Balancing of heating and cooling distribution systems","EQ110",{"$f":"IF(EQ!$J$237>0,\"X\",\"\")","v":"X"},{"$f":"EQ!$J$237","v":2},3,null,null,null,"Case 2","EQ10O2",{"$f":"IF(EQ!$J$264>0,\"X\",\"\")","v":""},"Option 1","EQ10O2P1",{"$f":"IF(EQ!$J$267>0,\"X\",\"\")","v":""}]
["LEED v4 BD+C: Midrise","EQ","C","Balancing of heating and cooling distribution systems","EQ110",{"$f":"IF(EQ!$J$237>0,\"X\",\"\")","v":"X"},{"$f":"EQ!$J$237","v":2},3,null,null,null,"Case 2","EQ10O2",{"$f":"IF(EQ!$J$264>0,\"X\",\"\")","v":""},"Option 2","EQ10O2P2",{"$f":"IF(EQ!$J$277>0,\"X\",\"\")","v":""}]
["LEED v4 BD+C: Midrise","EQ","C","Enhanced compartmentalization","EQ111",{"$f":"IF(EQ!$J$284>0,\"X\",\"\")","v":""},{"$f":"EQ!$J$284","v":0},3,"1 point","EQ11T1",{"$f":"IF(G595=1,\"X\",\"\")","v":""}]
["LEED v4 BD+C: Midrise","EQ","C","Enhanced compartmentalization","EQ111",{"$f":"IF(EQ!$J$284>0,\"X\",\"\")","v":""},{"$f":"EQ!$J$284","v":0},3,"2 points","EQ11T2",{"$f":"IF(G596=2,\"X\",\"\")","v":""}]
["LEED v4 BD+C: Midrise","EQ","C","Enhanced compartmentalization","EQ111",{"$f":"IF(EQ!$J$284>0,\"X\",\"\")","v":""},{"$f":"EQ!$J$284","v":0},3,"3 points","EQ11T3",{"$f":"IF(G597=3,\"X\",\"\")","v":""}]
["LEED v4 BD+C: Midrise","EQ","C","Enhanced combustion venting","EQ112",{"$f":"IF(EQ!$J$291>0,\"X\",\"\")","v":"X"},{"$f":"EQ!$J$291","v":2},2,null,null,null,"Option 1","EQ12O1",{"$f":"IF(EQ!$J$294>0,\"X\",\"\")","v":"X"}]
["LEED v4 BD+C: Midrise","EQ","C","Enhanced combustion venting","EQ112",{"$f":"IF(EQ!$J$291>0,\"X\",\"\")","v":"X"},{"$f":"EQ!$J$291","v":2},2,null,null,null,"Option 2","EQ12O2",{"$f":"IF(EQ!$J$300>0,\"X\",\"\")","v":""}]
["LEED v4 BD+C: Midrise","EQ","C","Enhanced garage pollutant protection","EQ113",{"$f":"IF(EQ!$J$312>0,\"X\",\"\")","v":"X"},{"$f":"EQ!$J$312","v":2},1,null,null,null,"Option 1","EQ13O1",{"$f":"IF(EQ!J386>0,\"X\",\"\")","v":""}]
["LEED v4 BD+C: Midrise","EQ","C","Enhanced garage pollutant protection","EQ113",{"$f":"IF(EQ!$J$312>0,\"X\",\"\")","v":"X"},{"$f":"EQ!$J$312","v":2},1,null,null,null,"Option 2","EQ13O2",{"$f":"IF(EQ!J398>0,\"X\",\"\")","v":""}]
["LEED v4 BD+C: Midrise","EQ","C","Low-emitting products","EQ114",{"$f":"IF(EQ!$J$407>0,\"X\",\"\")","v":"X"},{"$f":"EQ!$J$407","v":0.5},3,"0.5 points","EQ14T1",{"$f":"IF(G602=0.5,\"X\",\"\")","v":"X"}]
["LEED v4 BD+C: Midrise","EQ","C","Low-emitting products","EQ114",{"$f":"IF(EQ!$J$407>0,\"X\",\"\")","v":"X"},{"$f":"EQ!$J$407","v":0.5},3,"1 point","EQ14T2",{"$f":"IF(G603=1,\"X\",\"\")","v":""}]
["LEED v4 BD+C: Midrise","EQ","C","Low-emitting products","EQ114",{"$f":"IF(EQ!$J$407>0,\"X\",\"\")","v":"X"},{"$f":"EQ!$J$407","v":0.5},3,"1.5 points","EQ14T3",{"$f":"IF(G604=1.5,\"X\",\"\")","v":""}]
["LEED v4 BD+C: Midrise","EQ","C","Low-emitting products","EQ114",{"$f":"IF(EQ!$J$407>0,\"X\",\"\")","v":"X"},{"$f":"EQ!$J$407","v":0.5},3,"2 points","EQ14T4",{"$f":"IF(G605=2,\"X\",\"\")","v":""}]
["LEED v4 BD+C: Midrise","EQ","C","Low-emitting products","EQ114",{"$f":"IF(EQ!$J$407>0,\"X\",\"\")","v":"X"},{"$f":"EQ!$J$407","v":0.5},3,"2.5 points","EQ14T5",{"$f":"IF(G606=2.5,\"X\",\"\")","v":""}]
["LEED v4 BD+C: Midrise","EQ","C","Low-emitting products","EQ114",{"$f":"IF(EQ!$J$407>0,\"X\",\"\")","v":"X"},{"$f":"EQ!$J$407","v":0.5},3,"3 points","EQ14T6",{"$f":"IF(G607=3,\"X\",\"\")","v":""}]
["LEED v4 BD+C: Midrise","EQ","C","No environmental tobacco smoke","EQ115",{"$f":"IF(EQ!$J$424>0,\"X\",\"\")","v":""},{"$f":"EQ!$J$424","v":0},1]
["LEED v4 BD+C: Midrise","IN","P","Preliminary rating","IN101","x",{"$f":"IN!$J$7","v":"Y"},0]
["LEED v4 BD+C: Midrise","IN","C","Innovation","IN102",{"$f":"IF(IN!$J$14>0,\"X\",\"\")","v":"X"},{"$f":"IN!$J$14","v":1},5,null,null,null,"Option 1","IN02O1",{"$f":"IF(IN!$J$17>0,\"X\",\"\")","v":""}]
["LEED v4 BD+C: Midrise","IN","C","Innovation","IN102",{"$f":"IF(IN!$J$14>0,\"X\",\"\")","v":"X"},{"$f":"IN!$J$14","v":1},5,null,null,null,"Option 2","IN02O2",{"$f":"IF(IN!$J$24>0,\"X\",\"\")","v":""}]
["LEED v4 BD+C: Midrise","IN","C","Innovation","IN102",{"$f":"IF(IN!$J$14>0,\"X\",\"\")","v":"X"},{"$f":"IN!$J$14","v":1},5,null,null,null,"Option 3","IN02O3",{"$f":"IF(IN!$J$30>0,\"X\",\"\")","v":"X"}]
["LEED v4 BD+C: Midrise","IN","C","Innovation","IN102",{"$f":"IF(IN!$J$14>0,\"X\",\"\")","v":"X"},{"$f":"IN!$J$14","v":1},5,null,null,null,"Option 3","IN02O3",{"$f":"IF(IN!$J$30>0,\"X\",\"\")","v":"X"},"0.5 points","IN02O3P1",{"$f":"IF(IN!$J$30=0.5,\"X\",\"\")","v":""}]
["LEED v4 BD+C: Midrise","IN","C","Innovation","IN102",{"$f":"IF(IN!$J$14>0,\"X\",\"\")","v":"X"},{"$f":"IN!$J$14","v":1},5,null,null,null,"Option 3","IN02O3",{"$f":"IF(IN!$J$30>0,\"X\",\"\")","v":"X"},"1 point","IN02O3P2",{"$f":"IF(IN!$J$30=1,\"X\",\"\")","v":"X"}]
["LEED v4 BD+C: Midrise","IN","C","Innovation","IN102",{"$f":"IF(IN!$J$14>0,\"X\",\"\")","v":"X"},{"$f":"IN!$J$14","v":1},5,null,null,null,"Option 3","IN02O3",{"$f":"IF(IN!$J$30>0,\"X\",\"\")","v":"X"},"1.5 points","IN02O3P3",{"$f":"IF(IN!$J$30=1.5,\"X\",\"\")","v":""}]
["LEED v4 BD+C: Midrise","IN","C","Innovation","IN102",{"$f":"IF(IN!$J$14>0,\"X\",\"\")","v":"X"},{"$f":"IN!$J$14","v":1},5,null,null,null,"Option 3","IN02O3",{"$f":"IF(IN!$J$30>0,\"X\",\"\")","v":"X"},"2 points","IN02O3P4",{"$f":"IF(IN!$J$30=2,\"X\",\"\")","v":""}]
["LEED v4 BD+C: Midrise","IN","C","Innovation","IN102",{"$f":"IF(IN!$J$14>0,\"X\",\"\")","v":"X"},{"$f":"IN!$J$14","v":1},5,null,null,null,"Option 3","IN02O3",{"$f":"IF(IN!$J$30>0,\"X\",\"\")","v":"X"},"2.5 points","IN02O3P5",{"$f":"IF(IN!$J$30=2.5,\"X\",\"\")","v":""}]
["LEED v4 BD+C: Midrise","IN","C","Innovation","IN102",{"$f":"IF(IN!$J$14>0,\"X\",\"\")","v":"X"},{"$f":"IN!$J$14","v":1},5,null,null,null,"Option 3","IN02O3",{"$f":"IF(IN!$J$30>0,\"X\",\"\")","v":"X"},"3 points","IN02O3P6",{"$f":"IF(IN!$J$30=3,\"X\",\"\")","v":""}]
["LEED v4 BD+C: Midrise","IN","C","LEED Accredited Professional","IN103",{"$f":"IF(IN!$J$53>0,\"X\",\"\")","v":"X"},{"$f":"IN!$J$53","v":1},1]